Workbook

Sheet オプションケア
H1: Rakuten RSS | K1: リアルタイム 計算実行中 | X1: 0 | AB1: Debitt | AF1: Short Over | AJ1: Debitt | AN1: Short Over
A2: Position1 | C2: 限月 | F2: 先物建玉 | H2: 先物価格 | K2: オプションの合計ポジション(枚数と建玉価格はオプションのみ） | S2: コールポジション | AA2: プットポジション
A3: 損益 | C3: SQ日 | D3: 残存日数 | E3: 営業日 | F3: 枚数 | G3: 価格 | H3: 現在値 | J3: 値洗い | K3: 枚数 | L3: 建玉価格 | M3: 現在建玉 価格 | N3: 値洗い | O3: デルタ | P3: ベガ | Q3: ガンマ | R3: セータ | S3: 合計枚数 | T3: 合計建玉価格 | U3: 合計プレミ アム価格 | V3: 値洗い | W3: デルタ | X3: ベガ | Y3: ガンマ | Z3: セータ | AA3: 合計枚数 | AB3: 合計建玉価格 | AC3: 合計プレミ アム価格 | AD3: 値洗い | AE3: デルタ | AF3: ベガ | AG3: ガンマ | AH3: セータ
A4: =ConfimPL+$N$7*1000 -> 0 | C4: =WORKDAY(_xll.RssIndexMarket("N225M.FUT01.OS","売買最終日"),1,HolidayList)+TIME(9,0,0) -> 2022-01-14T09:00:00 | D4: =$C4-$A$7 -> 27.57414931 | E4: 0 | H4: =OFFSET(FutData!$I$19,$E$4,,1,1) -> 28525 | J4: =($H4-$G4)*$F4/10 -> 0 | K4: =S4+AA4 -> 0 | L4: 0 | M4: 0 | N4: =J4+V4+AD4 -> 0 | O4: =W4+AE4+F4/10 -> 0 | P4: =X4+AF4 -> 0 | Q4: 0 | R4: 0 | S4: =SUM(CPosition1) -> 0 | T4: =SUM(CPosPrice1) -> 0 | U4: =SUM(CNowPrice1) -> 0 | V4: =U4-T4 -> 0 | W4: =SUM(CDelta1) -> 0 | X4: =SUM(CVega1) -> 0 | Y4: =SUM(CGamma1) -> 0 | Z4: =SUM(CTheta1) -> 0 | AA4: =SUM(PPosition1) -> 0 | AB4: =SUM(PPosPrice1) -> 0 | AC4: =SUM(PNowPrice1) -> 0 | AD4: =AC4-AB4 -> 0 | AE4: =SUM(PDelta1) -> 0 | AF4: =SUM(PVega1) -> 0 | AG4: =SUM(PGamma1) -> 0 | AH4: =SUM(PTheta1) -> 0
C5: =WORKDAY(_xll.RssIndexMarket("N225M.FUT02.OS","売買最終日"),1,HolidayList)+TIME(9,0,0) -> 2022-02-10T09:00:00 | D5: =$C5-$A$7 -> 54.57414931 | H5: =OFFSET(FutData!$S$19,$E$4,,1,1) -> 28530 | J5: =($H5-$G5)*$F5/10 -> 0 | K5: 0 | L5: 0 | M5: 0 | N5: =J5+V5+AD5 -> 0 | O5: =W5+AE5+F5/10 -> 0 | P5: 0 | Q5: 0 | R5: 0 | S5: =SUM(CPosition2) -> 0 | T5: =SUM(CPosPrice2) -> 0 | U5: =SUM(CNowPrice2) -> 0 | V5: =U5-T5 -> 0 | W5: =SUM(CDelta2) -> 0 | X5: =SUM(CVega2) -> 0 | Y5: =SUM(CGamma2) -> 0 | Z5: =SUM(CTheta2) -> 0 | AA5: =SUM(PPosition2) -> 0 | AB5: =SUM(PPosPrice2) -> 0 | AC5: =SUM(PNowPrice2) -> 0 | AD5: =AC5-AB5 -> 0 | AE5: =SUM(PDelta2) -> 0 | AF5: =SUM(PVega2) -> 0 | AG5: =SUM(PGamma2) -> 0 | AH5: =SUM(PTheta2) -> 0
A7: =OFFSET(FutData!$D$19,$E$4,,1) -> 2021-12-17T19:13:13.500 | F7: =SUM(F4:F6) -> 0 | J7: =SUM(J4:J6) -> 0 | K7: 0 | L7: 0 | M7: 0 | N7: 0 | O7: 0 | P7: 0 | Q7: 0 | R7: 0 | S7: 0 | T7: 0 | U7: 0 | V7: 0 | W7: 0 | X7: 0 | Y7: 0 | Z7: 0 | AA7: 0 | AB7: 0 | AC7: 0 | AD7: 0 | AE7: 0 | AF7: 0 | AG7: 0 | AH7: 0
A8: 期近コール建玉 | C8: 期近コール | H8: SP | I8: 期近プット | N8: 期近グリークス | S8: 期近プット建玉 | U8: 第２限月建コール建玉 | W8: 第二限月コール | AB8: SP | AC8: 第二限月プット | AH8: 第二限月グリークス | AM8: 第二限月プット建玉 | CA8: 期近コール | CG8: 期近プット | CM8: 第二限月コール | CS8: 第二限月プット
A9: 枚数 | B9: 価格 | C9: デルタ | D9: 現在値 | G9: ATM表示 | H9: 権利行使価格 | I9: デルタ | J9: 現在値 | N9: IV | P9: ベガ | Q9: ガンマ | R9: セータ | S9: 枚数 | T9: 価格 | U9: 枚数 | V9: 価格 | W9: デルタ | X9: 現在値 | AA9: ATM表示 | AB9: 権利行使価格 | AC9: デルタ | AD9: 現在値 | AH9: IV | AJ9: ベガ | AK9: ガンマ | AL9: セータ | AM9: 枚数 | AN9: 価格 | CA9: ポジション 価格 | CB9: 現在価格 | CC9: デルタ | CD9: ベガ | CE9: ガンマ | CF9: セータ | CG9: ポジション 価格 | CH9: 現在価格 | CI9: デルタ | CJ9: ベガ | CK9: ガンマ | CL9: セータ | CM9: ポジション 価格 | CN9: 現在価格 | CO9: デルタ | CP9: ベガ | CQ9: ガンマ | CR9: セータ | CS9: ポジション 価格 | CT9: 現在価格 | CU9: デルタ | CV9: ベガ | CW9: ガンマ | CX9: セータ
C10: =IFERROR(IF($E$4,IF($H$4<=H10,DeltaC($H$4,H10,0,0,N10,$D$4/365),I10+1),IF(H10>$H$4,_xll.RssFOPMarket("197014518","デルタ"),_xll.RssFOPMarket("187014518","デルタ")+1)),0) -> 0.0019 | D10: =IFERROR(IF($H$4<H10,OFFSET(OpData!I18,$E$4,,1,1),$H$4+OFFSET(OpData!S18,$E$4,,1,1)-H10),0) -> 0 | G10: =IF(ABS($H$4-H10)<125,"ATM","") ->  | H10: 34500 | I10: =IFERROR(IF($E$4,IF($H$4>=H10,DeltaP($H$4,H10,0,0,N10,$D$4/365),C10-1),IF(H10>$H$4,_xll.RssFOPMarket("197014518","デルタ")-1,_xll.RssFOPMarket("187014518","デルタ"))),0) -> -0.9981 | J10: =IFERROR(IF($H$4>H10,OFFSET(OpData!S18,$E$4,,1,1),OFFSET(OpData!I18,$E$4,,1,1)+H10-$H$4),0) -> 5975 | N10: =IFERROR(IF($E$4,IF($H$4<H10,IVC(D10,$H$4,H10,0,0,$D$4/365),IVP(J10,$H$4,H10,0,0,$D$4/365)),IF(H10>$H$4,_xll.RssFOPMarket("197014518","IV"),_xll.RssFOPMarket("187014518","IV"))/100),0) -> 0.1924 | P10: =IFERROR(IF($E$4,Vega($H$4,H10,0,0,N10,$D$4/365),IF(H10>$H$4,_xll.RssFOPMarket("197014518","ベガ"),_xll.RssFOPMarket("187014518","ベガ"))),0) -> 0.551 | Q10: =IFERROR(IF($E$4,GammaCP($H$4,H10,0,0,N10,$D$4/365),IF(H10>$H$4,_xll.RssFOPMarket("197014518","ガンマ"),_xll.RssFOPMarket("187014518","ガンマ"))),0) -> 0 | R10: =IFERROR(IF($E$4,Theta($H$4,H10,0,0,N10,$D$4/365,365),IF(H10>$H$4,_xll.RssFOPMarket("197014518","セータ"),_xll.RssFOPMarket("187014518","セータ"))),0) -> -0.151 | W10: =IFERROR(IF($E$4,IF($H$5<=AB10,DeltaC($H$5,AB10,0,0,AH10,$D$5/365),AC10+1),IF(AB10>$H$5,_xll.RssFOPMarket("197024518","デルタ"),_xll.RssFOPMarket("187024518","デルタ")+1)),0) -> 0.0048 | X10: =IFERROR(IF($H$5<AB10,OFFSET(OpData!AC18,$E$4,,1,1),$H$5+OFFSET(OpData!AM18,$E$4,,1,1)-AB10),0) -> 0 | AA10: =IF(ABS($H$5-AB10)<125,"ATM","") ->  | AB10: 34500 | AC10: =IFERROR(IF($E$4,IF($H$5>=AB10,DeltaP($H$5,AB10,0,0,AH10,$D$5/365),W10-1),IF(AB10>$H$5,_xll.RssFOPMarket("197024518","デルタ")-1,_xll.RssFOPMarket("187024518","デルタ"))),0) -> -0.9952 | AD10: =IFERROR(IF($H$5>AB10,OFFSET(OpData!AM18,$E$4,,1,1),OFFSET(OpData!AC18,$E$4,,1,1)+AB10-$H$5),0) -> 5970 | AH10: =IFERROR(IF($E$4,IF($H$5<AB10,IVC(X10,$H$5,AB10,0,0,$D$5/365),IVP(AD10,$H$5,AB10,0,0,$D$5/365)),IF(AB10>$H$5,_xll.RssFOPMarket("197024518","IV"),_xll.RssFOPMarket("187024518","IV"))/100),0) -> 0.179 | AJ10: =IFERROR(IF($E$4,Vega($H$5,AB10,0,0,AH10,$D$5/365),IF(AB10>$H$5,_xll.RssFOPMarket("197024518","ベガ"),_xll.RssFOPMarket("187024518","ベガ"))),0) -> 1.601 | AK10: =IFERROR(IF($E$4,GammaCP($H$5,AB10,0,0,AH10,$D$5/365),IF(AB10>$H$5,_xll.RssFOPMarket("197024518","ガンマ"),_xll.RssFOPMarket("187024518","ガンマ"))),0) -> 0 | AL10: =IFERROR(IF($E$4,Theta($H$5,AB10,0,0,AH10,$D$5/365,365),IF(AB10>$H$5,_xll.RssFOPMarket("197024518","セータ"),_xll.RssFOPMarket("187024518","セータ"))),0) -> -0.239 | CA10: =IF(ISNUMBER($A10*B10),$A10*B10,) -> 0 | CB10: =IF(ISNUMBER($A10*D10),$A10*D10,) -> 0 | CC10: =IF(ISNUMBER($A10*C10),$A10*C10,) -> 0 | CD10: =IF(ISNUMBER($A10*P10),$A10*P10,) -> 0 | CE10: =IF(ISNUMBER($A10*Q10),$A10*Q10,) -> 0 | CF10: =IF(ISNUMBER($A10*R10),$A10*R10,) -> 0 | CG10: =IF(ISNUMBER($S10*T10),$S10*T10,) -> 0 | CH10: =IF(ISNUMBER($S10*J10),$S10*J10,) -> 0 | CI10: =IF(ISNUMBER($S10*I10),$S10*I10,) -> 0 | CJ10: =IF(ISNUMBER($S10*P10),$S10*P10,) -> 0 | CK10: =IF(ISNUMBER($S10*Q10),$S10*Q10,) -> 0 | CL10: =IF(ISNUMBER($S10*R10),$S10*R10,) -> 0 | CM10: =IF(ISNUMBER($U10*V10),$U10*V10,) -> 0 | CN10: =IF(ISNUMBER($U10*X10),$U10*X10,) -> 0 | CO10: =IF(ISNUMBER($U10*W10),$U10*W10,) -> 0 | CP10: =IF(ISNUMBER($U10*AJ10),$U10*AJ10,) -> 0 | CQ10: =IF(ISNUMBER($U10*AK10),$U10*AK10,) -> 0 | CR10: =IF(ISNUMBER($U10*AL10),$U10*AL10,) -> 0 | CS10: =IF(ISNUMBER($AM10*AN10),$AM10*AN10,) -> 0 | CT10: =IF(ISNUMBER($AM10*AD10),$AM10*AD10,) -> 0 | CU10: =IF(ISNUMBER($AM10*AC10),$AM10*AC10,) -> 0 | CV10: =IF(ISNUMBER($AM10*AJ10),$AM10*AJ10,) -> 0 | CW10: =IF(ISNUMBER($AM10*AK10),$AM10*AK10,) -> 0 | CX10: =IF(ISNUMBER($AM10*AL10),$AM10*AL10,) -> 0
C11: =IFERROR(IF($E$4,IF($H$4<=H11,DeltaC($H$4,H11,0,0,N11,$D$4/365),I11+1),IF(H11>$H$4,_xll.RssFOPMarket("197014218","デルタ"),_xll.RssFOPMarket("187014218","デルタ")+1)),0) -> 0.0021 | D11: =IFERROR(IF($H$4<H11,OFFSET(OpData!I38,$E$4,,1,1),$H$4+OFFSET(OpData!S38,$E$4,,1,1)-H11),0) -> 0 | H11: 34250 | I11: =IFERROR(IF($E$4,IF($H$4>=H11,DeltaP($H$4,H11,0,0,N11,$D$4/365),C11-1),IF(H11>$H$4,_xll.RssFOPMarket("197014218","デルタ")-1,_xll.RssFOPMarket("187014218","デルタ"))),0) -> -0.9979 | J11: =IFERROR(IF($H$4>H11,OFFSET(OpData!S38,$E$4,,1,1),OFFSET(OpData!I38,$E$4,,1,1)+H11-$H$4),0) -> 5725 | N11: =IFERROR(IF($E$4,IF($H$4<H11,IVC(D11,$H$4,H11,0,0,$D$4/365),IVP(J11,$H$4,H11,0,0,$D$4/365)),IF(H11>$H$4,_xll.RssFOPMarket("197014218","IV"),_xll.RssFOPMarket("187014218","IV"))/100),0) -> 0.1924 | P11: =IFERROR(IF($E$4,Vega($H$4,H11,0,0,N11,$D$4/365),IF(H11>$H$4,_xll.RssFOPMarket("197014218","ベガ"),_xll.RssFOPMarket("187014218","ベガ"))),0) -> 0.527 | Q11: =IFERROR(IF($E$4,GammaCP($H$4,H11,0,0,N11,$D$4/365),IF(H11>$H$4,_xll.RssFOPMarket("197014218","ガンマ"),_xll.RssFOPMarket("187014218","ガンマ"))),0) -> 0 | R11: =IFERROR(IF($E$4,Theta($H$4,H11,0,0,N11,$D$4/365,365),IF(H11>$H$4,_xll.RssFOPMarket("197014218","セータ"),_xll.RssFOPMarket("187014218","セータ"))),0) -> -0.219 | W11: =IFERROR(IF($E$4,IF($H$5<=AB11,DeltaC($H$5,AB11,0,0,AH11,$D$5/365),AC11+1),IF(AB11>$H$5,_xll.RssFOPMarket("197024218","デルタ"),_xll.RssFOPMarket("187024218","デルタ")+1)),0) -> 0.0036 | X11: =IFERROR(IF($H$5<AB11,OFFSET(OpData!AC38,$E$4,,1,1),$H$5+OFFSET(OpData!AM38,$E$4,,1,1)-AB11),0) -> 0 | AB11: 34250 | AC11: =IFERROR(IF($E$4,IF($H$5>=AB11,DeltaP($H$5,AB11,0,0,AH11,$D$5/365),W11-1),IF(AB11>$H$5,_xll.RssFOPMarket("197024218","デルタ")-1,_xll.RssFOPMarket("187024218","デルタ"))),0) -> -0.9964 | AD11: =IFERROR(IF($H$5>AB11,OFFSET(OpData!AM38,$E$4,,1,1),OFFSET(OpData!AC38,$E$4,,1,1)+AB11-$H$5),0) -> 5720 | AH11: =IFERROR(IF($E$4,IF($H$5<AB11,IVC(X11,$H$5,AB11,0,0,$D$5/365),IVP(AD11,$H$5,AB11,0,0,$D$5/365)),IF(AB11>$H$5,_xll.RssFOPMarket("197024218","IV"),_xll.RssFOPMarket("187024218","IV"))/100),0) -> 0.1675 | AJ11: =IFERROR(IF($E$4,Vega($H$5,AB11,0,0,AH11,$D$5/365),IF(AB11>$H$5,_xll.RssFOPMarket("197024218","ベガ"),_xll.RssFOPMarket("187024218","ベガ"))),0) -> 1.2 | AK11: =IFERROR(IF($E$4,GammaCP($H$5,AB11,0,0,AH11,$D$5/365),IF(AB11>$H$5,_xll.RssFOPMarket("197024218","ガンマ"),_xll.RssFOPMarket("187024218","ガンマ"))),0) -> 0 | AL11: =IFERROR(IF($E$4,Theta($H$5,AB11,0,0,AH11,$D$5/365,365),IF(AB11>$H$5,_xll.RssFOPMarket("197024218","セータ"),_xll.RssFOPMarket("187024218","セータ"))),0) -> -0.178 | CA11: 0 | CB11: 0 | CC11: 0 | CD11: 0 | CE11: 0 | CF11: 0 | CG11: 0 | CH11: 0 | CI11: 0 | CJ11: 0 | CK11: 0 | CL11: 0 | CM11: 0 | CN11: 0 | CO11: 0 | CP11: 0 | CQ11: 0 | CR11: 0 | CS11: 0 | CT11: 0 | CU11: 0 | CV11: 0 | CW11: 0 | CX11: 0
C12: =IFERROR(IF($E$4,IF($H$4<=H12,DeltaC($H$4,H12,0,0,N12,$D$4/365),I12+1),IF(H12>$H$4,_xll.RssFOPMarket("197014018","デルタ"),_xll.RssFOPMarket("187014018","デルタ")+1)),0) -> 0.0021 | D12: =IFERROR(IF($H$4<H12,OFFSET(OpData!I58,$E$4,,1,1),$H$4+OFFSET(OpData!S58,$E$4,,1,1)-H12),0) -> 0 | H12: 34000 | I12: =IFERROR(IF($E$4,IF($H$4>=H12,DeltaP($H$4,H12,0,0,N12,$D$4/365),C12-1),IF(H12>$H$4,_xll.RssFOPMarket("197014018","デルタ")-1,_xll.RssFOPMarket("187014018","デルタ"))),0) -> -0.9979 | J12: =IFERROR(IF($H$4>H12,OFFSET(OpData!S58,$E$4,,1,1),OFFSET(OpData!I58,$E$4,,1,1)+H12-$H$4),0) -> 5475 | N12: =IFERROR(IF($E$4,IF($H$4<H12,IVC(D12,$H$4,H12,0,0,$D$4/365),IVP(J12,$H$4,H12,0,0,$D$4/365)),IF(H12>$H$4,_xll.RssFOPMarket("197014018","IV"),_xll.RssFOPMarket("187014018","IV"))/100),0) -> 0.1924 | P12: =IFERROR(IF($E$4,Vega($H$4,H12,0,0,N12,$D$4/365),IF(H12>$H$4,_xll.RssFOPMarket("197014018","ベガ"),_xll.RssFOPMarket("187014018","ベガ"))),0) -> 0.54 | Q12: =IFERROR(IF($E$4,GammaCP($H$4,H12,0,0,N12,$D$4/365),IF(H12>$H$4,_xll.RssFOPMarket("197014018","ガンマ"),_xll.RssFOPMarket("187014018","ガンマ"))),0) -> 0 | R12: =IFERROR(IF($E$4,Theta($H$4,H12,0,0,N12,$D$4/365,365),IF(H12>$H$4,_xll.RssFOPMarket("197014018","セータ"),_xll.RssFOPMarket("187014018","セータ"))),0) -> -0.186 | W12: =IFERROR(IF($E$4,IF($H$5<=AB12,DeltaC($H$5,AB12,0,0,AH12,$D$5/365),AC12+1),IF(AB12>$H$5,_xll.RssFOPMarket("197024018","デルタ"),_xll.RssFOPMarket("187024018","デルタ")+1)),0) -> 0.0083 | X12: =IFERROR(IF($H$5<AB12,OFFSET(OpData!AC58,$E$4,,1,1),$H$5+OFFSET(OpData!AM58,$E$4,,1,1)-AB12),0) -> 0 | AB12: 34000 | AC12: =IFERROR(IF($E$4,IF($H$5>=AB12,DeltaP($H$5,AB12,0,0,AH12,$D$5/365),W12-1),IF(AB12>$H$5,_xll.RssFOPMarket("197024018","デルタ")-1,_xll.RssFOPMarket("187024018","デルタ"))),0) -> -0.9917 | AD12: =IFERROR(IF($H$5>AB12,OFFSET(OpData!AM58,$E$4,,1,1),OFFSET(OpData!AC58,$E$4,,1,1)+AB12-$H$5),0) -> 5470 | AH12: =IFERROR(IF($E$4,IF($H$5<AB12,IVC(X12,$H$5,AB12,0,0,$D$5/365),IVP(AD12,$H$5,AB12,0,0,$D$5/365)),IF(AB12>$H$5,_xll.RssFOPMarket("197024018","IV"),_xll.RssFOPMarket("187024018","IV"))/100),0) -> 0.1756 | AJ12: =IFERROR(IF($E$4,Vega($H$5,AB12,0,0,AH12,$D$5/365),IF(AB12>$H$5,_xll.RssFOPMarket("197024018","ベガ"),_xll.RssFOPMarket("187024018","ベガ"))),0) -> 2.583 | AK12: =IFERROR(IF($E$4,GammaCP($H$5,AB12,0,0,AH12,$D$5/365),IF(AB12>$H$5,_xll.RssFOPMarket("197024018","ガンマ"),_xll.RssFOPMarket("187024018","ガンマ"))),0) -> 0 | AL12: =IFERROR(IF($E$4,Theta($H$5,AB12,0,0,AH12,$D$5/365,365),IF(AB12>$H$5,_xll.RssFOPMarket("197024018","セータ"),_xll.RssFOPMarket("187024018","セータ"))),0) -> -0.385 | CA12: 0 | CB12: 0 | CC12: 0 | CD12: 0 | CE12: 0 | CF12: 0 | CG12: 0 | CH12: 0 | CI12: 0 | CJ12: 0 | CK12: 0 | CL12: 0 | CM12: 0 | CN12: 0 | CO12: 0 | CP12: 0 | CQ12: 0 | CR12: 0 | CS12: 0 | CT12: 0 | CU12: 0 | CV12: 0 | CW12: 0 | CX12: 0
C13: =IFERROR(IF($E$4,IF($H$4<=H13,DeltaC($H$4,H13,0,0,N13,$D$4/365),I13+1),IF(H13>$H$4,_xll.RssFOPMarket("147013718","デルタ"),_xll.RssFOPMarket("137013718","デルタ")+1)),0) -> 0.0022 | D13: =IFERROR(IF($H$4<H13,OFFSET(OpData!I78,$E$4,,1,1),$H$4+OFFSET(OpData!S78,$E$4,,1,1)-H13),0) -> 0 | H13: 33750 | I13: =IFERROR(IF($E$4,IF($H$4>=H13,DeltaP($H$4,H13,0,0,N13,$D$4/365),C13-1),IF(H13>$H$4,_xll.RssFOPMarket("147013718","デルタ")-1,_xll.RssFOPMarket("137013718","デルタ"))),0) -> -0.9978 | J13: =IFERROR(IF($H$4>H13,OFFSET(OpData!S78,$E$4,,1,1),OFFSET(OpData!I78,$E$4,,1,1)+H13-$H$4),0) -> 5225 | N13: =IFERROR(IF($E$4,IF($H$4<H13,IVC(D13,$H$4,H13,0,0,$D$4/365),IVP(J13,$H$4,H13,0,0,$D$4/365)),IF(H13>$H$4,_xll.RssFOPMarket("147013718","IV"),_xll.RssFOPMarket("137013718","IV"))/100),0) -> 0.1924 | P13: =IFERROR(IF($E$4,Vega($H$4,H13,0,0,N13,$D$4/365),IF(H13>$H$4,_xll.RssFOPMarket("147013718","ベガ"),_xll.RssFOPMarket("137013718","ベガ"))),0) -> 0.569 | Q13: =IFERROR(IF($E$4,GammaCP($H$4,H13,0,0,N13,$D$4/365),IF(H13>$H$4,_xll.RssFOPMarket("147013718","ガンマ"),_xll.RssFOPMarket("137013718","ガンマ"))),0) -> 0 | R13: =IFERROR(IF($E$4,Theta($H$4,H13,0,0,N13,$D$4/365,365),IF(H13>$H$4,_xll.RssFOPMarket("147013718","セータ"),_xll.RssFOPMarket("137013718","セータ"))),0) -> -0.184 | W13: =IFERROR(IF($E$4,IF($H$5<=AB13,DeltaC($H$5,AB13,0,0,AH13,$D$5/365),AC13+1),IF(AB13>$H$5,_xll.RssFOPMarket("197023718","デルタ"),_xll.RssFOPMarket("187023718","デルタ")+1)),0) -> 0.0092 | X13: =IFERROR(IF($H$5<AB13,OFFSET(OpData!AC78,$E$4,,1,1),$H$5+OFFSET(OpData!AM78,$E$4,,1,1)-AB13),0) -> 0 | AB13: 33750 | AC13: =IFERROR(IF($E$4,IF($H$5>=AB13,DeltaP($H$5,AB13,0,0,AH13,$D$5/365),W13-1),IF(AB13>$H$5,_xll.RssFOPMarket("197023718","デルタ")-1,_xll.RssFOPMarket("187023718","デルタ"))),0) -> -0.9908 | AD13: =IFERROR(IF($H$5>AB13,OFFSET(OpData!AM78,$E$4,,1,1),OFFSET(OpData!AC78,$E$4,,1,1)+AB13-$H$5),0) -> 5220 | AH13: =IFERROR(IF($E$4,IF($H$5<AB13,IVC(X13,$H$5,AB13,0,0,$D$5/365),IVP(AD13,$H$5,AB13,0,0,$D$5/365)),IF(AB13>$H$5,_xll.RssFOPMarket("197023718","IV"),_xll.RssFOPMarket("187023718","IV"))/100),0) -> 0.1705 | AJ13: =IFERROR(IF($E$4,Vega($H$5,AB13,0,0,AH13,$D$5/365),IF(AB13>$H$5,_xll.RssFOPMarket("197023718","ベガ"),_xll.RssFOPMarket("187023718","ベガ"))),0) -> 2.918 | AK13: =IFERROR(IF($E$4,GammaCP($H$5,AB13,0,0,AH13,$D$5/365),IF(AB13>$H$5,_xll.RssFOPMarket("197023718","ガンマ"),_xll.RssFOPMarket("187023718","ガンマ"))),0) -> 0 | AL13: =IFERROR(IF($E$4,Theta($H$5,AB13,0,0,AH13,$D$5/365,365),IF(AB13>$H$5,_xll.RssFOPMarket("197023718","セータ"),_xll.RssFOPMarket("187023718","セータ"))),0) -> -0.418 | CA13: 0 | CB13: 0 | CC13: 0 | CD13: 0 | CE13: 0 | CF13: 0 | CG13: 0 | CH13: 0 | CI13: 0 | CJ13: 0 | CK13: 0 | CL13: 0 | CM13: 0 | CN13: 0 | CO13: 0 | CP13: 0 | CQ13: 0 | CR13: 0 | CS13: 0 | CT13: 0 | CU13: 0 | CV13: 0 | CW13: 0 | CX13: 0
C14: =IFERROR(IF($E$4,IF($H$4<=H14,DeltaC($H$4,H14,0,0,N14,$D$4/365),I14+1),IF(H14>$H$4,_xll.RssFOPMarket("147013518","デルタ"),_xll.RssFOPMarket("137013518","デルタ")+1)),0) -> 0.0024 | D14: =IFERROR(IF($H$4<H14,OFFSET(OpData!I98,$E$4,,1,1),$H$4+OFFSET(OpData!S98,$E$4,,1,1)-H14),0) -> 0 | H14: 33500 | I14: =IFERROR(IF($E$4,IF($H$4>=H14,DeltaP($H$4,H14,0,0,N14,$D$4/365),C14-1),IF(H14>$H$4,_xll.RssFOPMarket("147013518","デルタ")-1,_xll.RssFOPMarket("137013518","デルタ"))),0) -> -0.9976 | J14: =IFERROR(IF($H$4>H14,OFFSET(OpData!S98,$E$4,,1,1),OFFSET(OpData!I98,$E$4,,1,1)+H14-$H$4),0) -> 4975 | N14: =IFERROR(IF($E$4,IF($H$4<H14,IVC(D14,$H$4,H14,0,0,$D$4/365),IVP(J14,$H$4,H14,0,0,$D$4/365)),IF(H14>$H$4,_xll.RssFOPMarket("147013518","IV"),_xll.RssFOPMarket("137013518","IV"))/100),0) -> 0.1924 | P14: =IFERROR(IF($E$4,Vega($H$4,H14,0,0,N14,$D$4/365),IF(H14>$H$4,_xll.RssFOPMarket("147013518","ベガ"),_xll.RssFOPMarket("137013518","ベガ"))),0) -> 0.612 | Q14: =IFERROR(IF($E$4,GammaCP($H$4,H14,0,0,N14,$D$4/365),IF(H14>$H$4,_xll.RssFOPMarket("147013518","ガンマ"),_xll.RssFOPMarket("137013518","ガンマ"))),0) -> 0 | R14: =IFERROR(IF($E$4,Theta($H$4,H14,0,0,N14,$D$4/365,365),IF(H14>$H$4,_xll.RssFOPMarket("147013518","セータ"),_xll.RssFOPMarket("137013518","セータ"))),0) -> -0.189 | W14: =IFERROR(IF($E$4,IF($H$5<=AB14,DeltaC($H$5,AB14,0,0,AH14,$D$5/365),AC14+1),IF(AB14>$H$5,_xll.RssFOPMarket("197023518","デルタ"),_xll.RssFOPMarket("187023518","デルタ")+1)),0) -> 0.0068 | X14: =IFERROR(IF($H$5<AB14,OFFSET(OpData!AC98,$E$4,,1,1),$H$5+OFFSET(OpData!AM98,$E$4,,1,1)-AB14),0) -> 0 | AB14: 33500 | AC14: =IFERROR(IF($E$4,IF($H$5>=AB14,DeltaP($H$5,AB14,0,0,AH14,$D$5/365),W14-1),IF(AB14>$H$5,_xll.RssFOPMarket("197023518","デルタ")-1,_xll.RssFOPMarket("187023518","デルタ"))),0) -> -0.9932 | AD14: =IFERROR(IF($H$5>AB14,OFFSET(OpData!AM98,$E$4,,1,1),OFFSET(OpData!AC98,$E$4,,1,1)+AB14-$H$5),0) -> 4970 | AH14: =IFERROR(IF($E$4,IF($H$5<AB14,IVC(X14,$H$5,AB14,0,0,$D$5/365),IVP(AD14,$H$5,AB14,0,0,$D$5/365)),IF(AB14>$H$5,_xll.RssFOPMarket("197023518","IV"),_xll.RssFOPMarket("187023518","IV"))/100),0) -> 0.1706 | AJ14: =IFERROR(IF($E$4,Vega($H$5,AB14,0,0,AH14,$D$5/365),IF(AB14>$H$5,_xll.RssFOPMarket("197023518","ベガ"),_xll.RssFOPMarket("187023518","ベガ"))),0) -> 2.098 | AK14: =IFERROR(IF($E$4,GammaCP($H$5,AB14,0,0,AH14,$D$5/365),IF(AB14>$H$5,_xll.RssFOPMarket("197023518","ガンマ"),_xll.RssFOPMarket("187023518","ガンマ"))),0) -> 0 | AL14: =IFERROR(IF($E$4,Theta($H$5,AB14,0,0,AH14,$D$5/365,365),IF(AB14>$H$5,_xll.RssFOPMarket("197023518","セータ"),_xll.RssFOPMarket("187023518","セータ"))),0) -> -0.313 | CA14: 0 | CB14: 0 | CC14: 0 | CD14: 0 | CE14: 0 | CF14: 0 | CG14: 0 | CH14: 0 | CI14: 0 | CJ14: 0 | CK14: 0 | CL14: 0 | CM14: 0 | CN14: 0 | CO14: 0 | CP14: 0 | CQ14: 0 | CR14: 0 | CS14: 0 | CT14: 0 | CU14: 0 | CV14: 0 | CW14: 0 | CX14: 0
C15: =IFERROR(IF($E$4,IF($H$4<=H15,DeltaC($H$4,H15,0,0,N15,$D$4/365),I15+1),IF(H15>$H$4,_xll.RssFOPMarket("147013218","デルタ"),_xll.RssFOPMarket("137013218","デルタ")+1)),0) -> 0.0023 | D15: =IFERROR(IF($H$4<H15,OFFSET(OpData!I118,$E$4,,1,1),$H$4+OFFSET(OpData!S118,$E$4,,1,1)-H15),0) -> 0 | H15: 33250 | I15: =IFERROR(IF($E$4,IF($H$4>=H15,DeltaP($H$4,H15,0,0,N15,$D$4/365),C15-1),IF(H15>$H$4,_xll.RssFOPMarket("147013218","デルタ")-1,_xll.RssFOPMarket("137013218","デルタ"))),0) -> -0.9977 | J15: =IFERROR(IF($H$4>H15,OFFSET(OpData!S118,$E$4,,1,1),OFFSET(OpData!I118,$E$4,,1,1)+H15-$H$4),0) -> 4725 | N15: =IFERROR(IF($E$4,IF($H$4<H15,IVC(D15,$H$4,H15,0,0,$D$4/365),IVP(J15,$H$4,H15,0,0,$D$4/365)),IF(H15>$H$4,_xll.RssFOPMarket("147013218","IV"),_xll.RssFOPMarket("137013218","IV"))/100),0) -> 0.1871 | P15: =IFERROR(IF($E$4,Vega($H$4,H15,0,0,N15,$D$4/365),IF(H15>$H$4,_xll.RssFOPMarket("147013218","ベガ"),_xll.RssFOPMarket("137013218","ベガ"))),0) -> 0.576 | Q15: =IFERROR(IF($E$4,GammaCP($H$4,H15,0,0,N15,$D$4/365),IF(H15>$H$4,_xll.RssFOPMarket("147013218","ガンマ"),_xll.RssFOPMarket("137013218","ガンマ"))),0) -> 0 | R15: =IFERROR(IF($E$4,Theta($H$4,H15,0,0,N15,$D$4/365,365),IF(H15>$H$4,_xll.RssFOPMarket("147013218","セータ"),_xll.RssFOPMarket("137013218","セータ"))),0) -> -0.182 | W15: =IFERROR(IF($E$4,IF($H$5<=AB15,DeltaC($H$5,AB15,0,0,AH15,$D$5/365),AC15+1),IF(AB15>$H$5,_xll.RssFOPMarket("147023218","デルタ"),_xll.RssFOPMarket("137023218","デルタ")+1)),0) -> 0.0114 | X15: =IFERROR(IF($H$5<AB15,OFFSET(OpData!AC118,$E$4,,1,1),$H$5+OFFSET(OpData!AM118,$E$4,,1,1)-AB15),0) -> 0 | AB15: 33250 | AC15: =IFERROR(IF($E$4,IF($H$5>=AB15,DeltaP($H$5,AB15,0,0,AH15,$D$5/365),W15-1),IF(AB15>$H$5,_xll.RssFOPMarket("147023218","デルタ")-1,_xll.RssFOPMarket("137023218","デルタ"))),0) -> -0.9886 | AD15: =IFERROR(IF($H$5>AB15,OFFSET(OpData!AM118,$E$4,,1,1),OFFSET(OpData!AC118,$E$4,,1,1)+AB15-$H$5),0) -> 4720 | AH15: =IFERROR(IF($E$4,IF($H$5<AB15,IVC(X15,$H$5,AB15,0,0,$D$5/365),IVP(AD15,$H$5,AB15,0,0,$D$5/365)),IF(AB15>$H$5,_xll.RssFOPMarket("147023218","IV"),_xll.RssFOPMarket("137023218","IV"))/100),0) -> 0.1655 | AJ15: =IFERROR(IF($E$4,Vega($H$5,AB15,0,0,AH15,$D$5/365),IF(AB15>$H$5,_xll.RssFOPMarket("147023218","ベガ"),_xll.RssFOPMarket("137023218","ベガ"))),0) -> 3.377 | AK15: =IFERROR(IF($E$4,GammaCP($H$5,AB15,0,0,AH15,$D$5/365),IF(AB15>$H$5,_xll.RssFOPMarket("147023218","ガンマ"),_xll.RssFOPMarket("137023218","ガンマ"))),0) -> 0 | AL15: =IFERROR(IF($E$4,Theta($H$5,AB15,0,0,AH15,$D$5/365,365),IF(AB15>$H$5,_xll.RssFOPMarket("147023218","セータ"),_xll.RssFOPMarket("137023218","セータ"))),0) -> -0.475 | CA15: 0 | CB15: 0 | CC15: 0 | CD15: 0 | CE15: 0 | CF15: 0 | CG15: 0 | CH15: 0 | CI15: 0 | CJ15: 0 | CK15: 0 | CL15: 0 | CM15: 0 | CN15: 0 | CO15: 0 | CP15: 0 | CQ15: 0 | CR15: 0 | CS15: 0 | CT15: 0 | CU15: 0 | CV15: 0 | CW15: 0 | CX15: 0
C16: =IFERROR(IF($E$4,IF($H$4<=H16,DeltaC($H$4,H16,0,0,N16,$D$4/365),I16+1),IF(H16>$H$4,_xll.RssFOPMarket("147013018","デルタ"),_xll.RssFOPMarket("137013018","デルタ")+1)),0) -> 0.0023 | D16: =IFERROR(IF($H$4<H16,OFFSET(OpData!I138,$E$4,,1,1),$H$4+OFFSET(OpData!S138,$E$4,,1,1)-H16),0) -> 1 | H16: 33000 | I16: =IFERROR(IF($E$4,IF($H$4>=H16,DeltaP($H$4,H16,0,0,N16,$D$4/365),C16-1),IF(H16>$H$4,_xll.RssFOPMarket("147013018","デルタ")-1,_xll.RssFOPMarket("137013018","デルタ"))),0) -> -0.9977 | J16: =IFERROR(IF($H$4>H16,OFFSET(OpData!S138,$E$4,,1,1),OFFSET(OpData!I138,$E$4,,1,1)+H16-$H$4),0) -> 4476 | N16: =IFERROR(IF($E$4,IF($H$4<H16,IVC(D16,$H$4,H16,0,0,$D$4/365),IVP(J16,$H$4,H16,0,0,$D$4/365)),IF(H16>$H$4,_xll.RssFOPMarket("147013018","IV"),_xll.RssFOPMarket("137013018","IV"))/100),0) -> 0.1862 | P16: =IFERROR(IF($E$4,Vega($H$4,H16,0,0,N16,$D$4/365),IF(H16>$H$4,_xll.RssFOPMarket("147013018","ベガ"),_xll.RssFOPMarket("137013018","ベガ"))),0) -> 0.576 | Q16: =IFERROR(IF($E$4,GammaCP($H$4,H16,0,0,N16,$D$4/365),IF(H16>$H$4,_xll.RssFOPMarket("147013018","ガンマ"),_xll.RssFOPMarket("137013018","ガンマ"))),0) -> 0 | R16: =IFERROR(IF($E$4,Theta($H$4,H16,0,0,N16,$D$4/365,365),IF(H16>$H$4,_xll.RssFOPMarket("147013018","セータ"),_xll.RssFOPMarket("137013018","セータ"))),0) -> -0.186 | W16: =IFERROR(IF($E$4,IF($H$5<=AB16,DeltaC($H$5,AB16,0,0,AH16,$D$5/365),AC16+1),IF(AB16>$H$5,_xll.RssFOPMarket("147023018","デルタ"),_xll.RssFOPMarket("137023018","デルタ")+1)),0) -> 0.0115 | X16: =IFERROR(IF($H$5<AB16,OFFSET(OpData!AC138,$E$4,,1,1),$H$5+OFFSET(OpData!AM138,$E$4,,1,1)-AB16),0) -> 0 | AB16: 33000 | AC16: =IFERROR(IF($E$4,IF($H$5>=AB16,DeltaP($H$5,AB16,0,0,AH16,$D$5/365),W16-1),IF(AB16>$H$5,_xll.RssFOPMarket("147023018","デルタ")-1,_xll.RssFOPMarket("137023018","デルタ"))),0) -> -0.9885 | AD16: =IFERROR(IF($H$5>AB16,OFFSET(OpData!AM138,$E$4,,1,1),OFFSET(OpData!AC138,$E$4,,1,1)+AB16-$H$5),0) -> 4470 | AH16: =IFERROR(IF($E$4,IF($H$5<AB16,IVC(X16,$H$5,AB16,0,0,$D$5/365),IVP(AD16,$H$5,AB16,0,0,$D$5/365)),IF(AB16>$H$5,_xll.RssFOPMarket("147023018","IV"),_xll.RssFOPMarket("137023018","IV"))/100),0) -> 0.1611 | AJ16: =IFERROR(IF($E$4,Vega($H$5,AB16,0,0,AH16,$D$5/365),IF(AB16>$H$5,_xll.RssFOPMarket("147023018","ベガ"),_xll.RssFOPMarket("137023018","ベガ"))),0) -> 3.342 | AK16: =IFERROR(IF($E$4,GammaCP($H$5,AB16,0,0,AH16,$D$5/365),IF(AB16>$H$5,_xll.RssFOPMarket("147023018","ガンマ"),_xll.RssFOPMarket("137023018","ガンマ"))),0) -> 0 | AL16: =IFERROR(IF($E$4,Theta($H$5,AB16,0,0,AH16,$D$5/365,365),IF(AB16>$H$5,_xll.RssFOPMarket("147023018","セータ"),_xll.RssFOPMarket("137023018","セータ"))),0) -> -0.484 | CA16: 0 | CB16: 0 | CC16: 0 | CD16: 0 | CE16: 0 | CF16: 0 | CG16: 0 | CH16: 0 | CI16: 0 | CJ16: 0 | CK16: 0 | CL16: 0 | CM16: 0 | CN16: 0 | CO16: 0 | CP16: 0 | CQ16: 0 | CR16: 0 | CS16: 0 | CT16: 0 | CU16: 0 | CV16: 0 | CW16: 0 | CX16: 0
C17: =IFERROR(IF($E$4,IF($H$4<=H17,DeltaC($H$4,H17,0,0,N17,$D$4/365),I17+1),IF(H17>$H$4,_xll.RssFOPMarket("147012718","デルタ"),_xll.RssFOPMarket("137012718","デルタ")+1)),0) -> 0.0068 | D17: =IFERROR(IF($H$4<H17,OFFSET(OpData!I158,$E$4,,1,1),$H$4+OFFSET(OpData!S158,$E$4,,1,1)-H17),0) -> 0 | H17: 32750 | I17: =IFERROR(IF($E$4,IF($H$4>=H17,DeltaP($H$4,H17,0,0,N17,$D$4/365),C17-1),IF(H17>$H$4,_xll.RssFOPMarket("147012718","デルタ")-1,_xll.RssFOPMarket("137012718","デルタ"))),0) -> -0.9932 | J17: =IFERROR(IF($H$4>H17,OFFSET(OpData!S158,$E$4,,1,1),OFFSET(OpData!I158,$E$4,,1,1)+H17-$H$4),0) -> 4225 | N17: =IFERROR(IF($E$4,IF($H$4<H17,IVC(D17,$H$4,H17,0,0,$D$4/365),IVP(J17,$H$4,H17,0,0,$D$4/365)),IF(H17>$H$4,_xll.RssFOPMarket("147012718","IV"),_xll.RssFOPMarket("137012718","IV"))/100),0) -> 0.1825 | P17: =IFERROR(IF($E$4,Vega($H$4,H17,0,0,N17,$D$4/365),IF(H17>$H$4,_xll.RssFOPMarket("147012718","ベガ"),_xll.RssFOPMarket("137012718","ベガ"))),0) -> 1.559 | Q17: =IFERROR(IF($E$4,GammaCP($H$4,H17,0,0,N17,$D$4/365),IF(H17>$H$4,_xll.RssFOPMarket("147012718","ガンマ"),_xll.RssFOPMarket("137012718","ガンマ"))),0) -> 0 | R17: =IFERROR(IF($E$4,Theta($H$4,H17,0,0,N17,$D$4/365,365),IF(H17>$H$4,_xll.RssFOPMarket("147012718","セータ"),_xll.RssFOPMarket("137012718","セータ"))),0) -> -0.462 | W17: =IFERROR(IF($E$4,IF($H$5<=AB17,DeltaC($H$5,AB17,0,0,AH17,$D$5/365),AC17+1),IF(AB17>$H$5,_xll.RssFOPMarket("147022718","デルタ"),_xll.RssFOPMarket("137022718","デルタ")+1)),0) -> 0.0164 | X17: =IFERROR(IF($H$5<AB17,OFFSET(OpData!AC158,$E$4,,1,1),$H$5+OFFSET(OpData!AM158,$E$4,,1,1)-AB17),0) -> 0 | AB17: 32750 | AC17: =IFERROR(IF($E$4,IF($H$5>=AB17,DeltaP($H$5,AB17,0,0,AH17,$D$5/365),W17-1),IF(AB17>$H$5,_xll.RssFOPMarket("147022718","デルタ")-1,_xll.RssFOPMarket("137022718","デルタ"))),0) -> -0.9836 | AD17: =IFERROR(IF($H$5>AB17,OFFSET(OpData!AM158,$E$4,,1,1),OFFSET(OpData!AC158,$E$4,,1,1)+AB17-$H$5),0) -> 4220 | AH17: =IFERROR(IF($E$4,IF($H$5<AB17,IVC(X17,$H$5,AB17,0,0,$D$5/365),IVP(AD17,$H$5,AB17,0,0,$D$5/365)),IF(AB17>$H$5,_xll.RssFOPMarket("147022718","IV"),_xll.RssFOPMarket("137022718","IV"))/100),0) -> 0.1593 | AJ17: =IFERROR(IF($E$4,Vega($H$5,AB17,0,0,AH17,$D$5/365),IF(AB17>$H$5,_xll.RssFOPMarket("147022718","ベガ"),_xll.RssFOPMarket("137022718","ベガ"))),0) -> 4.581 | AK17: =IFERROR(IF($E$4,GammaCP($H$5,AB17,0,0,AH17,$D$5/365),IF(AB17>$H$5,_xll.RssFOPMarket("147022718","ガンマ"),_xll.RssFOPMarket("137022718","ガンマ"))),0) -> 0 | AL17: =IFERROR(IF($E$4,Theta($H$5,AB17,0,0,AH17,$D$5/365,365),IF(AB17>$H$5,_xll.RssFOPMarket("147022718","セータ"),_xll.RssFOPMarket("137022718","セータ"))),0) -> -0.631 | CA17: 0 | CB17: 0 | CC17: 0 | CD17: 0 | CE17: 0 | CF17: 0 | CG17: 0 | CH17: 0 | CI17: 0 | CJ17: 0 | CK17: 0 | CL17: 0 | CM17: 0 | CN17: 0 | CO17: 0 | CP17: 0 | CQ17: 0 | CR17: 0 | CS17: 0 | CT17: 0 | CU17: 0 | CV17: 0 | CW17: 0 | CX17: 0
C18: =IFERROR(IF($E$4,IF($H$4<=H18,DeltaC($H$4,H18,0,0,N18,$D$4/365),I18+1),IF(H18>$H$4,_xll.RssFOPMarket("銘柄コードは取得できませんでした。","デルタ"),_xll.RssFOPMarket("銘柄コードは取得できませんでした。","デルタ")+1)),0) ->  | D18: =IFERROR(IF($H$4<H18,OFFSET(OpData!I178,$E$4,,1,1),$H$4+OFFSET(OpData!S178,$E$4,,1,1)-H18),0) ->  | H18: 32625 | I18: =IFERROR(IF($E$4,IF($H$4>=H18,DeltaP($H$4,H18,0,0,N18,$D$4/365),C18-1),IF(H18>$H$4,_xll.RssFOPMarket("銘柄コードは取得できませんでした。","デルタ")-1,_xll.RssFOPMarket("銘柄コードは取得できませんでした。","デルタ"))),0) -> 0 | J18: =IFERROR(IF($H$4>H18,OFFSET(OpData!S178,$E$4,,1,1),OFFSET(OpData!I178,$E$4,,1,1)+H18-$H$4),0) -> 0 | N18: =IFERROR(IF($E$4,IF($H$4<H18,IVC(D18,$H$4,H18,0,0,$D$4/365),IVP(J18,$H$4,H18,0,0,$D$4/365)),IF(H18>$H$4,_xll.RssFOPMarket("銘柄コードは取得できませんでした。","IV"),_xll.RssFOPMarket("銘柄コードは取得できませんでした。","IV"))/100),0) -> 0 | P18: =IFERROR(IF($E$4,Vega($H$4,H18,0,0,N18,$D$4/365),IF(H18>$H$4,_xll.RssFOPMarket("銘柄コードは取得できませんでした。","ベガ"),_xll.RssFOPMarket("銘柄コードは取得できませんでした。","ベガ"))),0) ->  | Q18: =IFERROR(IF($E$4,GammaCP($H$4,H18,0,0,N18,$D$4/365),IF(H18>$H$4,_xll.RssFOPMarket("銘柄コードは取得できませんでした。","ガンマ"),_xll.RssFOPMarket("銘柄コードは取得できませんでした。","ガンマ"))),0) ->  | R18: =IFERROR(IF($E$4,Theta($H$4,H18,0,0,N18,$D$4/365,365),IF(H18>$H$4,_xll.RssFOPMarket("銘柄コードは取得できませんでした。","セータ"),_xll.RssFOPMarket("銘柄コードは取得できませんでした。","セータ"))),0) ->  | W18: =IFERROR(IF($E$4,IF($H$5<=AB18,DeltaC($H$5,AB18,0,0,AH18,$D$5/365),AC18+1),IF(AB18>$H$5,_xll.RssFOPMarket("147022518","デルタ"),_xll.RssFOPMarket("137022518","デルタ")+1)),0) -> 0.0179 | X18: =IFERROR(IF($H$5<AB18,OFFSET(OpData!AC178,$E$4,,1,1),$H$5+OFFSET(OpData!AM178,$E$4,,1,1)-AB18),0) -> 0 | AB18: 32500 | AC18: =IFERROR(IF($E$4,IF($H$5>=AB18,DeltaP($H$5,AB18,0,0,AH18,$D$5/365),W18-1),IF(AB18>$H$5,_xll.RssFOPMarket("147022518","デルタ")-1,_xll.RssFOPMarket("137022518","デルタ"))),0) -> -0.9821 | AD18: =IFERROR(IF($H$5>AB18,OFFSET(OpData!AM178,$E$4,,1,1),OFFSET(OpData!AC178,$E$4,,1,1)+AB18-$H$5),0) -> 3970 | AH18: =IFERROR(IF($E$4,IF($H$5<AB18,IVC(X18,$H$5,AB18,0,0,$D$5/365),IVP(AD18,$H$5,AB18,0,0,$D$5/365)),IF(AB18>$H$5,_xll.RssFOPMarket("147022518","IV"),_xll.RssFOPMarket("137022518","IV"))/100),0) -> 0.1601 | AJ18: =IFERROR(IF($E$4,Vega($H$5,AB18,0,0,AH18,$D$5/365),IF(AB18>$H$5,_xll.RssFOPMarket("147022518","ベガ"),_xll.RssFOPMarket("137022518","ベガ"))),0) -> 4.88 | AK18: =IFERROR(IF($E$4,GammaCP($H$5,AB18,0,0,AH18,$D$5/365),IF(AB18>$H$5,_xll.RssFOPMarket("147022518","ガンマ"),_xll.RssFOPMarket("137022518","ガンマ"))),0) -> 0 | AL18: =IFERROR(IF($E$4,Theta($H$5,AB18,0,0,AH18,$D$5/365,365),IF(AB18>$H$5,_xll.RssFOPMarket("147022518","セータ"),_xll.RssFOPMarket("137022518","セータ"))),0) -> -0.678 | CA18: 0 | CB18: 0 | CC18: 0 | CD18: 0 | CE18: 0 | CF18: 0 | CG18: 0 | CH18: 0 | CI18: 0 | CJ18: 0 | CK18: 0 | CL18: 0 | CM18: 0 | CN18: 0 | CO18: 0 | CP18: 0 | CQ18: 0 | CR18: 0 | CS18: 0 | CT18: 0 | CU18: 0 | CV18: 0 | CW18: 0 | CX18: 0
C19: =IFERROR(IF($E$4,IF($H$4<=H19,DeltaC($H$4,H19,0,0,N19,$D$4/365),I19+1),IF(H19>$H$4,_xll.RssFOPMarket("147012518","デルタ"),_xll.RssFOPMarket("137012518","デルタ")+1)),0) -> 0.0046 | D19: =IFERROR(IF($H$4<H19,OFFSET(OpData!I198,$E$4,,1,1),$H$4+OFFSET(OpData!S198,$E$4,,1,1)-H19),0) -> 2 | H19: 32500 | I19: =IFERROR(IF($E$4,IF($H$4>=H19,DeltaP($H$4,H19,0,0,N19,$D$4/365),C19-1),IF(H19>$H$4,_xll.RssFOPMarket("147012518","デルタ")-1,_xll.RssFOPMarket("137012518","デルタ"))),0) -> -0.9954 | J19: =IFERROR(IF($H$4>H19,OFFSET(OpData!S198,$E$4,,1,1),OFFSET(OpData!I198,$E$4,,1,1)+H19-$H$4),0) -> 3977 | N19: =IFERROR(IF($E$4,IF($H$4<H19,IVC(D19,$H$4,H19,0,0,$D$4/365),IVP(J19,$H$4,H19,0,0,$D$4/365)),IF(H19>$H$4,_xll.RssFOPMarket("147012518","IV"),_xll.RssFOPMarket("137012518","IV"))/100),0) -> 0.179 | P19: =IFERROR(IF($E$4,Vega($H$4,H19,0,0,N19,$D$4/365),IF(H19>$H$4,_xll.RssFOPMarket("147012518","ベガ"),_xll.RssFOPMarket("137012518","ベガ"))),0) -> 1.056 | Q19: =IFERROR(IF($E$4,GammaCP($H$4,H19,0,0,N19,$D$4/365),IF(H19>$H$4,_xll.RssFOPMarket("147012518","ガンマ"),_xll.RssFOPMarket("137012518","ガンマ"))),0) -> 0 | R19: =IFERROR(IF($E$4,Theta($H$4,H19,0,0,N19,$D$4/365,365),IF(H19>$H$4,_xll.RssFOPMarket("147012518","セータ"),_xll.RssFOPMarket("137012518","セータ"))),0) -> -0.334 | W19: =IFERROR(IF($E$4,IF($H$5<=AB19,DeltaC($H$5,AB19,0,0,AH19,$D$5/365),AC19+1),IF(AB19>$H$5,_xll.RssFOPMarket("147022218","デルタ"),_xll.RssFOPMarket("137022218","デルタ")+1)),0) -> 0.024 | X19: =IFERROR(IF($H$5<AB19,OFFSET(OpData!AC198,$E$4,,1,1),$H$5+OFFSET(OpData!AM198,$E$4,,1,1)-AB19),0) -> 15 | AB19: 32250 | AC19: =IFERROR(IF($E$4,IF($H$5>=AB19,DeltaP($H$5,AB19,0,0,AH19,$D$5/365),W19-1),IF(AB19>$H$5,_xll.RssFOPMarket("147022218","デルタ")-1,_xll.RssFOPMarket("137022218","デルタ"))),0) -> -0.976 | AD19: =IFERROR(IF($H$5>AB19,OFFSET(OpData!AM198,$E$4,,1,1),OFFSET(OpData!AC198,$E$4,,1,1)+AB19-$H$5),0) -> 3735 | AH19: =IFERROR(IF($E$4,IF($H$5<AB19,IVC(X19,$H$5,AB19,0,0,$D$5/365),IVP(AD19,$H$5,AB19,0,0,$D$5/365)),IF(AB19>$H$5,_xll.RssFOPMarket("147022218","IV"),_xll.RssFOPMarket("137022218","IV"))/100),0) -> 0.153 | AJ19: =IFERROR(IF($E$4,Vega($H$5,AB19,0,0,AH19,$D$5/365),IF(AB19>$H$5,_xll.RssFOPMarket("147022218","ベガ"),_xll.RssFOPMarket("137022218","ベガ"))),0) -> 6.267 | AK19: =IFERROR(IF($E$4,GammaCP($H$5,AB19,0,0,AH19,$D$5/365),IF(AB19>$H$5,_xll.RssFOPMarket("147022218","ガンマ"),_xll.RssFOPMarket("137022218","ガンマ"))),0) -> 0 | AL19: =IFERROR(IF($E$4,Theta($H$5,AB19,0,0,AH19,$D$5/365,365),IF(AB19>$H$5,_xll.RssFOPMarket("147022218","セータ"),_xll.RssFOPMarket("137022218","セータ"))),0) -> -0.906 | CA19: 0 | CB19: 0 | CC19: 0 | CD19: 0 | CE19: 0 | CF19: 0 | CG19: 0 | CH19: 0 | CI19: 0 | CJ19: 0 | CK19: 0 | CL19: 0 | CM19: 0 | CN19: 0 | CO19: 0 | CP19: 0 | CQ19: 0 | CR19: 0 | CS19: 0 | CT19: 0 | CU19: 0 | CV19: 0 | CW19: 0 | CX19: 0
C20: =IFERROR(IF($E$4,IF($H$4<=H20,DeltaC($H$4,H20,0,0,N20,$D$4/365),I20+1),IF(H20>$H$4,_xll.RssFOPMarket("銘柄コードは取得できませんでした。","デルタ"),_xll.RssFOPMarket("銘柄コードは取得できませんでした。","デルタ")+1)),0) ->  | D20: =IFERROR(IF($H$4<H20,OFFSET(OpData!I218,$E$4,,1,1),$H$4+OFFSET(OpData!S218,$E$4,,1,1)-H20),0) ->  | H20: 32375 | I20: =IFERROR(IF($E$4,IF($H$4>=H20,DeltaP($H$4,H20,0,0,N20,$D$4/365),C20-1),IF(H20>$H$4,_xll.RssFOPMarket("銘柄コードは取得できませんでした。","デルタ")-1,_xll.RssFOPMarket("銘柄コードは取得できませんでした。","デルタ"))),0) -> 0 | J20: =IFERROR(IF($H$4>H20,OFFSET(OpData!S218,$E$4,,1,1),OFFSET(OpData!I218,$E$4,,1,1)+H20-$H$4),0) -> 0 | N20: =IFERROR(IF($E$4,IF($H$4<H20,IVC(D20,$H$4,H20,0,0,$D$4/365),IVP(J20,$H$4,H20,0,0,$D$4/365)),IF(H20>$H$4,_xll.RssFOPMarket("銘柄コードは取得できませんでした。","IV"),_xll.RssFOPMarket("銘柄コードは取得できませんでした。","IV"))/100),0) -> 0 | P20: =IFERROR(IF($E$4,Vega($H$4,H20,0,0,N20,$D$4/365),IF(H20>$H$4,_xll.RssFOPMarket("銘柄コードは取得できませんでした。","ベガ"),_xll.RssFOPMarket("銘柄コードは取得できませんでした。","ベガ"))),0) ->  | Q20: =IFERROR(IF($E$4,GammaCP($H$4,H20,0,0,N20,$D$4/365),IF(H20>$H$4,_xll.RssFOPMarket("銘柄コードは取得できませんでした。","ガンマ"),_xll.RssFOPMarket("銘柄コードは取得できませんでした。","ガンマ"))),0) ->  | R20: =IFERROR(IF($E$4,Theta($H$4,H20,0,0,N20,$D$4/365,365),IF(H20>$H$4,_xll.RssFOPMarket("銘柄コードは取得できませんでした。","セータ"),_xll.RssFOPMarket("銘柄コードは取得できませんでした。","セータ"))),0) ->  | W20: =IFERROR(IF($E$4,IF($H$5<=AB20,DeltaC($H$5,AB20,0,0,AH20,$D$5/365),AC20+1),IF(AB20>$H$5,_xll.RssFOPMarket("147022018","デルタ"),_xll.RssFOPMarket("137022018","デルタ")+1)),0) -> 0.0298 | X20: =IFERROR(IF($H$5<AB20,OFFSET(OpData!AC218,$E$4,,1,1),$H$5+OFFSET(OpData!AM218,$E$4,,1,1)-AB20),0) -> 19 | AB20: 32000 | AC20: =IFERROR(IF($E$4,IF($H$5>=AB20,DeltaP($H$5,AB20,0,0,AH20,$D$5/365),W20-1),IF(AB20>$H$5,_xll.RssFOPMarket("147022018","デルタ")-1,_xll.RssFOPMarket("137022018","デルタ"))),0) -> -0.9702 | AD20: =IFERROR(IF($H$5>AB20,OFFSET(OpData!AM218,$E$4,,1,1),OFFSET(OpData!AC218,$E$4,,1,1)+AB20-$H$5),0) -> 3489 | AH20: =IFERROR(IF($E$4,IF($H$5<AB20,IVC(X20,$H$5,AB20,0,0,$D$5/365),IVP(AD20,$H$5,AB20,0,0,$D$5/365)),IF(AB20>$H$5,_xll.RssFOPMarket("147022018","IV"),_xll.RssFOPMarket("137022018","IV"))/100),0) -> 0.1516 | AJ20: =IFERROR(IF($E$4,Vega($H$5,AB20,0,0,AH20,$D$5/365),IF(AB20>$H$5,_xll.RssFOPMarket("147022018","ベガ"),_xll.RssFOPMarket("137022018","ベガ"))),0) -> 7.508 | AK20: =IFERROR(IF($E$4,GammaCP($H$5,AB20,0,0,AH20,$D$5/365),IF(AB20>$H$5,_xll.RssFOPMarket("147022018","ガンマ"),_xll.RssFOPMarket("137022018","ガンマ"))),0) -> 0 | AL20: =IFERROR(IF($E$4,Theta($H$5,AB20,0,0,AH20,$D$5/365,365),IF(AB20>$H$5,_xll.RssFOPMarket("147022018","セータ"),_xll.RssFOPMarket("137022018","セータ"))),0) -> -1.06 | CA20: 0 | CB20: 0 | CC20: 0 | CD20: 0 | CE20: 0 | CF20: 0 | CG20: 0 | CH20: 0 | CI20: 0 | CJ20: 0 | CK20: 0 | CL20: 0 | CM20: 0 | CN20: 0 | CO20: 0 | CP20: 0 | CQ20: 0 | CR20: 0 | CS20: 0 | CT20: 0 | CU20: 0 | CV20: 0 | CW20: 0 | CX20: 0
C21: =IFERROR(IF($E$4,IF($H$4<=H21,DeltaC($H$4,H21,0,0,N21,$D$4/365),I21+1),IF(H21>$H$4,_xll.RssFOPMarket("147012218","デルタ"),_xll.RssFOPMarket("137012218","デルタ")+1)),0) -> 0.0071 | D21: =IFERROR(IF($H$4<H21,OFFSET(OpData!I238,$E$4,,1,1),$H$4+OFFSET(OpData!S238,$E$4,,1,1)-H21),0) -> 0 | H21: 32250 | I21: =IFERROR(IF($E$4,IF($H$4>=H21,DeltaP($H$4,H21,0,0,N21,$D$4/365),C21-1),IF(H21>$H$4,_xll.RssFOPMarket("147012218","デルタ")-1,_xll.RssFOPMarket("137012218","デルタ"))),0) -> -0.9929 | J21: =IFERROR(IF($H$4>H21,OFFSET(OpData!S238,$E$4,,1,1),OFFSET(OpData!I238,$E$4,,1,1)+H21-$H$4),0) -> 3725 | N21: =IFERROR(IF($E$4,IF($H$4<H21,IVC(D21,$H$4,H21,0,0,$D$4/365),IVP(J21,$H$4,H21,0,0,$D$4/365)),IF(H21>$H$4,_xll.RssFOPMarket("147012218","IV"),_xll.RssFOPMarket("137012218","IV"))/100),0) -> 0.1734 | P21: =IFERROR(IF($E$4,Vega($H$4,H21,0,0,N21,$D$4/365),IF(H21>$H$4,_xll.RssFOPMarket("147012218","ベガ"),_xll.RssFOPMarket("137012218","ベガ"))),0) -> 1.569 | Q21: =IFERROR(IF($E$4,GammaCP($H$4,H21,0,0,N21,$D$4/365),IF(H21>$H$4,_xll.RssFOPMarket("147012218","ガンマ"),_xll.RssFOPMarket("137012218","ガンマ"))),0) -> 0 | R21: =IFERROR(IF($E$4,Theta($H$4,H21,0,0,N21,$D$4/365,365),IF(H21>$H$4,_xll.RssFOPMarket("147012218","セータ"),_xll.RssFOPMarket("137012218","セータ"))),0) -> -0.454 | W21: =IFERROR(IF($E$4,IF($H$5<=AB21,DeltaC($H$5,AB21,0,0,AH21,$D$5/365),AC21+1),IF(AB21>$H$5,_xll.RssFOPMarket("147021718","デルタ"),_xll.RssFOPMarket("137021718","デルタ")+1)),0) -> 0.0451 | X21: =IFERROR(IF($H$5<AB21,OFFSET(OpData!AC238,$E$4,,1,1),$H$5+OFFSET(OpData!AM238,$E$4,,1,1)-AB21),0) -> 0 | AB21: 31750 | AC21: =IFERROR(IF($E$4,IF($H$5>=AB21,DeltaP($H$5,AB21,0,0,AH21,$D$5/365),W21-1),IF(AB21>$H$5,_xll.RssFOPMarket("147021718","デルタ")-1,_xll.RssFOPMarket("137021718","デルタ"))),0) -> -0.9549 | AD21: =IFERROR(IF($H$5>AB21,OFFSET(OpData!AM238,$E$4,,1,1),OFFSET(OpData!AC238,$E$4,,1,1)+AB21-$H$5),0) -> 3220 | AH21: =IFERROR(IF($E$4,IF($H$5<AB21,IVC(X21,$H$5,AB21,0,0,$D$5/365),IVP(AD21,$H$5,AB21,0,0,$D$5/365)),IF(AB21>$H$5,_xll.RssFOPMarket("147021718","IV"),_xll.RssFOPMarket("137021718","IV"))/100),0) -> 0.1565 | AJ21: =IFERROR(IF($E$4,Vega($H$5,AB21,0,0,AH21,$D$5/365),IF(AB21>$H$5,_xll.RssFOPMarket("147021718","ベガ"),_xll.RssFOPMarket("137021718","ベガ"))),0) -> 10.605 | AK21: =IFERROR(IF($E$4,GammaCP($H$5,AB21,0,0,AH21,$D$5/365),IF(AB21>$H$5,_xll.RssFOPMarket("147021718","ガンマ"),_xll.RssFOPMarket("137021718","ガンマ"))),0) -> 0.0001 | AL21: =IFERROR(IF($E$4,Theta($H$5,AB21,0,0,AH21,$D$5/365,365),IF(AB21>$H$5,_xll.RssFOPMarket("147021718","セータ"),_xll.RssFOPMarket("137021718","セータ"))),0) -> -1.365 | CA21: 0 | CB21: 0 | CC21: 0 | CD21: 0 | CE21: 0 | CF21: 0 | CG21: 0 | CH21: 0 | CI21: 0 | CJ21: 0 | CK21: 0 | CL21: 0 | CM21: 0 | CN21: 0 | CO21: 0 | CP21: 0 | CQ21: 0 | CR21: 0 | CS21: 0 | CT21: 0 | CU21: 0 | CV21: 0 | CW21: 0 | CX21: 0
C22: =IFERROR(IF($E$4,IF($H$4<=H22,DeltaC($H$4,H22,0,0,N22,$D$4/365),I22+1),IF(H22>$H$4,_xll.RssFOPMarket("銘柄コードは取得できませんでした。","デルタ"),_xll.RssFOPMarket("銘柄コードは取得できませんでした。","デルタ")+1)),0) ->  | D22: =IFERROR(IF($H$4<H22,OFFSET(OpData!I258,$E$4,,1,1),$H$4+OFFSET(OpData!S258,$E$4,,1,1)-H22),0) ->  | H22: 32125 | I22: =IFERROR(IF($E$4,IF($H$4>=H22,DeltaP($H$4,H22,0,0,N22,$D$4/365),C22-1),IF(H22>$H$4,_xll.RssFOPMarket("銘柄コードは取得できませんでした。","デルタ")-1,_xll.RssFOPMarket("銘柄コードは取得できませんでした。","デルタ"))),0) -> 0 | J22: =IFERROR(IF($H$4>H22,OFFSET(OpData!S258,$E$4,,1,1),OFFSET(OpData!I258,$E$4,,1,1)+H22-$H$4),0) -> 0 | N22: =IFERROR(IF($E$4,IF($H$4<H22,IVC(D22,$H$4,H22,0,0,$D$4/365),IVP(J22,$H$4,H22,0,0,$D$4/365)),IF(H22>$H$4,_xll.RssFOPMarket("銘柄コードは取得できませんでした。","IV"),_xll.RssFOPMarket("銘柄コードは取得できませんでした。","IV"))/100),0) -> 0 | P22: =IFERROR(IF($E$4,Vega($H$4,H22,0,0,N22,$D$4/365),IF(H22>$H$4,_xll.RssFOPMarket("銘柄コードは取得できませんでした。","ベガ"),_xll.RssFOPMarket("銘柄コードは取得できませんでした。","ベガ"))),0) ->  | Q22: =IFERROR(IF($E$4,GammaCP($H$4,H22,0,0,N22,$D$4/365),IF(H22>$H$4,_xll.RssFOPMarket("銘柄コードは取得できませんでした。","ガンマ"),_xll.RssFOPMarket("銘柄コードは取得できませんでした。","ガンマ"))),0) ->  | R22: =IFERROR(IF($E$4,Theta($H$4,H22,0,0,N22,$D$4/365,365),IF(H22>$H$4,_xll.RssFOPMarket("銘柄コードは取得できませんでした。","セータ"),_xll.RssFOPMarket("銘柄コードは取得できませんでした。","セータ"))),0) ->  | W22: =IFERROR(IF($E$4,IF($H$5<=AB22,DeltaC($H$5,AB22,0,0,AH22,$D$5/365),AC22+1),IF(AB22>$H$5,_xll.RssFOPMarket("147021618","デルタ"),_xll.RssFOPMarket("137021618","デルタ")+1)),0) -> 0.0438 | X22: =IFERROR(IF($H$5<AB22,OFFSET(OpData!AC258,$E$4,,1,1),$H$5+OFFSET(OpData!AM258,$E$4,,1,1)-AB22),0) -> 0 | AB22: 31625 | AC22: =IFERROR(IF($E$4,IF($H$5>=AB22,DeltaP($H$5,AB22,0,0,AH22,$D$5/365),W22-1),IF(AB22>$H$5,_xll.RssFOPMarket("147021618","デルタ")-1,_xll.RssFOPMarket("137021618","デルタ"))),0) -> -0.9562 | AD22: =IFERROR(IF($H$5>AB22,OFFSET(OpData!AM258,$E$4,,1,1),OFFSET(OpData!AC258,$E$4,,1,1)+AB22-$H$5),0) -> 3095 | AH22: =IFERROR(IF($E$4,IF($H$5<AB22,IVC(X22,$H$5,AB22,0,0,$D$5/365),IVP(AD22,$H$5,AB22,0,0,$D$5/365)),IF(AB22>$H$5,_xll.RssFOPMarket("147021618","IV"),_xll.RssFOPMarket("137021618","IV"))/100),0) -> 0.1557 | AJ22: =IFERROR(IF($E$4,Vega($H$5,AB22,0,0,AH22,$D$5/365),IF(AB22>$H$5,_xll.RssFOPMarket("147021618","ベガ"),_xll.RssFOPMarket("137021618","ベガ"))),0) -> 10.275 | AK22: =IFERROR(IF($E$4,GammaCP($H$5,AB22,0,0,AH22,$D$5/365),IF(AB22>$H$5,_xll.RssFOPMarket("147021618","ガンマ"),_xll.RssFOPMarket("137021618","ガンマ"))),0) -> 0.0001 | AL22: =IFERROR(IF($E$4,Theta($H$5,AB22,0,0,AH22,$D$5/365,365),IF(AB22>$H$5,_xll.RssFOPMarket("147021618","セータ"),_xll.RssFOPMarket("137021618","セータ"))),0) -> -1.406 | CA22: 0 | CB22: 0 | CC22: 0 | CD22: 0 | CE22: 0 | CF22: 0 | CG22: 0 | CH22: 0 | CI22: 0 | CJ22: 0 | CK22: 0 | CL22: 0 | CM22: 0 | CN22: 0 | CO22: 0 | CP22: 0 | CQ22: 0 | CR22: 0 | CS22: 0 | CT22: 0 | CU22: 0 | CV22: 0 | CW22: 0 | CX22: 0
C23: =IFERROR(IF($E$4,IF($H$4<=H23,DeltaC($H$4,H23,0,0,N23,$D$4/365),I23+1),IF(H23>$H$4,_xll.RssFOPMarket("147012018","デルタ"),_xll.RssFOPMarket("137012018","デルタ")+1)),0) -> 0.007 | D23: =IFERROR(IF($H$4<H23,OFFSET(OpData!I278,$E$4,,1,1),$H$4+OFFSET(OpData!S278,$E$4,,1,1)-H23),0) -> 3 | H23: 32000 | I23: =IFERROR(IF($E$4,IF($H$4>=H23,DeltaP($H$4,H23,0,0,N23,$D$4/365),C23-1),IF(H23>$H$4,_xll.RssFOPMarket("147012018","デルタ")-1,_xll.RssFOPMarket("137012018","デルタ"))),0) -> -0.993 | J23: =IFERROR(IF($H$4>H23,OFFSET(OpData!S278,$E$4,,1,1),OFFSET(OpData!I278,$E$4,,1,1)+H23-$H$4),0) -> 3478 | N23: =IFERROR(IF($E$4,IF($H$4<H23,IVC(D23,$H$4,H23,0,0,$D$4/365),IVP(J23,$H$4,H23,0,0,$D$4/365)),IF(H23>$H$4,_xll.RssFOPMarket("147012018","IV"),_xll.RssFOPMarket("137012018","IV"))/100),0) -> 0.1675 | P23: =IFERROR(IF($E$4,Vega($H$4,H23,0,0,N23,$D$4/365),IF(H23>$H$4,_xll.RssFOPMarket("147012018","ベガ"),_xll.RssFOPMarket("137012018","ベガ"))),0) -> 1.547 | Q23: =IFERROR(IF($E$4,GammaCP($H$4,H23,0,0,N23,$D$4/365),IF(H23>$H$4,_xll.RssFOPMarket("147012018","ガンマ"),_xll.RssFOPMarket("137012018","ガンマ"))),0) -> 0 | R23: =IFERROR(IF($E$4,Theta($H$4,H23,0,0,N23,$D$4/365,365),IF(H23>$H$4,_xll.RssFOPMarket("147012018","セータ"),_xll.RssFOPMarket("137012018","セータ"))),0) -> -0.457 | W23: =IFERROR(IF($E$4,IF($H$5<=AB23,DeltaC($H$5,AB23,0,0,AH23,$D$5/365),AC23+1),IF(AB23>$H$5,_xll.RssFOPMarket("147021518","デルタ"),_xll.RssFOPMarket("137021518","デルタ")+1)),0) -> 0.0509 | X23: =IFERROR(IF($H$5<AB23,OFFSET(OpData!AC278,$E$4,,1,1),$H$5+OFFSET(OpData!AM278,$E$4,,1,1)-AB23),0) -> 36 | AB23: 31500 | AC23: =IFERROR(IF($E$4,IF($H$5>=AB23,DeltaP($H$5,AB23,0,0,AH23,$D$5/365),W23-1),IF(AB23>$H$5,_xll.RssFOPMarket("147021518","デルタ")-1,_xll.RssFOPMarket("137021518","デルタ"))),0) -> -0.9491 | AD23: =IFERROR(IF($H$5>AB23,OFFSET(OpData!AM278,$E$4,,1,1),OFFSET(OpData!AC278,$E$4,,1,1)+AB23-$H$5),0) -> 3006 | AH23: =IFERROR(IF($E$4,IF($H$5<AB23,IVC(X23,$H$5,AB23,0,0,$D$5/365),IVP(AD23,$H$5,AB23,0,0,$D$5/365)),IF(AB23>$H$5,_xll.RssFOPMarket("147021518","IV"),_xll.RssFOPMarket("137021518","IV"))/100),0) -> 0.1559 | AJ23: =IFERROR(IF($E$4,Vega($H$5,AB23,0,0,AH23,$D$5/365),IF(AB23>$H$5,_xll.RssFOPMarket("147021518","ベガ"),_xll.RssFOPMarket("137021518","ベガ"))),0) -> 11.579 | AK23: =IFERROR(IF($E$4,GammaCP($H$5,AB23,0,0,AH23,$D$5/365),IF(AB23>$H$5,_xll.RssFOPMarket("147021518","ガンマ"),_xll.RssFOPMarket("137021518","ガンマ"))),0) -> 0.0001 | AL23: =IFERROR(IF($E$4,Theta($H$5,AB23,0,0,AH23,$D$5/365,365),IF(AB23>$H$5,_xll.RssFOPMarket("147021518","セータ"),_xll.RssFOPMarket("137021518","セータ"))),0) -> -1.58 | CA23: 0 | CB23: 0 | CC23: 0 | CD23: 0 | CE23: 0 | CF23: 0 | CG23: 0 | CH23: 0 | CI23: 0 | CJ23: 0 | CK23: 0 | CL23: 0 | CM23: 0 | CN23: 0 | CO23: 0 | CP23: 0 | CQ23: 0 | CR23: 0 | CS23: 0 | CT23: 0 | CU23: 0 | CV23: 0 | CW23: 0 | CX23: 0
C24: =IFERROR(IF($E$4,IF($H$4<=H24,DeltaC($H$4,H24,0,0,N24,$D$4/365),I24+1),IF(H24>$H$4,_xll.RssFOPMarket("銘柄コードは取得できませんでした。","デルタ"),_xll.RssFOPMarket("銘柄コードは取得できませんでした。","デルタ")+1)),0) ->  | D24: =IFERROR(IF($H$4<H24,OFFSET(OpData!I298,$E$4,,1,1),$H$4+OFFSET(OpData!S298,$E$4,,1,1)-H24),0) ->  | H24: 31875 | I24: =IFERROR(IF($E$4,IF($H$4>=H24,DeltaP($H$4,H24,0,0,N24,$D$4/365),C24-1),IF(H24>$H$4,_xll.RssFOPMarket("銘柄コードは取得できませんでした。","デルタ")-1,_xll.RssFOPMarket("銘柄コードは取得できませんでした。","デルタ"))),0) -> 0 | J24: =IFERROR(IF($H$4>H24,OFFSET(OpData!S298,$E$4,,1,1),OFFSET(OpData!I298,$E$4,,1,1)+H24-$H$4),0) -> 0 | N24: =IFERROR(IF($E$4,IF($H$4<H24,IVC(D24,$H$4,H24,0,0,$D$4/365),IVP(J24,$H$4,H24,0,0,$D$4/365)),IF(H24>$H$4,_xll.RssFOPMarket("銘柄コードは取得できませんでした。","IV"),_xll.RssFOPMarket("銘柄コードは取得できませんでした。","IV"))/100),0) -> 0 | P24: =IFERROR(IF($E$4,Vega($H$4,H24,0,0,N24,$D$4/365),IF(H24>$H$4,_xll.RssFOPMarket("銘柄コードは取得できませんでした。","ベガ"),_xll.RssFOPMarket("銘柄コードは取得できませんでした。","ベガ"))),0) ->  | Q24: =IFERROR(IF($E$4,GammaCP($H$4,H24,0,0,N24,$D$4/365),IF(H24>$H$4,_xll.RssFOPMarket("銘柄コードは取得できませんでした。","ガンマ"),_xll.RssFOPMarket("銘柄コードは取得できませんでした。","ガンマ"))),0) ->  | R24: =IFERROR(IF($E$4,Theta($H$4,H24,0,0,N24,$D$4/365,365),IF(H24>$H$4,_xll.RssFOPMarket("銘柄コードは取得できませんでした。","セータ"),_xll.RssFOPMarket("銘柄コードは取得できませんでした。","セータ"))),0) ->  | W24: =IFERROR(IF($E$4,IF($H$5<=AB24,DeltaC($H$5,AB24,0,0,AH24,$D$5/365),AC24+1),IF(AB24>$H$5,_xll.RssFOPMarket("147021318","デルタ"),_xll.RssFOPMarket("137021318","デルタ")+1)),0) -> 0.0571 | X24: =IFERROR(IF($H$5<AB24,OFFSET(OpData!AC298,$E$4,,1,1),$H$5+OFFSET(OpData!AM298,$E$4,,1,1)-AB24),0) -> 0 | AB24: 31375 | AC24: =IFERROR(IF($E$4,IF($H$5>=AB24,DeltaP($H$5,AB24,0,0,AH24,$D$5/365),W24-1),IF(AB24>$H$5,_xll.RssFOPMarket("147021318","デルタ")-1,_xll.RssFOPMarket("137021318","デルタ"))),0) -> -0.9429 | AD24: =IFERROR(IF($H$5>AB24,OFFSET(OpData!AM298,$E$4,,1,1),OFFSET(OpData!AC298,$E$4,,1,1)+AB24-$H$5),0) -> 2845 | AH24: =IFERROR(IF($E$4,IF($H$5<AB24,IVC(X24,$H$5,AB24,0,0,$D$5/365),IVP(AD24,$H$5,AB24,0,0,$D$5/365)),IF(AB24>$H$5,_xll.RssFOPMarket("147021318","IV"),_xll.RssFOPMarket("137021318","IV"))/100),0) -> 0.1552 | AJ24: =IFERROR(IF($E$4,Vega($H$5,AB24,0,0,AH24,$D$5/365),IF(AB24>$H$5,_xll.RssFOPMarket("147021318","ベガ"),_xll.RssFOPMarket("137021318","ベガ"))),0) -> 12.683 | AK24: =IFERROR(IF($E$4,GammaCP($H$5,AB24,0,0,AH24,$D$5/365),IF(AB24>$H$5,_xll.RssFOPMarket("147021318","ガンマ"),_xll.RssFOPMarket("137021318","ガンマ"))),0) -> 0.0001 | AL24: =IFERROR(IF($E$4,Theta($H$5,AB24,0,0,AH24,$D$5/365,365),IF(AB24>$H$5,_xll.RssFOPMarket("147021318","セータ"),_xll.RssFOPMarket("137021318","セータ"))),0) -> -1.75 | CA24: 0 | CB24: 0 | CC24: 0 | CD24: 0 | CE24: 0 | CF24: 0 | CG24: 0 | CH24: 0 | CI24: 0 | CJ24: 0 | CK24: 0 | CL24: 0 | CM24: 0 | CN24: 0 | CO24: 0 | CP24: 0 | CQ24: 0 | CR24: 0 | CS24: 0 | CT24: 0 | CU24: 0 | CV24: 0 | CW24: 0 | CX24: 0
C25: =IFERROR(IF($E$4,IF($H$4<=H25,DeltaC($H$4,H25,0,0,N25,$D$4/365),I25+1),IF(H25>$H$4,_xll.RssFOPMarket("147011718","デルタ"),_xll.RssFOPMarket("137011718","デルタ")+1)),0) -> 0.0093 | D25: =IFERROR(IF($H$4<H25,OFFSET(OpData!I318,$E$4,,1,1),$H$4+OFFSET(OpData!S318,$E$4,,1,1)-H25),0) -> 4 | H25: 31750 | I25: =IFERROR(IF($E$4,IF($H$4>=H25,DeltaP($H$4,H25,0,0,N25,$D$4/365),C25-1),IF(H25>$H$4,_xll.RssFOPMarket("147011718","デルタ")-1,_xll.RssFOPMarket("137011718","デルタ"))),0) -> -0.9907 | J25: =IFERROR(IF($H$4>H25,OFFSET(OpData!S318,$E$4,,1,1),OFFSET(OpData!I318,$E$4,,1,1)+H25-$H$4),0) -> 3229 | N25: =IFERROR(IF($E$4,IF($H$4<H25,IVC(D25,$H$4,H25,0,0,$D$4/365),IVP(J25,$H$4,H25,0,0,$D$4/365)),IF(H25>$H$4,_xll.RssFOPMarket("147011718","IV"),_xll.RssFOPMarket("137011718","IV"))/100),0) -> 0.1649 | P25: =IFERROR(IF($E$4,Vega($H$4,H25,0,0,N25,$D$4/365),IF(H25>$H$4,_xll.RssFOPMarket("147011718","ベガ"),_xll.RssFOPMarket("137011718","ベガ"))),0) -> 1.969 | Q25: =IFERROR(IF($E$4,GammaCP($H$4,H25,0,0,N25,$D$4/365),IF(H25>$H$4,_xll.RssFOPMarket("147011718","ガンマ"),_xll.RssFOPMarket("137011718","ガンマ"))),0) -> 0 | R25: =IFERROR(IF($E$4,Theta($H$4,H25,0,0,N25,$D$4/365,365),IF(H25>$H$4,_xll.RssFOPMarket("147011718","セータ"),_xll.RssFOPMarket("137011718","セータ"))),0) -> -0.559 | W25: =IFERROR(IF($E$4,IF($H$5<=AB25,DeltaC($H$5,AB25,0,0,AH25,$D$5/365),AC25+1),IF(AB25>$H$5,_xll.RssFOPMarket("147021218","デルタ"),_xll.RssFOPMarket("137021218","デルタ")+1)),0) -> 0.0701 | X25: =IFERROR(IF($H$5<AB25,OFFSET(OpData!AC318,$E$4,,1,1),$H$5+OFFSET(OpData!AM318,$E$4,,1,1)-AB25),0) -> 51 | AB25: 31250 | AC25: =IFERROR(IF($E$4,IF($H$5>=AB25,DeltaP($H$5,AB25,0,0,AH25,$D$5/365),W25-1),IF(AB25>$H$5,_xll.RssFOPMarket("147021218","デルタ")-1,_xll.RssFOPMarket("137021218","デルタ"))),0) -> -0.9299 | AD25: =IFERROR(IF($H$5>AB25,OFFSET(OpData!AM318,$E$4,,1,1),OFFSET(OpData!AC318,$E$4,,1,1)+AB25-$H$5),0) -> 2771 | AH25: =IFERROR(IF($E$4,IF($H$5<AB25,IVC(X25,$H$5,AB25,0,0,$D$5/365),IVP(AD25,$H$5,AB25,0,0,$D$5/365)),IF(AB25>$H$5,_xll.RssFOPMarket("147021218","IV"),_xll.RssFOPMarket("137021218","IV"))/100),0) -> 0.1519 | AJ25: =IFERROR(IF($E$4,Vega($H$5,AB25,0,0,AH25,$D$5/365),IF(AB25>$H$5,_xll.RssFOPMarket("147021218","ベガ"),_xll.RssFOPMarket("137021218","ベガ"))),0) -> 14.899 | AK25: =IFERROR(IF($E$4,GammaCP($H$5,AB25,0,0,AH25,$D$5/365),IF(AB25>$H$5,_xll.RssFOPMarket("147021218","ガンマ"),_xll.RssFOPMarket("137021218","ガンマ"))),0) -> 0.0001 | AL25: =IFERROR(IF($E$4,Theta($H$5,AB25,0,0,AH25,$D$5/365,365),IF(AB25>$H$5,_xll.RssFOPMarket("147021218","セータ"),_xll.RssFOPMarket("137021218","セータ"))),0) -> -2.121 | CA25: 0 | CB25: 0 | CC25: 0 | CD25: 0 | CE25: 0 | CF25: 0 | CG25: 0 | CH25: 0 | CI25: 0 | CJ25: 0 | CK25: 0 | CL25: 0 | CM25: 0 | CN25: 0 | CO25: 0 | CP25: 0 | CQ25: 0 | CR25: 0 | CS25: 0 | CT25: 0 | CU25: 0 | CV25: 0 | CW25: 0 | CX25: 0
C26: =IFERROR(IF($E$4,IF($H$4<=H26,DeltaC($H$4,H26,0,0,N26,$D$4/365),I26+1),IF(H26>$H$4,_xll.RssFOPMarket("147011618","デルタ"),_xll.RssFOPMarket("137011618","デルタ")+1)),0) -> 0.0115 | D26: =IFERROR(IF($H$4<H26,OFFSET(OpData!I338,$E$4,,1,1),$H$4+OFFSET(OpData!S338,$E$4,,1,1)-H26),0) -> 0 | H26: 31625 | I26: =IFERROR(IF($E$4,IF($H$4>=H26,DeltaP($H$4,H26,0,0,N26,$D$4/365),C26-1),IF(H26>$H$4,_xll.RssFOPMarket("147011618","デルタ")-1,_xll.RssFOPMarket("137011618","デルタ"))),0) -> -0.9885 | J26: =IFERROR(IF($H$4>H26,OFFSET(OpData!S338,$E$4,,1,1),OFFSET(OpData!I338,$E$4,,1,1)+H26-$H$4),0) -> 3100 | N26: =IFERROR(IF($E$4,IF($H$4<H26,IVC(D26,$H$4,H26,0,0,$D$4/365),IVP(J26,$H$4,H26,0,0,$D$4/365)),IF(H26>$H$4,_xll.RssFOPMarket("147011618","IV"),_xll.RssFOPMarket("137011618","IV"))/100),0) -> 0.163 | P26: =IFERROR(IF($E$4,Vega($H$4,H26,0,0,N26,$D$4/365),IF(H26>$H$4,_xll.RssFOPMarket("147011618","ベガ"),_xll.RssFOPMarket("137011618","ベガ"))),0) -> 2.382 | Q26: =IFERROR(IF($E$4,GammaCP($H$4,H26,0,0,N26,$D$4/365),IF(H26>$H$4,_xll.RssFOPMarket("147011618","ガンマ"),_xll.RssFOPMarket("137011618","ガンマ"))),0) -> 0 | R26: =IFERROR(IF($E$4,Theta($H$4,H26,0,0,N26,$D$4/365,365),IF(H26>$H$4,_xll.RssFOPMarket("147011618","セータ"),_xll.RssFOPMarket("137011618","セータ"))),0) -> -0.683 | W26: =IFERROR(IF($E$4,IF($H$5<=AB26,DeltaC($H$5,AB26,0,0,AH26,$D$5/365),AC26+1),IF(AB26>$H$5,_xll.RssFOPMarket("147021118","デルタ"),_xll.RssFOPMarket("137021118","デルタ")+1)),0) -> 0.1113 | X26: =IFERROR(IF($H$5<AB26,OFFSET(OpData!AC338,$E$4,,1,1),$H$5+OFFSET(OpData!AM338,$E$4,,1,1)-AB26),0) -> 0 | AB26: 31125 | AC26: =IFERROR(IF($E$4,IF($H$5>=AB26,DeltaP($H$5,AB26,0,0,AH26,$D$5/365),W26-1),IF(AB26>$H$5,_xll.RssFOPMarket("147021118","デルタ")-1,_xll.RssFOPMarket("137021118","デルタ"))),0) -> -0.8887 | AD26: =IFERROR(IF($H$5>AB26,OFFSET(OpData!AM338,$E$4,,1,1),OFFSET(OpData!AC338,$E$4,,1,1)+AB26-$H$5),0) -> 2595 | AH26: =IFERROR(IF($E$4,IF($H$5<AB26,IVC(X26,$H$5,AB26,0,0,$D$5/365),IVP(AD26,$H$5,AB26,0,0,$D$5/365)),IF(AB26>$H$5,_xll.RssFOPMarket("147021118","IV"),_xll.RssFOPMarket("137021118","IV"))/100),0) -> 0.1558 | AJ26: =IFERROR(IF($E$4,Vega($H$5,AB26,0,0,AH26,$D$5/365),IF(AB26>$H$5,_xll.RssFOPMarket("147021118","ベガ"),_xll.RssFOPMarket("137021118","ベガ"))),0) -> 21.369 | AK26: =IFERROR(IF($E$4,GammaCP($H$5,AB26,0,0,AH26,$D$5/365),IF(AB26>$H$5,_xll.RssFOPMarket("147021118","ガンマ"),_xll.RssFOPMarket("137021118","ガンマ"))),0) -> 0.0001 | AL26: =IFERROR(IF($E$4,Theta($H$5,AB26,0,0,AH26,$D$5/365,365),IF(AB26>$H$5,_xll.RssFOPMarket("147021118","セータ"),_xll.RssFOPMarket("137021118","セータ"))),0) -> -2.671 | CA26: 0 | CB26: 0 | CC26: 0 | CD26: 0 | CE26: 0 | CF26: 0 | CG26: 0 | CH26: 0 | CI26: 0 | CJ26: 0 | CK26: 0 | CL26: 0 | CM26: 0 | CN26: 0 | CO26: 0 | CP26: 0 | CQ26: 0 | CR26: 0 | CS26: 0 | CT26: 0 | CU26: 0 | CV26: 0 | CW26: 0 | CX26: 0
C27: =IFERROR(IF($E$4,IF($H$4<=H27,DeltaC($H$4,H27,0,0,N27,$D$4/365),I27+1),IF(H27>$H$4,_xll.RssFOPMarket("147011518","デルタ"),_xll.RssFOPMarket("137011518","デルタ")+1)),0) -> 0.0154 | D27: =IFERROR(IF($H$4<H27,OFFSET(OpData!I358,$E$4,,1,1),$H$4+OFFSET(OpData!S358,$E$4,,1,1)-H27),0) -> 7 | H27: 31500 | I27: =IFERROR(IF($E$4,IF($H$4>=H27,DeltaP($H$4,H27,0,0,N27,$D$4/365),C27-1),IF(H27>$H$4,_xll.RssFOPMarket("147011518","デルタ")-1,_xll.RssFOPMarket("137011518","デルタ"))),0) -> -0.9846 | J27: =IFERROR(IF($H$4>H27,OFFSET(OpData!S358,$E$4,,1,1),OFFSET(OpData!I358,$E$4,,1,1)+H27-$H$4),0) -> 2982 | N27: =IFERROR(IF($E$4,IF($H$4<H27,IVC(D27,$H$4,H27,0,0,$D$4/365),IVP(J27,$H$4,H27,0,0,$D$4/365)),IF(H27>$H$4,_xll.RssFOPMarket("147011518","IV"),_xll.RssFOPMarket("137011518","IV"))/100),0) -> 0.1635 | P27: =IFERROR(IF($E$4,Vega($H$4,H27,0,0,N27,$D$4/365),IF(H27>$H$4,_xll.RssFOPMarket("147011518","ベガ"),_xll.RssFOPMarket("137011518","ベガ"))),0) -> 3.07 | Q27: =IFERROR(IF($E$4,GammaCP($H$4,H27,0,0,N27,$D$4/365),IF(H27>$H$4,_xll.RssFOPMarket("147011518","ガンマ"),_xll.RssFOPMarket("137011518","ガンマ"))),0) -> 0 | R27: =IFERROR(IF($E$4,Theta($H$4,H27,0,0,N27,$D$4/365,365),IF(H27>$H$4,_xll.RssFOPMarket("147011518","セータ"),_xll.RssFOPMarket("137011518","セータ"))),0) -> -0.892 | W27: =IFERROR(IF($E$4,IF($H$5<=AB27,DeltaC($H$5,AB27,0,0,AH27,$D$5/365),AC27+1),IF(AB27>$H$5,_xll.RssFOPMarket("147021018","デルタ"),_xll.RssFOPMarket("137021018","デルタ")+1)),0) -> 0.0863 | X27: =IFERROR(IF($H$5<AB27,OFFSET(OpData!AC358,$E$4,,1,1),$H$5+OFFSET(OpData!AM358,$E$4,,1,1)-AB27),0) -> 67 | AB27: 31000 | AC27: =IFERROR(IF($E$4,IF($H$5>=AB27,DeltaP($H$5,AB27,0,0,AH27,$D$5/365),W27-1),IF(AB27>$H$5,_xll.RssFOPMarket("147021018","デルタ")-1,_xll.RssFOPMarket("137021018","デルタ"))),0) -> -0.9137 | AD27: =IFERROR(IF($H$5>AB27,OFFSET(OpData!AM358,$E$4,,1,1),OFFSET(OpData!AC358,$E$4,,1,1)+AB27-$H$5),0) -> 2537 | AH27: =IFERROR(IF($E$4,IF($H$5<AB27,IVC(X27,$H$5,AB27,0,0,$D$5/365),IVP(AD27,$H$5,AB27,0,0,$D$5/365)),IF(AB27>$H$5,_xll.RssFOPMarket("147021018","IV"),_xll.RssFOPMarket("137021018","IV"))/100),0) -> 0.156 | AJ27: =IFERROR(IF($E$4,Vega($H$5,AB27,0,0,AH27,$D$5/365),IF(AB27>$H$5,_xll.RssFOPMarket("147021018","ベガ"),_xll.RssFOPMarket("137021018","ベガ"))),0) -> 17.437 | AK27: =IFERROR(IF($E$4,GammaCP($H$5,AB27,0,0,AH27,$D$5/365),IF(AB27>$H$5,_xll.RssFOPMarket("147021018","ガンマ"),_xll.RssFOPMarket("137021018","ガンマ"))),0) -> 0.0001 | AL27: =IFERROR(IF($E$4,Theta($H$5,AB27,0,0,AH27,$D$5/365,365),IF(AB27>$H$5,_xll.RssFOPMarket("147021018","セータ"),_xll.RssFOPMarket("137021018","セータ"))),0) -> -2.389 | CA27: 0 | CB27: 0 | CC27: 0 | CD27: 0 | CE27: 0 | CF27: 0 | CG27: 0 | CH27: 0 | CI27: 0 | CJ27: 0 | CK27: 0 | CL27: 0 | CM27: 0 | CN27: 0 | CO27: 0 | CP27: 0 | CQ27: 0 | CR27: 0 | CS27: 0 | CT27: 0 | CU27: 0 | CV27: 0 | CW27: 0 | CX27: 0
C28: =IFERROR(IF($E$4,IF($H$4<=H28,DeltaC($H$4,H28,0,0,N28,$D$4/365),I28+1),IF(H28>$H$4,_xll.RssFOPMarket("147011318","デルタ"),_xll.RssFOPMarket("137011318","デルタ")+1)),0) -> 0.0157 | D28: =IFERROR(IF($H$4<H28,OFFSET(OpData!I378,$E$4,,1,1),$H$4+OFFSET(OpData!S378,$E$4,,1,1)-H28),0) -> 7 | H28: 31375 | I28: =IFERROR(IF($E$4,IF($H$4>=H28,DeltaP($H$4,H28,0,0,N28,$D$4/365),C28-1),IF(H28>$H$4,_xll.RssFOPMarket("147011318","デルタ")-1,_xll.RssFOPMarket("137011318","デルタ"))),0) -> -0.9843 | J28: =IFERROR(IF($H$4>H28,OFFSET(OpData!S378,$E$4,,1,1),OFFSET(OpData!I378,$E$4,,1,1)+H28-$H$4),0) -> 2857 | N28: =IFERROR(IF($E$4,IF($H$4<H28,IVC(D28,$H$4,H28,0,0,$D$4/365),IVP(J28,$H$4,H28,0,0,$D$4/365)),IF(H28>$H$4,_xll.RssFOPMarket("147011318","IV"),_xll.RssFOPMarket("137011318","IV"))/100),0) -> 0.1606 | P28: =IFERROR(IF($E$4,Vega($H$4,H28,0,0,N28,$D$4/365),IF(H28>$H$4,_xll.RssFOPMarket("147011318","ベガ"),_xll.RssFOPMarket("137011318","ベガ"))),0) -> 3.11 | Q28: =IFERROR(IF($E$4,GammaCP($H$4,H28,0,0,N28,$D$4/365),IF(H28>$H$4,_xll.RssFOPMarket("147011318","ガンマ"),_xll.RssFOPMarket("137011318","ガンマ"))),0) -> 0 | R28: =IFERROR(IF($E$4,Theta($H$4,H28,0,0,N28,$D$4/365,365),IF(H28>$H$4,_xll.RssFOPMarket("147011318","セータ"),_xll.RssFOPMarket("137011318","セータ"))),0) -> -0.857 | W28: =IFERROR(IF($E$4,IF($H$5<=AB28,DeltaC($H$5,AB28,0,0,AH28,$D$5/365),AC28+1),IF(AB28>$H$5,_xll.RssFOPMarket("147020818","デルタ"),_xll.RssFOPMarket("137020818","デルタ")+1)),0) -> 0.0975 | X28: =IFERROR(IF($H$5<AB28,OFFSET(OpData!AC378,$E$4,,1,1),$H$5+OFFSET(OpData!AM378,$E$4,,1,1)-AB28),0) -> 78 | AB28: 30875 | AC28: =IFERROR(IF($E$4,IF($H$5>=AB28,DeltaP($H$5,AB28,0,0,AH28,$D$5/365),W28-1),IF(AB28>$H$5,_xll.RssFOPMarket("147020818","デルタ")-1,_xll.RssFOPMarket("137020818","デルタ"))),0) -> -0.9025 | AD28: =IFERROR(IF($H$5>AB28,OFFSET(OpData!AM378,$E$4,,1,1),OFFSET(OpData!AC378,$E$4,,1,1)+AB28-$H$5),0) -> 2423 | AH28: =IFERROR(IF($E$4,IF($H$5<AB28,IVC(X28,$H$5,AB28,0,0,$D$5/365),IVP(AD28,$H$5,AB28,0,0,$D$5/365)),IF(AB28>$H$5,_xll.RssFOPMarket("147020818","IV"),_xll.RssFOPMarket("137020818","IV"))/100),0) -> 0.157 | AJ28: =IFERROR(IF($E$4,Vega($H$5,AB28,0,0,AH28,$D$5/365),IF(AB28>$H$5,_xll.RssFOPMarket("147020818","ベガ"),_xll.RssFOPMarket("137020818","ベガ"))),0) -> 19.085 | AK28: =IFERROR(IF($E$4,GammaCP($H$5,AB28,0,0,AH28,$D$5/365),IF(AB28>$H$5,_xll.RssFOPMarket("147020818","ガンマ"),_xll.RssFOPMarket("137020818","ガンマ"))),0) -> 0.0001 | AL28: =IFERROR(IF($E$4,Theta($H$5,AB28,0,0,AH28,$D$5/365,365),IF(AB28>$H$5,_xll.RssFOPMarket("147020818","セータ"),_xll.RssFOPMarket("137020818","セータ"))),0) -> -2.607 | CA28: 0 | CB28: 0 | CC28: 0 | CD28: 0 | CE28: 0 | CF28: 0 | CG28: 0 | CH28: 0 | CI28: 0 | CJ28: 0 | CK28: 0 | CL28: 0 | CM28: 0 | CN28: 0 | CO28: 0 | CP28: 0 | CQ28: 0 | CR28: 0 | CS28: 0 | CT28: 0 | CU28: 0 | CV28: 0 | CW28: 0 | CX28: 0
C29: =IFERROR(IF($E$4,IF($H$4<=H29,DeltaC($H$4,H29,0,0,N29,$D$4/365),I29+1),IF(H29>$H$4,_xll.RssFOPMarket("147011218","デルタ"),_xll.RssFOPMarket("137011218","デルタ")+1)),0) -> 0.02 | D29: =IFERROR(IF($H$4<H29,OFFSET(OpData!I398,$E$4,,1,1),$H$4+OFFSET(OpData!S398,$E$4,,1,1)-H29),0) -> 9 | H29: 31250 | I29: =IFERROR(IF($E$4,IF($H$4>=H29,DeltaP($H$4,H29,0,0,N29,$D$4/365),C29-1),IF(H29>$H$4,_xll.RssFOPMarket("147011218","デルタ")-1,_xll.RssFOPMarket("137011218","デルタ"))),0) -> -0.98 | J29: =IFERROR(IF($H$4>H29,OFFSET(OpData!S398,$E$4,,1,1),OFFSET(OpData!I398,$E$4,,1,1)+H29-$H$4),0) -> 2734 | N29: =IFERROR(IF($E$4,IF($H$4<H29,IVC(D29,$H$4,H29,0,0,$D$4/365),IVP(J29,$H$4,H29,0,0,$D$4/365)),IF(H29>$H$4,_xll.RssFOPMarket("147011218","IV"),_xll.RssFOPMarket("137011218","IV"))/100),0) -> 0.1577 | P29: =IFERROR(IF($E$4,Vega($H$4,H29,0,0,N29,$D$4/365),IF(H29>$H$4,_xll.RssFOPMarket("147011218","ベガ"),_xll.RssFOPMarket("137011218","ベガ"))),0) -> 3.82 | Q29: =IFERROR(IF($E$4,GammaCP($H$4,H29,0,0,N29,$D$4/365),IF(H29>$H$4,_xll.RssFOPMarket("147011218","ガンマ"),_xll.RssFOPMarket("137011218","ガンマ"))),0) -> 0 | R29: =IFERROR(IF($E$4,Theta($H$4,H29,0,0,N29,$D$4/365,365),IF(H29>$H$4,_xll.RssFOPMarket("147011218","セータ"),_xll.RssFOPMarket("137011218","セータ"))),0) -> -1.072 | W29: =IFERROR(IF($E$4,IF($H$5<=AB29,DeltaC($H$5,AB29,0,0,AH29,$D$5/365),AC29+1),IF(AB29>$H$5,_xll.RssFOPMarket("147020718","デルタ"),_xll.RssFOPMarket("137020718","デルタ")+1)),0) -> 0.1152 | X29: =IFERROR(IF($H$5<AB29,OFFSET(OpData!AC398,$E$4,,1,1),$H$5+OFFSET(OpData!AM398,$E$4,,1,1)-AB29),0) -> 95 | AB29: 30750 | AC29: =IFERROR(IF($E$4,IF($H$5>=AB29,DeltaP($H$5,AB29,0,0,AH29,$D$5/365),W29-1),IF(AB29>$H$5,_xll.RssFOPMarket("147020718","デルタ")-1,_xll.RssFOPMarket("137020718","デルタ"))),0) -> -0.8848 | AD29: =IFERROR(IF($H$5>AB29,OFFSET(OpData!AM398,$E$4,,1,1),OFFSET(OpData!AC398,$E$4,,1,1)+AB29-$H$5),0) -> 2315 | AH29: =IFERROR(IF($E$4,IF($H$5<AB29,IVC(X29,$H$5,AB29,0,0,$D$5/365),IVP(AD29,$H$5,AB29,0,0,$D$5/365)),IF(AB29>$H$5,_xll.RssFOPMarket("147020718","IV"),_xll.RssFOPMarket("137020718","IV"))/100),0) -> 0.1566 | AJ29: =IFERROR(IF($E$4,Vega($H$5,AB29,0,0,AH29,$D$5/365),IF(AB29>$H$5,_xll.RssFOPMarket("147020718","ベガ"),_xll.RssFOPMarket("137020718","ベガ"))),0) -> 21.529 | AK29: =IFERROR(IF($E$4,GammaCP($H$5,AB29,0,0,AH29,$D$5/365),IF(AB29>$H$5,_xll.RssFOPMarket("147020718","ガンマ"),_xll.RssFOPMarket("137020718","ガンマ"))),0) -> 0.0001 | AL29: =IFERROR(IF($E$4,Theta($H$5,AB29,0,0,AH29,$D$5/365,365),IF(AB29>$H$5,_xll.RssFOPMarket("147020718","セータ"),_xll.RssFOPMarket("137020718","セータ"))),0) -> -3.043 | CA29: 0 | CB29: 0 | CC29: 0 | CD29: 0 | CE29: 0 | CF29: 0 | CG29: 0 | CH29: 0 | CI29: 0 | CJ29: 0 | CK29: 0 | CL29: 0 | CM29: 0 | CN29: 0 | CO29: 0 | CP29: 0 | CQ29: 0 | CR29: 0 | CS29: 0 | CT29: 0 | CU29: 0 | CV29: 0 | CW29: 0 | CX29: 0
C30: =IFERROR(IF($E$4,IF($H$4<=H30,DeltaC($H$4,H30,0,0,N30,$D$4/365),I30+1),IF(H30>$H$4,_xll.RssFOPMarket("147011118","デルタ"),_xll.RssFOPMarket("137011118","デルタ")+1)),0) -> 0.0255 | D30: =IFERROR(IF($H$4<H30,OFFSET(OpData!I418,$E$4,,1,1),$H$4+OFFSET(OpData!S418,$E$4,,1,1)-H30),0) -> 12 | H30: 31125 | I30: =IFERROR(IF($E$4,IF($H$4>=H30,DeltaP($H$4,H30,0,0,N30,$D$4/365),C30-1),IF(H30>$H$4,_xll.RssFOPMarket("147011118","デルタ")-1,_xll.RssFOPMarket("137011118","デルタ"))),0) -> -0.9745 | J30: =IFERROR(IF($H$4>H30,OFFSET(OpData!S418,$E$4,,1,1),OFFSET(OpData!I418,$E$4,,1,1)+H30-$H$4),0) -> 2612 | N30: =IFERROR(IF($E$4,IF($H$4<H30,IVC(D30,$H$4,H30,0,0,$D$4/365),IVP(J30,$H$4,H30,0,0,$D$4/365)),IF(H30>$H$4,_xll.RssFOPMarket("147011118","IV"),_xll.RssFOPMarket("137011118","IV"))/100),0) -> 0.1592 | P30: =IFERROR(IF($E$4,Vega($H$4,H30,0,0,N30,$D$4/365),IF(H30>$H$4,_xll.RssFOPMarket("147011118","ベガ"),_xll.RssFOPMarket("137011118","ベガ"))),0) -> 4.705 | Q30: =IFERROR(IF($E$4,GammaCP($H$4,H30,0,0,N30,$D$4/365),IF(H30>$H$4,_xll.RssFOPMarket("147011118","ガンマ"),_xll.RssFOPMarket("137011118","ガンマ"))),0) -> 0.0001 | R30: =IFERROR(IF($E$4,Theta($H$4,H30,0,0,N30,$D$4/365,365),IF(H30>$H$4,_xll.RssFOPMarket("147011118","セータ"),_xll.RssFOPMarket("137011118","セータ"))),0) -> -1.325 | W30: =IFERROR(IF($E$4,IF($H$5<=AB30,DeltaC($H$5,AB30,0,0,AH30,$D$5/365),AC30+1),IF(AB30>$H$5,_xll.RssFOPMarket("147020618","デルタ"),_xll.RssFOPMarket("137020618","デルタ")+1)),0) -> 0.1208 | X30: =IFERROR(IF($H$5<AB30,OFFSET(OpData!AC418,$E$4,,1,1),$H$5+OFFSET(OpData!AM418,$E$4,,1,1)-AB30),0) -> 100 | AB30: 30625 | AC30: =IFERROR(IF($E$4,IF($H$5>=AB30,DeltaP($H$5,AB30,0,0,AH30,$D$5/365),W30-1),IF(AB30>$H$5,_xll.RssFOPMarket("147020618","デルタ")-1,_xll.RssFOPMarket("137020618","デルタ"))),0) -> -0.8792 | AD30: =IFERROR(IF($H$5>AB30,OFFSET(OpData!AM418,$E$4,,1,1),OFFSET(OpData!AC418,$E$4,,1,1)+AB30-$H$5),0) -> 2195 | AH30: =IFERROR(IF($E$4,IF($H$5<AB30,IVC(X30,$H$5,AB30,0,0,$D$5/365),IVP(AD30,$H$5,AB30,0,0,$D$5/365)),IF(AB30>$H$5,_xll.RssFOPMarket("147020618","IV"),_xll.RssFOPMarket("137020618","IV"))/100),0) -> 0.1555 | AJ30: =IFERROR(IF($E$4,Vega($H$5,AB30,0,0,AH30,$D$5/365),IF(AB30>$H$5,_xll.RssFOPMarket("147020618","ベガ"),_xll.RssFOPMarket("137020618","ベガ"))),0) -> 22.255 | AK30: =IFERROR(IF($E$4,GammaCP($H$5,AB30,0,0,AH30,$D$5/365),IF(AB30>$H$5,_xll.RssFOPMarket("147020618","ガンマ"),_xll.RssFOPMarket("137020618","ガンマ"))),0) -> 0.0001 | AL30: =IFERROR(IF($E$4,Theta($H$5,AB30,0,0,AH30,$D$5/365,365),IF(AB30>$H$5,_xll.RssFOPMarket("147020618","セータ"),_xll.RssFOPMarket("137020618","セータ"))),0) -> -3.013 | CA30: 0 | CB30: 0 | CC30: 0 | CD30: 0 | CE30: 0 | CF30: 0 | CG30: 0 | CH30: 0 | CI30: 0 | CJ30: 0 | CK30: 0 | CL30: 0 | CM30: 0 | CN30: 0 | CO30: 0 | CP30: 0 | CQ30: 0 | CR30: 0 | CS30: 0 | CT30: 0 | CU30: 0 | CV30: 0 | CW30: 0 | CX30: 0
C31: =IFERROR(IF($E$4,IF($H$4<=H31,DeltaC($H$4,H31,0,0,N31,$D$4/365),I31+1),IF(H31>$H$4,_xll.RssFOPMarket("147011018","デルタ"),_xll.RssFOPMarket("137011018","デルタ")+1)),0) -> 0.0275 | D31: =IFERROR(IF($H$4<H31,OFFSET(OpData!I438,$E$4,,1,1),$H$4+OFFSET(OpData!S438,$E$4,,1,1)-H31),0) -> 13 | H31: 31000 | I31: =IFERROR(IF($E$4,IF($H$4>=H31,DeltaP($H$4,H31,0,0,N31,$D$4/365),C31-1),IF(H31>$H$4,_xll.RssFOPMarket("147011018","デルタ")-1,_xll.RssFOPMarket("137011018","デルタ"))),0) -> -0.9725 | J31: =IFERROR(IF($H$4>H31,OFFSET(OpData!S438,$E$4,,1,1),OFFSET(OpData!I438,$E$4,,1,1)+H31-$H$4),0) -> 2488 | N31: =IFERROR(IF($E$4,IF($H$4<H31,IVC(D31,$H$4,H31,0,0,$D$4/365),IVP(J31,$H$4,H31,0,0,$D$4/365)),IF(H31>$H$4,_xll.RssFOPMarket("147011018","IV"),_xll.RssFOPMarket("137011018","IV"))/100),0) -> 0.1583 | P31: =IFERROR(IF($E$4,Vega($H$4,H31,0,0,N31,$D$4/365),IF(H31>$H$4,_xll.RssFOPMarket("147011018","ベガ"),_xll.RssFOPMarket("137011018","ベガ"))),0) -> 5.007 | Q31: =IFERROR(IF($E$4,GammaCP($H$4,H31,0,0,N31,$D$4/365),IF(H31>$H$4,_xll.RssFOPMarket("147011018","ガンマ"),_xll.RssFOPMarket("137011018","ガンマ"))),0) -> 0.0001 | R31: =IFERROR(IF($E$4,Theta($H$4,H31,0,0,N31,$D$4/365,365),IF(H31>$H$4,_xll.RssFOPMarket("147011018","セータ"),_xll.RssFOPMarket("137011018","セータ"))),0) -> -1.344 | W31: =IFERROR(IF($E$4,IF($H$5<=AB31,DeltaC($H$5,AB31,0,0,AH31,$D$5/365),AC31+1),IF(AB31>$H$5,_xll.RssFOPMarket("147020518","デルタ"),_xll.RssFOPMarket("137020518","デルタ")+1)),0) -> 0.1353 | X31: =IFERROR(IF($H$5<AB31,OFFSET(OpData!AC438,$E$4,,1,1),$H$5+OFFSET(OpData!AM438,$E$4,,1,1)-AB31),0) -> 115 | AB31: 30500 | AC31: =IFERROR(IF($E$4,IF($H$5>=AB31,DeltaP($H$5,AB31,0,0,AH31,$D$5/365),W31-1),IF(AB31>$H$5,_xll.RssFOPMarket("147020518","デルタ")-1,_xll.RssFOPMarket("137020518","デルタ"))),0) -> -0.8647 | AD31: =IFERROR(IF($H$5>AB31,OFFSET(OpData!AM438,$E$4,,1,1),OFFSET(OpData!AC438,$E$4,,1,1)+AB31-$H$5),0) -> 2085 | AH31: =IFERROR(IF($E$4,IF($H$5<AB31,IVC(X31,$H$5,AB31,0,0,$D$5/365),IVP(AD31,$H$5,AB31,0,0,$D$5/365)),IF(AB31>$H$5,_xll.RssFOPMarket("147020518","IV"),_xll.RssFOPMarket("137020518","IV"))/100),0) -> 0.1557 | AJ31: =IFERROR(IF($E$4,Vega($H$5,AB31,0,0,AH31,$D$5/365),IF(AB31>$H$5,_xll.RssFOPMarket("147020518","ベガ"),_xll.RssFOPMarket("137020518","ベガ"))),0) -> 24.078 | AK31: =IFERROR(IF($E$4,GammaCP($H$5,AB31,0,0,AH31,$D$5/365),IF(AB31>$H$5,_xll.RssFOPMarket("147020518","ガンマ"),_xll.RssFOPMarket("137020518","ガンマ"))),0) -> 0.0001 | AL31: =IFERROR(IF($E$4,Theta($H$5,AB31,0,0,AH31,$D$5/365,365),IF(AB31>$H$5,_xll.RssFOPMarket("147020518","セータ"),_xll.RssFOPMarket("137020518","セータ"))),0) -> -3.259 | CA31: 0 | CB31: 0 | CC31: 0 | CD31: 0 | CE31: 0 | CF31: 0 | CG31: 0 | CH31: 0 | CI31: 0 | CJ31: 0 | CK31: 0 | CL31: 0 | CM31: 0 | CN31: 0 | CO31: 0 | CP31: 0 | CQ31: 0 | CR31: 0 | CS31: 0 | CT31: 0 | CU31: 0 | CV31: 0 | CW31: 0 | CX31: 0
C32: =IFERROR(IF($E$4,IF($H$4<=H32,DeltaC($H$4,H32,0,0,N32,$D$4/365),I32+1),IF(H32>$H$4,_xll.RssFOPMarket("147010818","デルタ"),_xll.RssFOPMarket("137010818","デルタ")+1)),0) -> 0.032 | D32: =IFERROR(IF($H$4<H32,OFFSET(OpData!I458,$E$4,,1,1),$H$4+OFFSET(OpData!S458,$E$4,,1,1)-H32),0) -> 15 | H32: 30875 | I32: =IFERROR(IF($E$4,IF($H$4>=H32,DeltaP($H$4,H32,0,0,N32,$D$4/365),C32-1),IF(H32>$H$4,_xll.RssFOPMarket("147010818","デルタ")-1,_xll.RssFOPMarket("137010818","デルタ"))),0) -> -0.968 | J32: =IFERROR(IF($H$4>H32,OFFSET(OpData!S458,$E$4,,1,1),OFFSET(OpData!I458,$E$4,,1,1)+H32-$H$4),0) -> 2365 | N32: =IFERROR(IF($E$4,IF($H$4<H32,IVC(D32,$H$4,H32,0,0,$D$4/365),IVP(J32,$H$4,H32,0,0,$D$4/365)),IF(H32>$H$4,_xll.RssFOPMarket("147010818","IV"),_xll.RssFOPMarket("137010818","IV"))/100),0) -> 0.1542 | P32: =IFERROR(IF($E$4,Vega($H$4,H32,0,0,N32,$D$4/365),IF(H32>$H$4,_xll.RssFOPMarket("147010818","ベガ"),_xll.RssFOPMarket("137010818","ベガ"))),0) -> 5.666 | Q32: =IFERROR(IF($E$4,GammaCP($H$4,H32,0,0,N32,$D$4/365),IF(H32>$H$4,_xll.RssFOPMarket("147010818","ガンマ"),_xll.RssFOPMarket("137010818","ガンマ"))),0) -> 0.0001 | R32: =IFERROR(IF($E$4,Theta($H$4,H32,0,0,N32,$D$4/365,365),IF(H32>$H$4,_xll.RssFOPMarket("147010818","セータ"),_xll.RssFOPMarket("137010818","セータ"))),0) -> -1.509 | W32: =IFERROR(IF($E$4,IF($H$5<=AB32,DeltaC($H$5,AB32,0,0,AH32,$D$5/365),AC32+1),IF(AB32>$H$5,_xll.RssFOPMarket("147020318","デルタ"),_xll.RssFOPMarket("137020318","デルタ")+1)),0) -> 0.1578 | X32: =IFERROR(IF($H$5<AB32,OFFSET(OpData!AC458,$E$4,,1,1),$H$5+OFFSET(OpData!AM458,$E$4,,1,1)-AB32),0) -> 0 | AB32: 30375 | AC32: =IFERROR(IF($E$4,IF($H$5>=AB32,DeltaP($H$5,AB32,0,0,AH32,$D$5/365),W32-1),IF(AB32>$H$5,_xll.RssFOPMarket("147020318","デルタ")-1,_xll.RssFOPMarket("137020318","デルタ"))),0) -> -0.8422 | AD32: =IFERROR(IF($H$5>AB32,OFFSET(OpData!AM458,$E$4,,1,1),OFFSET(OpData!AC458,$E$4,,1,1)+AB32-$H$5),0) -> 1845 | AH32: =IFERROR(IF($E$4,IF($H$5<AB32,IVC(X32,$H$5,AB32,0,0,$D$5/365),IVP(AD32,$H$5,AB32,0,0,$D$5/365)),IF(AB32>$H$5,_xll.RssFOPMarket("147020318","IV"),_xll.RssFOPMarket("137020318","IV"))/100),0) -> 0.1613 | AJ32: =IFERROR(IF($E$4,Vega($H$5,AB32,0,0,AH32,$D$5/365),IF(AB32>$H$5,_xll.RssFOPMarket("147020318","ベガ"),_xll.RssFOPMarket("137020318","ベガ"))),0) -> 26.723 | AK32: =IFERROR(IF($E$4,GammaCP($H$5,AB32,0,0,AH32,$D$5/365),IF(AB32>$H$5,_xll.RssFOPMarket("147020318","ガンマ"),_xll.RssFOPMarket("137020318","ガンマ"))),0) -> 0.0001 | AL32: =IFERROR(IF($E$4,Theta($H$5,AB32,0,0,AH32,$D$5/365,365),IF(AB32>$H$5,_xll.RssFOPMarket("147020318","セータ"),_xll.RssFOPMarket("137020318","セータ"))),0) -> -3.693 | CA32: 0 | CB32: 0 | CC32: 0 | CD32: 0 | CE32: 0 | CF32: 0 | CG32: 0 | CH32: 0 | CI32: 0 | CJ32: 0 | CK32: 0 | CL32: 0 | CM32: 0 | CN32: 0 | CO32: 0 | CP32: 0 | CQ32: 0 | CR32: 0 | CS32: 0 | CT32: 0 | CU32: 0 | CV32: 0 | CW32: 0 | CX32: 0
C33: =IFERROR(IF($E$4,IF($H$4<=H33,DeltaC($H$4,H33,0,0,N33,$D$4/365),I33+1),IF(H33>$H$4,_xll.RssFOPMarket("147010718","デルタ"),_xll.RssFOPMarket("137010718","デルタ")+1)),0) -> 0.0413 | D33: =IFERROR(IF($H$4<H33,OFFSET(OpData!I478,$E$4,,1,1),$H$4+OFFSET(OpData!S478,$E$4,,1,1)-H33),0) -> 20 | H33: 30750 | I33: =IFERROR(IF($E$4,IF($H$4>=H33,DeltaP($H$4,H33,0,0,N33,$D$4/365),C33-1),IF(H33>$H$4,_xll.RssFOPMarket("147010718","デルタ")-1,_xll.RssFOPMarket("137010718","デルタ"))),0) -> -0.9587 | J33: =IFERROR(IF($H$4>H33,OFFSET(OpData!S478,$E$4,,1,1),OFFSET(OpData!I478,$E$4,,1,1)+H33-$H$4),0) -> 2245 | N33: =IFERROR(IF($E$4,IF($H$4<H33,IVC(D33,$H$4,H33,0,0,$D$4/365),IVP(J33,$H$4,H33,0,0,$D$4/365)),IF(H33>$H$4,_xll.RssFOPMarket("147010718","IV"),_xll.RssFOPMarket("137010718","IV"))/100),0) -> 0.1534 | P33: =IFERROR(IF($E$4,Vega($H$4,H33,0,0,N33,$D$4/365),IF(H33>$H$4,_xll.RssFOPMarket("147010718","ベガ"),_xll.RssFOPMarket("137010718","ベガ"))),0) -> 6.99 | Q33: =IFERROR(IF($E$4,GammaCP($H$4,H33,0,0,N33,$D$4/365),IF(H33>$H$4,_xll.RssFOPMarket("147010718","ガンマ"),_xll.RssFOPMarket("137010718","ガンマ"))),0) -> 0.0001 | R33: =IFERROR(IF($E$4,Theta($H$4,H33,0,0,N33,$D$4/365,365),IF(H33>$H$4,_xll.RssFOPMarket("147010718","セータ"),_xll.RssFOPMarket("137010718","セータ"))),0) -> -1.903 | W33: =IFERROR(IF($E$4,IF($H$5<=AB33,DeltaC($H$5,AB33,0,0,AH33,$D$5/365),AC33+1),IF(AB33>$H$5,_xll.RssFOPMarket("147020218","デルタ"),_xll.RssFOPMarket("137020218","デルタ")+1)),0) -> 0.185 | X33: =IFERROR(IF($H$5<AB33,OFFSET(OpData!AC478,$E$4,,1,1),$H$5+OFFSET(OpData!AM478,$E$4,,1,1)-AB33),0) -> 170 | AB33: 30250 | AC33: =IFERROR(IF($E$4,IF($H$5>=AB33,DeltaP($H$5,AB33,0,0,AH33,$D$5/365),W33-1),IF(AB33>$H$5,_xll.RssFOPMarket("147020218","デルタ")-1,_xll.RssFOPMarket("137020218","デルタ"))),0) -> -0.815 | AD33: =IFERROR(IF($H$5>AB33,OFFSET(OpData!AM478,$E$4,,1,1),OFFSET(OpData!AC478,$E$4,,1,1)+AB33-$H$5),0) -> 1890 | AH33: =IFERROR(IF($E$4,IF($H$5<AB33,IVC(X33,$H$5,AB33,0,0,$D$5/365),IVP(AD33,$H$5,AB33,0,0,$D$5/365)),IF(AB33>$H$5,_xll.RssFOPMarket("147020218","IV"),_xll.RssFOPMarket("137020218","IV"))/100),0) -> 0.1562 | AJ33: =IFERROR(IF($E$4,Vega($H$5,AB33,0,0,AH33,$D$5/365),IF(AB33>$H$5,_xll.RssFOPMarket("147020218","ベガ"),_xll.RssFOPMarket("137020218","ベガ"))),0) -> 29.598 | AK33: =IFERROR(IF($E$4,GammaCP($H$5,AB33,0,0,AH33,$D$5/365),IF(AB33>$H$5,_xll.RssFOPMarket("147020218","ガンマ"),_xll.RssFOPMarket("137020218","ガンマ"))),0) -> 0.0001 | AL33: =IFERROR(IF($E$4,Theta($H$5,AB33,0,0,AH33,$D$5/365,365),IF(AB33>$H$5,_xll.RssFOPMarket("147020218","セータ"),_xll.RssFOPMarket("137020218","セータ"))),0) -> -4.368 | CA33: 0 | CB33: 0 | CC33: 0 | CD33: 0 | CE33: 0 | CF33: 0 | CG33: 0 | CH33: 0 | CI33: 0 | CJ33: 0 | CK33: 0 | CL33: 0 | CM33: 0 | CN33: 0 | CO33: 0 | CP33: 0 | CQ33: 0 | CR33: 0 | CS33: 0 | CT33: 0 | CU33: 0 | CV33: 0 | CW33: 0 | CX33: 0
C34: =IFERROR(IF($E$4,IF($H$4<=H34,DeltaC($H$4,H34,0,0,N34,$D$4/365),I34+1),IF(H34>$H$4,_xll.RssFOPMarket("147010618","デルタ"),_xll.RssFOPMarket("137010618","デルタ")+1)),0) -> 0.048 | D34: =IFERROR(IF($H$4<H34,OFFSET(OpData!I498,$E$4,,1,1),$H$4+OFFSET(OpData!S498,$E$4,,1,1)-H34),0) -> 24 | H34: 30625 | I34: =IFERROR(IF($E$4,IF($H$4>=H34,DeltaP($H$4,H34,0,0,N34,$D$4/365),C34-1),IF(H34>$H$4,_xll.RssFOPMarket("147010618","デルタ")-1,_xll.RssFOPMarket("137010618","デルタ"))),0) -> -0.952 | J34: =IFERROR(IF($H$4>H34,OFFSET(OpData!S498,$E$4,,1,1),OFFSET(OpData!I498,$E$4,,1,1)+H34-$H$4),0) -> 2124 | N34: =IFERROR(IF($E$4,IF($H$4<H34,IVC(D34,$H$4,H34,0,0,$D$4/365),IVP(J34,$H$4,H34,0,0,$D$4/365)),IF(H34>$H$4,_xll.RssFOPMarket("147010618","IV"),_xll.RssFOPMarket("137010618","IV"))/100),0) -> 0.1548 | P34: =IFERROR(IF($E$4,Vega($H$4,H34,0,0,N34,$D$4/365),IF(H34>$H$4,_xll.RssFOPMarket("147010618","ベガ"),_xll.RssFOPMarket("137010618","ベガ"))),0) -> 7.887 | Q34: =IFERROR(IF($E$4,GammaCP($H$4,H34,0,0,N34,$D$4/365),IF(H34>$H$4,_xll.RssFOPMarket("147010618","ガンマ"),_xll.RssFOPMarket("137010618","ガンマ"))),0) -> 0.0001 | R34: =IFERROR(IF($E$4,Theta($H$4,H34,0,0,N34,$D$4/365,365),IF(H34>$H$4,_xll.RssFOPMarket("147010618","セータ"),_xll.RssFOPMarket("137010618","セータ"))),0) -> -2.085 | W34: =IFERROR(IF($E$4,IF($H$5<=AB34,DeltaC($H$5,AB34,0,0,AH34,$D$5/365),AC34+1),IF(AB34>$H$5,_xll.RssFOPMarket("147020118","デルタ"),_xll.RssFOPMarket("137020118","デルタ")+1)),0) -> 0.2652 | X34: =IFERROR(IF($H$5<AB34,OFFSET(OpData!AC498,$E$4,,1,1),$H$5+OFFSET(OpData!AM498,$E$4,,1,1)-AB34),0) -> 0 | AB34: 30125 | AC34: =IFERROR(IF($E$4,IF($H$5>=AB34,DeltaP($H$5,AB34,0,0,AH34,$D$5/365),W34-1),IF(AB34>$H$5,_xll.RssFOPMarket("147020118","デルタ")-1,_xll.RssFOPMarket("137020118","デルタ"))),0) -> -0.7348 | AD34: =IFERROR(IF($H$5>AB34,OFFSET(OpData!AM498,$E$4,,1,1),OFFSET(OpData!AC498,$E$4,,1,1)+AB34-$H$5),0) -> 1595 | AH34: =IFERROR(IF($E$4,IF($H$5<AB34,IVC(X34,$H$5,AB34,0,0,$D$5/365),IVP(AD34,$H$5,AB34,0,0,$D$5/365)),IF(AB34>$H$5,_xll.RssFOPMarket("147020118","IV"),_xll.RssFOPMarket("137020118","IV"))/100),0) -> 0.1642 | AJ34: =IFERROR(IF($E$4,Vega($H$5,AB34,0,0,AH34,$D$5/365),IF(AB34>$H$5,_xll.RssFOPMarket("147020118","ベガ"),_xll.RssFOPMarket("137020118","ベガ"))),0) -> 36.904 | AK34: =IFERROR(IF($E$4,GammaCP($H$5,AB34,0,0,AH34,$D$5/365),IF(AB34>$H$5,_xll.RssFOPMarket("147020118","ガンマ"),_xll.RssFOPMarket("137020118","ガンマ"))),0) -> 0.0002 | AL34: =IFERROR(IF($E$4,Theta($H$5,AB34,0,0,AH34,$D$5/365,365),IF(AB34>$H$5,_xll.RssFOPMarket("147020118","セータ"),_xll.RssFOPMarket("137020118","セータ"))),0) -> -4.693 | CA34: 0 | CB34: 0 | CC34: 0 | CD34: 0 | CE34: 0 | CF34: 0 | CG34: 0 | CH34: 0 | CI34: 0 | CJ34: 0 | CK34: 0 | CL34: 0 | CM34: 0 | CN34: 0 | CO34: 0 | CP34: 0 | CQ34: 0 | CR34: 0 | CS34: 0 | CT34: 0 | CU34: 0 | CV34: 0 | CW34: 0 | CX34: 0
C35: =IFERROR(IF($E$4,IF($H$4<=H35,DeltaC($H$4,H35,0,0,N35,$D$4/365),I35+1),IF(H35>$H$4,_xll.RssFOPMarket("147010518","デルタ"),_xll.RssFOPMarket("137010518","デルタ")+1)),0) -> 0.0606 | D35: =IFERROR(IF($H$4<H35,OFFSET(OpData!I518,$E$4,,1,1),$H$4+OFFSET(OpData!S518,$E$4,,1,1)-H35),0) -> 31 | H35: 30500 | I35: =IFERROR(IF($E$4,IF($H$4>=H35,DeltaP($H$4,H35,0,0,N35,$D$4/365),C35-1),IF(H35>$H$4,_xll.RssFOPMarket("147010518","デルタ")-1,_xll.RssFOPMarket("137010518","デルタ"))),0) -> -0.9394 | J35: =IFERROR(IF($H$4>H35,OFFSET(OpData!S518,$E$4,,1,1),OFFSET(OpData!I518,$E$4,,1,1)+H35-$H$4),0) -> 2006 | N35: =IFERROR(IF($E$4,IF($H$4<H35,IVC(D35,$H$4,H35,0,0,$D$4/365),IVP(J35,$H$4,H35,0,0,$D$4/365)),IF(H35>$H$4,_xll.RssFOPMarket("147010518","IV"),_xll.RssFOPMarket("137010518","IV"))/100),0) -> 0.1525 | P35: =IFERROR(IF($E$4,Vega($H$4,H35,0,0,N35,$D$4/365),IF(H35>$H$4,_xll.RssFOPMarket("147010518","ベガ"),_xll.RssFOPMarket("137010518","ベガ"))),0) -> 9.491 | Q35: =IFERROR(IF($E$4,GammaCP($H$4,H35,0,0,N35,$D$4/365),IF(H35>$H$4,_xll.RssFOPMarket("147010518","ガンマ"),_xll.RssFOPMarket("137010518","ガンマ"))),0) -> 0.0001 | R35: =IFERROR(IF($E$4,Theta($H$4,H35,0,0,N35,$D$4/365,365),IF(H35>$H$4,_xll.RssFOPMarket("147010518","セータ"),_xll.RssFOPMarket("137010518","セータ"))),0) -> -2.577 | W35: =IFERROR(IF($E$4,IF($H$5<=AB35,DeltaC($H$5,AB35,0,0,AH35,$D$5/365),AC35+1),IF(AB35>$H$5,_xll.RssFOPMarket("147020018","デルタ"),_xll.RssFOPMarket("137020018","デルタ")+1)),0) -> 0.2114 | X35: =IFERROR(IF($H$5<AB35,OFFSET(OpData!AC518,$E$4,,1,1),$H$5+OFFSET(OpData!AM518,$E$4,,1,1)-AB35),0) -> 210 | AB35: 30000 | AC35: =IFERROR(IF($E$4,IF($H$5>=AB35,DeltaP($H$5,AB35,0,0,AH35,$D$5/365),W35-1),IF(AB35>$H$5,_xll.RssFOPMarket("147020018","デルタ")-1,_xll.RssFOPMarket("137020018","デルタ"))),0) -> -0.7886 | AD35: =IFERROR(IF($H$5>AB35,OFFSET(OpData!AM518,$E$4,,1,1),OFFSET(OpData!AC518,$E$4,,1,1)+AB35-$H$5),0) -> 1680 | AH35: =IFERROR(IF($E$4,IF($H$5<AB35,IVC(X35,$H$5,AB35,0,0,$D$5/365),IVP(AD35,$H$5,AB35,0,0,$D$5/365)),IF(AB35>$H$5,_xll.RssFOPMarket("147020018","IV"),_xll.RssFOPMarket("137020018","IV"))/100),0) -> 0.1628 | AJ35: =IFERROR(IF($E$4,Vega($H$5,AB35,0,0,AH35,$D$5/365),IF(AB35>$H$5,_xll.RssFOPMarket("147020018","ベガ"),_xll.RssFOPMarket("137020018","ベガ"))),0) -> 32.024 | AK35: =IFERROR(IF($E$4,GammaCP($H$5,AB35,0,0,AH35,$D$5/365),IF(AB35>$H$5,_xll.RssFOPMarket("147020018","ガンマ"),_xll.RssFOPMarket("137020018","ガンマ"))),0) -> 0.0002 | AL35: =IFERROR(IF($E$4,Theta($H$5,AB35,0,0,AH35,$D$5/365,365),IF(AB35>$H$5,_xll.RssFOPMarket("147020018","セータ"),_xll.RssFOPMarket("137020018","セータ"))),0) -> -4.429 | CA35: 0 | CB35: 0 | CC35: 0 | CD35: 0 | CE35: 0 | CF35: 0 | CG35: 0 | CH35: 0 | CI35: 0 | CJ35: 0 | CK35: 0 | CL35: 0 | CM35: 0 | CN35: 0 | CO35: 0 | CP35: 0 | CQ35: 0 | CR35: 0 | CS35: 0 | CT35: 0 | CU35: 0 | CV35: 0 | CW35: 0 | CX35: 0
C36: =IFERROR(IF($E$4,IF($H$4<=H36,DeltaC($H$4,H36,0,0,N36,$D$4/365),I36+1),IF(H36>$H$4,_xll.RssFOPMarket("147010318","デルタ"),_xll.RssFOPMarket("137010318","デルタ")+1)),0) -> 0.0664 | D36: =IFERROR(IF($H$4<H36,OFFSET(OpData!I538,$E$4,,1,1),$H$4+OFFSET(OpData!S538,$E$4,,1,1)-H36),0) -> 35 | H36: 30375 | I36: =IFERROR(IF($E$4,IF($H$4>=H36,DeltaP($H$4,H36,0,0,N36,$D$4/365),C36-1),IF(H36>$H$4,_xll.RssFOPMarket("147010318","デルタ")-1,_xll.RssFOPMarket("137010318","デルタ"))),0) -> -0.9336 | J36: =IFERROR(IF($H$4>H36,OFFSET(OpData!S538,$E$4,,1,1),OFFSET(OpData!I538,$E$4,,1,1)+H36-$H$4),0) -> 1885 | N36: =IFERROR(IF($E$4,IF($H$4<H36,IVC(D36,$H$4,H36,0,0,$D$4/365),IVP(J36,$H$4,H36,0,0,$D$4/365)),IF(H36>$H$4,_xll.RssFOPMarket("147010318","IV"),_xll.RssFOPMarket("137010318","IV"))/100),0) -> 0.1546 | P36: =IFERROR(IF($E$4,Vega($H$4,H36,0,0,N36,$D$4/365),IF(H36>$H$4,_xll.RssFOPMarket("147010318","ベガ"),_xll.RssFOPMarket("137010318","ベガ"))),0) -> 10.186 | Q36: =IFERROR(IF($E$4,GammaCP($H$4,H36,0,0,N36,$D$4/365),IF(H36>$H$4,_xll.RssFOPMarket("147010318","ガンマ"),_xll.RssFOPMarket("137010318","ガンマ"))),0) -> 0.0001 | R36: =IFERROR(IF($E$4,Theta($H$4,H36,0,0,N36,$D$4/365,365),IF(H36>$H$4,_xll.RssFOPMarket("147010318","セータ"),_xll.RssFOPMarket("137010318","セータ"))),0) -> -2.602 | W36: =IFERROR(IF($E$4,IF($H$5<=AB36,DeltaC($H$5,AB36,0,0,AH36,$D$5/365),AC36+1),IF(AB36>$H$5,_xll.RssFOPMarket("147029818","デルタ"),_xll.RssFOPMarket("137029818","デルタ")+1)),0) -> 0.2869 | X36: =IFERROR(IF($H$5<AB36,OFFSET(OpData!AC538,$E$4,,1,1),$H$5+OFFSET(OpData!AM538,$E$4,,1,1)-AB36),0) -> 0 | AB36: 29875 | AC36: =IFERROR(IF($E$4,IF($H$5>=AB36,DeltaP($H$5,AB36,0,0,AH36,$D$5/365),W36-1),IF(AB36>$H$5,_xll.RssFOPMarket("147029818","デルタ")-1,_xll.RssFOPMarket("137029818","デルタ"))),0) -> -0.7131 | AD36: =IFERROR(IF($H$5>AB36,OFFSET(OpData!AM538,$E$4,,1,1),OFFSET(OpData!AC538,$E$4,,1,1)+AB36-$H$5),0) -> 1345 | AH36: =IFERROR(IF($E$4,IF($H$5<AB36,IVC(X36,$H$5,AB36,0,0,$D$5/365),IVP(AD36,$H$5,AB36,0,0,$D$5/365)),IF(AB36>$H$5,_xll.RssFOPMarket("147029818","IV"),_xll.RssFOPMarket("137029818","IV"))/100),0) -> 0.1668 | AJ36: =IFERROR(IF($E$4,Vega($H$5,AB36,0,0,AH36,$D$5/365),IF(AB36>$H$5,_xll.RssFOPMarket("147029818","ベガ"),_xll.RssFOPMarket("137029818","ベガ"))),0) -> 38.129 | AK36: =IFERROR(IF($E$4,GammaCP($H$5,AB36,0,0,AH36,$D$5/365),IF(AB36>$H$5,_xll.RssFOPMarket("147029818","ガンマ"),_xll.RssFOPMarket("137029818","ガンマ"))),0) -> 0.0002 | AL36: =IFERROR(IF($E$4,Theta($H$5,AB36,0,0,AH36,$D$5/365,365),IF(AB36>$H$5,_xll.RssFOPMarket("147029818","セータ"),_xll.RssFOPMarket("137029818","セータ"))),0) -> -5.2 | CA36: 0 | CB36: 0 | CC36: 0 | CD36: 0 | CE36: 0 | CF36: 0 | CG36: 0 | CH36: 0 | CI36: 0 | CJ36: 0 | CK36: 0 | CL36: 0 | CM36: 0 | CN36: 0 | CO36: 0 | CP36: 0 | CQ36: 0 | CR36: 0 | CS36: 0 | CT36: 0 | CU36: 0 | CV36: 0 | CW36: 0 | CX36: 0
C37: =IFERROR(IF($E$4,IF($H$4<=H37,DeltaC($H$4,H37,0,0,N37,$D$4/365),I37+1),IF(H37>$H$4,_xll.RssFOPMarket("147010218","デルタ"),_xll.RssFOPMarket("137010218","デルタ")+1)),0) -> 0.0863 | D37: =IFERROR(IF($H$4<H37,OFFSET(OpData!I558,$E$4,,1,1),$H$4+OFFSET(OpData!S558,$E$4,,1,1)-H37),0) -> 47 | H37: 30250 | I37: =IFERROR(IF($E$4,IF($H$4>=H37,DeltaP($H$4,H37,0,0,N37,$D$4/365),C37-1),IF(H37>$H$4,_xll.RssFOPMarket("147010218","デルタ")-1,_xll.RssFOPMarket("137010218","デルタ"))),0) -> -0.9137 | J37: =IFERROR(IF($H$4>H37,OFFSET(OpData!S558,$E$4,,1,1),OFFSET(OpData!I558,$E$4,,1,1)+H37-$H$4),0) -> 1772 | N37: =IFERROR(IF($E$4,IF($H$4<H37,IVC(D37,$H$4,H37,0,0,$D$4/365),IVP(J37,$H$4,H37,0,0,$D$4/365)),IF(H37>$H$4,_xll.RssFOPMarket("147010218","IV"),_xll.RssFOPMarket("137010218","IV"))/100),0) -> 0.1524 | P37: =IFERROR(IF($E$4,Vega($H$4,H37,0,0,N37,$D$4/365),IF(H37>$H$4,_xll.RssFOPMarket("147010218","ベガ"),_xll.RssFOPMarket("137010218","ベガ"))),0) -> 12.441 | Q37: =IFERROR(IF($E$4,GammaCP($H$4,H37,0,0,N37,$D$4/365),IF(H37>$H$4,_xll.RssFOPMarket("147010218","ガンマ"),_xll.RssFOPMarket("137010218","ガンマ"))),0) -> 0.0001 | R37: =IFERROR(IF($E$4,Theta($H$4,H37,0,0,N37,$D$4/365,365),IF(H37>$H$4,_xll.RssFOPMarket("147010218","セータ"),_xll.RssFOPMarket("137010218","セータ"))),0) -> -3.345 | W37: =IFERROR(IF($E$4,IF($H$5<=AB37,DeltaC($H$5,AB37,0,0,AH37,$D$5/365),AC37+1),IF(AB37>$H$5,_xll.RssFOPMarket("147029718","デルタ"),_xll.RssFOPMarket("137029718","デルタ")+1)),0) -> 0.269 | X37: =IFERROR(IF($H$5<AB37,OFFSET(OpData!AC558,$E$4,,1,1),$H$5+OFFSET(OpData!AM558,$E$4,,1,1)-AB37),0) -> 0 | AB37: 29750 | AC37: =IFERROR(IF($E$4,IF($H$5>=AB37,DeltaP($H$5,AB37,0,0,AH37,$D$5/365),W37-1),IF(AB37>$H$5,_xll.RssFOPMarket("147029718","デルタ")-1,_xll.RssFOPMarket("137029718","デルタ"))),0) -> -0.731 | AD37: =IFERROR(IF($H$5>AB37,OFFSET(OpData!AM558,$E$4,,1,1),OFFSET(OpData!AC558,$E$4,,1,1)+AB37-$H$5),0) -> 1220 | AH37: =IFERROR(IF($E$4,IF($H$5<AB37,IVC(X37,$H$5,AB37,0,0,$D$5/365),IVP(AD37,$H$5,AB37,0,0,$D$5/365)),IF(AB37>$H$5,_xll.RssFOPMarket("147029718","IV"),_xll.RssFOPMarket("137029718","IV"))/100),0) -> 0.1684 | AJ37: =IFERROR(IF($E$4,Vega($H$5,AB37,0,0,AH37,$D$5/365),IF(AB37>$H$5,_xll.RssFOPMarket("147029718","ベガ"),_xll.RssFOPMarket("137029718","ベガ"))),0) -> 36.643 | AK37: =IFERROR(IF($E$4,GammaCP($H$5,AB37,0,0,AH37,$D$5/365),IF(AB37>$H$5,_xll.RssFOPMarket("147029718","ガンマ"),_xll.RssFOPMarket("137029718","ガンマ"))),0) -> 0.0002 | AL37: =IFERROR(IF($E$4,Theta($H$5,AB37,0,0,AH37,$D$5/365,365),IF(AB37>$H$5,_xll.RssFOPMarket("147029718","セータ"),_xll.RssFOPMarket("137029718","セータ"))),0) -> -5.119 | CA37: 0 | CB37: 0 | CC37: 0 | CD37: 0 | CE37: 0 | CF37: 0 | CG37: 0 | CH37: 0 | CI37: 0 | CJ37: 0 | CK37: 0 | CL37: 0 | CM37: 0 | CN37: 0 | CO37: 0 | CP37: 0 | CQ37: 0 | CR37: 0 | CS37: 0 | CT37: 0 | CU37: 0 | CV37: 0 | CW37: 0 | CX37: 0
C38: =IFERROR(IF($E$4,IF($H$4<=H38,DeltaC($H$4,H38,0,0,N38,$D$4/365),I38+1),IF(H38>$H$4,_xll.RssFOPMarket("147010118","デルタ"),_xll.RssFOPMarket("137010118","デルタ")+1)),0) -> 0.105 | D38: =IFERROR(IF($H$4<H38,OFFSET(OpData!I578,$E$4,,1,1),$H$4+OFFSET(OpData!S578,$E$4,,1,1)-H38),0) -> 60 | H38: 30125 | I38: =IFERROR(IF($E$4,IF($H$4>=H38,DeltaP($H$4,H38,0,0,N38,$D$4/365),C38-1),IF(H38>$H$4,_xll.RssFOPMarket("147010118","デルタ")-1,_xll.RssFOPMarket("137010118","デルタ"))),0) -> -0.895 | J38: =IFERROR(IF($H$4>H38,OFFSET(OpData!S578,$E$4,,1,1),OFFSET(OpData!I578,$E$4,,1,1)+H38-$H$4),0) -> 1660 | N38: =IFERROR(IF($E$4,IF($H$4<H38,IVC(D38,$H$4,H38,0,0,$D$4/365),IVP(J38,$H$4,H38,0,0,$D$4/365)),IF(H38>$H$4,_xll.RssFOPMarket("147010118","IV"),_xll.RssFOPMarket("137010118","IV"))/100),0) -> 0.1538 | P38: =IFERROR(IF($E$4,Vega($H$4,H38,0,0,N38,$D$4/365),IF(H38>$H$4,_xll.RssFOPMarket("147010118","ベガ"),_xll.RssFOPMarket("137010118","ベガ"))),0) -> 14.375 | Q38: =IFERROR(IF($E$4,GammaCP($H$4,H38,0,0,N38,$D$4/365),IF(H38>$H$4,_xll.RssFOPMarket("147010118","ガンマ"),_xll.RssFOPMarket("137010118","ガンマ"))),0) -> 0.0001 | R38: =IFERROR(IF($E$4,Theta($H$4,H38,0,0,N38,$D$4/365,365),IF(H38>$H$4,_xll.RssFOPMarket("147010118","セータ"),_xll.RssFOPMarket("137010118","セータ"))),0) -> -3.9 | W38: =IFERROR(IF($E$4,IF($H$5<=AB38,DeltaC($H$5,AB38,0,0,AH38,$D$5/365),AC38+1),IF(AB38>$H$5,_xll.RssFOPMarket("147029618","デルタ"),_xll.RssFOPMarket("137029618","デルタ")+1)),0) -> 0.3269 | X38: =IFERROR(IF($H$5<AB38,OFFSET(OpData!AC578,$E$4,,1,1),$H$5+OFFSET(OpData!AM578,$E$4,,1,1)-AB38),0) -> 0 | AB38: 29625 | AC38: =IFERROR(IF($E$4,IF($H$5>=AB38,DeltaP($H$5,AB38,0,0,AH38,$D$5/365),W38-1),IF(AB38>$H$5,_xll.RssFOPMarket("147029618","デルタ")-1,_xll.RssFOPMarket("137029618","デルタ"))),0) -> -0.6731 | AD38: =IFERROR(IF($H$5>AB38,OFFSET(OpData!AM578,$E$4,,1,1),OFFSET(OpData!AC578,$E$4,,1,1)+AB38-$H$5),0) -> 1095 | AH38: =IFERROR(IF($E$4,IF($H$5<AB38,IVC(X38,$H$5,AB38,0,0,$D$5/365),IVP(AD38,$H$5,AB38,0,0,$D$5/365)),IF(AB38>$H$5,_xll.RssFOPMarket("147029618","IV"),_xll.RssFOPMarket("137029618","IV"))/100),0) -> 0.1691 | AJ38: =IFERROR(IF($E$4,Vega($H$5,AB38,0,0,AH38,$D$5/365),IF(AB38>$H$5,_xll.RssFOPMarket("147029618","ベガ"),_xll.RssFOPMarket("137029618","ベガ"))),0) -> 40.655 | AK38: =IFERROR(IF($E$4,GammaCP($H$5,AB38,0,0,AH38,$D$5/365),IF(AB38>$H$5,_xll.RssFOPMarket("147029618","ガンマ"),_xll.RssFOPMarket("137029618","ガンマ"))),0) -> 0.0002 | AL38: =IFERROR(IF($E$4,Theta($H$5,AB38,0,0,AH38,$D$5/365,365),IF(AB38>$H$5,_xll.RssFOPMarket("147029618","セータ"),_xll.RssFOPMarket("137029618","セータ"))),0) -> -5.534 | CA38: 0 | CB38: 0 | CC38: 0 | CD38: 0 | CE38: 0 | CF38: 0 | CG38: 0 | CH38: 0 | CI38: 0 | CJ38: 0 | CK38: 0 | CL38: 0 | CM38: 0 | CN38: 0 | CO38: 0 | CP38: 0 | CQ38: 0 | CR38: 0 | CS38: 0 | CT38: 0 | CU38: 0 | CV38: 0 | CW38: 0 | CX38: 0
C39: =IFERROR(IF($E$4,IF($H$4<=H39,DeltaC($H$4,H39,0,0,N39,$D$4/365),I39+1),IF(H39>$H$4,_xll.RssFOPMarket("147010018","デルタ"),_xll.RssFOPMarket("137010018","デルタ")+1)),0) -> 0.1245 | D39: =IFERROR(IF($H$4<H39,OFFSET(OpData!I598,$E$4,,1,1),$H$4+OFFSET(OpData!S598,$E$4,,1,1)-H39),0) -> 74 | H39: 30000 | I39: =IFERROR(IF($E$4,IF($H$4>=H39,DeltaP($H$4,H39,0,0,N39,$D$4/365),C39-1),IF(H39>$H$4,_xll.RssFOPMarket("147010018","デルタ")-1,_xll.RssFOPMarket("137010018","デルタ"))),0) -> -0.8755 | J39: =IFERROR(IF($H$4>H39,OFFSET(OpData!S598,$E$4,,1,1),OFFSET(OpData!I598,$E$4,,1,1)+H39-$H$4),0) -> 1549 | N39: =IFERROR(IF($E$4,IF($H$4<H39,IVC(D39,$H$4,H39,0,0,$D$4/365),IVP(J39,$H$4,H39,0,0,$D$4/365)),IF(H39>$H$4,_xll.RssFOPMarket("147010018","IV"),_xll.RssFOPMarket("137010018","IV"))/100),0) -> 0.1543 | P39: =IFERROR(IF($E$4,Vega($H$4,H39,0,0,N39,$D$4/365),IF(H39>$H$4,_xll.RssFOPMarket("147010018","ベガ"),_xll.RssFOPMarket("137010018","ベガ"))),0) -> 16.232 | Q39: =IFERROR(IF($E$4,GammaCP($H$4,H39,0,0,N39,$D$4/365),IF(H39>$H$4,_xll.RssFOPMarket("147010018","ガンマ"),_xll.RssFOPMarket("137010018","ガンマ"))),0) -> 0.0002 | R39: =IFERROR(IF($E$4,Theta($H$4,H39,0,0,N39,$D$4/365,365),IF(H39>$H$4,_xll.RssFOPMarket("147010018","セータ"),_xll.RssFOPMarket("137010018","セータ"))),0) -> -4.414 | W39: =IFERROR(IF($E$4,IF($H$5<=AB39,DeltaC($H$5,AB39,0,0,AH39,$D$5/365),AC39+1),IF(AB39>$H$5,_xll.RssFOPMarket("147029518","デルタ"),_xll.RssFOPMarket("137029518","デルタ")+1)),0) -> 0.3134 | X39: =IFERROR(IF($H$5<AB39,OFFSET(OpData!AC598,$E$4,,1,1),$H$5+OFFSET(OpData!AM598,$E$4,,1,1)-AB39),0) -> 360 | AB39: 29500 | AC39: =IFERROR(IF($E$4,IF($H$5>=AB39,DeltaP($H$5,AB39,0,0,AH39,$D$5/365),W39-1),IF(AB39>$H$5,_xll.RssFOPMarket("147029518","デルタ")-1,_xll.RssFOPMarket("137029518","デルタ"))),0) -> -0.6866 | AD39: =IFERROR(IF($H$5>AB39,OFFSET(OpData!AM598,$E$4,,1,1),OFFSET(OpData!AC598,$E$4,,1,1)+AB39-$H$5),0) -> 1330 | AH39: =IFERROR(IF($E$4,IF($H$5<AB39,IVC(X39,$H$5,AB39,0,0,$D$5/365),IVP(AD39,$H$5,AB39,0,0,$D$5/365)),IF(AB39>$H$5,_xll.RssFOPMarket("147029518","IV"),_xll.RssFOPMarket("137029518","IV"))/100),0) -> 0.1663 | AJ39: =IFERROR(IF($E$4,Vega($H$5,AB39,0,0,AH39,$D$5/365),IF(AB39>$H$5,_xll.RssFOPMarket("147029518","ベガ"),_xll.RssFOPMarket("137029518","ベガ"))),0) -> 39.27 | AK39: =IFERROR(IF($E$4,GammaCP($H$5,AB39,0,0,AH39,$D$5/365),IF(AB39>$H$5,_xll.RssFOPMarket("147029518","ガンマ"),_xll.RssFOPMarket("137029518","ガンマ"))),0) -> 0.0002 | AL39: =IFERROR(IF($E$4,Theta($H$5,AB39,0,0,AH39,$D$5/365,365),IF(AB39>$H$5,_xll.RssFOPMarket("147029518","セータ"),_xll.RssFOPMarket("137029518","セータ"))),0) -> -5.847 | CA39: 0 | CB39: 0 | CC39: 0 | CD39: 0 | CE39: 0 | CF39: 0 | CG39: 0 | CH39: 0 | CI39: 0 | CJ39: 0 | CK39: 0 | CL39: 0 | CM39: 0 | CN39: 0 | CO39: 0 | CP39: 0 | CQ39: 0 | CR39: 0 | CS39: 0 | CT39: 0 | CU39: 0 | CV39: 0 | CW39: 0 | CX39: 0
C40: =IFERROR(IF($E$4,IF($H$4<=H40,DeltaC($H$4,H40,0,0,N40,$D$4/365),I40+1),IF(H40>$H$4,_xll.RssFOPMarket("147019818","デルタ"),_xll.RssFOPMarket("137019818","デルタ")+1)),0) -> 0.1494 | D40: =IFERROR(IF($H$4<H40,OFFSET(OpData!I618,$E$4,,1,1),$H$4+OFFSET(OpData!S618,$E$4,,1,1)-H40),0) -> 93 | H40: 29875 | I40: =IFERROR(IF($E$4,IF($H$4>=H40,DeltaP($H$4,H40,0,0,N40,$D$4/365),C40-1),IF(H40>$H$4,_xll.RssFOPMarket("147019818","デルタ")-1,_xll.RssFOPMarket("137019818","デルタ"))),0) -> -0.8506 | J40: =IFERROR(IF($H$4>H40,OFFSET(OpData!S618,$E$4,,1,1),OFFSET(OpData!I618,$E$4,,1,1)+H40-$H$4),0) -> 1443 | N40: =IFERROR(IF($E$4,IF($H$4<H40,IVC(D40,$H$4,H40,0,0,$D$4/365),IVP(J40,$H$4,H40,0,0,$D$4/365)),IF(H40>$H$4,_xll.RssFOPMarket("147019818","IV"),_xll.RssFOPMarket("137019818","IV"))/100),0) -> 0.155 | P40: =IFERROR(IF($E$4,Vega($H$4,H40,0,0,N40,$D$4/365),IF(H40>$H$4,_xll.RssFOPMarket("147019818","ベガ"),_xll.RssFOPMarket("137019818","ベガ"))),0) -> 18.388 | Q40: =IFERROR(IF($E$4,GammaCP($H$4,H40,0,0,N40,$D$4/365),IF(H40>$H$4,_xll.RssFOPMarket("147019818","ガンマ"),_xll.RssFOPMarket("137019818","ガンマ"))),0) -> 0.0002 | R40: =IFERROR(IF($E$4,Theta($H$4,H40,0,0,N40,$D$4/365,365),IF(H40>$H$4,_xll.RssFOPMarket("147019818","セータ"),_xll.RssFOPMarket("137019818","セータ"))),0) -> -5.088 | W40: =IFERROR(IF($E$4,IF($H$5<=AB40,DeltaC($H$5,AB40,0,0,AH40,$D$5/365),AC40+1),IF(AB40>$H$5,_xll.RssFOPMarket("147029318","デルタ"),_xll.RssFOPMarket("137029318","デルタ")+1)),0) -> 0.3412 | X40: =IFERROR(IF($H$5<AB40,OFFSET(OpData!AC618,$E$4,,1,1),$H$5+OFFSET(OpData!AM618,$E$4,,1,1)-AB40),0) -> 0 | AB40: 29375 | AC40: =IFERROR(IF($E$4,IF($H$5>=AB40,DeltaP($H$5,AB40,0,0,AH40,$D$5/365),W40-1),IF(AB40>$H$5,_xll.RssFOPMarket("147029318","デルタ")-1,_xll.RssFOPMarket("137029318","デルタ"))),0) -> -0.6588 | AD40: =IFERROR(IF($H$5>AB40,OFFSET(OpData!AM618,$E$4,,1,1),OFFSET(OpData!AC618,$E$4,,1,1)+AB40-$H$5),0) -> 845 | AH40: =IFERROR(IF($E$4,IF($H$5<AB40,IVC(X40,$H$5,AB40,0,0,$D$5/365),IVP(AD40,$H$5,AB40,0,0,$D$5/365)),IF(AB40>$H$5,_xll.RssFOPMarket("147029318","IV"),_xll.RssFOPMarket("137029318","IV"))/100),0) -> 0.1697 | AJ40: =IFERROR(IF($E$4,Vega($H$5,AB40,0,0,AH40,$D$5/365),IF(AB40>$H$5,_xll.RssFOPMarket("147029318","ベガ"),_xll.RssFOPMarket("137029318","ベガ"))),0) -> 40.666 | AK40: =IFERROR(IF($E$4,GammaCP($H$5,AB40,0,0,AH40,$D$5/365),IF(AB40>$H$5,_xll.RssFOPMarket("147029318","ガンマ"),_xll.RssFOPMarket("137029318","ガンマ"))),0) -> 0.0002 | AL40: =IFERROR(IF($E$4,Theta($H$5,AB40,0,0,AH40,$D$5/365,365),IF(AB40>$H$5,_xll.RssFOPMarket("147029318","セータ"),_xll.RssFOPMarket("137029318","セータ"))),0) -> -6.172 | CA40: 0 | CB40: 0 | CC40: 0 | CD40: 0 | CE40: 0 | CF40: 0 | CG40: 0 | CH40: 0 | CI40: 0 | CJ40: 0 | CK40: 0 | CL40: 0 | CM40: 0 | CN40: 0 | CO40: 0 | CP40: 0 | CQ40: 0 | CR40: 0 | CS40: 0 | CT40: 0 | CU40: 0 | CV40: 0 | CW40: 0 | CX40: 0
C41: =IFERROR(IF($E$4,IF($H$4<=H41,DeltaC($H$4,H41,0,0,N41,$D$4/365),I41+1),IF(H41>$H$4,_xll.RssFOPMarket("147019718","デルタ"),_xll.RssFOPMarket("137019718","デルタ")+1)),0) -> 0.1708 | D41: =IFERROR(IF($H$4<H41,OFFSET(OpData!I638,$E$4,,1,1),$H$4+OFFSET(OpData!S638,$E$4,,1,1)-H41),0) -> 110 | H41: 29750 | I41: =IFERROR(IF($E$4,IF($H$4>=H41,DeltaP($H$4,H41,0,0,N41,$D$4/365),C41-1),IF(H41>$H$4,_xll.RssFOPMarket("147019718","デルタ")-1,_xll.RssFOPMarket("137019718","デルタ"))),0) -> -0.8292 | J41: =IFERROR(IF($H$4>H41,OFFSET(OpData!S638,$E$4,,1,1),OFFSET(OpData!I638,$E$4,,1,1)+H41-$H$4),0) -> 1335 | N41: =IFERROR(IF($E$4,IF($H$4<H41,IVC(D41,$H$4,H41,0,0,$D$4/365),IVP(J41,$H$4,H41,0,0,$D$4/365)),IF(H41>$H$4,_xll.RssFOPMarket("147019718","IV"),_xll.RssFOPMarket("137019718","IV"))/100),0) -> 0.1552 | P41: =IFERROR(IF($E$4,Vega($H$4,H41,0,0,N41,$D$4/365),IF(H41>$H$4,_xll.RssFOPMarket("147019718","ベガ"),_xll.RssFOPMarket("137019718","ベガ"))),0) -> 20.068 | Q41: =IFERROR(IF($E$4,GammaCP($H$4,H41,0,0,N41,$D$4/365),IF(H41>$H$4,_xll.RssFOPMarket("147019718","ガンマ"),_xll.RssFOPMarket("137019718","ガンマ"))),0) -> 0.0002 | R41: =IFERROR(IF($E$4,Theta($H$4,H41,0,0,N41,$D$4/365,365),IF(H41>$H$4,_xll.RssFOPMarket("147019718","セータ"),_xll.RssFOPMarket("137019718","セータ"))),0) -> -5.482 | W41: =IFERROR(IF($E$4,IF($H$5<=AB41,DeltaC($H$5,AB41,0,0,AH41,$D$5/365),AC41+1),IF(AB41>$H$5,_xll.RssFOPMarket("147029218","デルタ"),_xll.RssFOPMarket("137029218","デルタ")+1)),0) -> 0.3405 | X41: =IFERROR(IF($H$5<AB41,OFFSET(OpData!AC638,$E$4,,1,1),$H$5+OFFSET(OpData!AM638,$E$4,,1,1)-AB41),0) -> 0 | AB41: 29250 | AC41: =IFERROR(IF($E$4,IF($H$5>=AB41,DeltaP($H$5,AB41,0,0,AH41,$D$5/365),W41-1),IF(AB41>$H$5,_xll.RssFOPMarket("147029218","デルタ")-1,_xll.RssFOPMarket("137029218","デルタ"))),0) -> -0.6595 | AD41: =IFERROR(IF($H$5>AB41,OFFSET(OpData!AM638,$E$4,,1,1),OFFSET(OpData!AC638,$E$4,,1,1)+AB41-$H$5),0) -> 720 | AH41: =IFERROR(IF($E$4,IF($H$5<AB41,IVC(X41,$H$5,AB41,0,0,$D$5/365),IVP(AD41,$H$5,AB41,0,0,$D$5/365)),IF(AB41>$H$5,_xll.RssFOPMarket("147029218","IV"),_xll.RssFOPMarket("137029218","IV"))/100),0) -> 0.1768 | AJ41: =IFERROR(IF($E$4,Vega($H$5,AB41,0,0,AH41,$D$5/365),IF(AB41>$H$5,_xll.RssFOPMarket("147029218","ベガ"),_xll.RssFOPMarket("137029218","ベガ"))),0) -> 41.159 | AK41: =IFERROR(IF($E$4,GammaCP($H$5,AB41,0,0,AH41,$D$5/365),IF(AB41>$H$5,_xll.RssFOPMarket("147029218","ガンマ"),_xll.RssFOPMarket("137029218","ガンマ"))),0) -> 0.0002 | AL41: =IFERROR(IF($E$4,Theta($H$5,AB41,0,0,AH41,$D$5/365,365),IF(AB41>$H$5,_xll.RssFOPMarket("147029218","セータ"),_xll.RssFOPMarket("137029218","セータ"))),0) -> -5.899 | CA41: 0 | CB41: 0 | CC41: 0 | CD41: 0 | CE41: 0 | CF41: 0 | CG41: 0 | CH41: 0 | CI41: 0 | CJ41: 0 | CK41: 0 | CL41: 0 | CM41: 0 | CN41: 0 | CO41: 0 | CP41: 0 | CQ41: 0 | CR41: 0 | CS41: 0 | CT41: 0 | CU41: 0 | CV41: 0 | CW41: 0 | CX41: 0
C42: =IFERROR(IF($E$4,IF($H$4<=H42,DeltaC($H$4,H42,0,0,N42,$D$4/365),I42+1),IF(H42>$H$4,_xll.RssFOPMarket("147019618","デルタ"),_xll.RssFOPMarket("137019618","デルタ")+1)),0) -> 0.1929 | D42: =IFERROR(IF($H$4<H42,OFFSET(OpData!I658,$E$4,,1,1),$H$4+OFFSET(OpData!S658,$E$4,,1,1)-H42),0) -> 130 | G42: =IF(ABS($H$4-H42)<125,"ATM","") ->  | H42: 29625 | I42: =IFERROR(IF($E$4,IF($H$4>=H42,DeltaP($H$4,H42,0,0,N42,$D$4/365),C42-1),IF(H42>$H$4,_xll.RssFOPMarket("147019618","デルタ")-1,_xll.RssFOPMarket("137019618","デルタ"))),0) -> -0.8071 | J42: =IFERROR(IF($H$4>H42,OFFSET(OpData!S658,$E$4,,1,1),OFFSET(OpData!I658,$E$4,,1,1)+H42-$H$4),0) -> 1230 | N42: =IFERROR(IF($E$4,IF($H$4<H42,IVC(D42,$H$4,H42,0,0,$D$4/365),IVP(J42,$H$4,H42,0,0,$D$4/365)),IF(H42>$H$4,_xll.RssFOPMarket("147019618","IV"),_xll.RssFOPMarket("137019618","IV"))/100),0) -> 0.1574 | P42: =IFERROR(IF($E$4,Vega($H$4,H42,0,0,N42,$D$4/365),IF(H42>$H$4,_xll.RssFOPMarket("147019618","ベガ"),_xll.RssFOPMarket("137019618","ベガ"))),0) -> 21.64 | Q42: =IFERROR(IF($E$4,GammaCP($H$4,H42,0,0,N42,$D$4/365),IF(H42>$H$4,_xll.RssFOPMarket("147019618","ガンマ"),_xll.RssFOPMarket("137019618","ガンマ"))),0) -> 0.0002 | R42: =IFERROR(IF($E$4,Theta($H$4,H42,0,0,N42,$D$4/365,365),IF(H42>$H$4,_xll.RssFOPMarket("147019618","セータ"),_xll.RssFOPMarket("137019618","セータ"))),0) -> -5.768 | W42: =IFERROR(IF($E$4,IF($H$5<=AB42,DeltaC($H$5,AB42,0,0,AH42,$D$5/365),AC42+1),IF(AB42>$H$5,_xll.RssFOPMarket("147029118","デルタ"),_xll.RssFOPMarket("137029118","デルタ")+1)),0) -> 0.3955 | X42: =IFERROR(IF($H$5<AB42,OFFSET(OpData!AC658,$E$4,,1,1),$H$5+OFFSET(OpData!AM658,$E$4,,1,1)-AB42),0) -> 0 | AA42: =IF(ABS($H$5-AB42)<125,"ATM","") ->  | AB42: 29125 | AC42: =IFERROR(IF($E$4,IF($H$5>=AB42,DeltaP($H$5,AB42,0,0,AH42,$D$5/365),W42-1),IF(AB42>$H$5,_xll.RssFOPMarket("147029118","デルタ")-1,_xll.RssFOPMarket("137029118","デルタ"))),0) -> -0.6045 | AD42: =IFERROR(IF($H$5>AB42,OFFSET(OpData!AM658,$E$4,,1,1),OFFSET(OpData!AC658,$E$4,,1,1)+AB42-$H$5),0) -> 595 | AH42: =IFERROR(IF($E$4,IF($H$5<AB42,IVC(X42,$H$5,AB42,0,0,$D$5/365),IVP(AD42,$H$5,AB42,0,0,$D$5/365)),IF(AB42>$H$5,_xll.RssFOPMarket("147029118","IV"),_xll.RssFOPMarket("137029118","IV"))/100),0) -> 0.1793 | AJ42: =IFERROR(IF($E$4,Vega($H$5,AB42,0,0,AH42,$D$5/365),IF(AB42>$H$5,_xll.RssFOPMarket("147029118","ベガ"),_xll.RssFOPMarket("137029118","ベガ"))),0) -> 42.726 | AK42: =IFERROR(IF($E$4,GammaCP($H$5,AB42,0,0,AH42,$D$5/365),IF(AB42>$H$5,_xll.RssFOPMarket("147029118","ガンマ"),_xll.RssFOPMarket("137029118","ガンマ"))),0) -> 0.0002 | AL42: =IFERROR(IF($E$4,Theta($H$5,AB42,0,0,AH42,$D$5/365,365),IF(AB42>$H$5,_xll.RssFOPMarket("147029118","セータ"),_xll.RssFOPMarket("137029118","セータ"))),0) -> -6.306 | CA42: =IF(ISNUMBER($A42*B42),$A42*B42,) -> 0 | CB42: =IF(ISNUMBER($A42*D42),$A42*D42,) -> 0 | CC42: =IF(ISNUMBER($A42*C42),$A42*C42,) -> 0 | CD42: =IF(ISNUMBER($A42*P42),$A42*P42,) -> 0 | CE42: =IF(ISNUMBER($A42*Q42),$A42*Q42,) -> 0 | CF42: =IF(ISNUMBER($A42*R42),$A42*R42,) -> 0 | CG42: =IF(ISNUMBER($S42*T42),$S42*T42,) -> 0 | CH42: =IF(ISNUMBER($S42*J42),$S42*J42,) -> 0 | CI42: =IF(ISNUMBER($S42*I42),$S42*I42,) -> 0 | CJ42: =IF(ISNUMBER($S42*P42),$S42*P42,) -> 0 | CK42: =IF(ISNUMBER($S42*Q42),$S42*Q42,) -> 0 | CL42: =IF(ISNUMBER($S42*R42),$S42*R42,) -> 0 | CM42: =IF(ISNUMBER($U42*V42),$U42*V42,) -> 0 | CN42: =IF(ISNUMBER($U42*X42),$U42*X42,) -> 0 | CO42: =IF(ISNUMBER($U42*W42),$U42*W42,) -> 0 | CP42: =IF(ISNUMBER($U42*AJ42),$U42*AJ42,) -> 0 | CQ42: =IF(ISNUMBER($U42*AK42),$U42*AK42,) -> 0 | CR42: =IF(ISNUMBER($U42*AL42),$U42*AL42,) -> 0 | CS42: =IF(ISNUMBER($AM42*AN42),$AM42*AN42,) -> 0 | CT42: =IF(ISNUMBER($AM42*AD42),$AM42*AD42,) -> 0 | CU42: =IF(ISNUMBER($AM42*AC42),$AM42*AC42,) -> 0 | CV42: =IF(ISNUMBER($AM42*AJ42),$AM42*AJ42,) -> 0 | CW42: =IF(ISNUMBER($AM42*AK42),$AM42*AK42,) -> 0 | CX42: =IF(ISNUMBER($AM42*AL42),$AM42*AL42,) -> 0
C43: =IFERROR(IF($E$4,IF($H$4<=H43,DeltaC($H$4,H43,0,0,N43,$D$4/365),I43+1),IF(H43>$H$4,_xll.RssFOPMarket("147019518","デルタ"),_xll.RssFOPMarket("137019518","デルタ")+1)),0) -> 0.2307 | D43: =IFERROR(IF($H$4<H43,OFFSET(OpData!I678,$E$4,,1,1),$H$4+OFFSET(OpData!S678,$E$4,,1,1)-H43),0) -> 165 | H43: 29500 | I43: =IFERROR(IF($E$4,IF($H$4>=H43,DeltaP($H$4,H43,0,0,N43,$D$4/365),C43-1),IF(H43>$H$4,_xll.RssFOPMarket("147019518","デルタ")-1,_xll.RssFOPMarket("137019518","デルタ"))),0) -> -0.7693 | J43: =IFERROR(IF($H$4>H43,OFFSET(OpData!S678,$E$4,,1,1),OFFSET(OpData!I678,$E$4,,1,1)+H43-$H$4),0) -> 1140 | N43: =IFERROR(IF($E$4,IF($H$4<H43,IVC(D43,$H$4,H43,0,0,$D$4/365),IVP(J43,$H$4,H43,0,0,$D$4/365)),IF(H43>$H$4,_xll.RssFOPMarket("147019518","IV"),_xll.RssFOPMarket("137019518","IV"))/100),0) -> 0.1588 | P43: =IFERROR(IF($E$4,Vega($H$4,H43,0,0,N43,$D$4/365),IF(H43>$H$4,_xll.RssFOPMarket("147019518","ベガ"),_xll.RssFOPMarket("137019518","ベガ"))),0) -> 24.045 | Q43: =IFERROR(IF($E$4,GammaCP($H$4,H43,0,0,N43,$D$4/365),IF(H43>$H$4,_xll.RssFOPMarket("147019518","ガンマ"),_xll.RssFOPMarket("137019518","ガンマ"))),0) -> 0.0002 | R43: =IFERROR(IF($E$4,Theta($H$4,H43,0,0,N43,$D$4/365,365),IF(H43>$H$4,_xll.RssFOPMarket("147019518","セータ"),_xll.RssFOPMarket("137019518","セータ"))),0) -> -6.711 | W43: =IFERROR(IF($E$4,IF($H$5<=AB43,DeltaC($H$5,AB43,0,0,AH43,$D$5/365),AC43+1),IF(AB43>$H$5,_xll.RssFOPMarket("147029018","デルタ"),_xll.RssFOPMarket("137029018","デルタ")+1)),0) -> 0.4212 | X43: =IFERROR(IF($H$5<AB43,OFFSET(OpData!AC678,$E$4,,1,1),$H$5+OFFSET(OpData!AM678,$E$4,,1,1)-AB43),0) -> 570 | AB43: 29000 | AC43: =IFERROR(IF($E$4,IF($H$5>=AB43,DeltaP($H$5,AB43,0,0,AH43,$D$5/365),W43-1),IF(AB43>$H$5,_xll.RssFOPMarket("147029018","デルタ")-1,_xll.RssFOPMarket("137029018","デルタ"))),0) -> -0.5788 | AD43: =IFERROR(IF($H$5>AB43,OFFSET(OpData!AM678,$E$4,,1,1),OFFSET(OpData!AC678,$E$4,,1,1)+AB43-$H$5),0) -> 1040 | AH43: =IFERROR(IF($E$4,IF($H$5<AB43,IVC(X43,$H$5,AB43,0,0,$D$5/365),IVP(AD43,$H$5,AB43,0,0,$D$5/365)),IF(AB43>$H$5,_xll.RssFOPMarket("147029018","IV"),_xll.RssFOPMarket("137029018","IV"))/100),0) -> 0.174 | AJ43: =IFERROR(IF($E$4,Vega($H$5,AB43,0,0,AH43,$D$5/365),IF(AB43>$H$5,_xll.RssFOPMarket("147029018","ベガ"),_xll.RssFOPMarket("137029018","ベガ"))),0) -> 43.348 | AK43: =IFERROR(IF($E$4,GammaCP($H$5,AB43,0,0,AH43,$D$5/365),IF(AB43>$H$5,_xll.RssFOPMarket("147029018","ガンマ"),_xll.RssFOPMarket("137029018","ガンマ"))),0) -> 0.0002 | AL43: =IFERROR(IF($E$4,Theta($H$5,AB43,0,0,AH43,$D$5/365,365),IF(AB43>$H$5,_xll.RssFOPMarket("147029018","セータ"),_xll.RssFOPMarket("137029018","セータ"))),0) -> -6.873 | CA43: 0 | CB43: 0 | CC43: 0 | CD43: 0 | CE43: 0 | CF43: 0 | CG43: 0 | CH43: 0 | CI43: 0 | CJ43: 0 | CK43: 0 | CL43: 0 | CM43: 0 | CN43: 0 | CO43: 0 | CP43: 0 | CQ43: 0 | CR43: 0 | CS43: 0 | CT43: 0 | CU43: 0 | CV43: 0 | CW43: 0 | CX43: 0
C44: =IFERROR(IF($E$4,IF($H$4<=H44,DeltaC($H$4,H44,0,0,N44,$D$4/365),I44+1),IF(H44>$H$4,_xll.RssFOPMarket("147019318","デルタ"),_xll.RssFOPMarket("137019318","デルタ")+1)),0) -> 0.2643 | D44: =IFERROR(IF($H$4<H44,OFFSET(OpData!I698,$E$4,,1,1),$H$4+OFFSET(OpData!S698,$E$4,,1,1)-H44),0) -> 200 | H44: 29375 | I44: =IFERROR(IF($E$4,IF($H$4>=H44,DeltaP($H$4,H44,0,0,N44,$D$4/365),C44-1),IF(H44>$H$4,_xll.RssFOPMarket("147019318","デルタ")-1,_xll.RssFOPMarket("137019318","デルタ"))),0) -> -0.7357 | J44: =IFERROR(IF($H$4>H44,OFFSET(OpData!S698,$E$4,,1,1),OFFSET(OpData!I698,$E$4,,1,1)+H44-$H$4),0) -> 1050 | N44: =IFERROR(IF($E$4,IF($H$4<H44,IVC(D44,$H$4,H44,0,0,$D$4/365),IVP(J44,$H$4,H44,0,0,$D$4/365)),IF(H44>$H$4,_xll.RssFOPMarket("147019318","IV"),_xll.RssFOPMarket("137019318","IV"))/100),0) -> 0.1611 | P44: =IFERROR(IF($E$4,Vega($H$4,H44,0,0,N44,$D$4/365),IF(H44>$H$4,_xll.RssFOPMarket("147019318","ベガ"),_xll.RssFOPMarket("137019318","ベガ"))),0) -> 25.857 | Q44: =IFERROR(IF($E$4,GammaCP($H$4,H44,0,0,N44,$D$4/365),IF(H44>$H$4,_xll.RssFOPMarket("147019318","ガンマ"),_xll.RssFOPMarket("137019318","ガンマ"))),0) -> 0.0003 | R44: =IFERROR(IF($E$4,Theta($H$4,H44,0,0,N44,$D$4/365,365),IF(H44>$H$4,_xll.RssFOPMarket("147019318","セータ"),_xll.RssFOPMarket("137019318","セータ"))),0) -> -7.316 | W44: =IFERROR(IF($E$4,IF($H$5<=AB44,DeltaC($H$5,AB44,0,0,AH44,$D$5/365),AC44+1),IF(AB44>$H$5,_xll.RssFOPMarket("147028818","デルタ"),_xll.RssFOPMarket("137028818","デルタ")+1)),0) -> 0.4623 | X44: =IFERROR(IF($H$5<AB44,OFFSET(OpData!AC698,$E$4,,1,1),$H$5+OFFSET(OpData!AM698,$E$4,,1,1)-AB44),0) -> 0 | AB44: 28875 | AC44: =IFERROR(IF($E$4,IF($H$5>=AB44,DeltaP($H$5,AB44,0,0,AH44,$D$5/365),W44-1),IF(AB44>$H$5,_xll.RssFOPMarket("147028818","デルタ")-1,_xll.RssFOPMarket("137028818","デルタ"))),0) -> -0.5377 | AD44: =IFERROR(IF($H$5>AB44,OFFSET(OpData!AM698,$E$4,,1,1),OFFSET(OpData!AC698,$E$4,,1,1)+AB44-$H$5),0) -> 345 | AH44: =IFERROR(IF($E$4,IF($H$5<AB44,IVC(X44,$H$5,AB44,0,0,$D$5/365),IVP(AD44,$H$5,AB44,0,0,$D$5/365)),IF(AB44>$H$5,_xll.RssFOPMarket("147028818","IV"),_xll.RssFOPMarket("137028818","IV"))/100),0) -> 0.1845 | AJ44: =IFERROR(IF($E$4,Vega($H$5,AB44,0,0,AH44,$D$5/365),IF(AB44>$H$5,_xll.RssFOPMarket("147028818","ベガ"),_xll.RssFOPMarket("137028818","ベガ"))),0) -> 44.155 | AK44: =IFERROR(IF($E$4,GammaCP($H$5,AB44,0,0,AH44,$D$5/365),IF(AB44>$H$5,_xll.RssFOPMarket("147028818","ガンマ"),_xll.RssFOPMarket("137028818","ガンマ"))),0) -> 0.0002 | AL44: =IFERROR(IF($E$4,Theta($H$5,AB44,0,0,AH44,$D$5/365,365),IF(AB44>$H$5,_xll.RssFOPMarket("147028818","セータ"),_xll.RssFOPMarket("137028818","セータ"))),0) -> -6.312 | CA44: =IF(ISNUMBER($A44*B44),$A44*B44,) -> 0 | CB44: =IF(ISNUMBER($A44*D44),$A44*D44,) -> 0 | CC44: =IF(ISNUMBER($A44*C44),$A44*C44,) -> 0 | CD44: =IF(ISNUMBER($A44*P44),$A44*P44,) -> 0 | CE44: =IF(ISNUMBER($A44*Q44),$A44*Q44,) -> 0 | CF44: =IF(ISNUMBER($A44*R44),$A44*R44,) -> 0 | CG44: =IF(ISNUMBER($S44*T44),$S44*T44,) -> 0 | CH44: =IF(ISNUMBER($S44*J44),$S44*J44,) -> 0 | CI44: =IF(ISNUMBER($S44*I44),$S44*I44,) -> 0 | CJ44: =IF(ISNUMBER($S44*P44),$S44*P44,) -> 0 | CK44: =IF(ISNUMBER($S44*Q44),$S44*Q44,) -> 0 | CL44: =IF(ISNUMBER($S44*R44),$S44*R44,) -> 0 | CM44: =IF(ISNUMBER($U44*V44),$U44*V44,) -> 0 | CN44: =IF(ISNUMBER($U44*X44),$U44*X44,) -> 0 | CO44: =IF(ISNUMBER($U44*W44),$U44*W44,) -> 0 | CP44: =IF(ISNUMBER($U44*AJ44),$U44*AJ44,) -> 0 | CQ44: =IF(ISNUMBER($U44*AK44),$U44*AK44,) -> 0 | CR44: =IF(ISNUMBER($U44*AL44),$U44*AL44,) -> 0 | CS44: =IF(ISNUMBER($AM44*AN44),$AM44*AN44,) -> 0 | CT44: =IF(ISNUMBER($AM44*AD44),$AM44*AD44,) -> 0 | CU44: =IF(ISNUMBER($AM44*AC44),$AM44*AC44,) -> 0 | CV44: =IF(ISNUMBER($AM44*AJ44),$AM44*AJ44,) -> 0 | CW44: =IF(ISNUMBER($AM44*AK44),$AM44*AK44,) -> 0 | CX44: =IF(ISNUMBER($AM44*AL44),$AM44*AL44,) -> 0
C45: =IFERROR(IF($E$4,IF($H$4<=H45,DeltaC($H$4,H45,0,0,N45,$D$4/365),I45+1),IF(H45>$H$4,_xll.RssFOPMarket("147019218","デルタ"),_xll.RssFOPMarket("137019218","デルタ")+1)),0) -> 0.2973 | D45: =IFERROR(IF($H$4<H45,OFFSET(OpData!I718,$E$4,,1,1),$H$4+OFFSET(OpData!S718,$E$4,,1,1)-H45),0) -> 235 | H45: 29250 | I45: =IFERROR(IF($E$4,IF($H$4>=H45,DeltaP($H$4,H45,0,0,N45,$D$4/365),C45-1),IF(H45>$H$4,_xll.RssFOPMarket("147019218","デルタ")-1,_xll.RssFOPMarket("137019218","デルタ"))),0) -> -0.7027 | J45: =IFERROR(IF($H$4>H45,OFFSET(OpData!S718,$E$4,,1,1),OFFSET(OpData!I718,$E$4,,1,1)+H45-$H$4),0) -> 960 | N45: =IFERROR(IF($E$4,IF($H$4<H45,IVC(D45,$H$4,H45,0,0,$D$4/365),IVP(J45,$H$4,H45,0,0,$D$4/365)),IF(H45>$H$4,_xll.RssFOPMarket("147019218","IV"),_xll.RssFOPMarket("137019218","IV"))/100),0) -> 0.1618 | P45: =IFERROR(IF($E$4,Vega($H$4,H45,0,0,N45,$D$4/365),IF(H45>$H$4,_xll.RssFOPMarket("147019218","ベガ"),_xll.RssFOPMarket("137019218","ベガ"))),0) -> 27.371 | Q45: =IFERROR(IF($E$4,GammaCP($H$4,H45,0,0,N45,$D$4/365),IF(H45>$H$4,_xll.RssFOPMarket("147019218","ガンマ"),_xll.RssFOPMarket("137019218","ガンマ"))),0) -> 0.0003 | R45: =IFERROR(IF($E$4,Theta($H$4,H45,0,0,N45,$D$4/365,365),IF(H45>$H$4,_xll.RssFOPMarket("147019218","セータ"),_xll.RssFOPMarket("137019218","セータ"))),0) -> -7.768 | W45: =IFERROR(IF($E$4,IF($H$5<=AB45,DeltaC($H$5,AB45,0,0,AH45,$D$5/365),AC45+1),IF(AB45>$H$5,_xll.RssFOPMarket("147028718","デルタ"),_xll.RssFOPMarket("137028718","デルタ")+1)),0) -> 0.4392 | X45: =IFERROR(IF($H$5<AB45,OFFSET(OpData!AC718,$E$4,,1,1),$H$5+OFFSET(OpData!AM718,$E$4,,1,1)-AB45),0) -> 0 | AB45: 28750 | AC45: =IFERROR(IF($E$4,IF($H$5>=AB45,DeltaP($H$5,AB45,0,0,AH45,$D$5/365),W45-1),IF(AB45>$H$5,_xll.RssFOPMarket("147028718","デルタ")-1,_xll.RssFOPMarket("137028718","デルタ"))),0) -> -0.5608 | AD45: =IFERROR(IF($H$5>AB45,OFFSET(OpData!AM718,$E$4,,1,1),OFFSET(OpData!AC718,$E$4,,1,1)+AB45-$H$5),0) -> 220 | AH45: =IFERROR(IF($E$4,IF($H$5<AB45,IVC(X45,$H$5,AB45,0,0,$D$5/365),IVP(AD45,$H$5,AB45,0,0,$D$5/365)),IF(AB45>$H$5,_xll.RssFOPMarket("147028718","IV"),_xll.RssFOPMarket("137028718","IV"))/100),0) -> 0.1871 | AJ45: =IFERROR(IF($E$4,Vega($H$5,AB45,0,0,AH45,$D$5/365),IF(AB45>$H$5,_xll.RssFOPMarket("147028718","ベガ"),_xll.RssFOPMarket("137028718","ベガ"))),0) -> 44.607 | AK45: =IFERROR(IF($E$4,GammaCP($H$5,AB45,0,0,AH45,$D$5/365),IF(AB45>$H$5,_xll.RssFOPMarket("147028718","ガンマ"),_xll.RssFOPMarket("137028718","ガンマ"))),0) -> 0.0002 | AL45: =IFERROR(IF($E$4,Theta($H$5,AB45,0,0,AH45,$D$5/365,365),IF(AB45>$H$5,_xll.RssFOPMarket("147028718","セータ"),_xll.RssFOPMarket("137028718","セータ"))),0) -> -6.46 | CA45: 0 | CB45: 0 | CC45: 0 | CD45: 0 | CE45: 0 | CF45: 0 | CG45: 0 | CH45: 0 | CI45: 0 | CJ45: 0 | CK45: 0 | CL45: 0 | CM45: 0 | CN45: 0 | CO45: 0 | CP45: 0 | CQ45: 0 | CR45: 0 | CS45: 0 | CT45: 0 | CU45: 0 | CV45: 0 | CW45: 0 | CX45: 0
C46: =IFERROR(IF($E$4,IF($H$4<=H46,DeltaC($H$4,H46,0,0,N46,$D$4/365),I46+1),IF(H46>$H$4,_xll.RssFOPMarket("147019118","デルタ"),_xll.RssFOPMarket("137019118","デルタ")+1)),0) -> 0.3375 | D46: =IFERROR(IF($H$4<H46,OFFSET(OpData!I738,$E$4,,1,1),$H$4+OFFSET(OpData!S738,$E$4,,1,1)-H46),0) -> 285 | H46: 29125 | I46: =IFERROR(IF($E$4,IF($H$4>=H46,DeltaP($H$4,H46,0,0,N46,$D$4/365),C46-1),IF(H46>$H$4,_xll.RssFOPMarket("147019118","デルタ")-1,_xll.RssFOPMarket("137019118","デルタ"))),0) -> -0.6625 | J46: =IFERROR(IF($H$4>H46,OFFSET(OpData!S738,$E$4,,1,1),OFFSET(OpData!I738,$E$4,,1,1)+H46-$H$4),0) -> 885 | N46: =IFERROR(IF($E$4,IF($H$4<H46,IVC(D46,$H$4,H46,0,0,$D$4/365),IVP(J46,$H$4,H46,0,0,$D$4/365)),IF(H46>$H$4,_xll.RssFOPMarket("147019118","IV"),_xll.RssFOPMarket("137019118","IV"))/100),0) -> 0.165 | P46: =IFERROR(IF($E$4,Vega($H$4,H46,0,0,N46,$D$4/365),IF(H46>$H$4,_xll.RssFOPMarket("147019118","ベガ"),_xll.RssFOPMarket("137019118","ベガ"))),0) -> 28.888 | Q46: =IFERROR(IF($E$4,GammaCP($H$4,H46,0,0,N46,$D$4/365),IF(H46>$H$4,_xll.RssFOPMarket("147019118","ガンマ"),_xll.RssFOPMarket("137019118","ガンマ"))),0) -> 0.0003 | R46: =IFERROR(IF($E$4,Theta($H$4,H46,0,0,N46,$D$4/365,365),IF(H46>$H$4,_xll.RssFOPMarket("147019118","セータ"),_xll.RssFOPMarket("137019118","セータ"))),0) -> -8.476 | W46: =IFERROR(IF($E$4,IF($H$5<=AB46,DeltaC($H$5,AB46,0,0,AH46,$D$5/365),AC46+1),IF(AB46>$H$5,_xll.RssFOPMarket("147028618","デルタ"),_xll.RssFOPMarket("137028618","デルタ")+1)),0) -> 0.4754 | X46: =IFERROR(IF($H$5<AB46,OFFSET(OpData!AC738,$E$4,,1,1),$H$5+OFFSET(OpData!AM738,$E$4,,1,1)-AB46),0) -> 0 | AA46: ATM | AB46: 28625 | AC46: =IFERROR(IF($E$4,IF($H$5>=AB46,DeltaP($H$5,AB46,0,0,AH46,$D$5/365),W46-1),IF(AB46>$H$5,_xll.RssFOPMarket("147028618","デルタ")-1,_xll.RssFOPMarket("137028618","デルタ"))),0) -> -0.5246 | AD46: =IFERROR(IF($H$5>AB46,OFFSET(OpData!AM738,$E$4,,1,1),OFFSET(OpData!AC738,$E$4,,1,1)+AB46-$H$5),0) -> 95 | AH46: =IFERROR(IF($E$4,IF($H$5<AB46,IVC(X46,$H$5,AB46,0,0,$D$5/365),IVP(AD46,$H$5,AB46,0,0,$D$5/365)),IF(AB46>$H$5,_xll.RssFOPMarket("147028618","IV"),_xll.RssFOPMarket("137028618","IV"))/100),0) -> 0.1879 | AJ46: =IFERROR(IF($E$4,Vega($H$5,AB46,0,0,AH46,$D$5/365),IF(AB46>$H$5,_xll.RssFOPMarket("147028618","ベガ"),_xll.RssFOPMarket("137028618","ベガ"))),0) -> 45.136 | AK46: =IFERROR(IF($E$4,GammaCP($H$5,AB46,0,0,AH46,$D$5/365),IF(AB46>$H$5,_xll.RssFOPMarket("147028618","ガンマ"),_xll.RssFOPMarket("137028618","ガンマ"))),0) -> 0.0002 | AL46: =IFERROR(IF($E$4,Theta($H$5,AB46,0,0,AH46,$D$5/365,365),IF(AB46>$H$5,_xll.RssFOPMarket("147028618","セータ"),_xll.RssFOPMarket("137028618","セータ"))),0) -> -6.491 | CA46: 0 | CB46: 0 | CC46: 0 | CD46: 0 | CE46: 0 | CF46: 0 | CG46: 0 | CH46: 0 | CI46: 0 | CJ46: 0 | CK46: 0 | CL46: 0 | CM46: 0 | CN46: 0 | CO46: 0 | CP46: 0 | CQ46: 0 | CR46: 0 | CS46: 0 | CT46: 0 | CU46: 0 | CV46: 0 | CW46: 0 | CX46: 0
C47: =IFERROR(IF($E$4,IF($H$4<=H47,DeltaC($H$4,H47,0,0,N47,$D$4/365),I47+1),IF(H47>$H$4,_xll.RssFOPMarket("147019018","デルタ"),_xll.RssFOPMarket("137019018","デルタ")+1)),0) -> 0.3714 | D47: =IFERROR(IF($H$4<H47,OFFSET(OpData!I758,$E$4,,1,1),$H$4+OFFSET(OpData!S758,$E$4,,1,1)-H47),0) -> 330 | H47: 29000 | I47: =IFERROR(IF($E$4,IF($H$4>=H47,DeltaP($H$4,H47,0,0,N47,$D$4/365),C47-1),IF(H47>$H$4,_xll.RssFOPMarket("147019018","デルタ")-1,_xll.RssFOPMarket("137019018","デルタ"))),0) -> -0.6286 | J47: =IFERROR(IF($H$4>H47,OFFSET(OpData!S758,$E$4,,1,1),OFFSET(OpData!I758,$E$4,,1,1)+H47-$H$4),0) -> 805 | N47: =IFERROR(IF($E$4,IF($H$4<H47,IVC(D47,$H$4,H47,0,0,$D$4/365),IVP(J47,$H$4,H47,0,0,$D$4/365)),IF(H47>$H$4,_xll.RssFOPMarket("147019018","IV"),_xll.RssFOPMarket("137019018","IV"))/100),0) -> 0.1672 | P47: =IFERROR(IF($E$4,Vega($H$4,H47,0,0,N47,$D$4/365),IF(H47>$H$4,_xll.RssFOPMarket("147019018","ベガ"),_xll.RssFOPMarket("137019018","ベガ"))),0) -> 29.88 | Q47: =IFERROR(IF($E$4,GammaCP($H$4,H47,0,0,N47,$D$4/365),IF(H47>$H$4,_xll.RssFOPMarket("147019018","ガンマ"),_xll.RssFOPMarket("137019018","ガンマ"))),0) -> 0.0003 | R47: =IFERROR(IF($E$4,Theta($H$4,H47,0,0,N47,$D$4/365,365),IF(H47>$H$4,_xll.RssFOPMarket("147019018","セータ"),_xll.RssFOPMarket("137019018","セータ"))),0) -> -8.747 | W47: =IFERROR(IF($E$4,IF($H$5<=AB47,DeltaC($H$5,AB47,0,0,AH47,$D$5/365),AC47+1),IF(AB47>$H$5,_xll.RssFOPMarket("147028518","デルタ"),_xll.RssFOPMarket("137028518","デルタ")+1)),0) -> 0.5541 | X47: =IFERROR(IF($H$5<AB47,OFFSET(OpData!AC758,$E$4,,1,1),$H$5+OFFSET(OpData!AM758,$E$4,,1,1)-AB47),0) -> 30 | AA47: ATM | AB47: 28500 | AC47: =IFERROR(IF($E$4,IF($H$5>=AB47,DeltaP($H$5,AB47,0,0,AH47,$D$5/365),W47-1),IF(AB47>$H$5,_xll.RssFOPMarket("147028518","デルタ")-1,_xll.RssFOPMarket("137028518","デルタ"))),0) -> -0.4459 | AD47: =IFERROR(IF($H$5>AB47,OFFSET(OpData!AM758,$E$4,,1,1),OFFSET(OpData!AC758,$E$4,,1,1)+AB47-$H$5),0) -> 0 | AH47: =IFERROR(IF($E$4,IF($H$5<AB47,IVC(X47,$H$5,AB47,0,0,$D$5/365),IVP(AD47,$H$5,AB47,0,0,$D$5/365)),IF(AB47>$H$5,_xll.RssFOPMarket("147028518","IV"),_xll.RssFOPMarket("137028518","IV"))/100),0) -> 0.1779 | AJ47: =IFERROR(IF($E$4,Vega($H$5,AB47,0,0,AH47,$D$5/365),IF(AB47>$H$5,_xll.RssFOPMarket("147028518","ベガ"),_xll.RssFOPMarket("137028518","ベガ"))),0) -> 44.06 | AK47: =IFERROR(IF($E$4,GammaCP($H$5,AB47,0,0,AH47,$D$5/365),IF(AB47>$H$5,_xll.RssFOPMarket("147028518","ガンマ"),_xll.RssFOPMarket("137028518","ガンマ"))),0) -> 0.0002 | AL47: =IFERROR(IF($E$4,Theta($H$5,AB47,0,0,AH47,$D$5/365,365),IF(AB47>$H$5,_xll.RssFOPMarket("147028518","セータ"),_xll.RssFOPMarket("137028518","セータ"))),0) -> -7.754 | CA47: 0 | CB47: 0 | CC47: 0 | CD47: 0 | CE47: 0 | CF47: 0 | CG47: 0 | CH47: 0 | CI47: 0 | CJ47: 0 | CK47: 0 | CL47: 0 | CM47: 0 | CN47: 0 | CO47: 0 | CP47: 0 | CQ47: 0 | CR47: 0 | CS47: 0 | CT47: 0 | CU47: 0 | CV47: 0 | CW47: 0 | CX47: 0
C48: =IFERROR(IF($E$4,IF($H$4<=H48,DeltaC($H$4,H48,0,0,N48,$D$4/365),I48+1),IF(H48>$H$4,_xll.RssFOPMarket("147018818","デルタ"),_xll.RssFOPMarket("137018818","デルタ")+1)),0) -> 0.4068 | D48: =IFERROR(IF($H$4<H48,OFFSET(OpData!I778,$E$4,,1,1),$H$4+OFFSET(OpData!S778,$E$4,,1,1)-H48),0) -> 390 | H48: 28875 | I48: =IFERROR(IF($E$4,IF($H$4>=H48,DeltaP($H$4,H48,0,0,N48,$D$4/365),C48-1),IF(H48>$H$4,_xll.RssFOPMarket("147018818","デルタ")-1,_xll.RssFOPMarket("137018818","デルタ"))),0) -> -0.5932 | J48: =IFERROR(IF($H$4>H48,OFFSET(OpData!S778,$E$4,,1,1),OFFSET(OpData!I778,$E$4,,1,1)+H48-$H$4),0) -> 740 | N48: =IFERROR(IF($E$4,IF($H$4<H48,IVC(D48,$H$4,H48,0,0,$D$4/365),IVP(J48,$H$4,H48,0,0,$D$4/365)),IF(H48>$H$4,_xll.RssFOPMarket("147018818","IV"),_xll.RssFOPMarket("137018818","IV"))/100),0) -> 0.1713 | P48: =IFERROR(IF($E$4,Vega($H$4,H48,0,0,N48,$D$4/365),IF(H48>$H$4,_xll.RssFOPMarket("147018818","ベガ"),_xll.RssFOPMarket("137018818","ベガ"))),0) -> 30.659 | Q48: =IFERROR(IF($E$4,GammaCP($H$4,H48,0,0,N48,$D$4/365),IF(H48>$H$4,_xll.RssFOPMarket("147018818","ガンマ"),_xll.RssFOPMarket("137018818","ガンマ"))),0) -> 0.0003 | R48: =IFERROR(IF($E$4,Theta($H$4,H48,0,0,N48,$D$4/365,365),IF(H48>$H$4,_xll.RssFOPMarket("147018818","セータ"),_xll.RssFOPMarket("137018818","セータ"))),0) -> -9.043 | W48: =IFERROR(IF($E$4,IF($H$5<=AB48,DeltaC($H$5,AB48,0,0,AH48,$D$5/365),AC48+1),IF(AB48>$H$5,_xll.RssFOPMarket("147028318","デルタ"),_xll.RssFOPMarket("137028318","デルタ")+1)),0) -> 0.5209 | X48: =IFERROR(IF($H$5<AB48,OFFSET(OpData!AC778,$E$4,,1,1),$H$5+OFFSET(OpData!AM778,$E$4,,1,1)-AB48),0) -> 155 | AB48: 28375 | AC48: =IFERROR(IF($E$4,IF($H$5>=AB48,DeltaP($H$5,AB48,0,0,AH48,$D$5/365),W48-1),IF(AB48>$H$5,_xll.RssFOPMarket("147028318","デルタ")-1,_xll.RssFOPMarket("137028318","デルタ"))),0) -> -0.4791 | AD48: =IFERROR(IF($H$5>AB48,OFFSET(OpData!AM778,$E$4,,1,1),OFFSET(OpData!AC778,$E$4,,1,1)+AB48-$H$5),0) -> 0 | AH48: =IFERROR(IF($E$4,IF($H$5<AB48,IVC(X48,$H$5,AB48,0,0,$D$5/365),IVP(AD48,$H$5,AB48,0,0,$D$5/365)),IF(AB48>$H$5,_xll.RssFOPMarket("147028318","IV"),_xll.RssFOPMarket("137028318","IV"))/100),0) -> 0.1808 | AJ48: =IFERROR(IF($E$4,Vega($H$5,AB48,0,0,AH48,$D$5/365),IF(AB48>$H$5,_xll.RssFOPMarket("147028318","ベガ"),_xll.RssFOPMarket("137028318","ベガ"))),0) -> 44.732 | AK48: =IFERROR(IF($E$4,GammaCP($H$5,AB48,0,0,AH48,$D$5/365),IF(AB48>$H$5,_xll.RssFOPMarket("147028318","ガンマ"),_xll.RssFOPMarket("137028318","ガンマ"))),0) -> 0.0002 | AL48: =IFERROR(IF($E$4,Theta($H$5,AB48,0,0,AH48,$D$5/365,365),IF(AB48>$H$5,_xll.RssFOPMarket("147028318","セータ"),_xll.RssFOPMarket("137028318","セータ"))),0) -> -7.82 | CA48: 0 | CB48: 0 | CC48: 0 | CD48: 0 | CE48: 0 | CF48: 0 | CG48: 0 | CH48: 0 | CI48: 0 | CJ48: 0 | CK48: 0 | CL48: 0 | CM48: 0 | CN48: 0 | CO48: 0 | CP48: 0 | CQ48: 0 | CR48: 0 | CS48: 0 | CT48: 0 | CU48: 0 | CV48: 0 | CW48: 0 | CX48: 0
C49: =IFERROR(IF($E$4,IF($H$4<=H49,DeltaC($H$4,H49,0,0,N49,$D$4/365),I49+1),IF(H49>$H$4,_xll.RssFOPMarket("147018718","デルタ"),_xll.RssFOPMarket("137018718","デルタ")+1)),0) -> 0.4339 | D49: =IFERROR(IF($H$4<H49,OFFSET(OpData!I798,$E$4,,1,1),$H$4+OFFSET(OpData!S798,$E$4,,1,1)-H49),0) -> 430 | H49: 28750 | I49: =IFERROR(IF($E$4,IF($H$4>=H49,DeltaP($H$4,H49,0,0,N49,$D$4/365),C49-1),IF(H49>$H$4,_xll.RssFOPMarket("147018718","デルタ")-1,_xll.RssFOPMarket("137018718","デルタ"))),0) -> -0.5661 | J49: =IFERROR(IF($H$4>H49,OFFSET(OpData!S798,$E$4,,1,1),OFFSET(OpData!I798,$E$4,,1,1)+H49-$H$4),0) -> 655 | N49: =IFERROR(IF($E$4,IF($H$4<H49,IVC(D49,$H$4,H49,0,0,$D$4/365),IVP(J49,$H$4,H49,0,0,$D$4/365)),IF(H49>$H$4,_xll.RssFOPMarket("147018718","IV"),_xll.RssFOPMarket("137018718","IV"))/100),0) -> 0.174 | P49: =IFERROR(IF($E$4,Vega($H$4,H49,0,0,N49,$D$4/365),IF(H49>$H$4,_xll.RssFOPMarket("147018718","ベガ"),_xll.RssFOPMarket("137018718","ベガ"))),0) -> 31.06 | Q49: =IFERROR(IF($E$4,GammaCP($H$4,H49,0,0,N49,$D$4/365),IF(H49>$H$4,_xll.RssFOPMarket("147018718","ガンマ"),_xll.RssFOPMarket("137018718","ガンマ"))),0) -> 0.0003 | R49: =IFERROR(IF($E$4,Theta($H$4,H49,0,0,N49,$D$4/365,365),IF(H49>$H$4,_xll.RssFOPMarket("147018718","セータ"),_xll.RssFOPMarket("137018718","セータ"))),0) -> -8.789 | W49: =IFERROR(IF($E$4,IF($H$5<=AB49,DeltaC($H$5,AB49,0,0,AH49,$D$5/365),AC49+1),IF(AB49>$H$5,_xll.RssFOPMarket("147028218","デルタ"),_xll.RssFOPMarket("137028218","デルタ")+1)),0) -> 0.6417 | X49: =IFERROR(IF($H$5<AB49,OFFSET(OpData!AC798,$E$4,,1,1),$H$5+OFFSET(OpData!AM798,$E$4,,1,1)-AB49),0) -> 280 | AB49: 28250 | AC49: =IFERROR(IF($E$4,IF($H$5>=AB49,DeltaP($H$5,AB49,0,0,AH49,$D$5/365),W49-1),IF(AB49>$H$5,_xll.RssFOPMarket("147028218","デルタ")-1,_xll.RssFOPMarket("137028218","デルタ"))),0) -> -0.3583 | AD49: =IFERROR(IF($H$5>AB49,OFFSET(OpData!AM798,$E$4,,1,1),OFFSET(OpData!AC798,$E$4,,1,1)+AB49-$H$5),0) -> 0 | AH49: =IFERROR(IF($E$4,IF($H$5<AB49,IVC(X49,$H$5,AB49,0,0,$D$5/365),IVP(AD49,$H$5,AB49,0,0,$D$5/365)),IF(AB49>$H$5,_xll.RssFOPMarket("147028218","IV"),_xll.RssFOPMarket("137028218","IV"))/100),0) -> 0.184 | AJ49: =IFERROR(IF($E$4,Vega($H$5,AB49,0,0,AH49,$D$5/365),IF(AB49>$H$5,_xll.RssFOPMarket("147028218","ベガ"),_xll.RssFOPMarket("137028218","ベガ"))),0) -> 42.01 | AK49: =IFERROR(IF($E$4,GammaCP($H$5,AB49,0,0,AH49,$D$5/365),IF(AB49>$H$5,_xll.RssFOPMarket("147028218","ガンマ"),_xll.RssFOPMarket("137028218","ガンマ"))),0) -> 0.0002 | AL49: =IFERROR(IF($E$4,Theta($H$5,AB49,0,0,AH49,$D$5/365,365),IF(AB49>$H$5,_xll.RssFOPMarket("147028218","セータ"),_xll.RssFOPMarket("137028218","セータ"))),0) -> -8.132 | CA49: 0 | CB49: 0 | CC49: 0 | CD49: 0 | CE49: 0 | CF49: 0 | CG49: 0 | CH49: 0 | CI49: 0 | CJ49: 0 | CK49: 0 | CL49: 0 | CM49: 0 | CN49: 0 | CO49: 0 | CP49: 0 | CQ49: 0 | CR49: 0 | CS49: 0 | CT49: 0 | CU49: 0 | CV49: 0 | CW49: 0 | CX49: 0
C50: =IFERROR(IF($E$4,IF($H$4<=H50,DeltaC($H$4,H50,0,0,N50,$D$4/365),I50+1),IF(H50>$H$4,_xll.RssFOPMarket("147018618","デルタ"),_xll.RssFOPMarket("137018618","デルタ")+1)),0) -> 0.4949 | D50: =IFERROR(IF($H$4<H50,OFFSET(OpData!I818,$E$4,,1,1),$H$4+OFFSET(OpData!S818,$E$4,,1,1)-H50),0) -> 520 | G50: ATM | H50: 28625 | I50: =IFERROR(IF($E$4,IF($H$4>=H50,DeltaP($H$4,H50,0,0,N50,$D$4/365),C50-1),IF(H50>$H$4,_xll.RssFOPMarket("147018618","デルタ")-1,_xll.RssFOPMarket("137018618","デルタ"))),0) -> -0.5051 | J50: =IFERROR(IF($H$4>H50,OFFSET(OpData!S818,$E$4,,1,1),OFFSET(OpData!I818,$E$4,,1,1)+H50-$H$4),0) -> 620 | N50: =IFERROR(IF($E$4,IF($H$4<H50,IVC(D50,$H$4,H50,0,0,$D$4/365),IVP(J50,$H$4,H50,0,0,$D$4/365)),IF(H50>$H$4,_xll.RssFOPMarket("147018618","IV"),_xll.RssFOPMarket("137018618","IV"))/100),0) -> 0.1727 | P50: =IFERROR(IF($E$4,Vega($H$4,H50,0,0,N50,$D$4/365),IF(H50>$H$4,_xll.RssFOPMarket("147018618","ベガ"),_xll.RssFOPMarket("137018618","ベガ"))),0) -> 31.571 | Q50: =IFERROR(IF($E$4,GammaCP($H$4,H50,0,0,N50,$D$4/365),IF(H50>$H$4,_xll.RssFOPMarket("147018618","ガンマ"),_xll.RssFOPMarket("137018618","ガンマ"))),0) -> 0.0003 | R50: =IFERROR(IF($E$4,Theta($H$4,H50,0,0,N50,$D$4/365,365),IF(H50>$H$4,_xll.RssFOPMarket("147018618","セータ"),_xll.RssFOPMarket("137018618","セータ"))),0) -> -10.218 | W50: =IFERROR(IF($E$4,IF($H$5<=AB50,DeltaC($H$5,AB50,0,0,AH50,$D$5/365),AC50+1),IF(AB50>$H$5,_xll.RssFOPMarket("147028118","デルタ"),_xll.RssFOPMarket("137028118","デルタ")+1)),0) -> 0.6417 | X50: =IFERROR(IF($H$5<AB50,OFFSET(OpData!AC818,$E$4,,1,1),$H$5+OFFSET(OpData!AM818,$E$4,,1,1)-AB50),0) -> 405 | AB50: 28125 | AC50: =IFERROR(IF($E$4,IF($H$5>=AB50,DeltaP($H$5,AB50,0,0,AH50,$D$5/365),W50-1),IF(AB50>$H$5,_xll.RssFOPMarket("147028118","デルタ")-1,_xll.RssFOPMarket("137028118","デルタ"))),0) -> -0.3583 | AD50: =IFERROR(IF($H$5>AB50,OFFSET(OpData!AM818,$E$4,,1,1),OFFSET(OpData!AC818,$E$4,,1,1)+AB50-$H$5),0) -> 0 | AH50: =IFERROR(IF($E$4,IF($H$5<AB50,IVC(X50,$H$5,AB50,0,0,$D$5/365),IVP(AD50,$H$5,AB50,0,0,$D$5/365)),IF(AB50>$H$5,_xll.RssFOPMarket("147028118","IV"),_xll.RssFOPMarket("137028118","IV"))/100),0) -> 0.1878 | AJ50: =IFERROR(IF($E$4,Vega($H$5,AB50,0,0,AH50,$D$5/365),IF(AB50>$H$5,_xll.RssFOPMarket("147028118","ベガ"),_xll.RssFOPMarket("137028118","ベガ"))),0) -> 41.792 | AK50: =IFERROR(IF($E$4,GammaCP($H$5,AB50,0,0,AH50,$D$5/365),IF(AB50>$H$5,_xll.RssFOPMarket("147028118","ガンマ"),_xll.RssFOPMarket("137028118","ガンマ"))),0) -> 0.0002 | AL50: =IFERROR(IF($E$4,Theta($H$5,AB50,0,0,AH50,$D$5/365,365),IF(AB50>$H$5,_xll.RssFOPMarket("147028118","セータ"),_xll.RssFOPMarket("137028118","セータ"))),0) -> -7.499 | CA50: 0 | CB50: 0 | CC50: 0 | CD50: 0 | CE50: 0 | CF50: 0 | CG50: 0 | CH50: 0 | CI50: 0 | CJ50: 0 | CK50: 0 | CL50: 0 | CM50: 0 | CN50: 0 | CO50: 0 | CP50: 0 | CQ50: 0 | CR50: 0 | CS50: 0 | CT50: 0 | CU50: 0 | CV50: 0 | CW50: 0 | CX50: 0
C51: =IFERROR(IF($E$4,IF($H$4<=H51,DeltaC($H$4,H51,0,0,N51,$D$4/365),I51+1),IF(H51>$H$4,_xll.RssFOPMarket("147018518","デルタ"),_xll.RssFOPMarket("137018518","デルタ")+1)),0) -> 0.5206 | D51: =IFERROR(IF($H$4<H51,OFFSET(OpData!I838,$E$4,,1,1),$H$4+OFFSET(OpData!S838,$E$4,,1,1)-H51),0) -> 580 | G51: ATM | H51: 28500 | I51: =IFERROR(IF($E$4,IF($H$4>=H51,DeltaP($H$4,H51,0,0,N51,$D$4/365),C51-1),IF(H51>$H$4,_xll.RssFOPMarket("147018518","デルタ")-1,_xll.RssFOPMarket("137018518","デルタ"))),0) -> -0.4794 | J51: =IFERROR(IF($H$4>H51,OFFSET(OpData!S838,$E$4,,1,1),OFFSET(OpData!I838,$E$4,,1,1)+H51-$H$4),0) -> 555 | N51: =IFERROR(IF($E$4,IF($H$4<H51,IVC(D51,$H$4,H51,0,0,$D$4/365),IVP(J51,$H$4,H51,0,0,$D$4/365)),IF(H51>$H$4,_xll.RssFOPMarket("147018518","IV"),_xll.RssFOPMarket("137018518","IV"))/100),0) -> 0.182 | P51: =IFERROR(IF($E$4,Vega($H$4,H51,0,0,N51,$D$4/365),IF(H51>$H$4,_xll.RssFOPMarket("147018518","ベガ"),_xll.RssFOPMarket("137018518","ベガ"))),0) -> 31.493 | Q51: =IFERROR(IF($E$4,GammaCP($H$4,H51,0,0,N51,$D$4/365),IF(H51>$H$4,_xll.RssFOPMarket("147018518","ガンマ"),_xll.RssFOPMarket("137018518","ガンマ"))),0) -> 0.0003 | R51: =IFERROR(IF($E$4,Theta($H$4,H51,0,0,N51,$D$4/365,365),IF(H51>$H$4,_xll.RssFOPMarket("147018518","セータ"),_xll.RssFOPMarket("137018518","セータ"))),0) -> -10.377 | W51: =IFERROR(IF($E$4,IF($H$5<=AB51,DeltaC($H$5,AB51,0,0,AH51,$D$5/365),AC51+1),IF(AB51>$H$5,_xll.RssFOPMarket("147028018","デルタ"),_xll.RssFOPMarket("137028018","デルタ")+1)),0) -> 0.7153 | X51: =IFERROR(IF($H$5<AB51,OFFSET(OpData!AC838,$E$4,,1,1),$H$5+OFFSET(OpData!AM838,$E$4,,1,1)-AB51),0) -> 530 | AB51: 28000 | AC51: =IFERROR(IF($E$4,IF($H$5>=AB51,DeltaP($H$5,AB51,0,0,AH51,$D$5/365),W51-1),IF(AB51>$H$5,_xll.RssFOPMarket("147028018","デルタ")-1,_xll.RssFOPMarket("137028018","デルタ"))),0) -> -0.2847 | AD51: =IFERROR(IF($H$5>AB51,OFFSET(OpData!AM838,$E$4,,1,1),OFFSET(OpData!AC838,$E$4,,1,1)+AB51-$H$5),0) -> 0 | AH51: =IFERROR(IF($E$4,IF($H$5<AB51,IVC(X51,$H$5,AB51,0,0,$D$5/365),IVP(AD51,$H$5,AB51,0,0,$D$5/365)),IF(AB51>$H$5,_xll.RssFOPMarket("147028018","IV"),_xll.RssFOPMarket("137028018","IV"))/100),0) -> 0.191 | AJ51: =IFERROR(IF($E$4,Vega($H$5,AB51,0,0,AH51,$D$5/365),IF(AB51>$H$5,_xll.RssFOPMarket("147028018","ベガ"),_xll.RssFOPMarket("137028018","ベガ"))),0) -> 38.697 | AK51: =IFERROR(IF($E$4,GammaCP($H$5,AB51,0,0,AH51,$D$5/365),IF(AB51>$H$5,_xll.RssFOPMarket("147028018","ガンマ"),_xll.RssFOPMarket("137028018","ガンマ"))),0) -> 0.0002 | AL51: =IFERROR(IF($E$4,Theta($H$5,AB51,0,0,AH51,$D$5/365,365),IF(AB51>$H$5,_xll.RssFOPMarket("147028018","セータ"),_xll.RssFOPMarket("137028018","セータ"))),0) -> -6.23 | CA51: 0 | CB51: 0 | CC51: 0 | CD51: 0 | CE51: 0 | CF51: 0 | CG51: 0 | CH51: 0 | CI51: 0 | CJ51: 0 | CK51: 0 | CL51: 0 | CM51: 0 | CN51: 0 | CO51: 0 | CP51: 0 | CQ51: 0 | CR51: 0 | CS51: 0 | CT51: 0 | CU51: 0 | CV51: 0 | CW51: 0 | CX51: 0
C52: =IFERROR(IF($E$4,IF($H$4<=H52,DeltaC($H$4,H52,0,0,N52,$D$4/365),I52+1),IF(H52>$H$4,_xll.RssFOPMarket("147018318","デルタ"),_xll.RssFOPMarket("137018318","デルタ")+1)),0) -> 0.5796 | D52: =IFERROR(IF($H$4<H52,OFFSET(OpData!I858,$E$4,,1,1),$H$4+OFFSET(OpData!S858,$E$4,,1,1)-H52),0) -> 600 | H52: 28375 | I52: =IFERROR(IF($E$4,IF($H$4>=H52,DeltaP($H$4,H52,0,0,N52,$D$4/365),C52-1),IF(H52>$H$4,_xll.RssFOPMarket("147018318","デルタ")-1,_xll.RssFOPMarket("137018318","デルタ"))),0) -> -0.4204 | J52: =IFERROR(IF($H$4>H52,OFFSET(OpData!S858,$E$4,,1,1),OFFSET(OpData!I858,$E$4,,1,1)+H52-$H$4),0) -> 450 | N52: =IFERROR(IF($E$4,IF($H$4<H52,IVC(D52,$H$4,H52,0,0,$D$4/365),IVP(J52,$H$4,H52,0,0,$D$4/365)),IF(H52>$H$4,_xll.RssFOPMarket("147018318","IV"),_xll.RssFOPMarket("137018318","IV"))/100),0) -> 0.1805 | P52: =IFERROR(IF($E$4,Vega($H$4,H52,0,0,N52,$D$4/365),IF(H52>$H$4,_xll.RssFOPMarket("147018318","ベガ"),_xll.RssFOPMarket("137018318","ベガ"))),0) -> 30.986 | Q52: =IFERROR(IF($E$4,GammaCP($H$4,H52,0,0,N52,$D$4/365),IF(H52>$H$4,_xll.RssFOPMarket("147018318","ガンマ"),_xll.RssFOPMarket("137018318","ガンマ"))),0) -> 0.0003 | R52: =IFERROR(IF($E$4,Theta($H$4,H52,0,0,N52,$D$4/365,365),IF(H52>$H$4,_xll.RssFOPMarket("147018318","セータ"),_xll.RssFOPMarket("137018318","セータ"))),0) -> -8.722 | W52: =IFERROR(IF($E$4,IF($H$5<=AB52,DeltaC($H$5,AB52,0,0,AH52,$D$5/365),AC52+1),IF(AB52>$H$5,_xll.RssFOPMarket("147027818","デルタ"),_xll.RssFOPMarket("137027818","デルタ")+1)),0) -> 0.6506 | X52: =IFERROR(IF($H$5<AB52,OFFSET(OpData!AC858,$E$4,,1,1),$H$5+OFFSET(OpData!AM858,$E$4,,1,1)-AB52),0) -> 655 | AB52: 27875 | AC52: =IFERROR(IF($E$4,IF($H$5>=AB52,DeltaP($H$5,AB52,0,0,AH52,$D$5/365),W52-1),IF(AB52>$H$5,_xll.RssFOPMarket("147027818","デルタ")-1,_xll.RssFOPMarket("137027818","デルタ"))),0) -> -0.3494 | AD52: =IFERROR(IF($H$5>AB52,OFFSET(OpData!AM858,$E$4,,1,1),OFFSET(OpData!AC858,$E$4,,1,1)+AB52-$H$5),0) -> 0 | AH52: =IFERROR(IF($E$4,IF($H$5<AB52,IVC(X52,$H$5,AB52,0,0,$D$5/365),IVP(AD52,$H$5,AB52,0,0,$D$5/365)),IF(AB52>$H$5,_xll.RssFOPMarket("147027818","IV"),_xll.RssFOPMarket("137027818","IV"))/100),0) -> 0.1936 | AJ52: =IFERROR(IF($E$4,Vega($H$5,AB52,0,0,AH52,$D$5/365),IF(AB52>$H$5,_xll.RssFOPMarket("147027818","ベガ"),_xll.RssFOPMarket("137027818","ベガ"))),0) -> 41.454 | AK52: =IFERROR(IF($E$4,GammaCP($H$5,AB52,0,0,AH52,$D$5/365),IF(AB52>$H$5,_xll.RssFOPMarket("147027818","ガンマ"),_xll.RssFOPMarket("137027818","ガンマ"))),0) -> 0.0002 | AL52: =IFERROR(IF($E$4,Theta($H$5,AB52,0,0,AH52,$D$5/365,365),IF(AB52>$H$5,_xll.RssFOPMarket("147027818","セータ"),_xll.RssFOPMarket("137027818","セータ"))),0) -> -6.178 | CA52: 0 | CB52: 0 | CC52: 0 | CD52: 0 | CE52: 0 | CF52: 0 | CG52: 0 | CH52: 0 | CI52: 0 | CJ52: 0 | CK52: 0 | CL52: 0 | CM52: 0 | CN52: 0 | CO52: 0 | CP52: 0 | CQ52: 0 | CR52: 0 | CS52: 0 | CT52: 0 | CU52: 0 | CV52: 0 | CW52: 0 | CX52: 0
C53: =IFERROR(IF($E$4,IF($H$4<=H53,DeltaC($H$4,H53,0,0,N53,$D$4/365),I53+1),IF(H53>$H$4,_xll.RssFOPMarket("147018218","デルタ"),_xll.RssFOPMarket("137018218","デルタ")+1)),0) -> 0.5779 | D53: =IFERROR(IF($H$4<H53,OFFSET(OpData!I878,$E$4,,1,1),$H$4+OFFSET(OpData!S878,$E$4,,1,1)-H53),0) -> 750 | H53: 28250 | I53: =IFERROR(IF($E$4,IF($H$4>=H53,DeltaP($H$4,H53,0,0,N53,$D$4/365),C53-1),IF(H53>$H$4,_xll.RssFOPMarket("147018218","デルタ")-1,_xll.RssFOPMarket("137018218","デルタ"))),0) -> -0.4221 | J53: =IFERROR(IF($H$4>H53,OFFSET(OpData!S878,$E$4,,1,1),OFFSET(OpData!I878,$E$4,,1,1)+H53-$H$4),0) -> 475 | N53: =IFERROR(IF($E$4,IF($H$4<H53,IVC(D53,$H$4,H53,0,0,$D$4/365),IVP(J53,$H$4,H53,0,0,$D$4/365)),IF(H53>$H$4,_xll.RssFOPMarket("147018218","IV"),_xll.RssFOPMarket("137018218","IV"))/100),0) -> 0.1887 | P53: =IFERROR(IF($E$4,Vega($H$4,H53,0,0,N53,$D$4/365),IF(H53>$H$4,_xll.RssFOPMarket("147018218","ベガ"),_xll.RssFOPMarket("137018218","ベガ"))),0) -> 30.902 | Q53: =IFERROR(IF($E$4,GammaCP($H$4,H53,0,0,N53,$D$4/365),IF(H53>$H$4,_xll.RssFOPMarket("147018218","ガンマ"),_xll.RssFOPMarket("137018218","ガンマ"))),0) -> 0.0003 | R53: =IFERROR(IF($E$4,Theta($H$4,H53,0,0,N53,$D$4/365,365),IF(H53>$H$4,_xll.RssFOPMarket("147018218","セータ"),_xll.RssFOPMarket("137018218","セータ"))),0) -> -11.103 | W53: =IFERROR(IF($E$4,IF($H$5<=AB53,DeltaC($H$5,AB53,0,0,AH53,$D$5/365),AC53+1),IF(AB53>$H$5,_xll.RssFOPMarket("147027718","デルタ"),_xll.RssFOPMarket("137027718","デルタ")+1)),0) -> 0.6934 | X53: =IFERROR(IF($H$5<AB53,OFFSET(OpData!AC878,$E$4,,1,1),$H$5+OFFSET(OpData!AM878,$E$4,,1,1)-AB53),0) -> 780 | AB53: 27750 | AC53: =IFERROR(IF($E$4,IF($H$5>=AB53,DeltaP($H$5,AB53,0,0,AH53,$D$5/365),W53-1),IF(AB53>$H$5,_xll.RssFOPMarket("147027718","デルタ")-1,_xll.RssFOPMarket("137027718","デルタ"))),0) -> -0.3066 | AD53: =IFERROR(IF($H$5>AB53,OFFSET(OpData!AM878,$E$4,,1,1),OFFSET(OpData!AC878,$E$4,,1,1)+AB53-$H$5),0) -> 0 | AH53: =IFERROR(IF($E$4,IF($H$5<AB53,IVC(X53,$H$5,AB53,0,0,$D$5/365),IVP(AD53,$H$5,AB53,0,0,$D$5/365)),IF(AB53>$H$5,_xll.RssFOPMarket("147027718","IV"),_xll.RssFOPMarket("137027718","IV"))/100),0) -> 0.1968 | AJ53: =IFERROR(IF($E$4,Vega($H$5,AB53,0,0,AH53,$D$5/365),IF(AB53>$H$5,_xll.RssFOPMarket("147027718","ベガ"),_xll.RssFOPMarket("137027718","ベガ"))),0) -> 39.235 | AK53: =IFERROR(IF($E$4,GammaCP($H$5,AB53,0,0,AH53,$D$5/365),IF(AB53>$H$5,_xll.RssFOPMarket("147027718","ガンマ"),_xll.RssFOPMarket("137027718","ガンマ"))),0) -> 0.0002 | AL53: =IFERROR(IF($E$4,Theta($H$5,AB53,0,0,AH53,$D$5/365,365),IF(AB53>$H$5,_xll.RssFOPMarket("147027718","セータ"),_xll.RssFOPMarket("137027718","セータ"))),0) -> -7.33 | CA53: 0 | CB53: 0 | CC53: 0 | CD53: 0 | CE53: 0 | CF53: 0 | CG53: 0 | CH53: 0 | CI53: 0 | CJ53: 0 | CK53: 0 | CL53: 0 | CM53: 0 | CN53: 0 | CO53: 0 | CP53: 0 | CQ53: 0 | CR53: 0 | CS53: 0 | CT53: 0 | CU53: 0 | CV53: 0 | CW53: 0 | CX53: 0
C54: =IFERROR(IF($E$4,IF($H$4<=H54,DeltaC($H$4,H54,0,0,N54,$D$4/365),I54+1),IF(H54>$H$4,_xll.RssFOPMarket("147018118","デルタ"),_xll.RssFOPMarket("137018118","デルタ")+1)),0) -> 0.6041 | D54: =IFERROR(IF($H$4<H54,OFFSET(OpData!I898,$E$4,,1,1),$H$4+OFFSET(OpData!S898,$E$4,,1,1)-H54),0) -> 845 | H54: 28125 | I54: =IFERROR(IF($E$4,IF($H$4>=H54,DeltaP($H$4,H54,0,0,N54,$D$4/365),C54-1),IF(H54>$H$4,_xll.RssFOPMarket("147018118","デルタ")-1,_xll.RssFOPMarket("137018118","デルタ"))),0) -> -0.3959 | J54: =IFERROR(IF($H$4>H54,OFFSET(OpData!S898,$E$4,,1,1),OFFSET(OpData!I898,$E$4,,1,1)+H54-$H$4),0) -> 445 | N54: =IFERROR(IF($E$4,IF($H$4<H54,IVC(D54,$H$4,H54,0,0,$D$4/365),IVP(J54,$H$4,H54,0,0,$D$4/365)),IF(H54>$H$4,_xll.RssFOPMarket("147018118","IV"),_xll.RssFOPMarket("137018118","IV"))/100),0) -> 0.1941 | P54: =IFERROR(IF($E$4,Vega($H$4,H54,0,0,N54,$D$4/365),IF(H54>$H$4,_xll.RssFOPMarket("147018118","ベガ"),_xll.RssFOPMarket("137018118","ベガ"))),0) -> 30.413 | Q54: =IFERROR(IF($E$4,GammaCP($H$4,H54,0,0,N54,$D$4/365),IF(H54>$H$4,_xll.RssFOPMarket("147018118","ガンマ"),_xll.RssFOPMarket("137018118","ガンマ"))),0) -> 0.0003 | R54: =IFERROR(IF($E$4,Theta($H$4,H54,0,0,N54,$D$4/365,365),IF(H54>$H$4,_xll.RssFOPMarket("147018118","セータ"),_xll.RssFOPMarket("137018118","セータ"))),0) -> -11.438 | W54: =IFERROR(IF($E$4,IF($H$5<=AB54,DeltaC($H$5,AB54,0,0,AH54,$D$5/365),AC54+1),IF(AB54>$H$5,_xll.RssFOPMarket("147027618","デルタ"),_xll.RssFOPMarket("137027618","デルタ")+1)),0) -> 0.7333 | X54: =IFERROR(IF($H$5<AB54,OFFSET(OpData!AC898,$E$4,,1,1),$H$5+OFFSET(OpData!AM898,$E$4,,1,1)-AB54),0) -> 905 | AB54: 27625 | AC54: =IFERROR(IF($E$4,IF($H$5>=AB54,DeltaP($H$5,AB54,0,0,AH54,$D$5/365),W54-1),IF(AB54>$H$5,_xll.RssFOPMarket("147027618","デルタ")-1,_xll.RssFOPMarket("137027618","デルタ"))),0) -> -0.2667 | AD54: =IFERROR(IF($H$5>AB54,OFFSET(OpData!AM898,$E$4,,1,1),OFFSET(OpData!AC898,$E$4,,1,1)+AB54-$H$5),0) -> 0 | AH54: =IFERROR(IF($E$4,IF($H$5<AB54,IVC(X54,$H$5,AB54,0,0,$D$5/365),IVP(AD54,$H$5,AB54,0,0,$D$5/365)),IF(AB54>$H$5,_xll.RssFOPMarket("147027618","IV"),_xll.RssFOPMarket("137027618","IV"))/100),0) -> 0.2007 | AJ54: =IFERROR(IF($E$4,Vega($H$5,AB54,0,0,AH54,$D$5/365),IF(AB54>$H$5,_xll.RssFOPMarket("147027618","ベガ"),_xll.RssFOPMarket("137027618","ベガ"))),0) -> 36.99 | AK54: =IFERROR(IF($E$4,GammaCP($H$5,AB54,0,0,AH54,$D$5/365),IF(AB54>$H$5,_xll.RssFOPMarket("147027618","ガンマ"),_xll.RssFOPMarket("137027618","ガンマ"))),0) -> 0.0001 | AL54: =IFERROR(IF($E$4,Theta($H$5,AB54,0,0,AH54,$D$5/365,365),IF(AB54>$H$5,_xll.RssFOPMarket("147027618","セータ"),_xll.RssFOPMarket("137027618","セータ"))),0) -> -7.565 | CA54: 0 | CB54: 0 | CC54: 0 | CD54: 0 | CE54: 0 | CF54: 0 | CG54: 0 | CH54: 0 | CI54: 0 | CJ54: 0 | CK54: 0 | CL54: 0 | CM54: 0 | CN54: 0 | CO54: 0 | CP54: 0 | CQ54: 0 | CR54: 0 | CS54: 0 | CT54: 0 | CU54: 0 | CV54: 0 | CW54: 0 | CX54: 0
C55: =IFERROR(IF($E$4,IF($H$4<=H55,DeltaC($H$4,H55,0,0,N55,$D$4/365),I55+1),IF(H55>$H$4,_xll.RssFOPMarket("147018018","デルタ"),_xll.RssFOPMarket("137018018","デルタ")+1)),0) -> 0.6455 | D55: =IFERROR(IF($H$4<H55,OFFSET(OpData!I918,$E$4,,1,1),$H$4+OFFSET(OpData!S918,$E$4,,1,1)-H55),0) -> 910 | H55: 28000 | I55: =IFERROR(IF($E$4,IF($H$4>=H55,DeltaP($H$4,H55,0,0,N55,$D$4/365),C55-1),IF(H55>$H$4,_xll.RssFOPMarket("147018018","デルタ")-1,_xll.RssFOPMarket("137018018","デルタ"))),0) -> -0.3545 | J55: =IFERROR(IF($H$4>H55,OFFSET(OpData!S918,$E$4,,1,1),OFFSET(OpData!I918,$E$4,,1,1)+H55-$H$4),0) -> 385 | N55: =IFERROR(IF($E$4,IF($H$4<H55,IVC(D55,$H$4,H55,0,0,$D$4/365),IVP(J55,$H$4,H55,0,0,$D$4/365)),IF(H55>$H$4,_xll.RssFOPMarket("147018018","IV"),_xll.RssFOPMarket("137018018","IV"))/100),0) -> 0.1969 | P55: =IFERROR(IF($E$4,Vega($H$4,H55,0,0,N55,$D$4/365),IF(H55>$H$4,_xll.RssFOPMarket("147018018","ベガ"),_xll.RssFOPMarket("137018018","ベガ"))),0) -> 29.413 | Q55: =IFERROR(IF($E$4,GammaCP($H$4,H55,0,0,N55,$D$4/365),IF(H55>$H$4,_xll.RssFOPMarket("147018018","ガンマ"),_xll.RssFOPMarket("137018018","ガンマ"))),0) -> 0.0002 | R55: =IFERROR(IF($E$4,Theta($H$4,H55,0,0,N55,$D$4/365,365),IF(H55>$H$4,_xll.RssFOPMarket("147018018","セータ"),_xll.RssFOPMarket("137018018","セータ"))),0) -> -10.509 | W55: =IFERROR(IF($E$4,IF($H$5<=AB55,DeltaC($H$5,AB55,0,0,AH55,$D$5/365),AC55+1),IF(AB55>$H$5,_xll.RssFOPMarket("147027518","デルタ"),_xll.RssFOPMarket("137027518","デルタ")+1)),0) -> 0.7072 | X55: =IFERROR(IF($H$5<AB55,OFFSET(OpData!AC918,$E$4,,1,1),$H$5+OFFSET(OpData!AM918,$E$4,,1,1)-AB55),0) -> 1505 | AB55: 27500 | AC55: =IFERROR(IF($E$4,IF($H$5>=AB55,DeltaP($H$5,AB55,0,0,AH55,$D$5/365),W55-1),IF(AB55>$H$5,_xll.RssFOPMarket("147027518","デルタ")-1,_xll.RssFOPMarket("137027518","デルタ"))),0) -> -0.2928 | AD55: =IFERROR(IF($H$5>AB55,OFFSET(OpData!AM918,$E$4,,1,1),OFFSET(OpData!AC918,$E$4,,1,1)+AB55-$H$5),0) -> 475 | AH55: =IFERROR(IF($E$4,IF($H$5<AB55,IVC(X55,$H$5,AB55,0,0,$D$5/365),IVP(AD55,$H$5,AB55,0,0,$D$5/365)),IF(AB55>$H$5,_xll.RssFOPMarket("147027518","IV"),_xll.RssFOPMarket("137027518","IV"))/100),0) -> 0.2229 | AJ55: =IFERROR(IF($E$4,Vega($H$5,AB55,0,0,AH55,$D$5/365),IF(AB55>$H$5,_xll.RssFOPMarket("147027518","ベガ"),_xll.RssFOPMarket("137027518","ベガ"))),0) -> 38.236 | AK55: =IFERROR(IF($E$4,GammaCP($H$5,AB55,0,0,AH55,$D$5/365),IF(AB55>$H$5,_xll.RssFOPMarket("147027518","ガンマ"),_xll.RssFOPMarket("137027518","ガンマ"))),0) -> 0.0001 | AL55: =IFERROR(IF($E$4,Theta($H$5,AB55,0,0,AH55,$D$5/365,365),IF(AB55>$H$5,_xll.RssFOPMarket("147027518","セータ"),_xll.RssFOPMarket("137027518","セータ"))),0) -> -6.743 | CA55: 0 | CB55: 0 | CC55: 0 | CD55: 0 | CE55: 0 | CF55: 0 | CG55: 0 | CH55: 0 | CI55: 0 | CJ55: 0 | CK55: 0 | CL55: 0 | CM55: 0 | CN55: 0 | CO55: 0 | CP55: 0 | CQ55: 0 | CR55: 0 | CS55: 0 | CT55: 0 | CU55: 0 | CV55: 0 | CW55: 0 | CX55: 0
C56: =IFERROR(IF($E$4,IF($H$4<=H56,DeltaC($H$4,H56,0,0,N56,$D$4/365),I56+1),IF(H56>$H$4,_xll.RssFOPMarket("147017818","デルタ"),_xll.RssFOPMarket("137017818","デルタ")+1)),0) -> 0.661 | D56: =IFERROR(IF($H$4<H56,OFFSET(OpData!I938,$E$4,,1,1),$H$4+OFFSET(OpData!S938,$E$4,,1,1)-H56),0) -> 1015 | H56: 27875 | I56: =IFERROR(IF($E$4,IF($H$4>=H56,DeltaP($H$4,H56,0,0,N56,$D$4/365),C56-1),IF(H56>$H$4,_xll.RssFOPMarket("147017818","デルタ")-1,_xll.RssFOPMarket("137017818","デルタ"))),0) -> -0.339 | J56: =IFERROR(IF($H$4>H56,OFFSET(OpData!S938,$E$4,,1,1),OFFSET(OpData!I938,$E$4,,1,1)+H56-$H$4),0) -> 365 | N56: =IFERROR(IF($E$4,IF($H$4<H56,IVC(D56,$H$4,H56,0,0,$D$4/365),IVP(J56,$H$4,H56,0,0,$D$4/365)),IF(H56>$H$4,_xll.RssFOPMarket("147017818","IV"),_xll.RssFOPMarket("137017818","IV"))/100),0) -> 0.1987 | P56: =IFERROR(IF($E$4,Vega($H$4,H56,0,0,N56,$D$4/365),IF(H56>$H$4,_xll.RssFOPMarket("147017818","ベガ"),_xll.RssFOPMarket("137017818","ベガ"))),0) -> 28.891 | Q56: =IFERROR(IF($E$4,GammaCP($H$4,H56,0,0,N56,$D$4/365),IF(H56>$H$4,_xll.RssFOPMarket("147017818","ガンマ"),_xll.RssFOPMarket("137017818","ガンマ"))),0) -> 0.0002 | R56: =IFERROR(IF($E$4,Theta($H$4,H56,0,0,N56,$D$4/365,365),IF(H56>$H$4,_xll.RssFOPMarket("147017818","セータ"),_xll.RssFOPMarket("137017818","セータ"))),0) -> -11.136 | W56: =IFERROR(IF($E$4,IF($H$5<=AB56,DeltaC($H$5,AB56,0,0,AH56,$D$5/365),AC56+1),IF(AB56>$H$5,_xll.RssFOPMarket("147027318","デルタ"),_xll.RssFOPMarket("137027318","デルタ")+1)),0) -> 0.5258 | X56: =IFERROR(IF($H$5<AB56,OFFSET(OpData!AC938,$E$4,,1,1),$H$5+OFFSET(OpData!AM938,$E$4,,1,1)-AB56),0) -> 1155 | AB56: 27375 | AC56: =IFERROR(IF($E$4,IF($H$5>=AB56,DeltaP($H$5,AB56,0,0,AH56,$D$5/365),W56-1),IF(AB56>$H$5,_xll.RssFOPMarket("147027318","デルタ")-1,_xll.RssFOPMarket("137027318","デルタ"))),0) -> -0.4742 | AD56: =IFERROR(IF($H$5>AB56,OFFSET(OpData!AM938,$E$4,,1,1),OFFSET(OpData!AC938,$E$4,,1,1)+AB56-$H$5),0) -> 0 | AH56: =IFERROR(IF($E$4,IF($H$5<AB56,IVC(X56,$H$5,AB56,0,0,$D$5/365),IVP(AD56,$H$5,AB56,0,0,$D$5/365)),IF(AB56>$H$5,_xll.RssFOPMarket("147027318","IV"),_xll.RssFOPMarket("137027318","IV"))/100),0) -> 0.2084 | AJ56: =IFERROR(IF($E$4,Vega($H$5,AB56,0,0,AH56,$D$5/365),IF(AB56>$H$5,_xll.RssFOPMarket("147027318","ベガ"),_xll.RssFOPMarket("137027318","ベガ"))),0) -> 48.427 | AK56: =IFERROR(IF($E$4,GammaCP($H$5,AB56,0,0,AH56,$D$5/365),IF(AB56>$H$5,_xll.RssFOPMarket("147027318","ガンマ"),_xll.RssFOPMarket("137027318","ガンマ"))),0) -> 0.0001 | AL56: =IFERROR(IF($E$4,Theta($H$5,AB56,0,0,AH56,$D$5/365,365),IF(AB56>$H$5,_xll.RssFOPMarket("147027318","セータ"),_xll.RssFOPMarket("137027318","セータ"))),0) -> -10.942 | CA56: 0 | CB56: 0 | CC56: 0 | CD56: 0 | CE56: 0 | CF56: 0 | CG56: 0 | CH56: 0 | CI56: 0 | CJ56: 0 | CK56: 0 | CL56: 0 | CM56: 0 | CN56: 0 | CO56: 0 | CP56: 0 | CQ56: 0 | CR56: 0 | CS56: 0 | CT56: 0 | CU56: 0 | CV56: 0 | CW56: 0 | CX56: 0
C57: =IFERROR(IF($E$4,IF($H$4<=H57,DeltaC($H$4,H57,0,0,N57,$D$4/365),I57+1),IF(H57>$H$4,_xll.RssFOPMarket("147017718","デルタ"),_xll.RssFOPMarket("137017718","デルタ")+1)),0) -> 0.6983 | D57: =IFERROR(IF($H$4<H57,OFFSET(OpData!I958,$E$4,,1,1),$H$4+OFFSET(OpData!S958,$E$4,,1,1)-H57),0) -> 1100 | H57: 27750 | I57: =IFERROR(IF($E$4,IF($H$4>=H57,DeltaP($H$4,H57,0,0,N57,$D$4/365),C57-1),IF(H57>$H$4,_xll.RssFOPMarket("147017718","デルタ")-1,_xll.RssFOPMarket("137017718","デルタ"))),0) -> -0.3017 | J57: =IFERROR(IF($H$4>H57,OFFSET(OpData!S958,$E$4,,1,1),OFFSET(OpData!I958,$E$4,,1,1)+H57-$H$4),0) -> 325 | N57: =IFERROR(IF($E$4,IF($H$4<H57,IVC(D57,$H$4,H57,0,0,$D$4/365),IVP(J57,$H$4,H57,0,0,$D$4/365)),IF(H57>$H$4,_xll.RssFOPMarket("147017718","IV"),_xll.RssFOPMarket("137017718","IV"))/100),0) -> 0.2078 | P57: =IFERROR(IF($E$4,Vega($H$4,H57,0,0,N57,$D$4/365),IF(H57>$H$4,_xll.RssFOPMarket("147017718","ベガ"),_xll.RssFOPMarket("137017718","ベガ"))),0) -> 27.56 | Q57: =IFERROR(IF($E$4,GammaCP($H$4,H57,0,0,N57,$D$4/365),IF(H57>$H$4,_xll.RssFOPMarket("147017718","ガンマ"),_xll.RssFOPMarket("137017718","ガンマ"))),0) -> 0.0002 | R57: =IFERROR(IF($E$4,Theta($H$4,H57,0,0,N57,$D$4/365,365),IF(H57>$H$4,_xll.RssFOPMarket("147017718","セータ"),_xll.RssFOPMarket("137017718","セータ"))),0) -> -10.235 | W57: =IFERROR(IF($E$4,IF($H$5<=AB57,DeltaC($H$5,AB57,0,0,AH57,$D$5/365),AC57+1),IF(AB57>$H$5,_xll.RssFOPMarket("147027218","デルタ"),_xll.RssFOPMarket("137027218","デルタ")+1)),0) -> 0.7353 | X57: =IFERROR(IF($H$5<AB57,OFFSET(OpData!AC958,$E$4,,1,1),$H$5+OFFSET(OpData!AM958,$E$4,,1,1)-AB57),0) -> 1680 | AB57: 27250 | AC57: =IFERROR(IF($E$4,IF($H$5>=AB57,DeltaP($H$5,AB57,0,0,AH57,$D$5/365),W57-1),IF(AB57>$H$5,_xll.RssFOPMarket("147027218","デルタ")-1,_xll.RssFOPMarket("137027218","デルタ"))),0) -> -0.2647 | AD57: =IFERROR(IF($H$5>AB57,OFFSET(OpData!AM958,$E$4,,1,1),OFFSET(OpData!AC958,$E$4,,1,1)+AB57-$H$5),0) -> 400 | AH57: =IFERROR(IF($E$4,IF($H$5<AB57,IVC(X57,$H$5,AB57,0,0,$D$5/365),IVP(AD57,$H$5,AB57,0,0,$D$5/365)),IF(AB57>$H$5,_xll.RssFOPMarket("147027218","IV"),_xll.RssFOPMarket("137027218","IV"))/100),0) -> 0.2151 | AJ57: =IFERROR(IF($E$4,Vega($H$5,AB57,0,0,AH57,$D$5/365),IF(AB57>$H$5,_xll.RssFOPMarket("147027218","ベガ"),_xll.RssFOPMarket("137027218","ベガ"))),0) -> 36.326 | AK57: =IFERROR(IF($E$4,GammaCP($H$5,AB57,0,0,AH57,$D$5/365),IF(AB57>$H$5,_xll.RssFOPMarket("147027218","ガンマ"),_xll.RssFOPMarket("137027218","ガンマ"))),0) -> 0.0001 | AL57: =IFERROR(IF($E$4,Theta($H$5,AB57,0,0,AH57,$D$5/365,365),IF(AB57>$H$5,_xll.RssFOPMarket("147027218","セータ"),_xll.RssFOPMarket("137027218","セータ"))),0) -> -6.724 | CA57: 0 | CB57: 0 | CC57: 0 | CD57: 0 | CE57: 0 | CF57: 0 | CG57: 0 | CH57: 0 | CI57: 0 | CJ57: 0 | CK57: 0 | CL57: 0 | CM57: 0 | CN57: 0 | CO57: 0 | CP57: 0 | CQ57: 0 | CR57: 0 | CS57: 0 | CT57: 0 | CU57: 0 | CV57: 0 | CW57: 0 | CX57: 0
C58: =IFERROR(IF($E$4,IF($H$4<=H58,DeltaC($H$4,H58,0,0,N58,$D$4/365),I58+1),IF(H58>$H$4,_xll.RssFOPMarket("147017618","デルタ"),_xll.RssFOPMarket("137017618","デルタ")+1)),0) -> 0.721 | D58: =IFERROR(IF($H$4<H58,OFFSET(OpData!I978,$E$4,,1,1),$H$4+OFFSET(OpData!S978,$E$4,,1,1)-H58),0) -> 1195 | H58: 27625 | I58: =IFERROR(IF($E$4,IF($H$4>=H58,DeltaP($H$4,H58,0,0,N58,$D$4/365),C58-1),IF(H58>$H$4,_xll.RssFOPMarket("147017618","デルタ")-1,_xll.RssFOPMarket("137017618","デルタ"))),0) -> -0.279 | J58: =IFERROR(IF($H$4>H58,OFFSET(OpData!S978,$E$4,,1,1),OFFSET(OpData!I978,$E$4,,1,1)+H58-$H$4),0) -> 295 | N58: =IFERROR(IF($E$4,IF($H$4<H58,IVC(D58,$H$4,H58,0,0,$D$4/365),IVP(J58,$H$4,H58,0,0,$D$4/365)),IF(H58>$H$4,_xll.RssFOPMarket("147017618","IV"),_xll.RssFOPMarket("137017618","IV"))/100),0) -> 0.2097 | P58: =IFERROR(IF($E$4,Vega($H$4,H58,0,0,N58,$D$4/365),IF(H58>$H$4,_xll.RssFOPMarket("147017618","ベガ"),_xll.RssFOPMarket("137017618","ベガ"))),0) -> 26.562 | Q58: =IFERROR(IF($E$4,GammaCP($H$4,H58,0,0,N58,$D$4/365),IF(H58>$H$4,_xll.RssFOPMarket("147017618","ガンマ"),_xll.RssFOPMarket("137017618","ガンマ"))),0) -> 0.0002 | R58: =IFERROR(IF($E$4,Theta($H$4,H58,0,0,N58,$D$4/365,365),IF(H58>$H$4,_xll.RssFOPMarket("147017618","セータ"),_xll.RssFOPMarket("137017618","セータ"))),0) -> -10.079 | W58: =IFERROR(IF($E$4,IF($H$5<=AB58,DeltaC($H$5,AB58,0,0,AH58,$D$5/365),AC58+1),IF(AB58>$H$5,_xll.RssFOPMarket("147027118","デルタ"),_xll.RssFOPMarket("137027118","デルタ")+1)),0) -> 0.8122 | X58: =IFERROR(IF($H$5<AB58,OFFSET(OpData!AC978,$E$4,,1,1),$H$5+OFFSET(OpData!AM978,$E$4,,1,1)-AB58),0) -> 1405 | AB58: 27125 | AC58: =IFERROR(IF($E$4,IF($H$5>=AB58,DeltaP($H$5,AB58,0,0,AH58,$D$5/365),W58-1),IF(AB58>$H$5,_xll.RssFOPMarket("147027118","デルタ")-1,_xll.RssFOPMarket("137027118","デルタ"))),0) -> -0.1878 | AD58: =IFERROR(IF($H$5>AB58,OFFSET(OpData!AM978,$E$4,,1,1),OFFSET(OpData!AC978,$E$4,,1,1)+AB58-$H$5),0) -> 0 | AH58: =IFERROR(IF($E$4,IF($H$5<AB58,IVC(X58,$H$5,AB58,0,0,$D$5/365),IVP(AD58,$H$5,AB58,0,0,$D$5/365)),IF(AB58>$H$5,_xll.RssFOPMarket("147027118","IV"),_xll.RssFOPMarket("137027118","IV"))/100),0) -> 0.2155 | AJ58: =IFERROR(IF($E$4,Vega($H$5,AB58,0,0,AH58,$D$5/365),IF(AB58>$H$5,_xll.RssFOPMarket("147027118","ベガ"),_xll.RssFOPMarket("137027118","ベガ"))),0) -> 30.697 | AK58: =IFERROR(IF($E$4,GammaCP($H$5,AB58,0,0,AH58,$D$5/365),IF(AB58>$H$5,_xll.RssFOPMarket("147027118","ガンマ"),_xll.RssFOPMarket("137027118","ガンマ"))),0) -> 0.0001 | AL58: =IFERROR(IF($E$4,Theta($H$5,AB58,0,0,AH58,$D$5/365,365),IF(AB58>$H$5,_xll.RssFOPMarket("147027118","セータ"),_xll.RssFOPMarket("137027118","セータ"))),0) -> -5.702 | CA58: 0 | CB58: 0 | CC58: 0 | CD58: 0 | CE58: 0 | CF58: 0 | CG58: 0 | CH58: 0 | CI58: 0 | CJ58: 0 | CK58: 0 | CL58: 0 | CM58: 0 | CN58: 0 | CO58: 0 | CP58: 0 | CQ58: 0 | CR58: 0 | CS58: 0 | CT58: 0 | CU58: 0 | CV58: 0 | CW58: 0 | CX58: 0
C59: =IFERROR(IF($E$4,IF($H$4<=H59,DeltaC($H$4,H59,0,0,N59,$D$4/365),I59+1),IF(H59>$H$4,_xll.RssFOPMarket("147017518","デルタ"),_xll.RssFOPMarket("137017518","デルタ")+1)),0) -> 0.7433 | D59: =IFERROR(IF($H$4<H59,OFFSET(OpData!I998,$E$4,,1,1),$H$4+OFFSET(OpData!S998,$E$4,,1,1)-H59),0) -> 1295 | H59: 27500 | I59: =IFERROR(IF($E$4,IF($H$4>=H59,DeltaP($H$4,H59,0,0,N59,$D$4/365),C59-1),IF(H59>$H$4,_xll.RssFOPMarket("147017518","デルタ")-1,_xll.RssFOPMarket("137017518","デルタ"))),0) -> -0.2567 | J59: =IFERROR(IF($H$4>H59,OFFSET(OpData!S998,$E$4,,1,1),OFFSET(OpData!I998,$E$4,,1,1)+H59-$H$4),0) -> 270 | N59: =IFERROR(IF($E$4,IF($H$4<H59,IVC(D59,$H$4,H59,0,0,$D$4/365),IVP(J59,$H$4,H59,0,0,$D$4/365)),IF(H59>$H$4,_xll.RssFOPMarket("147017518","IV"),_xll.RssFOPMarket("137017518","IV"))/100),0) -> 0.2144 | P59: =IFERROR(IF($E$4,Vega($H$4,H59,0,0,N59,$D$4/365),IF(H59>$H$4,_xll.RssFOPMarket("147017518","ベガ"),_xll.RssFOPMarket("137017518","ベガ"))),0) -> 25.475 | Q59: =IFERROR(IF($E$4,GammaCP($H$4,H59,0,0,N59,$D$4/365),IF(H59>$H$4,_xll.RssFOPMarket("147017518","ガンマ"),_xll.RssFOPMarket("137017518","ガンマ"))),0) -> 0.0002 | R59: =IFERROR(IF($E$4,Theta($H$4,H59,0,0,N59,$D$4/365,365),IF(H59>$H$4,_xll.RssFOPMarket("147017518","セータ"),_xll.RssFOPMarket("137017518","セータ"))),0) -> -9.83 | W59: =IFERROR(IF($E$4,IF($H$5<=AB59,DeltaC($H$5,AB59,0,0,AH59,$D$5/365),AC59+1),IF(AB59>$H$5,_xll.RssFOPMarket("147027018","デルタ"),_xll.RssFOPMarket("137027018","デルタ")+1)),0) -> 0.7442 | X59: =IFERROR(IF($H$5<AB59,OFFSET(OpData!AC998,$E$4,,1,1),$H$5+OFFSET(OpData!AM998,$E$4,,1,1)-AB59),0) -> 1930 | AB59: 27000 | AC59: =IFERROR(IF($E$4,IF($H$5>=AB59,DeltaP($H$5,AB59,0,0,AH59,$D$5/365),W59-1),IF(AB59>$H$5,_xll.RssFOPMarket("147027018","デルタ")-1,_xll.RssFOPMarket("137027018","デルタ"))),0) -> -0.2558 | AD59: =IFERROR(IF($H$5>AB59,OFFSET(OpData!AM998,$E$4,,1,1),OFFSET(OpData!AC998,$E$4,,1,1)+AB59-$H$5),0) -> 400 | AH59: =IFERROR(IF($E$4,IF($H$5<AB59,IVC(X59,$H$5,AB59,0,0,$D$5/365),IVP(AD59,$H$5,AB59,0,0,$D$5/365)),IF(AB59>$H$5,_xll.RssFOPMarket("147027018","IV"),_xll.RssFOPMarket("137027018","IV"))/100),0) -> 0.2243 | AJ59: =IFERROR(IF($E$4,Vega($H$5,AB59,0,0,AH59,$D$5/365),IF(AB59>$H$5,_xll.RssFOPMarket("147027018","ベガ"),_xll.RssFOPMarket("137027018","ベガ"))),0) -> 35.602 | AK59: =IFERROR(IF($E$4,GammaCP($H$5,AB59,0,0,AH59,$D$5/365),IF(AB59>$H$5,_xll.RssFOPMarket("147027018","ガンマ"),_xll.RssFOPMarket("137027018","ガンマ"))),0) -> 0.0001 | AL59: =IFERROR(IF($E$4,Theta($H$5,AB59,0,0,AH59,$D$5/365,365),IF(AB59>$H$5,_xll.RssFOPMarket("147027018","セータ"),_xll.RssFOPMarket("137027018","セータ"))),0) -> -7.591 | CA59: 0 | CB59: 0 | CC59: 0 | CD59: 0 | CE59: 0 | CF59: 0 | CG59: 0 | CH59: 0 | CI59: 0 | CJ59: 0 | CK59: 0 | CL59: 0 | CM59: 0 | CN59: 0 | CO59: 0 | CP59: 0 | CQ59: 0 | CR59: 0 | CS59: 0 | CT59: 0 | CU59: 0 | CV59: 0 | CW59: 0 | CX59: 0
C60: =IFERROR(IF($E$4,IF($H$4<=H60,DeltaC($H$4,H60,0,0,N60,$D$4/365),I60+1),IF(H60>$H$4,_xll.RssFOPMarket("147017318","デルタ"),_xll.RssFOPMarket("137017318","デルタ")+1)),0) -> 0.7523 | D60: =IFERROR(IF($H$4<H60,OFFSET(OpData!I1018,$E$4,,1,1),$H$4+OFFSET(OpData!S1018,$E$4,,1,1)-H60),0) -> 1415 | H60: 27375 | I60: =IFERROR(IF($E$4,IF($H$4>=H60,DeltaP($H$4,H60,0,0,N60,$D$4/365),C60-1),IF(H60>$H$4,_xll.RssFOPMarket("147017318","デルタ")-1,_xll.RssFOPMarket("137017318","デルタ"))),0) -> -0.2477 | J60: =IFERROR(IF($H$4>H60,OFFSET(OpData!S1018,$E$4,,1,1),OFFSET(OpData!I1018,$E$4,,1,1)+H60-$H$4),0) -> 265 | N60: =IFERROR(IF($E$4,IF($H$4<H60,IVC(D60,$H$4,H60,0,0,$D$4/365),IVP(J60,$H$4,H60,0,0,$D$4/365)),IF(H60>$H$4,_xll.RssFOPMarket("147017318","IV"),_xll.RssFOPMarket("137017318","IV"))/100),0) -> 0.2204 | P60: =IFERROR(IF($E$4,Vega($H$4,H60,0,0,N60,$D$4/365),IF(H60>$H$4,_xll.RssFOPMarket("147017318","ベガ"),_xll.RssFOPMarket("137017318","ベガ"))),0) -> 24.974 | Q60: =IFERROR(IF($E$4,GammaCP($H$4,H60,0,0,N60,$D$4/365),IF(H60>$H$4,_xll.RssFOPMarket("147017318","ガンマ"),_xll.RssFOPMarket("137017318","ガンマ"))),0) -> 0.0002 | R60: =IFERROR(IF($E$4,Theta($H$4,H60,0,0,N60,$D$4/365,365),IF(H60>$H$4,_xll.RssFOPMarket("147017318","セータ"),_xll.RssFOPMarket("137017318","セータ"))),0) -> -10.39 | W60: =IFERROR(IF($E$4,IF($H$5<=AB60,DeltaC($H$5,AB60,0,0,AH60,$D$5/365),AC60+1),IF(AB60>$H$5,_xll.RssFOPMarket("147026818","デルタ"),_xll.RssFOPMarket("137026818","デルタ")+1)),0) -> 0.7752 | X60: =IFERROR(IF($H$5<AB60,OFFSET(OpData!AC1018,$E$4,,1,1),$H$5+OFFSET(OpData!AM1018,$E$4,,1,1)-AB60),0) -> 1655 | AB60: 26875 | AC60: =IFERROR(IF($E$4,IF($H$5>=AB60,DeltaP($H$5,AB60,0,0,AH60,$D$5/365),W60-1),IF(AB60>$H$5,_xll.RssFOPMarket("147026818","デルタ")-1,_xll.RssFOPMarket("137026818","デルタ"))),0) -> -0.2248 | AD60: =IFERROR(IF($H$5>AB60,OFFSET(OpData!AM1018,$E$4,,1,1),OFFSET(OpData!AC1018,$E$4,,1,1)+AB60-$H$5),0) -> 0 | AH60: =IFERROR(IF($E$4,IF($H$5<AB60,IVC(X60,$H$5,AB60,0,0,$D$5/365),IVP(AD60,$H$5,AB60,0,0,$D$5/365)),IF(AB60>$H$5,_xll.RssFOPMarket("147026818","IV"),_xll.RssFOPMarket("137026818","IV"))/100),0) -> 0.2223 | AJ60: =IFERROR(IF($E$4,Vega($H$5,AB60,0,0,AH60,$D$5/365),IF(AB60>$H$5,_xll.RssFOPMarket("147026818","ベガ"),_xll.RssFOPMarket("137026818","ベガ"))),0) -> 33.514 | AK60: =IFERROR(IF($E$4,GammaCP($H$5,AB60,0,0,AH60,$D$5/365),IF(AB60>$H$5,_xll.RssFOPMarket("147026818","ガンマ"),_xll.RssFOPMarket("137026818","ガンマ"))),0) -> 0.0001 | AL60: =IFERROR(IF($E$4,Theta($H$5,AB60,0,0,AH60,$D$5/365,365),IF(AB60>$H$5,_xll.RssFOPMarket("147026818","セータ"),_xll.RssFOPMarket("137026818","セータ"))),0) -> -6.055 | CA60: 0 | CB60: 0 | CC60: 0 | CD60: 0 | CE60: 0 | CF60: 0 | CG60: 0 | CH60: 0 | CI60: 0 | CJ60: 0 | CK60: 0 | CL60: 0 | CM60: 0 | CN60: 0 | CO60: 0 | CP60: 0 | CQ60: 0 | CR60: 0 | CS60: 0 | CT60: 0 | CU60: 0 | CV60: 0 | CW60: 0 | CX60: 0
C61: =IFERROR(IF($E$4,IF($H$4<=H61,DeltaC($H$4,H61,0,0,N61,$D$4/365),I61+1),IF(H61>$H$4,_xll.RssFOPMarket("147017218","デルタ"),_xll.RssFOPMarket("137017218","デルタ")+1)),0) -> 0.7811 | D61: =IFERROR(IF($H$4<H61,OFFSET(OpData!I1038,$E$4,,1,1),$H$4+OFFSET(OpData!S1038,$E$4,,1,1)-H61),0) -> 1505 | H61: 27250 | I61: =IFERROR(IF($E$4,IF($H$4>=H61,DeltaP($H$4,H61,0,0,N61,$D$4/365),C61-1),IF(H61>$H$4,_xll.RssFOPMarket("147017218","デルタ")-1,_xll.RssFOPMarket("137017218","デルタ"))),0) -> -0.2189 | J61: =IFERROR(IF($H$4>H61,OFFSET(OpData!S1038,$E$4,,1,1),OFFSET(OpData!I1038,$E$4,,1,1)+H61-$H$4),0) -> 230 | N61: =IFERROR(IF($E$4,IF($H$4<H61,IVC(D61,$H$4,H61,0,0,$D$4/365),IVP(J61,$H$4,H61,0,0,$D$4/365)),IF(H61>$H$4,_xll.RssFOPMarket("147017218","IV"),_xll.RssFOPMarket("137017218","IV"))/100),0) -> 0.2251 | P61: =IFERROR(IF($E$4,Vega($H$4,H61,0,0,N61,$D$4/365),IF(H61>$H$4,_xll.RssFOPMarket("147017218","ベガ"),_xll.RssFOPMarket("137017218","ベガ"))),0) -> 23.341 | Q61: =IFERROR(IF($E$4,GammaCP($H$4,H61,0,0,N61,$D$4/365),IF(H61>$H$4,_xll.RssFOPMarket("147017218","ガンマ"),_xll.RssFOPMarket("137017218","ガンマ"))),0) -> 0.0002 | R61: =IFERROR(IF($E$4,Theta($H$4,H61,0,0,N61,$D$4/365,365),IF(H61>$H$4,_xll.RssFOPMarket("147017218","セータ"),_xll.RssFOPMarket("137017218","セータ"))),0) -> -9.385 | W61: =IFERROR(IF($E$4,IF($H$5<=AB61,DeltaC($H$5,AB61,0,0,AH61,$D$5/365),AC61+1),IF(AB61>$H$5,_xll.RssFOPMarket("147026718","デルタ"),_xll.RssFOPMarket("137026718","デルタ")+1)),0) -> 0.8415 | X61: =IFERROR(IF($H$5<AB61,OFFSET(OpData!AC1038,$E$4,,1,1),$H$5+OFFSET(OpData!AM1038,$E$4,,1,1)-AB61),0) -> 1780 | AB61: 26750 | AC61: =IFERROR(IF($E$4,IF($H$5>=AB61,DeltaP($H$5,AB61,0,0,AH61,$D$5/365),W61-1),IF(AB61>$H$5,_xll.RssFOPMarket("147026718","デルタ")-1,_xll.RssFOPMarket("137026718","デルタ"))),0) -> -0.1585 | AD61: =IFERROR(IF($H$5>AB61,OFFSET(OpData!AM1038,$E$4,,1,1),OFFSET(OpData!AC1038,$E$4,,1,1)+AB61-$H$5),0) -> 0 | AH61: =IFERROR(IF($E$4,IF($H$5<AB61,IVC(X61,$H$5,AB61,0,0,$D$5/365),IVP(AD61,$H$5,AB61,0,0,$D$5/365)),IF(AB61>$H$5,_xll.RssFOPMarket("147026718","IV"),_xll.RssFOPMarket("137026718","IV"))/100),0) -> 0.2258 | AJ61: =IFERROR(IF($E$4,Vega($H$5,AB61,0,0,AH61,$D$5/365),IF(AB61>$H$5,_xll.RssFOPMarket("147026718","ベガ"),_xll.RssFOPMarket("137026718","ベガ"))),0) -> 27.538 | AK61: =IFERROR(IF($E$4,GammaCP($H$5,AB61,0,0,AH61,$D$5/365),IF(AB61>$H$5,_xll.RssFOPMarket("147026718","ガンマ"),_xll.RssFOPMarket("137026718","ガンマ"))),0) -> 0.0001 | AL61: =IFERROR(IF($E$4,Theta($H$5,AB61,0,0,AH61,$D$5/365,365),IF(AB61>$H$5,_xll.RssFOPMarket("147026718","セータ"),_xll.RssFOPMarket("137026718","セータ"))),0) -> -5.434 | CA61: 0 | CB61: 0 | CC61: 0 | CD61: 0 | CE61: 0 | CF61: 0 | CG61: 0 | CH61: 0 | CI61: 0 | CJ61: 0 | CK61: 0 | CL61: 0 | CM61: 0 | CN61: 0 | CO61: 0 | CP61: 0 | CQ61: 0 | CR61: 0 | CS61: 0 | CT61: 0 | CU61: 0 | CV61: 0 | CW61: 0 | CX61: 0
C62: =IFERROR(IF($E$4,IF($H$4<=H62,DeltaC($H$4,H62,0,0,N62,$D$4/365),I62+1),IF(H62>$H$4,_xll.RssFOPMarket("147017118","デルタ"),_xll.RssFOPMarket("137017118","デルタ")+1)),0) -> 0.7956 | D62: =IFERROR(IF($H$4<H62,OFFSET(OpData!I1058,$E$4,,1,1),$H$4+OFFSET(OpData!S1058,$E$4,,1,1)-H62),0) -> 1610 | H62: 27125 | I62: =IFERROR(IF($E$4,IF($H$4>=H62,DeltaP($H$4,H62,0,0,N62,$D$4/365),C62-1),IF(H62>$H$4,_xll.RssFOPMarket("147017118","デルタ")-1,_xll.RssFOPMarket("137017118","デルタ"))),0) -> -0.2044 | J62: =IFERROR(IF($H$4>H62,OFFSET(OpData!S1058,$E$4,,1,1),OFFSET(OpData!I1058,$E$4,,1,1)+H62-$H$4),0) -> 210 | N62: =IFERROR(IF($E$4,IF($H$4<H62,IVC(D62,$H$4,H62,0,0,$D$4/365),IVP(J62,$H$4,H62,0,0,$D$4/365)),IF(H62>$H$4,_xll.RssFOPMarket("147017118","IV"),_xll.RssFOPMarket("137017118","IV"))/100),0) -> 0.2245 | P62: =IFERROR(IF($E$4,Vega($H$4,H62,0,0,N62,$D$4/365),IF(H62>$H$4,_xll.RssFOPMarket("147017118","ベガ"),_xll.RssFOPMarket("137017118","ベガ"))),0) -> 22.407 | Q62: =IFERROR(IF($E$4,GammaCP($H$4,H62,0,0,N62,$D$4/365),IF(H62>$H$4,_xll.RssFOPMarket("147017118","ガンマ"),_xll.RssFOPMarket("137017118","ガンマ"))),0) -> 0.0002 | R62: =IFERROR(IF($E$4,Theta($H$4,H62,0,0,N62,$D$4/365,365),IF(H62>$H$4,_xll.RssFOPMarket("147017118","セータ"),_xll.RssFOPMarket("137017118","セータ"))),0) -> -9.334 | W62: =IFERROR(IF($E$4,IF($H$5<=AB62,DeltaC($H$5,AB62,0,0,AH62,$D$5/365),AC62+1),IF(AB62>$H$5,_xll.RssFOPMarket("147026618","デルタ"),_xll.RssFOPMarket("137026618","デルタ")+1)),0) -> 0.8542 | X62: =IFERROR(IF($H$5<AB62,OFFSET(OpData!AC1058,$E$4,,1,1),$H$5+OFFSET(OpData!AM1058,$E$4,,1,1)-AB62),0) -> 1905 | AB62: 26625 | AC62: =IFERROR(IF($E$4,IF($H$5>=AB62,DeltaP($H$5,AB62,0,0,AH62,$D$5/365),W62-1),IF(AB62>$H$5,_xll.RssFOPMarket("147026618","デルタ")-1,_xll.RssFOPMarket("137026618","デルタ"))),0) -> -0.1458 | AD62: =IFERROR(IF($H$5>AB62,OFFSET(OpData!AM1058,$E$4,,1,1),OFFSET(OpData!AC1058,$E$4,,1,1)+AB62-$H$5),0) -> 0 | AH62: =IFERROR(IF($E$4,IF($H$5<AB62,IVC(X62,$H$5,AB62,0,0,$D$5/365),IVP(AD62,$H$5,AB62,0,0,$D$5/365)),IF(AB62>$H$5,_xll.RssFOPMarket("147026618","IV"),_xll.RssFOPMarket("137026618","IV"))/100),0) -> 0.2289 | AJ62: =IFERROR(IF($E$4,Vega($H$5,AB62,0,0,AH62,$D$5/365),IF(AB62>$H$5,_xll.RssFOPMarket("147026618","ベガ"),_xll.RssFOPMarket("137026618","ベガ"))),0) -> 26.058 | AK62: =IFERROR(IF($E$4,GammaCP($H$5,AB62,0,0,AH62,$D$5/365),IF(AB62>$H$5,_xll.RssFOPMarket("147026618","ガンマ"),_xll.RssFOPMarket("137026618","ガンマ"))),0) -> 0.0001 | AL62: =IFERROR(IF($E$4,Theta($H$5,AB62,0,0,AH62,$D$5/365,365),IF(AB62>$H$5,_xll.RssFOPMarket("147026618","セータ"),_xll.RssFOPMarket("137026618","セータ"))),0) -> -5.126 | CA62: 0 | CB62: 0 | CC62: 0 | CD62: 0 | CE62: 0 | CF62: 0 | CG62: 0 | CH62: 0 | CI62: 0 | CJ62: 0 | CK62: 0 | CL62: 0 | CM62: 0 | CN62: 0 | CO62: 0 | CP62: 0 | CQ62: 0 | CR62: 0 | CS62: 0 | CT62: 0 | CU62: 0 | CV62: 0 | CW62: 0 | CX62: 0
C63: =IFERROR(IF($E$4,IF($H$4<=H63,DeltaC($H$4,H63,0,0,N63,$D$4/365),I63+1),IF(H63>$H$4,_xll.RssFOPMarket("147017018","デルタ"),_xll.RssFOPMarket("137017018","デルタ")+1)),0) -> 0.8153 | D63: =IFERROR(IF($H$4<H63,OFFSET(OpData!I1078,$E$4,,1,1),$H$4+OFFSET(OpData!S1078,$E$4,,1,1)-H63),0) -> 1720 | H63: 27000 | I63: =IFERROR(IF($E$4,IF($H$4>=H63,DeltaP($H$4,H63,0,0,N63,$D$4/365),C63-1),IF(H63>$H$4,_xll.RssFOPMarket("147017018","デルタ")-1,_xll.RssFOPMarket("137017018","デルタ"))),0) -> -0.1847 | J63: =IFERROR(IF($H$4>H63,OFFSET(OpData!S1078,$E$4,,1,1),OFFSET(OpData!I1078,$E$4,,1,1)+H63-$H$4),0) -> 195 | N63: =IFERROR(IF($E$4,IF($H$4<H63,IVC(D63,$H$4,H63,0,0,$D$4/365),IVP(J63,$H$4,H63,0,0,$D$4/365)),IF(H63>$H$4,_xll.RssFOPMarket("147017018","IV"),_xll.RssFOPMarket("137017018","IV"))/100),0) -> 0.2311 | P63: =IFERROR(IF($E$4,Vega($H$4,H63,0,0,N63,$D$4/365),IF(H63>$H$4,_xll.RssFOPMarket("147017018","ベガ"),_xll.RssFOPMarket("137017018","ベガ"))),0) -> 21.083 | Q63: =IFERROR(IF($E$4,GammaCP($H$4,H63,0,0,N63,$D$4/365),IF(H63>$H$4,_xll.RssFOPMarket("147017018","ガンマ"),_xll.RssFOPMarket("137017018","ガンマ"))),0) -> 0.0001 | R63: =IFERROR(IF($E$4,Theta($H$4,H63,0,0,N63,$D$4/365,365),IF(H63>$H$4,_xll.RssFOPMarket("147017018","セータ"),_xll.RssFOPMarket("137017018","セータ"))),0) -> -8.754 | W63: =IFERROR(IF($E$4,IF($H$5<=AB63,DeltaC($H$5,AB63,0,0,AH63,$D$5/365),AC63+1),IF(AB63>$H$5,_xll.RssFOPMarket("147026518","デルタ"),_xll.RssFOPMarket("137026518","デルタ")+1)),0) -> 0.8002 | X63: =IFERROR(IF($H$5<AB63,OFFSET(OpData!AC1078,$E$4,,1,1),$H$5+OFFSET(OpData!AM1078,$E$4,,1,1)-AB63),0) -> 2030 | AB63: 26500 | AC63: =IFERROR(IF($E$4,IF($H$5>=AB63,DeltaP($H$5,AB63,0,0,AH63,$D$5/365),W63-1),IF(AB63>$H$5,_xll.RssFOPMarket("147026518","デルタ")-1,_xll.RssFOPMarket("137026518","デルタ"))),0) -> -0.1998 | AD63: =IFERROR(IF($H$5>AB63,OFFSET(OpData!AM1078,$E$4,,1,1),OFFSET(OpData!AC1078,$E$4,,1,1)+AB63-$H$5),0) -> 0 | AH63: =IFERROR(IF($E$4,IF($H$5<AB63,IVC(X63,$H$5,AB63,0,0,$D$5/365),IVP(AD63,$H$5,AB63,0,0,$D$5/365)),IF(AB63>$H$5,_xll.RssFOPMarket("147026518","IV"),_xll.RssFOPMarket("137026518","IV"))/100),0) -> 0.2365 | AJ63: =IFERROR(IF($E$4,Vega($H$5,AB63,0,0,AH63,$D$5/365),IF(AB63>$H$5,_xll.RssFOPMarket("147026518","ベガ"),_xll.RssFOPMarket("137026518","ベガ"))),0) -> 30.987 | AK63: =IFERROR(IF($E$4,GammaCP($H$5,AB63,0,0,AH63,$D$5/365),IF(AB63>$H$5,_xll.RssFOPMarket("147026518","ガンマ"),_xll.RssFOPMarket("137026518","ガンマ"))),0) -> 0.0001 | AL63: =IFERROR(IF($E$4,Theta($H$5,AB63,0,0,AH63,$D$5/365,365),IF(AB63>$H$5,_xll.RssFOPMarket("147026518","セータ"),_xll.RssFOPMarket("137026518","セータ"))),0) -> -6.8 | CA63: 0 | CB63: 0 | CC63: 0 | CD63: 0 | CE63: 0 | CF63: 0 | CG63: 0 | CH63: 0 | CI63: 0 | CJ63: 0 | CK63: 0 | CL63: 0 | CM63: 0 | CN63: 0 | CO63: 0 | CP63: 0 | CQ63: 0 | CR63: 0 | CS63: 0 | CT63: 0 | CU63: 0 | CV63: 0 | CW63: 0 | CX63: 0
C64: =IFERROR(IF($E$4,IF($H$4<=H64,DeltaC($H$4,H64,0,0,N64,$D$4/365),I64+1),IF(H64>$H$4,_xll.RssFOPMarket("147016818","デルタ"),_xll.RssFOPMarket("137016818","デルタ")+1)),0) -> 0.8322 | D64: =IFERROR(IF($H$4<H64,OFFSET(OpData!I1098,$E$4,,1,1),$H$4+OFFSET(OpData!S1098,$E$4,,1,1)-H64),0) -> 1820 | H64: 26875 | I64: =IFERROR(IF($E$4,IF($H$4>=H64,DeltaP($H$4,H64,0,0,N64,$D$4/365),C64-1),IF(H64>$H$4,_xll.RssFOPMarket("147016818","デルタ")-1,_xll.RssFOPMarket("137016818","デルタ"))),0) -> -0.1678 | J64: =IFERROR(IF($H$4>H64,OFFSET(OpData!S1098,$E$4,,1,1),OFFSET(OpData!I1098,$E$4,,1,1)+H64-$H$4),0) -> 170 | N64: =IFERROR(IF($E$4,IF($H$4<H64,IVC(D64,$H$4,H64,0,0,$D$4/365),IVP(J64,$H$4,H64,0,0,$D$4/365)),IF(H64>$H$4,_xll.RssFOPMarket("147016818","IV"),_xll.RssFOPMarket("137016818","IV"))/100),0) -> 0.2336 | P64: =IFERROR(IF($E$4,Vega($H$4,H64,0,0,N64,$D$4/365),IF(H64>$H$4,_xll.RssFOPMarket("147016818","ベガ"),_xll.RssFOPMarket("137016818","ベガ"))),0) -> 19.838 | Q64: =IFERROR(IF($E$4,GammaCP($H$4,H64,0,0,N64,$D$4/365),IF(H64>$H$4,_xll.RssFOPMarket("147016818","ガンマ"),_xll.RssFOPMarket("137016818","ガンマ"))),0) -> 0.0001 | R64: =IFERROR(IF($E$4,Theta($H$4,H64,0,0,N64,$D$4/365,365),IF(H64>$H$4,_xll.RssFOPMarket("147016818","セータ"),_xll.RssFOPMarket("137016818","セータ"))),0) -> -8.292 | W64: =IFERROR(IF($E$4,IF($H$5<=AB64,DeltaC($H$5,AB64,0,0,AH64,$D$5/365),AC64+1),IF(AB64>$H$5,_xll.RssFOPMarket("147026318","デルタ"),_xll.RssFOPMarket("137026318","デルタ")+1)),0) -> 0.8526 | X64: =IFERROR(IF($H$5<AB64,OFFSET(OpData!AC1098,$E$4,,1,1),$H$5+OFFSET(OpData!AM1098,$E$4,,1,1)-AB64),0) -> 2155 | AB64: 26375 | AC64: =IFERROR(IF($E$4,IF($H$5>=AB64,DeltaP($H$5,AB64,0,0,AH64,$D$5/365),W64-1),IF(AB64>$H$5,_xll.RssFOPMarket("147026318","デルタ")-1,_xll.RssFOPMarket("137026318","デルタ"))),0) -> -0.1474 | AD64: =IFERROR(IF($H$5>AB64,OFFSET(OpData!AM1098,$E$4,,1,1),OFFSET(OpData!AC1098,$E$4,,1,1)+AB64-$H$5),0) -> 0 | AH64: =IFERROR(IF($E$4,IF($H$5<AB64,IVC(X64,$H$5,AB64,0,0,$D$5/365),IVP(AD64,$H$5,AB64,0,0,$D$5/365)),IF(AB64>$H$5,_xll.RssFOPMarket("147026318","IV"),_xll.RssFOPMarket("137026318","IV"))/100),0) -> 0.2356 | AJ64: =IFERROR(IF($E$4,Vega($H$5,AB64,0,0,AH64,$D$5/365),IF(AB64>$H$5,_xll.RssFOPMarket("147026318","ベガ"),_xll.RssFOPMarket("137026318","ベガ"))),0) -> 26.002 | AK64: =IFERROR(IF($E$4,GammaCP($H$5,AB64,0,0,AH64,$D$5/365),IF(AB64>$H$5,_xll.RssFOPMarket("147026318","ガンマ"),_xll.RssFOPMarket("137026318","ガンマ"))),0) -> 0.0001 | AL64: =IFERROR(IF($E$4,Theta($H$5,AB64,0,0,AH64,$D$5/365,365),IF(AB64>$H$5,_xll.RssFOPMarket("147026318","セータ"),_xll.RssFOPMarket("137026318","セータ"))),0) -> -5.918 | CA64: 0 | CB64: 0 | CC64: 0 | CD64: 0 | CE64: 0 | CF64: 0 | CG64: 0 | CH64: 0 | CI64: 0 | CJ64: 0 | CK64: 0 | CL64: 0 | CM64: 0 | CN64: 0 | CO64: 0 | CP64: 0 | CQ64: 0 | CR64: 0 | CS64: 0 | CT64: 0 | CU64: 0 | CV64: 0 | CW64: 0 | CX64: 0
C65: =IFERROR(IF($E$4,IF($H$4<=H65,DeltaC($H$4,H65,0,0,N65,$D$4/365),I65+1),IF(H65>$H$4,_xll.RssFOPMarket("147016718","デルタ"),_xll.RssFOPMarket("137016718","デルタ")+1)),0) -> 0.8392 | D65: =IFERROR(IF($H$4<H65,OFFSET(OpData!I1118,$E$4,,1,1),$H$4+OFFSET(OpData!S1118,$E$4,,1,1)-H65),0) -> 1940 | H65: 26750 | I65: =IFERROR(IF($E$4,IF($H$4>=H65,DeltaP($H$4,H65,0,0,N65,$D$4/365),C65-1),IF(H65>$H$4,_xll.RssFOPMarket("147016718","デルタ")-1,_xll.RssFOPMarket("137016718","デルタ"))),0) -> -0.1608 | J65: =IFERROR(IF($H$4>H65,OFFSET(OpData!S1118,$E$4,,1,1),OFFSET(OpData!I1118,$E$4,,1,1)+H65-$H$4),0) -> 165 | N65: =IFERROR(IF($E$4,IF($H$4<H65,IVC(D65,$H$4,H65,0,0,$D$4/365),IVP(J65,$H$4,H65,0,0,$D$4/365)),IF(H65>$H$4,_xll.RssFOPMarket("147016718","IV"),_xll.RssFOPMarket("137016718","IV"))/100),0) -> 0.2388 | P65: =IFERROR(IF($E$4,Vega($H$4,H65,0,0,N65,$D$4/365),IF(H65>$H$4,_xll.RssFOPMarket("147016718","ベガ"),_xll.RssFOPMarket("137016718","ベガ"))),0) -> 19.292 | Q65: =IFERROR(IF($E$4,GammaCP($H$4,H65,0,0,N65,$D$4/365),IF(H65>$H$4,_xll.RssFOPMarket("147016718","ガンマ"),_xll.RssFOPMarket("137016718","ガンマ"))),0) -> 0.0001 | R65: =IFERROR(IF($E$4,Theta($H$4,H65,0,0,N65,$D$4/365,365),IF(H65>$H$4,_xll.RssFOPMarket("147016718","セータ"),_xll.RssFOPMarket("137016718","セータ"))),0) -> -8.503 | W65: =IFERROR(IF($E$4,IF($H$5<=AB65,DeltaC($H$5,AB65,0,0,AH65,$D$5/365),AC65+1),IF(AB65>$H$5,_xll.RssFOPMarket("147026218","デルタ"),_xll.RssFOPMarket("137026218","デルタ")+1)),0) -> 0.8254 | X65: =IFERROR(IF($H$5<AB65,OFFSET(OpData!AC1118,$E$4,,1,1),$H$5+OFFSET(OpData!AM1118,$E$4,,1,1)-AB65),0) -> 2280 | AB65: 26250 | AC65: =IFERROR(IF($E$4,IF($H$5>=AB65,DeltaP($H$5,AB65,0,0,AH65,$D$5/365),W65-1),IF(AB65>$H$5,_xll.RssFOPMarket("147026218","デルタ")-1,_xll.RssFOPMarket("137026218","デルタ"))),0) -> -0.1746 | AD65: =IFERROR(IF($H$5>AB65,OFFSET(OpData!AM1118,$E$4,,1,1),OFFSET(OpData!AC1118,$E$4,,1,1)+AB65-$H$5),0) -> 0 | AH65: =IFERROR(IF($E$4,IF($H$5<AB65,IVC(X65,$H$5,AB65,0,0,$D$5/365),IVP(AD65,$H$5,AB65,0,0,$D$5/365)),IF(AB65>$H$5,_xll.RssFOPMarket("147026218","IV"),_xll.RssFOPMarket("137026218","IV"))/100),0) -> 0.2393 | AJ65: =IFERROR(IF($E$4,Vega($H$5,AB65,0,0,AH65,$D$5/365),IF(AB65>$H$5,_xll.RssFOPMarket("147026218","ベガ"),_xll.RssFOPMarket("137026218","ベガ"))),0) -> 28.558 | AK65: =IFERROR(IF($E$4,GammaCP($H$5,AB65,0,0,AH65,$D$5/365),IF(AB65>$H$5,_xll.RssFOPMarket("147026218","ガンマ"),_xll.RssFOPMarket("137026218","ガンマ"))),0) -> 0.0001 | AL65: =IFERROR(IF($E$4,Theta($H$5,AB65,0,0,AH65,$D$5/365,365),IF(AB65>$H$5,_xll.RssFOPMarket("147026218","セータ"),_xll.RssFOPMarket("137026218","セータ"))),0) -> -6.469 | CA65: 0 | CB65: 0 | CC65: 0 | CD65: 0 | CE65: 0 | CF65: 0 | CG65: 0 | CH65: 0 | CI65: 0 | CJ65: 0 | CK65: 0 | CL65: 0 | CM65: 0 | CN65: 0 | CO65: 0 | CP65: 0 | CQ65: 0 | CR65: 0 | CS65: 0 | CT65: 0 | CU65: 0 | CV65: 0 | CW65: 0 | CX65: 0
C66: =IFERROR(IF($E$4,IF($H$4<=H66,DeltaC($H$4,H66,0,0,N66,$D$4/365),I66+1),IF(H66>$H$4,_xll.RssFOPMarket("147016618","デルタ"),_xll.RssFOPMarket("137016618","デルタ")+1)),0) -> 0.853 | D66: =IFERROR(IF($H$4<H66,OFFSET(OpData!I1138,$E$4,,1,1),$H$4+OFFSET(OpData!S1138,$E$4,,1,1)-H66),0) -> 2050 | H66: 26625 | I66: =IFERROR(IF($E$4,IF($H$4>=H66,DeltaP($H$4,H66,0,0,N66,$D$4/365),C66-1),IF(H66>$H$4,_xll.RssFOPMarket("147016618","デルタ")-1,_xll.RssFOPMarket("137016618","デルタ"))),0) -> -0.147 | J66: =IFERROR(IF($H$4>H66,OFFSET(OpData!S1138,$E$4,,1,1),OFFSET(OpData!I1138,$E$4,,1,1)+H66-$H$4),0) -> 150 | N66: =IFERROR(IF($E$4,IF($H$4<H66,IVC(D66,$H$4,H66,0,0,$D$4/365),IVP(J66,$H$4,H66,0,0,$D$4/365)),IF(H66>$H$4,_xll.RssFOPMarket("147016618","IV"),_xll.RssFOPMarket("137016618","IV"))/100),0) -> 0.2428 | P66: =IFERROR(IF($E$4,Vega($H$4,H66,0,0,N66,$D$4/365),IF(H66>$H$4,_xll.RssFOPMarket("147016618","ベガ"),_xll.RssFOPMarket("137016618","ベガ"))),0) -> 18.181 | Q66: =IFERROR(IF($E$4,GammaCP($H$4,H66,0,0,N66,$D$4/365),IF(H66>$H$4,_xll.RssFOPMarket("147016618","ガンマ"),_xll.RssFOPMarket("137016618","ガンマ"))),0) -> 0.0001 | R66: =IFERROR(IF($E$4,Theta($H$4,H66,0,0,N66,$D$4/365,365),IF(H66>$H$4,_xll.RssFOPMarket("147016618","セータ"),_xll.RssFOPMarket("137016618","セータ"))),0) -> -8.096 | W66: =IFERROR(IF($E$4,IF($H$5<=AB66,DeltaC($H$5,AB66,0,0,AH66,$D$5/365),AC66+1),IF(AB66>$H$5,_xll.RssFOPMarket("147026118","デルタ"),_xll.RssFOPMarket("137026118","デルタ")+1)),0) -> 0.8323 | X66: =IFERROR(IF($H$5<AB66,OFFSET(OpData!AC1138,$E$4,,1,1),$H$5+OFFSET(OpData!AM1138,$E$4,,1,1)-AB66),0) -> 2405 | AB66: 26125 | AC66: =IFERROR(IF($E$4,IF($H$5>=AB66,DeltaP($H$5,AB66,0,0,AH66,$D$5/365),W66-1),IF(AB66>$H$5,_xll.RssFOPMarket("147026118","デルタ")-1,_xll.RssFOPMarket("137026118","デルタ"))),0) -> -0.1677 | AD66: =IFERROR(IF($H$5>AB66,OFFSET(OpData!AM1138,$E$4,,1,1),OFFSET(OpData!AC1138,$E$4,,1,1)+AB66-$H$5),0) -> 0 | AH66: =IFERROR(IF($E$4,IF($H$5<AB66,IVC(X66,$H$5,AB66,0,0,$D$5/365),IVP(AD66,$H$5,AB66,0,0,$D$5/365)),IF(AB66>$H$5,_xll.RssFOPMarket("147026118","IV"),_xll.RssFOPMarket("137026118","IV"))/100),0) -> 0.2426 | AJ66: =IFERROR(IF($E$4,Vega($H$5,AB66,0,0,AH66,$D$5/365),IF(AB66>$H$5,_xll.RssFOPMarket("147026118","ベガ"),_xll.RssFOPMarket("137026118","ベガ"))),0) -> 27.795 | AK66: =IFERROR(IF($E$4,GammaCP($H$5,AB66,0,0,AH66,$D$5/365),IF(AB66>$H$5,_xll.RssFOPMarket("147026118","ガンマ"),_xll.RssFOPMarket("137026118","ガンマ"))),0) -> 0.0001 | AL66: =IFERROR(IF($E$4,Theta($H$5,AB66,0,0,AH66,$D$5/365,365),IF(AB66>$H$5,_xll.RssFOPMarket("147026118","セータ"),_xll.RssFOPMarket("137026118","セータ"))),0) -> -6.356 | CA66: 0 | CB66: 0 | CC66: 0 | CD66: 0 | CE66: 0 | CF66: 0 | CG66: 0 | CH66: 0 | CI66: 0 | CJ66: 0 | CK66: 0 | CL66: 0 | CM66: 0 | CN66: 0 | CO66: 0 | CP66: 0 | CQ66: 0 | CR66: 0 | CS66: 0 | CT66: 0 | CU66: 0 | CV66: 0 | CW66: 0 | CX66: 0
C67: =IFERROR(IF($E$4,IF($H$4<=H67,DeltaC($H$4,H67,0,0,N67,$D$4/365),I67+1),IF(H67>$H$4,_xll.RssFOPMarket("147016518","デルタ"),_xll.RssFOPMarket("137016518","デルタ")+1)),0) -> 0.8671 | D67: =IFERROR(IF($H$4<H67,OFFSET(OpData!I1158,$E$4,,1,1),$H$4+OFFSET(OpData!S1158,$E$4,,1,1)-H67),0) -> 2160 | H67: 26500 | I67: =IFERROR(IF($E$4,IF($H$4>=H67,DeltaP($H$4,H67,0,0,N67,$D$4/365),C67-1),IF(H67>$H$4,_xll.RssFOPMarket("147016518","デルタ")-1,_xll.RssFOPMarket("137016518","デルタ"))),0) -> -0.1329 | J67: =IFERROR(IF($H$4>H67,OFFSET(OpData!S1158,$E$4,,1,1),OFFSET(OpData!I1158,$E$4,,1,1)+H67-$H$4),0) -> 135 | N67: =IFERROR(IF($E$4,IF($H$4<H67,IVC(D67,$H$4,H67,0,0,$D$4/365),IVP(J67,$H$4,H67,0,0,$D$4/365)),IF(H67>$H$4,_xll.RssFOPMarket("147016518","IV"),_xll.RssFOPMarket("137016518","IV"))/100),0) -> 0.2475 | P67: =IFERROR(IF($E$4,Vega($H$4,H67,0,0,N67,$D$4/365),IF(H67>$H$4,_xll.RssFOPMarket("147016518","ベガ"),_xll.RssFOPMarket("137016518","ベガ"))),0) -> 16.983 | Q67: =IFERROR(IF($E$4,GammaCP($H$4,H67,0,0,N67,$D$4/365),IF(H67>$H$4,_xll.RssFOPMarket("147016518","ガンマ"),_xll.RssFOPMarket("137016518","ガンマ"))),0) -> 0.0001 | R67: =IFERROR(IF($E$4,Theta($H$4,H67,0,0,N67,$D$4/365,365),IF(H67>$H$4,_xll.RssFOPMarket("147016518","セータ"),_xll.RssFOPMarket("137016518","セータ"))),0) -> -7.568 | W67: =IFERROR(IF($E$4,IF($H$5<=AB67,DeltaC($H$5,AB67,0,0,AH67,$D$5/365),AC67+1),IF(AB67>$H$5,_xll.RssFOPMarket("147026018","デルタ"),_xll.RssFOPMarket("137026018","デルタ")+1)),0) -> 0.8493 | X67: =IFERROR(IF($H$5<AB67,OFFSET(OpData!AC1158,$E$4,,1,1),$H$5+OFFSET(OpData!AM1158,$E$4,,1,1)-AB67),0) -> 2755 | AB67: 26000 | AC67: =IFERROR(IF($E$4,IF($H$5>=AB67,DeltaP($H$5,AB67,0,0,AH67,$D$5/365),W67-1),IF(AB67>$H$5,_xll.RssFOPMarket("147026018","デルタ")-1,_xll.RssFOPMarket("137026018","デルタ"))),0) -> -0.1507 | AD67: =IFERROR(IF($H$5>AB67,OFFSET(OpData!AM1158,$E$4,,1,1),OFFSET(OpData!AC1158,$E$4,,1,1)+AB67-$H$5),0) -> 225 | AH67: =IFERROR(IF($E$4,IF($H$5<AB67,IVC(X67,$H$5,AB67,0,0,$D$5/365),IVP(AD67,$H$5,AB67,0,0,$D$5/365)),IF(AB67>$H$5,_xll.RssFOPMarket("147026018","IV"),_xll.RssFOPMarket("137026018","IV"))/100),0) -> 0.2487 | AJ67: =IFERROR(IF($E$4,Vega($H$5,AB67,0,0,AH67,$D$5/365),IF(AB67>$H$5,_xll.RssFOPMarket("147026018","ベガ"),_xll.RssFOPMarket("137026018","ベガ"))),0) -> 25.937 | AK67: =IFERROR(IF($E$4,GammaCP($H$5,AB67,0,0,AH67,$D$5/365),IF(AB67>$H$5,_xll.RssFOPMarket("147026018","ガンマ"),_xll.RssFOPMarket("137026018","ガンマ"))),0) -> 0.0001 | AL67: =IFERROR(IF($E$4,Theta($H$5,AB67,0,0,AH67,$D$5/365,365),IF(AB67>$H$5,_xll.RssFOPMarket("147026018","セータ"),_xll.RssFOPMarket("137026018","セータ"))),0) -> -5.723 | CA67: 0 | CB67: 0 | CC67: 0 | CD67: 0 | CE67: 0 | CF67: 0 | CG67: 0 | CH67: 0 | CI67: 0 | CJ67: 0 | CK67: 0 | CL67: 0 | CM67: 0 | CN67: 0 | CO67: 0 | CP67: 0 | CQ67: 0 | CR67: 0 | CS67: 0 | CT67: 0 | CU67: 0 | CV67: 0 | CW67: 0 | CX67: 0
C68: =IFERROR(IF($E$4,IF($H$4<=H68,DeltaC($H$4,H68,0,0,N68,$D$4/365),I68+1),IF(H68>$H$4,_xll.RssFOPMarket("147016318","デルタ"),_xll.RssFOPMarket("137016318","デルタ")+1)),0) -> 0.8729 | D68: =IFERROR(IF($H$4<H68,OFFSET(OpData!I1178,$E$4,,1,1),$H$4+OFFSET(OpData!S1178,$E$4,,1,1)-H68),0) -> 2280 | H68: 26375 | I68: =IFERROR(IF($E$4,IF($H$4>=H68,DeltaP($H$4,H68,0,0,N68,$D$4/365),C68-1),IF(H68>$H$4,_xll.RssFOPMarket("147016318","デルタ")-1,_xll.RssFOPMarket("137016318","デルタ"))),0) -> -0.1271 | J68: =IFERROR(IF($H$4>H68,OFFSET(OpData!S1178,$E$4,,1,1),OFFSET(OpData!I1178,$E$4,,1,1)+H68-$H$4),0) -> 130 | N68: =IFERROR(IF($E$4,IF($H$4<H68,IVC(D68,$H$4,H68,0,0,$D$4/365),IVP(J68,$H$4,H68,0,0,$D$4/365)),IF(H68>$H$4,_xll.RssFOPMarket("147016318","IV"),_xll.RssFOPMarket("137016318","IV"))/100),0) -> 0.2517 | P68: =IFERROR(IF($E$4,Vega($H$4,H68,0,0,N68,$D$4/365),IF(H68>$H$4,_xll.RssFOPMarket("147016318","ベガ"),_xll.RssFOPMarket("137016318","ベガ"))),0) -> 16.455 | Q68: =IFERROR(IF($E$4,GammaCP($H$4,H68,0,0,N68,$D$4/365),IF(H68>$H$4,_xll.RssFOPMarket("147016318","ガンマ"),_xll.RssFOPMarket("137016318","ガンマ"))),0) -> 0.0001 | R68: =IFERROR(IF($E$4,Theta($H$4,H68,0,0,N68,$D$4/365,365),IF(H68>$H$4,_xll.RssFOPMarket("147016318","セータ"),_xll.RssFOPMarket("137016318","セータ"))),0) -> -7.671 | W68: =IFERROR(IF($E$4,IF($H$5<=AB68,DeltaC($H$5,AB68,0,0,AH68,$D$5/365),AC68+1),IF(AB68>$H$5,_xll.RssFOPMarket("147025818","デルタ"),_xll.RssFOPMarket("137025818","デルタ")+1)),0) -> 0.8608 | X68: =IFERROR(IF($H$5<AB68,OFFSET(OpData!AC1178,$E$4,,1,1),$H$5+OFFSET(OpData!AM1178,$E$4,,1,1)-AB68),0) -> 2655 | AB68: 25875 | AC68: =IFERROR(IF($E$4,IF($H$5>=AB68,DeltaP($H$5,AB68,0,0,AH68,$D$5/365),W68-1),IF(AB68>$H$5,_xll.RssFOPMarket("147025818","デルタ")-1,_xll.RssFOPMarket("137025818","デルタ"))),0) -> -0.1392 | AD68: =IFERROR(IF($H$5>AB68,OFFSET(OpData!AM1178,$E$4,,1,1),OFFSET(OpData!AC1178,$E$4,,1,1)+AB68-$H$5),0) -> 0 | AH68: =IFERROR(IF($E$4,IF($H$5<AB68,IVC(X68,$H$5,AB68,0,0,$D$5/365),IVP(AD68,$H$5,AB68,0,0,$D$5/365)),IF(AB68>$H$5,_xll.RssFOPMarket("147025818","IV"),_xll.RssFOPMarket("137025818","IV"))/100),0) -> 0.2501 | AJ68: =IFERROR(IF($E$4,Vega($H$5,AB68,0,0,AH68,$D$5/365),IF(AB68>$H$5,_xll.RssFOPMarket("147025818","ベガ"),_xll.RssFOPMarket("137025818","ベガ"))),0) -> 25.535 | AK68: =IFERROR(IF($E$4,GammaCP($H$5,AB68,0,0,AH68,$D$5/365),IF(AB68>$H$5,_xll.RssFOPMarket("147025818","ガンマ"),_xll.RssFOPMarket("137025818","ガンマ"))),0) -> 0.0001 | AL68: =IFERROR(IF($E$4,Theta($H$5,AB68,0,0,AH68,$D$5/365,365),IF(AB68>$H$5,_xll.RssFOPMarket("147025818","セータ"),_xll.RssFOPMarket("137025818","セータ"))),0) -> -5.264 | CA68: 0 | CB68: 0 | CC68: 0 | CD68: 0 | CE68: 0 | CF68: 0 | CG68: 0 | CH68: 0 | CI68: 0 | CJ68: 0 | CK68: 0 | CL68: 0 | CM68: 0 | CN68: 0 | CO68: 0 | CP68: 0 | CQ68: 0 | CR68: 0 | CS68: 0 | CT68: 0 | CU68: 0 | CV68: 0 | CW68: 0 | CX68: 0
C69: =IFERROR(IF($E$4,IF($H$4<=H69,DeltaC($H$4,H69,0,0,N69,$D$4/365),I69+1),IF(H69>$H$4,_xll.RssFOPMarket("147016218","デルタ"),_xll.RssFOPMarket("137016218","デルタ")+1)),0) -> 0.8869 | D69: =IFERROR(IF($H$4<H69,OFFSET(OpData!I1198,$E$4,,1,1),$H$4+OFFSET(OpData!S1198,$E$4,,1,1)-H69),0) -> 2390 | H69: 26250 | I69: =IFERROR(IF($E$4,IF($H$4>=H69,DeltaP($H$4,H69,0,0,N69,$D$4/365),C69-1),IF(H69>$H$4,_xll.RssFOPMarket("147016218","デルタ")-1,_xll.RssFOPMarket("137016218","デルタ"))),0) -> -0.1131 | J69: =IFERROR(IF($H$4>H69,OFFSET(OpData!S1198,$E$4,,1,1),OFFSET(OpData!I1198,$E$4,,1,1)+H69-$H$4),0) -> 115 | N69: =IFERROR(IF($E$4,IF($H$4<H69,IVC(D69,$H$4,H69,0,0,$D$4/365),IVP(J69,$H$4,H69,0,0,$D$4/365)),IF(H69>$H$4,_xll.RssFOPMarket("147016218","IV"),_xll.RssFOPMarket("137016218","IV"))/100),0) -> 0.2568 | P69: =IFERROR(IF($E$4,Vega($H$4,H69,0,0,N69,$D$4/365),IF(H69>$H$4,_xll.RssFOPMarket("147016218","ベガ"),_xll.RssFOPMarket("137016218","ベガ"))),0) -> 15.162 | Q69: =IFERROR(IF($E$4,GammaCP($H$4,H69,0,0,N69,$D$4/365),IF(H69>$H$4,_xll.RssFOPMarket("147016218","ガンマ"),_xll.RssFOPMarket("137016218","ガンマ"))),0) -> 0.0001 | R69: =IFERROR(IF($E$4,Theta($H$4,H69,0,0,N69,$D$4/365,365),IF(H69>$H$4,_xll.RssFOPMarket("147016218","セータ"),_xll.RssFOPMarket("137016218","セータ"))),0) -> -6.987 | W69: =IFERROR(IF($E$4,IF($H$5<=AB69,DeltaC($H$5,AB69,0,0,AH69,$D$5/365),AC69+1),IF(AB69>$H$5,_xll.RssFOPMarket("147025718","デルタ"),_xll.RssFOPMarket("137025718","デルタ")+1)),0) -> 0.8586 | X69: =IFERROR(IF($H$5<AB69,OFFSET(OpData!AC1198,$E$4,,1,1),$H$5+OFFSET(OpData!AM1198,$E$4,,1,1)-AB69),0) -> 2780 | AB69: 25750 | AC69: =IFERROR(IF($E$4,IF($H$5>=AB69,DeltaP($H$5,AB69,0,0,AH69,$D$5/365),W69-1),IF(AB69>$H$5,_xll.RssFOPMarket("147025718","デルタ")-1,_xll.RssFOPMarket("137025718","デルタ"))),0) -> -0.1414 | AD69: =IFERROR(IF($H$5>AB69,OFFSET(OpData!AM1198,$E$4,,1,1),OFFSET(OpData!AC1198,$E$4,,1,1)+AB69-$H$5),0) -> 0 | AH69: =IFERROR(IF($E$4,IF($H$5<AB69,IVC(X69,$H$5,AB69,0,0,$D$5/365),IVP(AD69,$H$5,AB69,0,0,$D$5/365)),IF(AB69>$H$5,_xll.RssFOPMarket("147025718","IV"),_xll.RssFOPMarket("137025718","IV"))/100),0) -> 0.2524 | AJ69: =IFERROR(IF($E$4,Vega($H$5,AB69,0,0,AH69,$D$5/365),IF(AB69>$H$5,_xll.RssFOPMarket("147025718","ベガ"),_xll.RssFOPMarket("137025718","ベガ"))),0) -> 24.836 | AK69: =IFERROR(IF($E$4,GammaCP($H$5,AB69,0,0,AH69,$D$5/365),IF(AB69>$H$5,_xll.RssFOPMarket("147025718","ガンマ"),_xll.RssFOPMarket("137025718","ガンマ"))),0) -> 0.0001 | AL69: =IFERROR(IF($E$4,Theta($H$5,AB69,0,0,AH69,$D$5/365,365),IF(AB69>$H$5,_xll.RssFOPMarket("147025718","セータ"),_xll.RssFOPMarket("137025718","セータ"))),0) -> -5.917 | CA69: 0 | CB69: 0 | CC69: 0 | CD69: 0 | CE69: 0 | CF69: 0 | CG69: 0 | CH69: 0 | CI69: 0 | CJ69: 0 | CK69: 0 | CL69: 0 | CM69: 0 | CN69: 0 | CO69: 0 | CP69: 0 | CQ69: 0 | CR69: 0 | CS69: 0 | CT69: 0 | CU69: 0 | CV69: 0 | CW69: 0 | CX69: 0
C70: =IFERROR(IF($E$4,IF($H$4<=H70,DeltaC($H$4,H70,0,0,N70,$D$4/365),I70+1),IF(H70>$H$4,_xll.RssFOPMarket("147016118","デルタ"),_xll.RssFOPMarket("137016118","デルタ")+1)),0) -> 0.8964 | D70: =IFERROR(IF($H$4<H70,OFFSET(OpData!I1218,$E$4,,1,1),$H$4+OFFSET(OpData!S1218,$E$4,,1,1)-H70),0) -> 2505 | H70: 26125 | I70: =IFERROR(IF($E$4,IF($H$4>=H70,DeltaP($H$4,H70,0,0,N70,$D$4/365),C70-1),IF(H70>$H$4,_xll.RssFOPMarket("147016118","デルタ")-1,_xll.RssFOPMarket("137016118","デルタ"))),0) -> -0.1036 | J70: =IFERROR(IF($H$4>H70,OFFSET(OpData!S1218,$E$4,,1,1),OFFSET(OpData!I1218,$E$4,,1,1)+H70-$H$4),0) -> 105 | N70: =IFERROR(IF($E$4,IF($H$4<H70,IVC(D70,$H$4,H70,0,0,$D$4/365),IVP(J70,$H$4,H70,0,0,$D$4/365)),IF(H70>$H$4,_xll.RssFOPMarket("147016118","IV"),_xll.RssFOPMarket("137016118","IV"))/100),0) -> 0.2606 | P70: =IFERROR(IF($E$4,Vega($H$4,H70,0,0,N70,$D$4/365),IF(H70>$H$4,_xll.RssFOPMarket("147016118","ベガ"),_xll.RssFOPMarket("137016118","ベガ"))),0) -> 14.24 | Q70: =IFERROR(IF($E$4,GammaCP($H$4,H70,0,0,N70,$D$4/365),IF(H70>$H$4,_xll.RssFOPMarket("147016118","ガンマ"),_xll.RssFOPMarket("137016118","ガンマ"))),0) -> 0.0001 | R70: =IFERROR(IF($E$4,Theta($H$4,H70,0,0,N70,$D$4/365,365),IF(H70>$H$4,_xll.RssFOPMarket("147016118","セータ"),_xll.RssFOPMarket("137016118","セータ"))),0) -> -6.648 | W70: =IFERROR(IF($E$4,IF($H$5<=AB70,DeltaC($H$5,AB70,0,0,AH70,$D$5/365),AC70+1),IF(AB70>$H$5,_xll.RssFOPMarket("銘柄コードは取得できませんでした。","デルタ"),_xll.RssFOPMarket("銘柄コードは取得できませんでした。","デルタ")+1)),0) -> 0 | X70: =IFERROR(IF($H$5<AB70,OFFSET(OpData!AC1218,$E$4,,1,1),$H$5+OFFSET(OpData!AM1218,$E$4,,1,1)-AB70),0) -> 0 | AB70: 25625 | AC70: =IFERROR(IF($E$4,IF($H$5>=AB70,DeltaP($H$5,AB70,0,0,AH70,$D$5/365),W70-1),IF(AB70>$H$5,_xll.RssFOPMarket("銘柄コードは取得できませんでした。","デルタ")-1,_xll.RssFOPMarket("銘柄コードは取得できませんでした。","デルタ"))),0) ->  | AD70: =IFERROR(IF($H$5>AB70,OFFSET(OpData!AM1218,$E$4,,1,1),OFFSET(OpData!AC1218,$E$4,,1,1)+AB70-$H$5),0) ->  | AH70: =IFERROR(IF($E$4,IF($H$5<AB70,IVC(X70,$H$5,AB70,0,0,$D$5/365),IVP(AD70,$H$5,AB70,0,0,$D$5/365)),IF(AB70>$H$5,_xll.RssFOPMarket("銘柄コードは取得できませんでした。","IV"),_xll.RssFOPMarket("銘柄コードは取得できませんでした。","IV"))/100),0) -> 0 | AJ70: =IFERROR(IF($E$4,Vega($H$5,AB70,0,0,AH70,$D$5/365),IF(AB70>$H$5,_xll.RssFOPMarket("銘柄コードは取得できませんでした。","ベガ"),_xll.RssFOPMarket("銘柄コードは取得できませんでした。","ベガ"))),0) ->  | AK70: =IFERROR(IF($E$4,GammaCP($H$5,AB70,0,0,AH70,$D$5/365),IF(AB70>$H$5,_xll.RssFOPMarket("銘柄コードは取得できませんでした。","ガンマ"),_xll.RssFOPMarket("銘柄コードは取得できませんでした。","ガンマ"))),0) ->  | AL70: =IFERROR(IF($E$4,Theta($H$5,AB70,0,0,AH70,$D$5/365,365),IF(AB70>$H$5,_xll.RssFOPMarket("銘柄コードは取得できませんでした。","セータ"),_xll.RssFOPMarket("銘柄コードは取得できませんでした。","セータ"))),0) ->  | CA70: 0 | CB70: 0 | CC70: 0 | CD70: 0 | CE70: 0 | CF70: 0 | CG70: 0 | CH70: 0 | CI70: 0 | CJ70: 0 | CK70: 0 | CL70: 0 | CM70: 0 | CN70: 0 | CO70: 0 | CP70: 0 | CQ70: 0 | CR70: 0 | CS70: 0 | CT70: 0 | CU70: 0 | CV70: 0 | CW70: 0 | CX70: 0
C71: =IFERROR(IF($E$4,IF($H$4<=H71,DeltaC($H$4,H71,0,0,N71,$D$4/365),I71+1),IF(H71>$H$4,_xll.RssFOPMarket("147016018","デルタ"),_xll.RssFOPMarket("137016018","デルタ")+1)),0) -> 0.9033 | D71: =IFERROR(IF($H$4<H71,OFFSET(OpData!I1238,$E$4,,1,1),$H$4+OFFSET(OpData!S1238,$E$4,,1,1)-H71),0) -> 2624 | H71: 26000 | I71: =IFERROR(IF($E$4,IF($H$4>=H71,DeltaP($H$4,H71,0,0,N71,$D$4/365),C71-1),IF(H71>$H$4,_xll.RssFOPMarket("147016018","デルタ")-1,_xll.RssFOPMarket("137016018","デルタ"))),0) -> -0.0967 | J71: =IFERROR(IF($H$4>H71,OFFSET(OpData!S1238,$E$4,,1,1),OFFSET(OpData!I1238,$E$4,,1,1)+H71-$H$4),0) -> 99 | N71: =IFERROR(IF($E$4,IF($H$4<H71,IVC(D71,$H$4,H71,0,0,$D$4/365),IVP(J71,$H$4,H71,0,0,$D$4/365)),IF(H71>$H$4,_xll.RssFOPMarket("147016018","IV"),_xll.RssFOPMarket("137016018","IV"))/100),0) -> 0.2669 | P71: =IFERROR(IF($E$4,Vega($H$4,H71,0,0,N71,$D$4/365),IF(H71>$H$4,_xll.RssFOPMarket("147016018","ベガ"),_xll.RssFOPMarket("137016018","ベガ"))),0) -> 13.543 | Q71: =IFERROR(IF($E$4,GammaCP($H$4,H71,0,0,N71,$D$4/365),IF(H71>$H$4,_xll.RssFOPMarket("147016018","ガンマ"),_xll.RssFOPMarket("137016018","ガンマ"))),0) -> 0.0001 | R71: =IFERROR(IF($E$4,Theta($H$4,H71,0,0,N71,$D$4/365,365),IF(H71>$H$4,_xll.RssFOPMarket("147016018","セータ"),_xll.RssFOPMarket("137016018","セータ"))),0) -> -6.456 | W71: =IFERROR(IF($E$4,IF($H$5<=AB71,DeltaC($H$5,AB71,0,0,AH71,$D$5/365),AC71+1),IF(AB71>$H$5,_xll.RssFOPMarket("147025518","デルタ"),_xll.RssFOPMarket("137025518","デルタ")+1)),0) -> 0.87 | X71: =IFERROR(IF($H$5<AB71,OFFSET(OpData!AC1238,$E$4,,1,1),$H$5+OFFSET(OpData!AM1238,$E$4,,1,1)-AB71),0) -> 3230 | AB71: 25500 | AC71: =IFERROR(IF($E$4,IF($H$5>=AB71,DeltaP($H$5,AB71,0,0,AH71,$D$5/365),W71-1),IF(AB71>$H$5,_xll.RssFOPMarket("147025518","デルタ")-1,_xll.RssFOPMarket("137025518","デルタ"))),0) -> -0.13 | AD71: =IFERROR(IF($H$5>AB71,OFFSET(OpData!AM1238,$E$4,,1,1),OFFSET(OpData!AC1238,$E$4,,1,1)+AB71-$H$5),0) -> 200 | AH71: =IFERROR(IF($E$4,IF($H$5<AB71,IVC(X71,$H$5,AB71,0,0,$D$5/365),IVP(AD71,$H$5,AB71,0,0,$D$5/365)),IF(AB71>$H$5,_xll.RssFOPMarket("147025518","IV"),_xll.RssFOPMarket("137025518","IV"))/100),0) -> 0.2648 | AJ71: =IFERROR(IF($E$4,Vega($H$5,AB71,0,0,AH71,$D$5/365),IF(AB71>$H$5,_xll.RssFOPMarket("147025518","ベガ"),_xll.RssFOPMarket("137025518","ベガ"))),0) -> 23.421 | AK71: =IFERROR(IF($E$4,GammaCP($H$5,AB71,0,0,AH71,$D$5/365),IF(AB71>$H$5,_xll.RssFOPMarket("147025518","ガンマ"),_xll.RssFOPMarket("137025518","ガンマ"))),0) -> 0.0001 | AL71: =IFERROR(IF($E$4,Theta($H$5,AB71,0,0,AH71,$D$5/365,365),IF(AB71>$H$5,_xll.RssFOPMarket("147025518","セータ"),_xll.RssFOPMarket("137025518","セータ"))),0) -> -5.805 | CA71: 0 | CB71: 0 | CC71: 0 | CD71: 0 | CE71: 0 | CF71: 0 | CG71: 0 | CH71: 0 | CI71: 0 | CJ71: 0 | CK71: 0 | CL71: 0 | CM71: 0 | CN71: 0 | CO71: 0 | CP71: 0 | CQ71: 0 | CR71: 0 | CS71: 0 | CT71: 0 | CU71: 0 | CV71: 0 | CW71: 0 | CX71: 0
C72: =IFERROR(IF($E$4,IF($H$4<=H72,DeltaC($H$4,H72,0,0,N72,$D$4/365),I72+1),IF(H72>$H$4,_xll.RssFOPMarket("147015818","デルタ"),_xll.RssFOPMarket("137015818","デルタ")+1)),0) -> 0.9091 | D72: =IFERROR(IF($H$4<H72,OFFSET(OpData!I1258,$E$4,,1,1),$H$4+OFFSET(OpData!S1258,$E$4,,1,1)-H72),0) -> 2742 | H72: 25875 | I72: =IFERROR(IF($E$4,IF($H$4>=H72,DeltaP($H$4,H72,0,0,N72,$D$4/365),C72-1),IF(H72>$H$4,_xll.RssFOPMarket("147015818","デルタ")-1,_xll.RssFOPMarket("137015818","デルタ"))),0) -> -0.0909 | J72: =IFERROR(IF($H$4>H72,OFFSET(OpData!S1258,$E$4,,1,1),OFFSET(OpData!I1258,$E$4,,1,1)+H72-$H$4),0) -> 92 | N72: =IFERROR(IF($E$4,IF($H$4<H72,IVC(D72,$H$4,H72,0,0,$D$4/365),IVP(J72,$H$4,H72,0,0,$D$4/365)),IF(H72>$H$4,_xll.RssFOPMarket("147015818","IV"),_xll.RssFOPMarket("137015818","IV"))/100),0) -> 0.2672 | P72: =IFERROR(IF($E$4,Vega($H$4,H72,0,0,N72,$D$4/365),IF(H72>$H$4,_xll.RssFOPMarket("147015818","ベガ"),_xll.RssFOPMarket("137015818","ベガ"))),0) -> 12.925 | Q72: =IFERROR(IF($E$4,GammaCP($H$4,H72,0,0,N72,$D$4/365),IF(H72>$H$4,_xll.RssFOPMarket("147015818","ガンマ"),_xll.RssFOPMarket("137015818","ガンマ"))),0) -> 0.0001 | R72: =IFERROR(IF($E$4,Theta($H$4,H72,0,0,N72,$D$4/365,365),IF(H72>$H$4,_xll.RssFOPMarket("147015818","セータ"),_xll.RssFOPMarket("137015818","セータ"))),0) -> -6.373 | W72: =IFERROR(IF($E$4,IF($H$5<=AB72,DeltaC($H$5,AB72,0,0,AH72,$D$5/365),AC72+1),IF(AB72>$H$5,_xll.RssFOPMarket("147025218","デルタ"),_xll.RssFOPMarket("137025218","デルタ")+1)),0) -> 0.8903 | X72: =IFERROR(IF($H$5<AB72,OFFSET(OpData!AC1258,$E$4,,1,1),$H$5+OFFSET(OpData!AM1258,$E$4,,1,1)-AB72),0) -> 3280 | AB72: 25250 | AC72: =IFERROR(IF($E$4,IF($H$5>=AB72,DeltaP($H$5,AB72,0,0,AH72,$D$5/365),W72-1),IF(AB72>$H$5,_xll.RssFOPMarket("147025218","デルタ")-1,_xll.RssFOPMarket("137025218","デルタ"))),0) -> -0.1097 | AD72: =IFERROR(IF($H$5>AB72,OFFSET(OpData!AM1258,$E$4,,1,1),OFFSET(OpData!AC1258,$E$4,,1,1)+AB72-$H$5),0) -> 0 | AH72: =IFERROR(IF($E$4,IF($H$5<AB72,IVC(X72,$H$5,AB72,0,0,$D$5/365),IVP(AD72,$H$5,AB72,0,0,$D$5/365)),IF(AB72>$H$5,_xll.RssFOPMarket("147025218","IV"),_xll.RssFOPMarket("137025218","IV"))/100),0) -> 0.267 | AJ72: =IFERROR(IF($E$4,Vega($H$5,AB72,0,0,AH72,$D$5/365),IF(AB72>$H$5,_xll.RssFOPMarket("147025218","ベガ"),_xll.RssFOPMarket("137025218","ベガ"))),0) -> 20.818 | AK72: =IFERROR(IF($E$4,GammaCP($H$5,AB72,0,0,AH72,$D$5/365),IF(AB72>$H$5,_xll.RssFOPMarket("147025218","ガンマ"),_xll.RssFOPMarket("137025218","ガンマ"))),0) -> 0.0001 | AL72: =IFERROR(IF($E$4,Theta($H$5,AB72,0,0,AH72,$D$5/365,365),IF(AB72>$H$5,_xll.RssFOPMarket("147025218","セータ"),_xll.RssFOPMarket("137025218","セータ"))),0) -> -5.17 | CA72: 0 | CB72: 0 | CC72: 0 | CD72: 0 | CE72: 0 | CF72: 0 | CG72: 0 | CH72: 0 | CI72: 0 | CJ72: 0 | CK72: 0 | CL72: 0 | CM72: 0 | CN72: 0 | CO72: 0 | CP72: 0 | CQ72: 0 | CR72: 0 | CS72: 0 | CT72: 0 | CU72: 0 | CV72: 0 | CW72: 0 | CX72: 0
C73: =IFERROR(IF($E$4,IF($H$4<=H73,DeltaC($H$4,H73,0,0,N73,$D$4/365),I73+1),IF(H73>$H$4,_xll.RssFOPMarket("147015718","デルタ"),_xll.RssFOPMarket("137015718","デルタ")+1)),0) -> 0.9189 | D73: =IFERROR(IF($H$4<H73,OFFSET(OpData!I1278,$E$4,,1,1),$H$4+OFFSET(OpData!S1278,$E$4,,1,1)-H73),0) -> 2857 | H73: 25750 | I73: =IFERROR(IF($E$4,IF($H$4>=H73,DeltaP($H$4,H73,0,0,N73,$D$4/365),C73-1),IF(H73>$H$4,_xll.RssFOPMarket("147015718","デルタ")-1,_xll.RssFOPMarket("137015718","デルタ"))),0) -> -0.0811 | J73: =IFERROR(IF($H$4>H73,OFFSET(OpData!S1278,$E$4,,1,1),OFFSET(OpData!I1278,$E$4,,1,1)+H73-$H$4),0) -> 82 | N73: =IFERROR(IF($E$4,IF($H$4<H73,IVC(D73,$H$4,H73,0,0,$D$4/365),IVP(J73,$H$4,H73,0,0,$D$4/365)),IF(H73>$H$4,_xll.RssFOPMarket("147015718","IV"),_xll.RssFOPMarket("137015718","IV"))/100),0) -> 0.2729 | P73: =IFERROR(IF($E$4,Vega($H$4,H73,0,0,N73,$D$4/365),IF(H73>$H$4,_xll.RssFOPMarket("147015718","ベガ"),_xll.RssFOPMarket("137015718","ベガ"))),0) -> 11.875 | Q73: =IFERROR(IF($E$4,GammaCP($H$4,H73,0,0,N73,$D$4/365),IF(H73>$H$4,_xll.RssFOPMarket("147015718","ガンマ"),_xll.RssFOPMarket("137015718","ガンマ"))),0) -> 0.0001 | R73: =IFERROR(IF($E$4,Theta($H$4,H73,0,0,N73,$D$4/365,365),IF(H73>$H$4,_xll.RssFOPMarket("147015718","セータ"),_xll.RssFOPMarket("137015718","セータ"))),0) -> -5.811 | W73: =IFERROR(IF($E$4,IF($H$5<=AB73,DeltaC($H$5,AB73,0,0,AH73,$D$5/365),AC73+1),IF(AB73>$H$5,_xll.RssFOPMarket("147025018","デルタ"),_xll.RssFOPMarket("137025018","デルタ")+1)),0) -> 0.8965 | X73: =IFERROR(IF($H$5<AB73,OFFSET(OpData!AC1278,$E$4,,1,1),$H$5+OFFSET(OpData!AM1278,$E$4,,1,1)-AB73),0) -> 3690 | AB73: 25000 | AC73: =IFERROR(IF($E$4,IF($H$5>=AB73,DeltaP($H$5,AB73,0,0,AH73,$D$5/365),W73-1),IF(AB73>$H$5,_xll.RssFOPMarket("147025018","デルタ")-1,_xll.RssFOPMarket("137025018","デルタ"))),0) -> -0.1035 | AD73: =IFERROR(IF($H$5>AB73,OFFSET(OpData!AM1278,$E$4,,1,1),OFFSET(OpData!AC1278,$E$4,,1,1)+AB73-$H$5),0) -> 160 | AH73: =IFERROR(IF($E$4,IF($H$5<AB73,IVC(X73,$H$5,AB73,0,0,$D$5/365),IVP(AD73,$H$5,AB73,0,0,$D$5/365)),IF(AB73>$H$5,_xll.RssFOPMarket("147025018","IV"),_xll.RssFOPMarket("137025018","IV"))/100),0) -> 0.2792 | AJ73: =IFERROR(IF($E$4,Vega($H$5,AB73,0,0,AH73,$D$5/365),IF(AB73>$H$5,_xll.RssFOPMarket("147025018","ベガ"),_xll.RssFOPMarket("137025018","ベガ"))),0) -> 19.935 | AK73: =IFERROR(IF($E$4,GammaCP($H$5,AB73,0,0,AH73,$D$5/365),IF(AB73>$H$5,_xll.RssFOPMarket("147025018","ガンマ"),_xll.RssFOPMarket("137025018","ガンマ"))),0) -> 0.0001 | AL73: =IFERROR(IF($E$4,Theta($H$5,AB73,0,0,AH73,$D$5/365,365),IF(AB73>$H$5,_xll.RssFOPMarket("147025018","セータ"),_xll.RssFOPMarket("137025018","セータ"))),0) -> -5.161 | CA73: 0 | CB73: 0 | CC73: 0 | CD73: 0 | CE73: 0 | CF73: 0 | CG73: 0 | CH73: 0 | CI73: 0 | CJ73: 0 | CK73: 0 | CL73: 0 | CM73: 0 | CN73: 0 | CO73: 0 | CP73: 0 | CQ73: 0 | CR73: 0 | CS73: 0 | CT73: 0 | CU73: 0 | CV73: 0 | CW73: 0 | CX73: 0
C74: =IFERROR(IF($E$4,IF($H$4<=H74,DeltaC($H$4,H74,0,0,N74,$D$4/365),I74+1),IF(H74>$H$4,_xll.RssFOPMarket("147015618","デルタ"),_xll.RssFOPMarket("137015618","デルタ")+1)),0) -> 0.9235 | D74: =IFERROR(IF($H$4<H74,OFFSET(OpData!I1298,$E$4,,1,1),$H$4+OFFSET(OpData!S1298,$E$4,,1,1)-H74),0) -> 2977 | G74: =IF(ABS($H$4-H74)<125,"ATM","") ->  | H74: 25625 | I74: =IFERROR(IF($E$4,IF($H$4>=H74,DeltaP($H$4,H74,0,0,N74,$D$4/365),C74-1),IF(H74>$H$4,_xll.RssFOPMarket("147015618","デルタ")-1,_xll.RssFOPMarket("137015618","デルタ"))),0) -> -0.0765 | J74: =IFERROR(IF($H$4>H74,OFFSET(OpData!S1298,$E$4,,1,1),OFFSET(OpData!I1298,$E$4,,1,1)+H74-$H$4),0) -> 77 | N74: =IFERROR(IF($E$4,IF($H$4<H74,IVC(D74,$H$4,H74,0,0,$D$4/365),IVP(J74,$H$4,H74,0,0,$D$4/365)),IF(H74>$H$4,_xll.RssFOPMarket("147015618","IV"),_xll.RssFOPMarket("137015618","IV"))/100),0) -> 0.2746 | P74: =IFERROR(IF($E$4,Vega($H$4,H74,0,0,N74,$D$4/365),IF(H74>$H$4,_xll.RssFOPMarket("147015618","ベガ"),_xll.RssFOPMarket("137015618","ベガ"))),0) -> 11.354 | Q74: =IFERROR(IF($E$4,GammaCP($H$4,H74,0,0,N74,$D$4/365),IF(H74>$H$4,_xll.RssFOPMarket("147015618","ガンマ"),_xll.RssFOPMarket("137015618","ガンマ"))),0) -> 0.0001 | R74: =IFERROR(IF($E$4,Theta($H$4,H74,0,0,N74,$D$4/365,365),IF(H74>$H$4,_xll.RssFOPMarket("147015618","セータ"),_xll.RssFOPMarket("137015618","セータ"))),0) -> -5.741 | W74: =IFERROR(IF($E$4,IF($H$5<=AB74,DeltaC($H$5,AB74,0,0,AH74,$D$5/365),AC74+1),IF(AB74>$H$5,_xll.RssFOPMarket("147024718","デルタ"),_xll.RssFOPMarket("137024718","デルタ")+1)),0) -> 0.9087 | X74: =IFERROR(IF($H$5<AB74,OFFSET(OpData!AC1298,$E$4,,1,1),$H$5+OFFSET(OpData!AM1298,$E$4,,1,1)-AB74),0) -> 3780 | AA74: =IF(ABS($H$5-AB74)<125,"ATM","") ->  | AB74: 24750 | AC74: =IFERROR(IF($E$4,IF($H$5>=AB74,DeltaP($H$5,AB74,0,0,AH74,$D$5/365),W74-1),IF(AB74>$H$5,_xll.RssFOPMarket("147024718","デルタ")-1,_xll.RssFOPMarket("137024718","デルタ"))),0) -> -0.0913 | AD74: =IFERROR(IF($H$5>AB74,OFFSET(OpData!AM1298,$E$4,,1,1),OFFSET(OpData!AC1298,$E$4,,1,1)+AB74-$H$5),0) -> 0 | AH74: =IFERROR(IF($E$4,IF($H$5<AB74,IVC(X74,$H$5,AB74,0,0,$D$5/365),IVP(AD74,$H$5,AB74,0,0,$D$5/365)),IF(AB74>$H$5,_xll.RssFOPMarket("147024718","IV"),_xll.RssFOPMarket("137024718","IV"))/100),0) -> 0.2851 | AJ74: =IFERROR(IF($E$4,Vega($H$5,AB74,0,0,AH74,$D$5/365),IF(AB74>$H$5,_xll.RssFOPMarket("147024718","ベガ"),_xll.RssFOPMarket("137024718","ベガ"))),0) -> 18.175 | AK74: =IFERROR(IF($E$4,GammaCP($H$5,AB74,0,0,AH74,$D$5/365),IF(AB74>$H$5,_xll.RssFOPMarket("147024718","ガンマ"),_xll.RssFOPMarket("137024718","ガンマ"))),0) -> 0.0001 | AL74: =IFERROR(IF($E$4,Theta($H$5,AB74,0,0,AH74,$D$5/365,365),IF(AB74>$H$5,_xll.RssFOPMarket("147024718","セータ"),_xll.RssFOPMarket("137024718","セータ"))),0) -> -4.781 | CA74: =IF(ISNUMBER($A74*B74),$A74*B74,) -> 0 | CB74: =IF(ISNUMBER($A74*D74),$A74*D74,) -> 0 | CC74: =IF(ISNUMBER($A74*C74),$A74*C74,) -> 0 | CD74: =IF(ISNUMBER($A74*P74),$A74*P74,) -> 0 | CE74: =IF(ISNUMBER($A74*Q74),$A74*Q74,) -> 0 | CF74: =IF(ISNUMBER($A74*R74),$A74*R74,) -> 0 | CG74: =IF(ISNUMBER($S74*T74),$S74*T74,) -> 0 | CH74: =IF(ISNUMBER($S74*J74),$S74*J74,) -> 0 | CI74: =IF(ISNUMBER($S74*I74),$S74*I74,) -> 0 | CJ74: =IF(ISNUMBER($S74*P74),$S74*P74,) -> 0 | CK74: =IF(ISNUMBER($S74*Q74),$S74*Q74,) -> 0 | CL74: =IF(ISNUMBER($S74*R74),$S74*R74,) -> 0 | CM74: =IF(ISNUMBER($U74*V74),$U74*V74,) -> 0 | CN74: =IF(ISNUMBER($U74*X74),$U74*X74,) -> 0 | CO74: =IF(ISNUMBER($U74*W74),$U74*W74,) -> 0 | CP74: =IF(ISNUMBER($U74*AJ74),$U74*AJ74,) -> 0 | CQ74: =IF(ISNUMBER($U74*AK74),$U74*AK74,) -> 0 | CR74: =IF(ISNUMBER($U74*AL74),$U74*AL74,) -> 0 | CS74: =IF(ISNUMBER($AM74*AN74),$AM74*AN74,) -> 0 | CT74: =IF(ISNUMBER($AM74*AD74),$AM74*AD74,) -> 0 | CU74: =IF(ISNUMBER($AM74*AC74),$AM74*AC74,) -> 0 | CV74: =IF(ISNUMBER($AM74*AJ74),$AM74*AJ74,) -> 0 | CW74: =IF(ISNUMBER($AM74*AK74),$AM74*AK74,) -> 0 | CX74: =IF(ISNUMBER($AM74*AL74),$AM74*AL74,) -> 0
C75: =IFERROR(IF($E$4,IF($H$4<=H75,DeltaC($H$4,H75,0,0,N75,$D$4/365),I75+1),IF(H75>$H$4,_xll.RssFOPMarket("147015518","デルタ"),_xll.RssFOPMarket("137015518","デルタ")+1)),0) -> 0.9315 | D75: =IFERROR(IF($H$4<H75,OFFSET(OpData!I1318,$E$4,,1,1),$H$4+OFFSET(OpData!S1318,$E$4,,1,1)-H75),0) -> 3095 | H75: 25500 | I75: =IFERROR(IF($E$4,IF($H$4>=H75,DeltaP($H$4,H75,0,0,N75,$D$4/365),C75-1),IF(H75>$H$4,_xll.RssFOPMarket("147015518","デルタ")-1,_xll.RssFOPMarket("137015518","デルタ"))),0) -> -0.0685 | J75: =IFERROR(IF($H$4>H75,OFFSET(OpData!S1318,$E$4,,1,1),OFFSET(OpData!I1318,$E$4,,1,1)+H75-$H$4),0) -> 70 | N75: =IFERROR(IF($E$4,IF($H$4<H75,IVC(D75,$H$4,H75,0,0,$D$4/365),IVP(J75,$H$4,H75,0,0,$D$4/365)),IF(H75>$H$4,_xll.RssFOPMarket("147015518","IV"),_xll.RssFOPMarket("137015518","IV"))/100),0) -> 0.2802 | P75: =IFERROR(IF($E$4,Vega($H$4,H75,0,0,N75,$D$4/365),IF(H75>$H$4,_xll.RssFOPMarket("147015518","ベガ"),_xll.RssFOPMarket("137015518","ベガ"))),0) -> 10.443 | Q75: =IFERROR(IF($E$4,GammaCP($H$4,H75,0,0,N75,$D$4/365),IF(H75>$H$4,_xll.RssFOPMarket("147015518","ガンマ"),_xll.RssFOPMarket("137015518","ガンマ"))),0) -> 0.0001 | R75: =IFERROR(IF($E$4,Theta($H$4,H75,0,0,N75,$D$4/365,365),IF(H75>$H$4,_xll.RssFOPMarket("147015518","セータ"),_xll.RssFOPMarket("137015518","セータ"))),0) -> -5.258 | W75: =IFERROR(IF($E$4,IF($H$5<=AB75,DeltaC($H$5,AB75,0,0,AH75,$D$5/365),AC75+1),IF(AB75>$H$5,_xll.RssFOPMarket("147024518","デルタ"),_xll.RssFOPMarket("137024518","デルタ")+1)),0) -> 0.9233 | X75: =IFERROR(IF($H$5<AB75,OFFSET(OpData!AC1318,$E$4,,1,1),$H$5+OFFSET(OpData!AM1318,$E$4,,1,1)-AB75),0) -> 4145 | AB75: 24500 | AC75: =IFERROR(IF($E$4,IF($H$5>=AB75,DeltaP($H$5,AB75,0,0,AH75,$D$5/365),W75-1),IF(AB75>$H$5,_xll.RssFOPMarket("147024518","デルタ")-1,_xll.RssFOPMarket("137024518","デルタ"))),0) -> -0.0767 | AD75: =IFERROR(IF($H$5>AB75,OFFSET(OpData!AM1318,$E$4,,1,1),OFFSET(OpData!AC1318,$E$4,,1,1)+AB75-$H$5),0) -> 115 | AH75: =IFERROR(IF($E$4,IF($H$5<AB75,IVC(X75,$H$5,AB75,0,0,$D$5/365),IVP(AD75,$H$5,AB75,0,0,$D$5/365)),IF(AB75>$H$5,_xll.RssFOPMarket("147024518","IV"),_xll.RssFOPMarket("137024518","IV"))/100),0) -> 0.2878 | AJ75: =IFERROR(IF($E$4,Vega($H$5,AB75,0,0,AH75,$D$5/365),IF(AB75>$H$5,_xll.RssFOPMarket("147024518","ベガ"),_xll.RssFOPMarket("137024518","ベガ"))),0) -> 15.95 | AK75: =IFERROR(IF($E$4,GammaCP($H$5,AB75,0,0,AH75,$D$5/365),IF(AB75>$H$5,_xll.RssFOPMarket("147024518","ガンマ"),_xll.RssFOPMarket("137024518","ガンマ"))),0) -> 0.0001 | AL75: =IFERROR(IF($E$4,Theta($H$5,AB75,0,0,AH75,$D$5/365,365),IF(AB75>$H$5,_xll.RssFOPMarket("147024518","セータ"),_xll.RssFOPMarket("137024518","セータ"))),0) -> -4.154 | CA75: 0 | CB75: 0 | CC75: 0 | CD75: 0 | CE75: 0 | CF75: 0 | CG75: 0 | CH75: 0 | CI75: 0 | CJ75: 0 | CK75: 0 | CL75: 0 | CM75: 0 | CN75: 0 | CO75: 0 | CP75: 0 | CQ75: 0 | CR75: 0 | CS75: 0 | CT75: 0 | CU75: 0 | CV75: 0 | CW75: 0 | CX75: 0
C76: =IFERROR(IF($E$4,IF($H$4<=H76,DeltaC($H$4,H76,0,0,N76,$D$4/365),I76+1),IF(H76>$H$4,_xll.RssFOPMarket("147015218","デルタ"),_xll.RssFOPMarket("137015218","デルタ")+1)),0) -> 0.9423 | D76: =IFERROR(IF($H$4<H76,OFFSET(OpData!I1338,$E$4,,1,1),$H$4+OFFSET(OpData!S1338,$E$4,,1,1)-H76),0) -> 3333 | H76: 25250 | I76: =IFERROR(IF($E$4,IF($H$4>=H76,DeltaP($H$4,H76,0,0,N76,$D$4/365),C76-1),IF(H76>$H$4,_xll.RssFOPMarket("147015218","デルタ")-1,_xll.RssFOPMarket("137015218","デルタ"))),0) -> -0.0577 | J76: =IFERROR(IF($H$4>H76,OFFSET(OpData!S1338,$E$4,,1,1),OFFSET(OpData!I1338,$E$4,,1,1)+H76-$H$4),0) -> 58 | N76: =IFERROR(IF($E$4,IF($H$4<H76,IVC(D76,$H$4,H76,0,0,$D$4/365),IVP(J76,$H$4,H76,0,0,$D$4/365)),IF(H76>$H$4,_xll.RssFOPMarket("147015218","IV"),_xll.RssFOPMarket("137015218","IV"))/100),0) -> 0.288 | P76: =IFERROR(IF($E$4,Vega($H$4,H76,0,0,N76,$D$4/365),IF(H76>$H$4,_xll.RssFOPMarket("147015218","ベガ"),_xll.RssFOPMarket("137015218","ベガ"))),0) -> 9.136 | Q76: =IFERROR(IF($E$4,GammaCP($H$4,H76,0,0,N76,$D$4/365),IF(H76>$H$4,_xll.RssFOPMarket("147015218","ガンマ"),_xll.RssFOPMarket("137015218","ガンマ"))),0) -> 0.0001 | R76: =IFERROR(IF($E$4,Theta($H$4,H76,0,0,N76,$D$4/365,365),IF(H76>$H$4,_xll.RssFOPMarket("147015218","セータ"),_xll.RssFOPMarket("137015218","セータ"))),0) -> -4.716 | W76: =IFERROR(IF($E$4,IF($H$5<=AB76,DeltaC($H$5,AB76,0,0,AH76,$D$5/365),AC76+1),IF(AB76>$H$5,_xll.RssFOPMarket("147024218","デルタ"),_xll.RssFOPMarket("137024218","デルタ")+1)),0) -> 0.9341 | X76: =IFERROR(IF($H$5<AB76,OFFSET(OpData!AC1338,$E$4,,1,1),$H$5+OFFSET(OpData!AM1338,$E$4,,1,1)-AB76),0) -> 4378 | AB76: 24250 | AC76: =IFERROR(IF($E$4,IF($H$5>=AB76,DeltaP($H$5,AB76,0,0,AH76,$D$5/365),W76-1),IF(AB76>$H$5,_xll.RssFOPMarket("147024218","デルタ")-1,_xll.RssFOPMarket("137024218","デルタ"))),0) -> -0.0659 | AD76: =IFERROR(IF($H$5>AB76,OFFSET(OpData!AM1338,$E$4,,1,1),OFFSET(OpData!AC1338,$E$4,,1,1)+AB76-$H$5),0) -> 98 | AH76: =IFERROR(IF($E$4,IF($H$5<AB76,IVC(X76,$H$5,AB76,0,0,$D$5/365),IVP(AD76,$H$5,AB76,0,0,$D$5/365)),IF(AB76>$H$5,_xll.RssFOPMarket("147024218","IV"),_xll.RssFOPMarket("137024218","IV"))/100),0) -> 0.2934 | AJ76: =IFERROR(IF($E$4,Vega($H$5,AB76,0,0,AH76,$D$5/365),IF(AB76>$H$5,_xll.RssFOPMarket("147024218","ベガ"),_xll.RssFOPMarket("137024218","ベガ"))),0) -> 14.203 | AK76: =IFERROR(IF($E$4,GammaCP($H$5,AB76,0,0,AH76,$D$5/365),IF(AB76>$H$5,_xll.RssFOPMarket("147024218","ガンマ"),_xll.RssFOPMarket("137024218","ガンマ"))),0) -> 0 | AL76: =IFERROR(IF($E$4,Theta($H$5,AB76,0,0,AH76,$D$5/365,365),IF(AB76>$H$5,_xll.RssFOPMarket("147024218","セータ"),_xll.RssFOPMarket("137024218","セータ"))),0) -> -3.712 | CA76: 0 | CB76: 0 | CC76: 0 | CD76: 0 | CE76: 0 | CF76: 0 | CG76: 0 | CH76: 0 | CI76: 0 | CJ76: 0 | CK76: 0 | CL76: 0 | CM76: 0 | CN76: 0 | CO76: 0 | CP76: 0 | CQ76: 0 | CR76: 0 | CS76: 0 | CT76: 0 | CU76: 0 | CV76: 0 | CW76: 0 | CX76: 0
C77: =IFERROR(IF($E$4,IF($H$4<=H77,DeltaC($H$4,H77,0,0,N77,$D$4/365),I77+1),IF(H77>$H$4,_xll.RssFOPMarket("147015018","デルタ"),_xll.RssFOPMarket("137015018","デルタ")+1)),0) -> 0.9505 | D77: =IFERROR(IF($H$4<H77,OFFSET(OpData!I1358,$E$4,,1,1),$H$4+OFFSET(OpData!S1358,$E$4,,1,1)-H77),0) -> 3575 | H77: 25000 | I77: =IFERROR(IF($E$4,IF($H$4>=H77,DeltaP($H$4,H77,0,0,N77,$D$4/365),C77-1),IF(H77>$H$4,_xll.RssFOPMarket("147015018","デルタ")-1,_xll.RssFOPMarket("137015018","デルタ"))),0) -> -0.0495 | J77: =IFERROR(IF($H$4>H77,OFFSET(OpData!S1358,$E$4,,1,1),OFFSET(OpData!I1358,$E$4,,1,1)+H77-$H$4),0) -> 50 | N77: =IFERROR(IF($E$4,IF($H$4<H77,IVC(D77,$H$4,H77,0,0,$D$4/365),IVP(J77,$H$4,H77,0,0,$D$4/365)),IF(H77>$H$4,_xll.RssFOPMarket("147015018","IV"),_xll.RssFOPMarket("137015018","IV"))/100),0) -> 0.2967 | P77: =IFERROR(IF($E$4,Vega($H$4,H77,0,0,N77,$D$4/365),IF(H77>$H$4,_xll.RssFOPMarket("147015018","ベガ"),_xll.RssFOPMarket("137015018","ベガ"))),0) -> 8.091 | Q77: =IFERROR(IF($E$4,GammaCP($H$4,H77,0,0,N77,$D$4/365),IF(H77>$H$4,_xll.RssFOPMarket("147015018","ガンマ"),_xll.RssFOPMarket("137015018","ガンマ"))),0) -> 0 | R77: =IFERROR(IF($E$4,Theta($H$4,H77,0,0,N77,$D$4/365,365),IF(H77>$H$4,_xll.RssFOPMarket("147015018","セータ"),_xll.RssFOPMarket("137015018","セータ"))),0) -> -4.31 | W77: =IFERROR(IF($E$4,IF($H$5<=AB77,DeltaC($H$5,AB77,0,0,AH77,$D$5/365),AC77+1),IF(AB77>$H$5,_xll.RssFOPMarket("147024018","デルタ"),_xll.RssFOPMarket("137024018","デルタ")+1)),0) -> 0.9351 | X77: =IFERROR(IF($H$5<AB77,OFFSET(OpData!AC1358,$E$4,,1,1),$H$5+OFFSET(OpData!AM1358,$E$4,,1,1)-AB77),0) -> 4630 | AB77: 24000 | AC77: =IFERROR(IF($E$4,IF($H$5>=AB77,DeltaP($H$5,AB77,0,0,AH77,$D$5/365),W77-1),IF(AB77>$H$5,_xll.RssFOPMarket("147024018","デルタ")-1,_xll.RssFOPMarket("137024018","デルタ"))),0) -> -0.0649 | AD77: =IFERROR(IF($H$5>AB77,OFFSET(OpData!AM1358,$E$4,,1,1),OFFSET(OpData!AC1358,$E$4,,1,1)+AB77-$H$5),0) -> 100 | AH77: =IFERROR(IF($E$4,IF($H$5<AB77,IVC(X77,$H$5,AB77,0,0,$D$5/365),IVP(AD77,$H$5,AB77,0,0,$D$5/365)),IF(AB77>$H$5,_xll.RssFOPMarket("147024018","IV"),_xll.RssFOPMarket("137024018","IV"))/100),0) -> 0.3042 | AJ77: =IFERROR(IF($E$4,Vega($H$5,AB77,0,0,AH77,$D$5/365),IF(AB77>$H$5,_xll.RssFOPMarket("147024018","ベガ"),_xll.RssFOPMarket("137024018","ベガ"))),0) -> 14.022 | AK77: =IFERROR(IF($E$4,GammaCP($H$5,AB77,0,0,AH77,$D$5/365),IF(AB77>$H$5,_xll.RssFOPMarket("147024018","ガンマ"),_xll.RssFOPMarket("137024018","ガンマ"))),0) -> 0 | AL77: =IFERROR(IF($E$4,Theta($H$5,AB77,0,0,AH77,$D$5/365,365),IF(AB77>$H$5,_xll.RssFOPMarket("147024018","セータ"),_xll.RssFOPMarket("137024018","セータ"))),0) -> -3.932 | CA77: 0 | CB77: 0 | CC77: 0 | CD77: 0 | CE77: 0 | CF77: 0 | CG77: 0 | CH77: 0 | CI77: 0 | CJ77: 0 | CK77: 0 | CL77: 0 | CM77: 0 | CN77: 0 | CO77: 0 | CP77: 0 | CQ77: 0 | CR77: 0 | CS77: 0 | CT77: 0 | CU77: 0 | CV77: 0 | CW77: 0 | CX77: 0
C78: =IFERROR(IF($E$4,IF($H$4<=H78,DeltaC($H$4,H78,0,0,N78,$D$4/365),I78+1),IF(H78>$H$4,_xll.RssFOPMarket("147014718","デルタ"),_xll.RssFOPMarket("137014718","デルタ")+1)),0) -> 0.9587 | D78: =IFERROR(IF($H$4<H78,OFFSET(OpData!I1378,$E$4,,1,1),$H$4+OFFSET(OpData!S1378,$E$4,,1,1)-H78),0) -> 3816 | H78: 24750 | I78: =IFERROR(IF($E$4,IF($H$4>=H78,DeltaP($H$4,H78,0,0,N78,$D$4/365),C78-1),IF(H78>$H$4,_xll.RssFOPMarket("147014718","デルタ")-1,_xll.RssFOPMarket("137014718","デルタ"))),0) -> -0.0413 | J78: =IFERROR(IF($H$4>H78,OFFSET(OpData!S1378,$E$4,,1,1),OFFSET(OpData!I1378,$E$4,,1,1)+H78-$H$4),0) -> 41 | N78: =IFERROR(IF($E$4,IF($H$4<H78,IVC(D78,$H$4,H78,0,0,$D$4/365),IVP(J78,$H$4,H78,0,0,$D$4/365)),IF(H78>$H$4,_xll.RssFOPMarket("147014718","IV"),_xll.RssFOPMarket("137014718","IV"))/100),0) -> 0.2998 | P78: =IFERROR(IF($E$4,Vega($H$4,H78,0,0,N78,$D$4/365),IF(H78>$H$4,_xll.RssFOPMarket("147014718","ベガ"),_xll.RssFOPMarket("137014718","ベガ"))),0) -> 6.995 | Q78: =IFERROR(IF($E$4,GammaCP($H$4,H78,0,0,N78,$D$4/365),IF(H78>$H$4,_xll.RssFOPMarket("147014718","ガンマ"),_xll.RssFOPMarket("137014718","ガンマ"))),0) -> 0 | R78: =IFERROR(IF($E$4,Theta($H$4,H78,0,0,N78,$D$4/365,365),IF(H78>$H$4,_xll.RssFOPMarket("147014718","セータ"),_xll.RssFOPMarket("137014718","セータ"))),0) -> -3.834 | W78: =IFERROR(IF($E$4,IF($H$5<=AB78,DeltaC($H$5,AB78,0,0,AH78,$D$5/365),AC78+1),IF(AB78>$H$5,_xll.RssFOPMarket("147023718","デルタ"),_xll.RssFOPMarket("137023718","デルタ")+1)),0) -> 0.9473 | X78: =IFERROR(IF($H$5<AB78,OFFSET(OpData!AC1378,$E$4,,1,1),$H$5+OFFSET(OpData!AM1378,$E$4,,1,1)-AB78),0) -> 4859 | AB78: 23750 | AC78: =IFERROR(IF($E$4,IF($H$5>=AB78,DeltaP($H$5,AB78,0,0,AH78,$D$5/365),W78-1),IF(AB78>$H$5,_xll.RssFOPMarket("147023718","デルタ")-1,_xll.RssFOPMarket("137023718","デルタ"))),0) -> -0.0527 | AD78: =IFERROR(IF($H$5>AB78,OFFSET(OpData!AM1378,$E$4,,1,1),OFFSET(OpData!AC1378,$E$4,,1,1)+AB78-$H$5),0) -> 79 | AH78: =IFERROR(IF($E$4,IF($H$5<AB78,IVC(X78,$H$5,AB78,0,0,$D$5/365),IVP(AD78,$H$5,AB78,0,0,$D$5/365)),IF(AB78>$H$5,_xll.RssFOPMarket("147023718","IV"),_xll.RssFOPMarket("137023718","IV"))/100),0) -> 0.3071 | AJ78: =IFERROR(IF($E$4,Vega($H$5,AB78,0,0,AH78,$D$5/365),IF(AB78>$H$5,_xll.RssFOPMarket("147023718","ベガ"),_xll.RssFOPMarket("137023718","ベガ"))),0) -> 11.914 | AK78: =IFERROR(IF($E$4,GammaCP($H$5,AB78,0,0,AH78,$D$5/365),IF(AB78>$H$5,_xll.RssFOPMarket("147023718","ガンマ"),_xll.RssFOPMarket("137023718","ガンマ"))),0) -> 0 | AL78: =IFERROR(IF($E$4,Theta($H$5,AB78,0,0,AH78,$D$5/365,365),IF(AB78>$H$5,_xll.RssFOPMarket("147023718","セータ"),_xll.RssFOPMarket("137023718","セータ"))),0) -> -3.267 | CA78: 0 | CB78: 0 | CC78: 0 | CD78: 0 | CE78: 0 | CF78: 0 | CG78: 0 | CH78: 0 | CI78: 0 | CJ78: 0 | CK78: 0 | CL78: 0 | CM78: 0 | CN78: 0 | CO78: 0 | CP78: 0 | CQ78: 0 | CR78: 0 | CS78: 0 | CT78: 0 | CU78: 0 | CV78: 0 | CW78: 0 | CX78: 0
C79: =IFERROR(IF($E$4,IF($H$4<=H79,DeltaC($H$4,H79,0,0,N79,$D$4/365),I79+1),IF(H79>$H$4,_xll.RssFOPMarket("147014518","デルタ"),_xll.RssFOPMarket("137014518","デルタ")+1)),0) -> 0.9644 | D79: =IFERROR(IF($H$4<H79,OFFSET(OpData!I1398,$E$4,,1,1),$H$4+OFFSET(OpData!S1398,$E$4,,1,1)-H79),0) -> 4061 | H79: 24500 | I79: =IFERROR(IF($E$4,IF($H$4>=H79,DeltaP($H$4,H79,0,0,N79,$D$4/365),C79-1),IF(H79>$H$4,_xll.RssFOPMarket("147014518","デルタ")-1,_xll.RssFOPMarket("137014518","デルタ"))),0) -> -0.0356 | J79: =IFERROR(IF($H$4>H79,OFFSET(OpData!S1398,$E$4,,1,1),OFFSET(OpData!I1398,$E$4,,1,1)+H79-$H$4),0) -> 36 | N79: =IFERROR(IF($E$4,IF($H$4<H79,IVC(D79,$H$4,H79,0,0,$D$4/365),IVP(J79,$H$4,H79,0,0,$D$4/365)),IF(H79>$H$4,_xll.RssFOPMarket("147014518","IV"),_xll.RssFOPMarket("137014518","IV"))/100),0) -> 0.3124 | P79: =IFERROR(IF($E$4,Vega($H$4,H79,0,0,N79,$D$4/365),IF(H79>$H$4,_xll.RssFOPMarket("147014518","ベガ"),_xll.RssFOPMarket("137014518","ベガ"))),0) -> 6.194 | Q79: =IFERROR(IF($E$4,GammaCP($H$4,H79,0,0,N79,$D$4/365),IF(H79>$H$4,_xll.RssFOPMarket("147014518","ガンマ"),_xll.RssFOPMarket("137014518","ガンマ"))),0) -> 0 | R79: =IFERROR(IF($E$4,Theta($H$4,H79,0,0,N79,$D$4/365,365),IF(H79>$H$4,_xll.RssFOPMarket("147014518","セータ"),_xll.RssFOPMarket("137014518","セータ"))),0) -> -3.472 | W79: =IFERROR(IF($E$4,IF($H$5<=AB79,DeltaC($H$5,AB79,0,0,AH79,$D$5/365),AC79+1),IF(AB79>$H$5,_xll.RssFOPMarket("147023518","デルタ"),_xll.RssFOPMarket("137023518","デルタ")+1)),0) -> 0.9514 | X79: =IFERROR(IF($H$5<AB79,OFFSET(OpData!AC1398,$E$4,,1,1),$H$5+OFFSET(OpData!AM1398,$E$4,,1,1)-AB79),0) -> 5104 | AB79: 23500 | AC79: =IFERROR(IF($E$4,IF($H$5>=AB79,DeltaP($H$5,AB79,0,0,AH79,$D$5/365),W79-1),IF(AB79>$H$5,_xll.RssFOPMarket("147023518","デルタ")-1,_xll.RssFOPMarket("137023518","デルタ"))),0) -> -0.0486 | AD79: =IFERROR(IF($H$5>AB79,OFFSET(OpData!AM1398,$E$4,,1,1),OFFSET(OpData!AC1398,$E$4,,1,1)+AB79-$H$5),0) -> 74 | AH79: =IFERROR(IF($E$4,IF($H$5<AB79,IVC(X79,$H$5,AB79,0,0,$D$5/365),IVP(AD79,$H$5,AB79,0,0,$D$5/365)),IF(AB79>$H$5,_xll.RssFOPMarket("147023518","IV"),_xll.RssFOPMarket("137023518","IV"))/100),0) -> 0.3157 | AJ79: =IFERROR(IF($E$4,Vega($H$5,AB79,0,0,AH79,$D$5/365),IF(AB79>$H$5,_xll.RssFOPMarket("147023518","ベガ"),_xll.RssFOPMarket("137023518","ベガ"))),0) -> 11.168 | AK79: =IFERROR(IF($E$4,GammaCP($H$5,AB79,0,0,AH79,$D$5/365),IF(AB79>$H$5,_xll.RssFOPMarket("147023518","ガンマ"),_xll.RssFOPMarket("137023518","ガンマ"))),0) -> 0 | AL79: =IFERROR(IF($E$4,Theta($H$5,AB79,0,0,AH79,$D$5/365,365),IF(AB79>$H$5,_xll.RssFOPMarket("147023518","セータ"),_xll.RssFOPMarket("137023518","セータ"))),0) -> -3.171 | CA79: 0 | CB79: 0 | CC79: 0 | CD79: 0 | CE79: 0 | CF79: 0 | CG79: 0 | CH79: 0 | CI79: 0 | CJ79: 0 | CK79: 0 | CL79: 0 | CM79: 0 | CN79: 0 | CO79: 0 | CP79: 0 | CQ79: 0 | CR79: 0 | CS79: 0 | CT79: 0 | CU79: 0 | CV79: 0 | CW79: 0 | CX79: 0
C80: =IFERROR(IF($E$4,IF($H$4<=H80,DeltaC($H$4,H80,0,0,N80,$D$4/365),I80+1),IF(H80>$H$4,_xll.RssFOPMarket("147014218","デルタ"),_xll.RssFOPMarket("137014218","デルタ")+1)),0) -> 0.9695 | D80: =IFERROR(IF($H$4<H80,OFFSET(OpData!I1418,$E$4,,1,1),$H$4+OFFSET(OpData!S1418,$E$4,,1,1)-H80),0) -> 4306 | H80: 24250 | I80: =IFERROR(IF($E$4,IF($H$4>=H80,DeltaP($H$4,H80,0,0,N80,$D$4/365),C80-1),IF(H80>$H$4,_xll.RssFOPMarket("147014218","デルタ")-1,_xll.RssFOPMarket("137014218","デルタ"))),0) -> -0.0305 | J80: =IFERROR(IF($H$4>H80,OFFSET(OpData!S1418,$E$4,,1,1),OFFSET(OpData!I1418,$E$4,,1,1)+H80-$H$4),0) -> 31 | N80: =IFERROR(IF($E$4,IF($H$4<H80,IVC(D80,$H$4,H80,0,0,$D$4/365),IVP(J80,$H$4,H80,0,0,$D$4/365)),IF(H80>$H$4,_xll.RssFOPMarket("147014218","IV"),_xll.RssFOPMarket("137014218","IV"))/100),0) -> 0.3213 | P80: =IFERROR(IF($E$4,Vega($H$4,H80,0,0,N80,$D$4/365),IF(H80>$H$4,_xll.RssFOPMarket("147014218","ベガ"),_xll.RssFOPMarket("137014218","ベガ"))),0) -> 5.448 | Q80: =IFERROR(IF($E$4,GammaCP($H$4,H80,0,0,N80,$D$4/365),IF(H80>$H$4,_xll.RssFOPMarket("147014218","ガンマ"),_xll.RssFOPMarket("137014218","ガンマ"))),0) -> 0 | R80: =IFERROR(IF($E$4,Theta($H$4,H80,0,0,N80,$D$4/365,365),IF(H80>$H$4,_xll.RssFOPMarket("147014218","セータ"),_xll.RssFOPMarket("137014218","セータ"))),0) -> -3.135 | W80: =IFERROR(IF($E$4,IF($H$5<=AB80,DeltaC($H$5,AB80,0,0,AH80,$D$5/365),AC80+1),IF(AB80>$H$5,_xll.RssFOPMarket("197023218","デルタ"),_xll.RssFOPMarket("187023218","デルタ")+1)),0) -> 0.9533 | X80: =IFERROR(IF($H$5<AB80,OFFSET(OpData!AC1418,$E$4,,1,1),$H$5+OFFSET(OpData!AM1418,$E$4,,1,1)-AB80),0) -> 5353 | AB80: 23250 | AC80: =IFERROR(IF($E$4,IF($H$5>=AB80,DeltaP($H$5,AB80,0,0,AH80,$D$5/365),W80-1),IF(AB80>$H$5,_xll.RssFOPMarket("197023218","デルタ")-1,_xll.RssFOPMarket("187023218","デルタ"))),0) -> -0.0467 | AD80: =IFERROR(IF($H$5>AB80,OFFSET(OpData!AM1418,$E$4,,1,1),OFFSET(OpData!AC1418,$E$4,,1,1)+AB80-$H$5),0) -> 73 | AH80: =IFERROR(IF($E$4,IF($H$5<AB80,IVC(X80,$H$5,AB80,0,0,$D$5/365),IVP(AD80,$H$5,AB80,0,0,$D$5/365)),IF(AB80>$H$5,_xll.RssFOPMarket("197023218","IV"),_xll.RssFOPMarket("187023218","IV"))/100),0) -> 0.325 | AJ80: =IFERROR(IF($E$4,Vega($H$5,AB80,0,0,AH80,$D$5/365),IF(AB80>$H$5,_xll.RssFOPMarket("197023218","ベガ"),_xll.RssFOPMarket("187023218","ベガ"))),0) -> 10.823 | AK80: =IFERROR(IF($E$4,GammaCP($H$5,AB80,0,0,AH80,$D$5/365),IF(AB80>$H$5,_xll.RssFOPMarket("197023218","ガンマ"),_xll.RssFOPMarket("187023218","ガンマ"))),0) -> 0 | AL80: =IFERROR(IF($E$4,Theta($H$5,AB80,0,0,AH80,$D$5/365,365),IF(AB80>$H$5,_xll.RssFOPMarket("197023218","セータ"),_xll.RssFOPMarket("187023218","セータ"))),0) -> -3.237 | CA80: 0 | CB80: 0 | CC80: 0 | CD80: 0 | CE80: 0 | CF80: 0 | CG80: 0 | CH80: 0 | CI80: 0 | CJ80: 0 | CK80: 0 | CL80: 0 | CM80: 0 | CN80: 0 | CO80: 0 | CP80: 0 | CQ80: 0 | CR80: 0 | CS80: 0 | CT80: 0 | CU80: 0 | CV80: 0 | CW80: 0 | CX80: 0
C81: =IFERROR(IF($E$4,IF($H$4<=H81,DeltaC($H$4,H81,0,0,N81,$D$4/365),I81+1),IF(H81>$H$4,_xll.RssFOPMarket("147014018","デルタ"),_xll.RssFOPMarket("137014018","デルタ")+1)),0) -> 0.973 | D81: =IFERROR(IF($H$4<H81,OFFSET(OpData!I1438,$E$4,,1,1),$H$4+OFFSET(OpData!S1438,$E$4,,1,1)-H81),0) -> 4553 | H81: 24000 | I81: =IFERROR(IF($E$4,IF($H$4>=H81,DeltaP($H$4,H81,0,0,N81,$D$4/365),C81-1),IF(H81>$H$4,_xll.RssFOPMarket("147014018","デルタ")-1,_xll.RssFOPMarket("137014018","デルタ"))),0) -> -0.027 | J81: =IFERROR(IF($H$4>H81,OFFSET(OpData!S1438,$E$4,,1,1),OFFSET(OpData!I1438,$E$4,,1,1)+H81-$H$4),0) -> 28 | N81: =IFERROR(IF($E$4,IF($H$4<H81,IVC(D81,$H$4,H81,0,0,$D$4/365),IVP(J81,$H$4,H81,0,0,$D$4/365)),IF(H81>$H$4,_xll.RssFOPMarket("147014018","IV"),_xll.RssFOPMarket("137014018","IV"))/100),0) -> 0.3329 | P81: =IFERROR(IF($E$4,Vega($H$4,H81,0,0,N81,$D$4/365),IF(H81>$H$4,_xll.RssFOPMarket("147014018","ベガ"),_xll.RssFOPMarket("137014018","ベガ"))),0) -> 4.926 | Q81: =IFERROR(IF($E$4,GammaCP($H$4,H81,0,0,N81,$D$4/365),IF(H81>$H$4,_xll.RssFOPMarket("147014018","ガンマ"),_xll.RssFOPMarket("137014018","ガンマ"))),0) -> 0 | R81: =IFERROR(IF($E$4,Theta($H$4,H81,0,0,N81,$D$4/365,365),IF(H81>$H$4,_xll.RssFOPMarket("147014018","セータ"),_xll.RssFOPMarket("137014018","セータ"))),0) -> -2.929 | W81: =IFERROR(IF($E$4,IF($H$5<=AB81,DeltaC($H$5,AB81,0,0,AH81,$D$5/365),AC81+1),IF(AB81>$H$5,_xll.RssFOPMarket("197023018","デルタ"),_xll.RssFOPMarket("187023018","デルタ")+1)),0) -> 0.957 | X81: =IFERROR(IF($H$5<AB81,OFFSET(OpData!AC1438,$E$4,,1,1),$H$5+OFFSET(OpData!AM1438,$E$4,,1,1)-AB81),0) -> 5598 | AB81: 23000 | AC81: =IFERROR(IF($E$4,IF($H$5>=AB81,DeltaP($H$5,AB81,0,0,AH81,$D$5/365),W81-1),IF(AB81>$H$5,_xll.RssFOPMarket("197023018","デルタ")-1,_xll.RssFOPMarket("187023018","デルタ"))),0) -> -0.043 | AD81: =IFERROR(IF($H$5>AB81,OFFSET(OpData!AM1438,$E$4,,1,1),OFFSET(OpData!AC1438,$E$4,,1,1)+AB81-$H$5),0) -> 68 | AH81: =IFERROR(IF($E$4,IF($H$5<AB81,IVC(X81,$H$5,AB81,0,0,$D$5/365),IVP(AD81,$H$5,AB81,0,0,$D$5/365)),IF(AB81>$H$5,_xll.RssFOPMarket("197023018","IV"),_xll.RssFOPMarket("187023018","IV"))/100),0) -> 0.3331 | AJ81: =IFERROR(IF($E$4,Vega($H$5,AB81,0,0,AH81,$D$5/365),IF(AB81>$H$5,_xll.RssFOPMarket("197023018","ベガ"),_xll.RssFOPMarket("187023018","ベガ"))),0) -> 10.119 | AK81: =IFERROR(IF($E$4,GammaCP($H$5,AB81,0,0,AH81,$D$5/365),IF(AB81>$H$5,_xll.RssFOPMarket("197023018","ガンマ"),_xll.RssFOPMarket("187023018","ガンマ"))),0) -> 0 | AL81: =IFERROR(IF($E$4,Theta($H$5,AB81,0,0,AH81,$D$5/365,365),IF(AB81>$H$5,_xll.RssFOPMarket("197023018","セータ"),_xll.RssFOPMarket("187023018","セータ"))),0) -> -3.12 | CA81: 0 | CB81: 0 | CC81: 0 | CD81: 0 | CE81: 0 | CF81: 0 | CG81: 0 | CH81: 0 | CI81: 0 | CJ81: 0 | CK81: 0 | CL81: 0 | CM81: 0 | CN81: 0 | CO81: 0 | CP81: 0 | CQ81: 0 | CR81: 0 | CS81: 0 | CT81: 0 | CU81: 0 | CV81: 0 | CW81: 0 | CX81: 0
C82: =IFERROR(IF($E$4,IF($H$4<=H82,DeltaC($H$4,H82,0,0,N82,$D$4/365),I82+1),IF(H82>$H$4,_xll.RssFOPMarket("197013718","デルタ"),_xll.RssFOPMarket("187013718","デルタ")+1)),0) -> 0.9776 | D82: =IFERROR(IF($H$4<H82,OFFSET(OpData!I1458,$E$4,,1,1),$H$4+OFFSET(OpData!S1458,$E$4,,1,1)-H82),0) -> 4798 | H82: 23750 | I82: =IFERROR(IF($E$4,IF($H$4>=H82,DeltaP($H$4,H82,0,0,N82,$D$4/365),C82-1),IF(H82>$H$4,_xll.RssFOPMarket("197013718","デルタ")-1,_xll.RssFOPMarket("187013718","デルタ"))),0) -> -0.0224 | J82: =IFERROR(IF($H$4>H82,OFFSET(OpData!S1458,$E$4,,1,1),OFFSET(OpData!I1458,$E$4,,1,1)+H82-$H$4),0) -> 23 | N82: =IFERROR(IF($E$4,IF($H$4<H82,IVC(D82,$H$4,H82,0,0,$D$4/365),IVP(J82,$H$4,H82,0,0,$D$4/365)),IF(H82>$H$4,_xll.RssFOPMarket("197013718","IV"),_xll.RssFOPMarket("187013718","IV"))/100),0) -> 0.3384 | P82: =IFERROR(IF($E$4,Vega($H$4,H82,0,0,N82,$D$4/365),IF(H82>$H$4,_xll.RssFOPMarket("197013718","ベガ"),_xll.RssFOPMarket("187013718","ベガ"))),0) -> 4.206 | Q82: =IFERROR(IF($E$4,GammaCP($H$4,H82,0,0,N82,$D$4/365),IF(H82>$H$4,_xll.RssFOPMarket("197013718","ガンマ"),_xll.RssFOPMarket("187013718","ガンマ"))),0) -> 0 | R82: =IFERROR(IF($E$4,Theta($H$4,H82,0,0,N82,$D$4/365,365),IF(H82>$H$4,_xll.RssFOPMarket("197013718","セータ"),_xll.RssFOPMarket("187013718","セータ"))),0) -> -2.546 | W82: =IFERROR(IF($E$4,IF($H$5<=AB82,DeltaC($H$5,AB82,0,0,AH82,$D$5/365),AC82+1),IF(AB82>$H$5,_xll.RssFOPMarket("197022518","デルタ"),_xll.RssFOPMarket("187022518","デルタ")+1)),0) -> 0.9679 | X82: =IFERROR(IF($H$5<AB82,OFFSET(OpData!AC1458,$E$4,,1,1),$H$5+OFFSET(OpData!AM1458,$E$4,,1,1)-AB82),0) -> 6080 | AB82: 22500 | AC82: =IFERROR(IF($E$4,IF($H$5>=AB82,DeltaP($H$5,AB82,0,0,AH82,$D$5/365),W82-1),IF(AB82>$H$5,_xll.RssFOPMarket("197022518","デルタ")-1,_xll.RssFOPMarket("187022518","デルタ"))),0) -> -0.0321 | AD82: =IFERROR(IF($H$5>AB82,OFFSET(OpData!AM1458,$E$4,,1,1),OFFSET(OpData!AC1458,$E$4,,1,1)+AB82-$H$5),0) -> 50 | AH82: =IFERROR(IF($E$4,IF($H$5<AB82,IVC(X82,$H$5,AB82,0,0,$D$5/365),IVP(AD82,$H$5,AB82,0,0,$D$5/365)),IF(AB82>$H$5,_xll.RssFOPMarket("197022518","IV"),_xll.RssFOPMarket("187022518","IV"))/100),0) -> 0.3428 | AJ82: =IFERROR(IF($E$4,Vega($H$5,AB82,0,0,AH82,$D$5/365),IF(AB82>$H$5,_xll.RssFOPMarket("197022518","ベガ"),_xll.RssFOPMarket("187022518","ベガ"))),0) -> 7.971 | AK82: =IFERROR(IF($E$4,GammaCP($H$5,AB82,0,0,AH82,$D$5/365),IF(AB82>$H$5,_xll.RssFOPMarket("197022518","ガンマ"),_xll.RssFOPMarket("187022518","ガンマ"))),0) -> 0 | AL82: =IFERROR(IF($E$4,Theta($H$5,AB82,0,0,AH82,$D$5/365,365),IF(AB82>$H$5,_xll.RssFOPMarket("197022518","セータ"),_xll.RssFOPMarket("187022518","セータ"))),0) -> -2.493 | CA82: 0 | CB82: 0 | CC82: 0 | CD82: 0 | CE82: 0 | CF82: 0 | CG82: 0 | CH82: 0 | CI82: 0 | CJ82: 0 | CK82: 0 | CL82: 0 | CM82: 0 | CN82: 0 | CO82: 0 | CP82: 0 | CQ82: 0 | CR82: 0 | CS82: 0 | CT82: 0 | CU82: 0 | CV82: 0 | CW82: 0 | CX82: 0
C83: =IFERROR(IF($E$4,IF($H$4<=H83,DeltaC($H$4,H83,0,0,N83,$D$4/365),I83+1),IF(H83>$H$4,_xll.RssFOPMarket("197013518","デルタ"),_xll.RssFOPMarket("187013518","デルタ")+1)),0) -> 0.98 | D83: =IFERROR(IF($H$4<H83,OFFSET(OpData!I1478,$E$4,,1,1),$H$4+OFFSET(OpData!S1478,$E$4,,1,1)-H83),0) -> 5046 | H83: 23500 | I83: =IFERROR(IF($E$4,IF($H$4>=H83,DeltaP($H$4,H83,0,0,N83,$D$4/365),C83-1),IF(H83>$H$4,_xll.RssFOPMarket("197013518","デルタ")-1,_xll.RssFOPMarket("187013518","デルタ"))),0) -> -0.02 | J83: =IFERROR(IF($H$4>H83,OFFSET(OpData!S1478,$E$4,,1,1),OFFSET(OpData!I1478,$E$4,,1,1)+H83-$H$4),0) -> 21 | N83: =IFERROR(IF($E$4,IF($H$4<H83,IVC(D83,$H$4,H83,0,0,$D$4/365),IVP(J83,$H$4,H83,0,0,$D$4/365)),IF(H83>$H$4,_xll.RssFOPMarket("197013518","IV"),_xll.RssFOPMarket("187013518","IV"))/100),0) -> 0.3501 | P83: =IFERROR(IF($E$4,Vega($H$4,H83,0,0,N83,$D$4/365),IF(H83>$H$4,_xll.RssFOPMarket("197013518","ベガ"),_xll.RssFOPMarket("187013518","ベガ"))),0) -> 3.827 | Q83: =IFERROR(IF($E$4,GammaCP($H$4,H83,0,0,N83,$D$4/365),IF(H83>$H$4,_xll.RssFOPMarket("197013518","ガンマ"),_xll.RssFOPMarket("187013518","ガンマ"))),0) -> 0 | R83: =IFERROR(IF($E$4,Theta($H$4,H83,0,0,N83,$D$4/365,365),IF(H83>$H$4,_xll.RssFOPMarket("197013518","セータ"),_xll.RssFOPMarket("187013518","セータ"))),0) -> -2.393 | W83: =IFERROR(IF($E$4,IF($H$5<=AB83,DeltaC($H$5,AB83,0,0,AH83,$D$5/365),AC83+1),IF(AB83>$H$5,_xll.RssFOPMarket("197022018","デルタ"),_xll.RssFOPMarket("187022018","デルタ")+1)),0) -> 0.9741 | X83: =IFERROR(IF($H$5<AB83,OFFSET(OpData!AC1478,$E$4,,1,1),$H$5+OFFSET(OpData!AM1478,$E$4,,1,1)-AB83),0) -> 6530 | AB83: 22000 | AC83: =IFERROR(IF($E$4,IF($H$5>=AB83,DeltaP($H$5,AB83,0,0,AH83,$D$5/365),W83-1),IF(AB83>$H$5,_xll.RssFOPMarket("197022018","デルタ")-1,_xll.RssFOPMarket("187022018","デルタ"))),0) -> -0.0259 | AD83: =IFERROR(IF($H$5>AB83,OFFSET(OpData!AM1478,$E$4,,1,1),OFFSET(OpData!AC1478,$E$4,,1,1)+AB83-$H$5),0) -> 0 | AH83: =IFERROR(IF($E$4,IF($H$5<AB83,IVC(X83,$H$5,AB83,0,0,$D$5/365),IVP(AD83,$H$5,AB83,0,0,$D$5/365)),IF(AB83>$H$5,_xll.RssFOPMarket("197022018","IV"),_xll.RssFOPMarket("187022018","IV"))/100),0) -> 0.3565 | AJ83: =IFERROR(IF($E$4,Vega($H$5,AB83,0,0,AH83,$D$5/365),IF(AB83>$H$5,_xll.RssFOPMarket("197022018","ベガ"),_xll.RssFOPMarket("187022018","ベガ"))),0) -> 6.68 | AK83: =IFERROR(IF($E$4,GammaCP($H$5,AB83,0,0,AH83,$D$5/365),IF(AB83>$H$5,_xll.RssFOPMarket("197022018","ガンマ"),_xll.RssFOPMarket("187022018","ガンマ"))),0) -> 0 | AL83: =IFERROR(IF($E$4,Theta($H$5,AB83,0,0,AH83,$D$5/365,365),IF(AB83>$H$5,_xll.RssFOPMarket("197022018","セータ"),_xll.RssFOPMarket("187022018","セータ"))),0) -> -2.174 | CA83: 0 | CB83: 0 | CC83: 0 | CD83: 0 | CE83: 0 | CF83: 0 | CG83: 0 | CH83: 0 | CI83: 0 | CJ83: 0 | CK83: 0 | CL83: 0 | CM83: 0 | CN83: 0 | CO83: 0 | CP83: 0 | CQ83: 0 | CR83: 0 | CS83: 0 | CT83: 0 | CU83: 0 | CV83: 0 | CW83: 0 | CX83: 0
C84: =IFERROR(IF($E$4,IF($H$4<=H84,DeltaC($H$4,H84,0,0,N84,$D$4/365),I84+1),IF(H84>$H$4,_xll.RssFOPMarket("197013218","デルタ"),_xll.RssFOPMarket("187013218","デルタ")+1)),0) -> 0.9829 | D84: =IFERROR(IF($H$4<H84,OFFSET(OpData!I1498,$E$4,,1,1),$H$4+OFFSET(OpData!S1498,$E$4,,1,1)-H84),0) -> 5293 | H84: 23250 | I84: =IFERROR(IF($E$4,IF($H$4>=H84,DeltaP($H$4,H84,0,0,N84,$D$4/365),C84-1),IF(H84>$H$4,_xll.RssFOPMarket("197013218","デルタ")-1,_xll.RssFOPMarket("187013218","デルタ"))),0) -> -0.0171 | J84: =IFERROR(IF($H$4>H84,OFFSET(OpData!S1498,$E$4,,1,1),OFFSET(OpData!I1498,$E$4,,1,1)+H84-$H$4),0) -> 18 | N84: =IFERROR(IF($E$4,IF($H$4<H84,IVC(D84,$H$4,H84,0,0,$D$4/365),IVP(J84,$H$4,H84,0,0,$D$4/365)),IF(H84>$H$4,_xll.RssFOPMarket("197013218","IV"),_xll.RssFOPMarket("187013218","IV"))/100),0) -> 0.3575 | P84: =IFERROR(IF($E$4,Vega($H$4,H84,0,0,N84,$D$4/365),IF(H84>$H$4,_xll.RssFOPMarket("197013218","ベガ"),_xll.RssFOPMarket("187013218","ベガ"))),0) -> 3.351 | Q84: =IFERROR(IF($E$4,GammaCP($H$4,H84,0,0,N84,$D$4/365),IF(H84>$H$4,_xll.RssFOPMarket("197013218","ガンマ"),_xll.RssFOPMarket("187013218","ガンマ"))),0) -> 0 | R84: =IFERROR(IF($E$4,Theta($H$4,H84,0,0,N84,$D$4/365,365),IF(H84>$H$4,_xll.RssFOPMarket("197013218","セータ"),_xll.RssFOPMarket("187013218","セータ"))),0) -> -2.147 | W84: =IFERROR(IF($E$4,IF($H$5<=AB84,DeltaC($H$5,AB84,0,0,AH84,$D$5/365),AC84+1),IF(AB84>$H$5,_xll.RssFOPMarket("197021018","デルタ"),_xll.RssFOPMarket("187021018","デルタ")+1)),0) -> 0.9833 | X84: =IFERROR(IF($H$5<AB84,OFFSET(OpData!AC1498,$E$4,,1,1),$H$5+OFFSET(OpData!AM1498,$E$4,,1,1)-AB84),0) -> 7530 | AB84: 21000 | AC84: =IFERROR(IF($E$4,IF($H$5>=AB84,DeltaP($H$5,AB84,0,0,AH84,$D$5/365),W84-1),IF(AB84>$H$5,_xll.RssFOPMarket("197021018","デルタ")-1,_xll.RssFOPMarket("187021018","デルタ"))),0) -> -0.0167 | AD84: =IFERROR(IF($H$5>AB84,OFFSET(OpData!AM1498,$E$4,,1,1),OFFSET(OpData!AC1498,$E$4,,1,1)+AB84-$H$5),0) -> 0 | AH84: =IFERROR(IF($E$4,IF($H$5<AB84,IVC(X84,$H$5,AB84,0,0,$D$5/365),IVP(AD84,$H$5,AB84,0,0,$D$5/365)),IF(AB84>$H$5,_xll.RssFOPMarket("197021018","IV"),_xll.RssFOPMarket("187021018","IV"))/100),0) -> 0.3842 | AJ84: =IFERROR(IF($E$4,Vega($H$5,AB84,0,0,AH84,$D$5/365),IF(AB84>$H$5,_xll.RssFOPMarket("197021018","ベガ"),_xll.RssFOPMarket("187021018","ベガ"))),0) -> 4.607 | AK84: =IFERROR(IF($E$4,GammaCP($H$5,AB84,0,0,AH84,$D$5/365),IF(AB84>$H$5,_xll.RssFOPMarket("197021018","ガンマ"),_xll.RssFOPMarket("187021018","ガンマ"))),0) -> 0 | AL84: =IFERROR(IF($E$4,Theta($H$5,AB84,0,0,AH84,$D$5/365,365),IF(AB84>$H$5,_xll.RssFOPMarket("197021018","セータ"),_xll.RssFOPMarket("187021018","セータ"))),0) -> -1.614 | CA84: 0 | CB84: 0 | CC84: 0 | CD84: 0 | CE84: 0 | CF84: 0 | CG84: 0 | CH84: 0 | CI84: 0 | CJ84: 0 | CK84: 0 | CL84: 0 | CM84: 0 | CN84: 0 | CO84: 0 | CP84: 0 | CQ84: 0 | CR84: 0 | CS84: 0 | CT84: 0 | CU84: 0 | CV84: 0 | CW84: 0 | CX84: 0
C85: =IFERROR(IF($E$4,IF($H$4<=H85,DeltaC($H$4,H85,0,0,N85,$D$4/365),I85+1),IF(H85>$H$4,_xll.RssFOPMarket("197013018","デルタ"),_xll.RssFOPMarket("187013018","デルタ")+1)),0) -> 0.9849 | D85: =IFERROR(IF($H$4<H85,OFFSET(OpData!I1518,$E$4,,1,1),$H$4+OFFSET(OpData!S1518,$E$4,,1,1)-H85),0) -> 5541 | H85: 23000 | I85: =IFERROR(IF($E$4,IF($H$4>=H85,DeltaP($H$4,H85,0,0,N85,$D$4/365),C85-1),IF(H85>$H$4,_xll.RssFOPMarket("197013018","デルタ")-1,_xll.RssFOPMarket("187013018","デルタ"))),0) -> -0.0151 | J85: =IFERROR(IF($H$4>H85,OFFSET(OpData!S1518,$E$4,,1,1),OFFSET(OpData!I1518,$E$4,,1,1)+H85-$H$4),0) -> 16 | N85: =IFERROR(IF($E$4,IF($H$4<H85,IVC(D85,$H$4,H85,0,0,$D$4/365),IVP(J85,$H$4,H85,0,0,$D$4/365)),IF(H85>$H$4,_xll.RssFOPMarket("197013018","IV"),_xll.RssFOPMarket("187013018","IV"))/100),0) -> 0.3657 | P85: =IFERROR(IF($E$4,Vega($H$4,H85,0,0,N85,$D$4/365),IF(H85>$H$4,_xll.RssFOPMarket("197013018","ベガ"),_xll.RssFOPMarket("187013018","ベガ"))),0) -> 3.007 | Q85: =IFERROR(IF($E$4,GammaCP($H$4,H85,0,0,N85,$D$4/365),IF(H85>$H$4,_xll.RssFOPMarket("197013018","ガンマ"),_xll.RssFOPMarket("187013018","ガンマ"))),0) -> 0 | R85: =IFERROR(IF($E$4,Theta($H$4,H85,0,0,N85,$D$4/365,365),IF(H85>$H$4,_xll.RssFOPMarket("197013018","セータ"),_xll.RssFOPMarket("187013018","セータ"))),0) -> -1.989 | W85: =IFERROR(IF($E$4,IF($H$5<=AB85,DeltaC($H$5,AB85,0,0,AH85,$D$5/365),AC85+1),IF(AB85>$H$5,_xll.RssFOPMarket("197020018","デルタ"),_xll.RssFOPMarket("187020018","デルタ")+1)),0) -> 0.9877 | X85: =IFERROR(IF($H$5<AB85,OFFSET(OpData!AC1518,$E$4,,1,1),$H$5+OFFSET(OpData!AM1518,$E$4,,1,1)-AB85),0) -> 8551 | AB85: 20000 | AC85: =IFERROR(IF($E$4,IF($H$5>=AB85,DeltaP($H$5,AB85,0,0,AH85,$D$5/365),W85-1),IF(AB85>$H$5,_xll.RssFOPMarket("197020018","デルタ")-1,_xll.RssFOPMarket("187020018","デルタ"))),0) -> -0.0123 | AD85: =IFERROR(IF($H$5>AB85,OFFSET(OpData!AM1518,$E$4,,1,1),OFFSET(OpData!AC1518,$E$4,,1,1)+AB85-$H$5),0) -> 21 | AH85: =IFERROR(IF($E$4,IF($H$5<AB85,IVC(X85,$H$5,AB85,0,0,$D$5/365),IVP(AD85,$H$5,AB85,0,0,$D$5/365)),IF(AB85>$H$5,_xll.RssFOPMarket("197020018","IV"),_xll.RssFOPMarket("187020018","IV"))/100),0) -> 0.4211 | AJ85: =IFERROR(IF($E$4,Vega($H$5,AB85,0,0,AH85,$D$5/365),IF(AB85>$H$5,_xll.RssFOPMarket("197020018","ベガ"),_xll.RssFOPMarket("187020018","ベガ"))),0) -> 3.537 | AK85: =IFERROR(IF($E$4,GammaCP($H$5,AB85,0,0,AH85,$D$5/365),IF(AB85>$H$5,_xll.RssFOPMarket("197020018","ガンマ"),_xll.RssFOPMarket("187020018","ガンマ"))),0) -> 0 | AL85: =IFERROR(IF($E$4,Theta($H$5,AB85,0,0,AH85,$D$5/365,365),IF(AB85>$H$5,_xll.RssFOPMarket("197020018","セータ"),_xll.RssFOPMarket("187020018","セータ"))),0) -> -1.366 | CA85: 0 | CB85: 0 | CC85: 0 | CD85: 0 | CE85: 0 | CF85: 0 | CG85: 0 | CH85: 0 | CI85: 0 | CJ85: 0 | CK85: 0 | CL85: 0 | CM85: 0 | CN85: 0 | CO85: 0 | CP85: 0 | CQ85: 0 | CR85: 0 | CS85: 0 | CT85: 0 | CU85: 0 | CV85: 0 | CW85: 0 | CX85: 0
C86: =IFERROR(IF($E$4,IF($H$4<=H86,DeltaC($H$4,H86,0,0,N86,$D$4/365),I86+1),IF(H86>$H$4,_xll.RssFOPMarket("銘柄コードは取得できませんでした。","デルタ"),_xll.RssFOPMarket("銘柄コードは取得できませんでした。","デルタ")+1)),0) -> 0 | D86: =IFERROR(IF($H$4<H86,OFFSET(OpData!I1538,$E$4,,1,1),$H$4+OFFSET(OpData!S1538,$E$4,,1,1)-H86),0) -> 0 | H86: 22750 | I86: =IFERROR(IF($E$4,IF($H$4>=H86,DeltaP($H$4,H86,0,0,N86,$D$4/365),C86-1),IF(H86>$H$4,_xll.RssFOPMarket("銘柄コードは取得できませんでした。","デルタ")-1,_xll.RssFOPMarket("銘柄コードは取得できませんでした。","デルタ"))),0) ->  | J86: =IFERROR(IF($H$4>H86,OFFSET(OpData!S1538,$E$4,,1,1),OFFSET(OpData!I1538,$E$4,,1,1)+H86-$H$4),0) ->  | N86: =IFERROR(IF($E$4,IF($H$4<H86,IVC(D86,$H$4,H86,0,0,$D$4/365),IVP(J86,$H$4,H86,0,0,$D$4/365)),IF(H86>$H$4,_xll.RssFOPMarket("銘柄コードは取得できませんでした。","IV"),_xll.RssFOPMarket("銘柄コードは取得できませんでした。","IV"))/100),0) -> 0 | P86: =IFERROR(IF($E$4,Vega($H$4,H86,0,0,N86,$D$4/365),IF(H86>$H$4,_xll.RssFOPMarket("銘柄コードは取得できませんでした。","ベガ"),_xll.RssFOPMarket("銘柄コードは取得できませんでした。","ベガ"))),0) ->  | Q86: =IFERROR(IF($E$4,GammaCP($H$4,H86,0,0,N86,$D$4/365),IF(H86>$H$4,_xll.RssFOPMarket("銘柄コードは取得できませんでした。","ガンマ"),_xll.RssFOPMarket("銘柄コードは取得できませんでした。","ガンマ"))),0) ->  | R86: =IFERROR(IF($E$4,Theta($H$4,H86,0,0,N86,$D$4/365,365),IF(H86>$H$4,_xll.RssFOPMarket("銘柄コードは取得できませんでした。","セータ"),_xll.RssFOPMarket("銘柄コードは取得できませんでした。","セータ"))),0) ->  | W86: =IFERROR(IF($E$4,IF($H$5<=AB86,DeltaC($H$5,AB86,0,0,AH86,$D$5/365),AC86+1),IF(AB86>$H$5,_xll.RssFOPMarket("197029018","デルタ"),_xll.RssFOPMarket("187029018","デルタ")+1)),0) -> 0.992 | X86: =IFERROR(IF($H$5<AB86,OFFSET(OpData!AC1538,$E$4,,1,1),$H$5+OFFSET(OpData!AM1538,$E$4,,1,1)-AB86),0) -> 9530 | AB86: 19000 | AC86: =IFERROR(IF($E$4,IF($H$5>=AB86,DeltaP($H$5,AB86,0,0,AH86,$D$5/365),W86-1),IF(AB86>$H$5,_xll.RssFOPMarket("197029018","デルタ")-1,_xll.RssFOPMarket("187029018","デルタ"))),0) -> -0.008 | AD86: =IFERROR(IF($H$5>AB86,OFFSET(OpData!AM1538,$E$4,,1,1),OFFSET(OpData!AC1538,$E$4,,1,1)+AB86-$H$5),0) -> 0 | AH86: =IFERROR(IF($E$4,IF($H$5<AB86,IVC(X86,$H$5,AB86,0,0,$D$5/365),IVP(AD86,$H$5,AB86,0,0,$D$5/365)),IF(AB86>$H$5,_xll.RssFOPMarket("197029018","IV"),_xll.RssFOPMarket("187029018","IV"))/100),0) -> 0.4492 | AJ86: =IFERROR(IF($E$4,Vega($H$5,AB86,0,0,AH86,$D$5/365),IF(AB86>$H$5,_xll.RssFOPMarket("197029018","ベガ"),_xll.RssFOPMarket("187029018","ベガ"))),0) -> 2.436 | AK86: =IFERROR(IF($E$4,GammaCP($H$5,AB86,0,0,AH86,$D$5/365),IF(AB86>$H$5,_xll.RssFOPMarket("197029018","ガンマ"),_xll.RssFOPMarket("187029018","ガンマ"))),0) -> 0 | AL86: =IFERROR(IF($E$4,Theta($H$5,AB86,0,0,AH86,$D$5/365,365),IF(AB86>$H$5,_xll.RssFOPMarket("197029018","セータ"),_xll.RssFOPMarket("187029018","セータ"))),0) -> -1.003 | CA86: 0 | CB86: 0 | CC86: 0 | CD86: 0 | CE86: 0 | CF86: 0 | CG86: 0 | CH86: 0 | CI86: 0 | CJ86: 0 | CK86: 0 | CL86: 0 | CM86: 0 | CN86: 0 | CO86: 0 | CP86: 0 | CQ86: 0 | CR86: 0 | CS86: 0 | CT86: 0 | CU86: 0 | CV86: 0 | CW86: 0 | CX86: 0
C87: =IFERROR(IF($E$4,IF($H$4<=H87,DeltaC($H$4,H87,0,0,N87,$D$4/365),I87+1),IF(H87>$H$4,_xll.RssFOPMarket("197012518","デルタ"),_xll.RssFOPMarket("187012518","デルタ")+1)),0) -> 0.9889 | D87: =IFERROR(IF($H$4<H87,OFFSET(OpData!I1558,$E$4,,1,1),$H$4+OFFSET(OpData!S1558,$E$4,,1,1)-H87),0) -> 6037 | H87: 22500 | I87: =IFERROR(IF($E$4,IF($H$4>=H87,DeltaP($H$4,H87,0,0,N87,$D$4/365),C87-1),IF(H87>$H$4,_xll.RssFOPMarket("197012518","デルタ")-1,_xll.RssFOPMarket("187012518","デルタ"))),0) -> -0.0111 | J87: =IFERROR(IF($H$4>H87,OFFSET(OpData!S1558,$E$4,,1,1),OFFSET(OpData!I1558,$E$4,,1,1)+H87-$H$4),0) -> 12 | N87: =IFERROR(IF($E$4,IF($H$4<H87,IVC(D87,$H$4,H87,0,0,$D$4/365),IVP(J87,$H$4,H87,0,0,$D$4/365)),IF(H87>$H$4,_xll.RssFOPMarket("197012518","IV"),_xll.RssFOPMarket("187012518","IV"))/100),0) -> 0.3839 | P87: =IFERROR(IF($E$4,Vega($H$4,H87,0,0,N87,$D$4/365),IF(H87>$H$4,_xll.RssFOPMarket("197012518","ベガ"),_xll.RssFOPMarket("187012518","ベガ"))),0) -> 2.315 | Q87: =IFERROR(IF($E$4,GammaCP($H$4,H87,0,0,N87,$D$4/365),IF(H87>$H$4,_xll.RssFOPMarket("197012518","ガンマ"),_xll.RssFOPMarket("187012518","ガンマ"))),0) -> 0 | R87: =IFERROR(IF($E$4,Theta($H$4,H87,0,0,N87,$D$4/365,365),IF(H87>$H$4,_xll.RssFOPMarket("197012518","セータ"),_xll.RssFOPMarket("187012518","セータ"))),0) -> -1.595 | W87: =IFERROR(IF($E$4,IF($H$5<=AB87,DeltaC($H$5,AB87,0,0,AH87,$D$5/365),AC87+1),IF(AB87>$H$5,_xll.RssFOPMarket("197028018","デルタ"),_xll.RssFOPMarket("187028018","デルタ")+1)),0) -> 0.994 | X87: =IFERROR(IF($H$5<AB87,OFFSET(OpData!AC1558,$E$4,,1,1),$H$5+OFFSET(OpData!AM1558,$E$4,,1,1)-AB87),0) -> 10530 | AB87: 18000 | AC87: =IFERROR(IF($E$4,IF($H$5>=AB87,DeltaP($H$5,AB87,0,0,AH87,$D$5/365),W87-1),IF(AB87>$H$5,_xll.RssFOPMarket("197028018","デルタ")-1,_xll.RssFOPMarket("187028018","デルタ"))),0) -> -0.006 | AD87: =IFERROR(IF($H$5>AB87,OFFSET(OpData!AM1558,$E$4,,1,1),OFFSET(OpData!AC1558,$E$4,,1,1)+AB87-$H$5),0) -> 0 | AH87: =IFERROR(IF($E$4,IF($H$5<AB87,IVC(X87,$H$5,AB87,0,0,$D$5/365),IVP(AD87,$H$5,AB87,0,0,$D$5/365)),IF(AB87>$H$5,_xll.RssFOPMarket("197028018","IV"),_xll.RssFOPMarket("187028018","IV"))/100),0) -> 0.4819 | AJ87: =IFERROR(IF($E$4,Vega($H$5,AB87,0,0,AH87,$D$5/365),IF(AB87>$H$5,_xll.RssFOPMarket("197028018","ベガ"),_xll.RssFOPMarket("187028018","ベガ"))),0) -> 1.873 | AK87: =IFERROR(IF($E$4,GammaCP($H$5,AB87,0,0,AH87,$D$5/365),IF(AB87>$H$5,_xll.RssFOPMarket("197028018","ガンマ"),_xll.RssFOPMarket("187028018","ガンマ"))),0) -> 0 | AL87: =IFERROR(IF($E$4,Theta($H$5,AB87,0,0,AH87,$D$5/365,365),IF(AB87>$H$5,_xll.RssFOPMarket("197028018","セータ"),_xll.RssFOPMarket("187028018","セータ"))),0) -> -0.837 | CA87: 0 | CB87: 0 | CC87: 0 | CD87: 0 | CE87: 0 | CF87: 0 | CG87: 0 | CH87: 0 | CI87: 0 | CJ87: 0 | CK87: 0 | CL87: 0 | CM87: 0 | CN87: 0 | CO87: 0 | CP87: 0 | CQ87: 0 | CR87: 0 | CS87: 0 | CT87: 0 | CU87: 0 | CV87: 0 | CW87: 0 | CX87: 0
C88: =IFERROR(IF($E$4,IF($H$4<=H88,DeltaC($H$4,H88,0,0,N88,$D$4/365),I88+1),IF(H88>$H$4,_xll.RssFOPMarket("銘柄コードは取得できませんでした。","デルタ"),_xll.RssFOPMarket("銘柄コードは取得できませんでした。","デルタ")+1)),0) -> 0 | D88: =IFERROR(IF($H$4<H88,OFFSET(OpData!I1578,$E$4,,1,1),$H$4+OFFSET(OpData!S1578,$E$4,,1,1)-H88),0) -> 0 | H88: 22250 | I88: =IFERROR(IF($E$4,IF($H$4>=H88,DeltaP($H$4,H88,0,0,N88,$D$4/365),C88-1),IF(H88>$H$4,_xll.RssFOPMarket("銘柄コードは取得できませんでした。","デルタ")-1,_xll.RssFOPMarket("銘柄コードは取得できませんでした。","デルタ"))),0) ->  | J88: =IFERROR(IF($H$4>H88,OFFSET(OpData!S1578,$E$4,,1,1),OFFSET(OpData!I1578,$E$4,,1,1)+H88-$H$4),0) ->  | N88: =IFERROR(IF($E$4,IF($H$4<H88,IVC(D88,$H$4,H88,0,0,$D$4/365),IVP(J88,$H$4,H88,0,0,$D$4/365)),IF(H88>$H$4,_xll.RssFOPMarket("銘柄コードは取得できませんでした。","IV"),_xll.RssFOPMarket("銘柄コードは取得できませんでした。","IV"))/100),0) -> 0 | P88: =IFERROR(IF($E$4,Vega($H$4,H88,0,0,N88,$D$4/365),IF(H88>$H$4,_xll.RssFOPMarket("銘柄コードは取得できませんでした。","ベガ"),_xll.RssFOPMarket("銘柄コードは取得できませんでした。","ベガ"))),0) ->  | Q88: =IFERROR(IF($E$4,GammaCP($H$4,H88,0,0,N88,$D$4/365),IF(H88>$H$4,_xll.RssFOPMarket("銘柄コードは取得できませんでした。","ガンマ"),_xll.RssFOPMarket("銘柄コードは取得できませんでした。","ガンマ"))),0) ->  | R88: =IFERROR(IF($E$4,Theta($H$4,H88,0,0,N88,$D$4/365,365),IF(H88>$H$4,_xll.RssFOPMarket("銘柄コードは取得できませんでした。","セータ"),_xll.RssFOPMarket("銘柄コードは取得できませんでした。","セータ"))),0) ->  | AA88: =IF(ABS($H$5-AB88)<125,"ATM","") ->  | CA88: 0 | CB88: 0 | CC88: 0 | CD88: 0 | CE88: 0 | CF88: 0 | CG88: 0 | CH88: 0 | CI88: 0 | CJ88: 0 | CK88: 0 | CL88: 0 | CM88: 0 | CN88: 0 | CO88: 0 | CP88: 0 | CQ88: 0 | CR88: 0 | CS88: 0 | CT88: 0 | CU88: 0 | CV88: 0 | CW88: 0 | CX88: 0
C89: =IFERROR(IF($E$4,IF($H$4<=H89,DeltaC($H$4,H89,0,0,N89,$D$4/365),I89+1),IF(H89>$H$4,_xll.RssFOPMarket("197012018","デルタ"),_xll.RssFOPMarket("187012018","デルタ")+1)),0) -> 0.991 | D89: =IFERROR(IF($H$4<H89,OFFSET(OpData!I1598,$E$4,,1,1),$H$4+OFFSET(OpData!S1598,$E$4,,1,1)-H89),0) -> 6535 | H89: 22000 | I89: =IFERROR(IF($E$4,IF($H$4>=H89,DeltaP($H$4,H89,0,0,N89,$D$4/365),C89-1),IF(H89>$H$4,_xll.RssFOPMarket("197012018","デルタ")-1,_xll.RssFOPMarket("187012018","デルタ"))),0) -> -0.009 | J89: =IFERROR(IF($H$4>H89,OFFSET(OpData!S1598,$E$4,,1,1),OFFSET(OpData!I1598,$E$4,,1,1)+H89-$H$4),0) -> 10 | N89: =IFERROR(IF($E$4,IF($H$4<H89,IVC(D89,$H$4,H89,0,0,$D$4/365),IVP(J89,$H$4,H89,0,0,$D$4/365)),IF(H89>$H$4,_xll.RssFOPMarket("197012018","IV"),_xll.RssFOPMarket("187012018","IV"))/100),0) -> 0.404 | P89: =IFERROR(IF($E$4,Vega($H$4,H89,0,0,N89,$D$4/365),IF(H89>$H$4,_xll.RssFOPMarket("197012018","ベガ"),_xll.RssFOPMarket("187012018","ベガ"))),0) -> 1.924 | Q89: =IFERROR(IF($E$4,GammaCP($H$4,H89,0,0,N89,$D$4/365),IF(H89>$H$4,_xll.RssFOPMarket("197012018","ガンマ"),_xll.RssFOPMarket("187012018","ガンマ"))),0) -> 0 | R89: =IFERROR(IF($E$4,Theta($H$4,H89,0,0,N89,$D$4/365,365),IF(H89>$H$4,_xll.RssFOPMarket("197012018","セータ"),_xll.RssFOPMarket("187012018","セータ"))),0) -> -1.409 | CA89: 0 | CB89: 0 | CC89: 0 | CD89: 0 | CE89: 0 | CF89: 0 | CG89: 0 | CH89: 0 | CI89: 0 | CJ89: 0 | CK89: 0 | CL89: 0 | CM89: 0 | CN89: 0 | CO89: 0 | CP89: 0 | CQ89: 0 | CR89: 0 | CS89: 0 | CT89: 0 | CU89: 0 | CV89: 0 | CW89: 0 | CX89: 0
C90: =IFERROR(IF($E$4,IF($H$4<=H90,DeltaC($H$4,H90,0,0,N90,$D$4/365),I90+1),IF(H90>$H$4,_xll.RssFOPMarket("銘柄コードは取得できませんでした。","デルタ"),_xll.RssFOPMarket("銘柄コードは取得できませんでした。","デルタ")+1)),0) -> 0 | D90: =IFERROR(IF($H$4<H90,OFFSET(OpData!I1618,$E$4,,1,1),$H$4+OFFSET(OpData!S1618,$E$4,,1,1)-H90),0) -> 0 | H90: 21750 | I90: =IFERROR(IF($E$4,IF($H$4>=H90,DeltaP($H$4,H90,0,0,N90,$D$4/365),C90-1),IF(H90>$H$4,_xll.RssFOPMarket("銘柄コードは取得できませんでした。","デルタ")-1,_xll.RssFOPMarket("銘柄コードは取得できませんでした。","デルタ"))),0) ->  | J90: =IFERROR(IF($H$4>H90,OFFSET(OpData!S1618,$E$4,,1,1),OFFSET(OpData!I1618,$E$4,,1,1)+H90-$H$4),0) ->  | N90: =IFERROR(IF($E$4,IF($H$4<H90,IVC(D90,$H$4,H90,0,0,$D$4/365),IVP(J90,$H$4,H90,0,0,$D$4/365)),IF(H90>$H$4,_xll.RssFOPMarket("銘柄コードは取得できませんでした。","IV"),_xll.RssFOPMarket("銘柄コードは取得できませんでした。","IV"))/100),0) -> 0 | P90: =IFERROR(IF($E$4,Vega($H$4,H90,0,0,N90,$D$4/365),IF(H90>$H$4,_xll.RssFOPMarket("銘柄コードは取得できませんでした。","ベガ"),_xll.RssFOPMarket("銘柄コードは取得できませんでした。","ベガ"))),0) ->  | Q90: =IFERROR(IF($E$4,GammaCP($H$4,H90,0,0,N90,$D$4/365),IF(H90>$H$4,_xll.RssFOPMarket("銘柄コードは取得できませんでした。","ガンマ"),_xll.RssFOPMarket("銘柄コードは取得できませんでした。","ガンマ"))),0) ->  | R90: =IFERROR(IF($E$4,Theta($H$4,H90,0,0,N90,$D$4/365,365),IF(H90>$H$4,_xll.RssFOPMarket("銘柄コードは取得できませんでした。","セータ"),_xll.RssFOPMarket("銘柄コードは取得できませんでした。","セータ"))),0) ->  | CA90: 0 | CB90: 0 | CC90: 0 | CD90: 0 | CE90: 0 | CF90: 0 | CG90: 0 | CH90: 0 | CI90: 0 | CJ90: 0 | CK90: 0 | CL90: 0 | CM90: 0 | CN90: 0 | CO90: 0 | CP90: 0 | CQ90: 0 | CR90: 0 | CS90: 0 | CT90: 0 | CU90: 0 | CV90: 0 | CW90: 0 | CX90: 0
C91: =IFERROR(IF($E$4,IF($H$4<=H91,DeltaC($H$4,H91,0,0,N91,$D$4/365),I91+1),IF(H91>$H$4,_xll.RssFOPMarket("銘柄コードは取得できませんでした。","デルタ"),_xll.RssFOPMarket("銘柄コードは取得できませんでした。","デルタ")+1)),0) -> 0 | D91: =IFERROR(IF($H$4<H91,OFFSET(OpData!I1638,$E$4,,1,1),$H$4+OFFSET(OpData!S1638,$E$4,,1,1)-H91),0) -> 0 | H91: 21500 | I91: =IFERROR(IF($E$4,IF($H$4>=H91,DeltaP($H$4,H91,0,0,N91,$D$4/365),C91-1),IF(H91>$H$4,_xll.RssFOPMarket("銘柄コードは取得できませんでした。","デルタ")-1,_xll.RssFOPMarket("銘柄コードは取得できませんでした。","デルタ"))),0) ->  | J91: =IFERROR(IF($H$4>H91,OFFSET(OpData!S1638,$E$4,,1,1),OFFSET(OpData!I1638,$E$4,,1,1)+H91-$H$4),0) ->  | N91: =IFERROR(IF($E$4,IF($H$4<H91,IVC(D91,$H$4,H91,0,0,$D$4/365),IVP(J91,$H$4,H91,0,0,$D$4/365)),IF(H91>$H$4,_xll.RssFOPMarket("銘柄コードは取得できませんでした。","IV"),_xll.RssFOPMarket("銘柄コードは取得できませんでした。","IV"))/100),0) -> 0 | P91: =IFERROR(IF($E$4,Vega($H$4,H91,0,0,N91,$D$4/365),IF(H91>$H$4,_xll.RssFOPMarket("銘柄コードは取得できませんでした。","ベガ"),_xll.RssFOPMarket("銘柄コードは取得できませんでした。","ベガ"))),0) ->  | Q91: =IFERROR(IF($E$4,GammaCP($H$4,H91,0,0,N91,$D$4/365),IF(H91>$H$4,_xll.RssFOPMarket("銘柄コードは取得できませんでした。","ガンマ"),_xll.RssFOPMarket("銘柄コードは取得できませんでした。","ガンマ"))),0) ->  | R91: =IFERROR(IF($E$4,Theta($H$4,H91,0,0,N91,$D$4/365,365),IF(H91>$H$4,_xll.RssFOPMarket("銘柄コードは取得できませんでした。","セータ"),_xll.RssFOPMarket("銘柄コードは取得できませんでした。","セータ"))),0) ->  | CA91: 0 | CB91: 0 | CC91: 0 | CD91: 0 | CE91: 0 | CF91: 0 | CG91: 0 | CH91: 0 | CI91: 0 | CJ91: 0 | CK91: 0 | CL91: 0 | CM91: 0 | CN91: 0 | CO91: 0 | CP91: 0 | CQ91: 0 | CR91: 0 | CS91: 0 | CT91: 0 | CU91: 0 | CV91: 0 | CW91: 0 | CX91: 0
C92: =IFERROR(IF($E$4,IF($H$4<=H92,DeltaC($H$4,H92,0,0,N92,$D$4/365),I92+1),IF(H92>$H$4,_xll.RssFOPMarket("銘柄コードは取得できませんでした。","デルタ"),_xll.RssFOPMarket("銘柄コードは取得できませんでした。","デルタ")+1)),0) -> 0 | D92: =IFERROR(IF($H$4<H92,OFFSET(OpData!I1658,$E$4,,1,1),$H$4+OFFSET(OpData!S1658,$E$4,,1,1)-H92),0) -> 0 | H92: 21250 | I92: =IFERROR(IF($E$4,IF($H$4>=H92,DeltaP($H$4,H92,0,0,N92,$D$4/365),C92-1),IF(H92>$H$4,_xll.RssFOPMarket("銘柄コードは取得できませんでした。","デルタ")-1,_xll.RssFOPMarket("銘柄コードは取得できませんでした。","デルタ"))),0) ->  | J92: =IFERROR(IF($H$4>H92,OFFSET(OpData!S1658,$E$4,,1,1),OFFSET(OpData!I1658,$E$4,,1,1)+H92-$H$4),0) ->  | N92: =IFERROR(IF($E$4,IF($H$4<H92,IVC(D92,$H$4,H92,0,0,$D$4/365),IVP(J92,$H$4,H92,0,0,$D$4/365)),IF(H92>$H$4,_xll.RssFOPMarket("銘柄コードは取得できませんでした。","IV"),_xll.RssFOPMarket("銘柄コードは取得できませんでした。","IV"))/100),0) -> 0 | P92: =IFERROR(IF($E$4,Vega($H$4,H92,0,0,N92,$D$4/365),IF(H92>$H$4,_xll.RssFOPMarket("銘柄コードは取得できませんでした。","ベガ"),_xll.RssFOPMarket("銘柄コードは取得できませんでした。","ベガ"))),0) ->  | Q92: =IFERROR(IF($E$4,GammaCP($H$4,H92,0,0,N92,$D$4/365),IF(H92>$H$4,_xll.RssFOPMarket("銘柄コードは取得できませんでした。","ガンマ"),_xll.RssFOPMarket("銘柄コードは取得できませんでした。","ガンマ"))),0) ->  | R92: =IFERROR(IF($E$4,Theta($H$4,H92,0,0,N92,$D$4/365,365),IF(H92>$H$4,_xll.RssFOPMarket("銘柄コードは取得できませんでした。","セータ"),_xll.RssFOPMarket("銘柄コードは取得できませんでした。","セータ"))),0) ->  | CA92: 0 | CB92: 0 | CC92: 0 | CD92: 0 | CE92: 0 | CF92: 0 | CG92: 0 | CH92: 0 | CI92: 0 | CJ92: 0 | CK92: 0 | CL92: 0 | CM92: 0 | CN92: 0 | CO92: 0 | CP92: 0 | CQ92: 0 | CR92: 0 | CS92: 0 | CT92: 0 | CU92: 0 | CV92: 0 | CW92: 0 | CX92: 0
C93: =IFERROR(IF($E$4,IF($H$4<=H93,DeltaC($H$4,H93,0,0,N93,$D$4/365),I93+1),IF(H93>$H$4,_xll.RssFOPMarket("197011018","デルタ"),_xll.RssFOPMarket("187011018","デルタ")+1)),0) -> 0.9948 | D93: =IFERROR(IF($H$4<H93,OFFSET(OpData!I1678,$E$4,,1,1),$H$4+OFFSET(OpData!S1678,$E$4,,1,1)-H93),0) -> 7531 | H93: 21000 | I93: =IFERROR(IF($E$4,IF($H$4>=H93,DeltaP($H$4,H93,0,0,N93,$D$4/365),C93-1),IF(H93>$H$4,_xll.RssFOPMarket("197011018","デルタ")-1,_xll.RssFOPMarket("187011018","デルタ"))),0) -> -0.0052 | J93: =IFERROR(IF($H$4>H93,OFFSET(OpData!S1678,$E$4,,1,1),OFFSET(OpData!I1678,$E$4,,1,1)+H93-$H$4),0) -> 6 | N93: =IFERROR(IF($E$4,IF($H$4<H93,IVC(D93,$H$4,H93,0,0,$D$4/365),IVP(J93,$H$4,H93,0,0,$D$4/365)),IF(H93>$H$4,_xll.RssFOPMarket("197011018","IV"),_xll.RssFOPMarket("187011018","IV"))/100),0) -> 0.4404 | P93: =IFERROR(IF($E$4,Vega($H$4,H93,0,0,N93,$D$4/365),IF(H93>$H$4,_xll.RssFOPMarket("197011018","ベガ"),_xll.RssFOPMarket("187011018","ベガ"))),0) -> 1.19 | Q93: =IFERROR(IF($E$4,GammaCP($H$4,H93,0,0,N93,$D$4/365),IF(H93>$H$4,_xll.RssFOPMarket("197011018","ガンマ"),_xll.RssFOPMarket("187011018","ガンマ"))),0) -> 0 | R93: =IFERROR(IF($E$4,Theta($H$4,H93,0,0,N93,$D$4/365,365),IF(H93>$H$4,_xll.RssFOPMarket("197011018","セータ"),_xll.RssFOPMarket("187011018","セータ"))),0) -> -0.948 | CA93: 0 | CB93: 0 | CC93: 0 | CD93: 0 | CE93: 0 | CF93: 0 | CG93: 0 | CH93: 0 | CI93: 0 | CJ93: 0 | CK93: 0 | CL93: 0 | CM93: 0 | CN93: 0 | CO93: 0 | CP93: 0 | CQ93: 0 | CR93: 0 | CS93: 0 | CT93: 0 | CU93: 0 | CV93: 0 | CW93: 0 | CX93: 0
C94: =IFERROR(IF($E$4,IF($H$4<=H94,DeltaC($H$4,H94,0,0,N94,$D$4/365),I94+1),IF(H94>$H$4,_xll.RssFOPMarket("銘柄コードは取得できませんでした。","デルタ"),_xll.RssFOPMarket("銘柄コードは取得できませんでした。","デルタ")+1)),0) -> 0 | D94: =IFERROR(IF($H$4<H94,OFFSET(OpData!I1698,$E$4,,1,1),$H$4+OFFSET(OpData!S1698,$E$4,,1,1)-H94),0) -> 0 | H94: 20750 | I94: =IFERROR(IF($E$4,IF($H$4>=H94,DeltaP($H$4,H94,0,0,N94,$D$4/365),C94-1),IF(H94>$H$4,_xll.RssFOPMarket("銘柄コードは取得できませんでした。","デルタ")-1,_xll.RssFOPMarket("銘柄コードは取得できませんでした。","デルタ"))),0) ->  | J94: =IFERROR(IF($H$4>H94,OFFSET(OpData!S1698,$E$4,,1,1),OFFSET(OpData!I1698,$E$4,,1,1)+H94-$H$4),0) ->  | N94: =IFERROR(IF($E$4,IF($H$4<H94,IVC(D94,$H$4,H94,0,0,$D$4/365),IVP(J94,$H$4,H94,0,0,$D$4/365)),IF(H94>$H$4,_xll.RssFOPMarket("銘柄コードは取得できませんでした。","IV"),_xll.RssFOPMarket("銘柄コードは取得できませんでした。","IV"))/100),0) -> 0 | P94: =IFERROR(IF($E$4,Vega($H$4,H94,0,0,N94,$D$4/365),IF(H94>$H$4,_xll.RssFOPMarket("銘柄コードは取得できませんでした。","ベガ"),_xll.RssFOPMarket("銘柄コードは取得できませんでした。","ベガ"))),0) ->  | Q94: =IFERROR(IF($E$4,GammaCP($H$4,H94,0,0,N94,$D$4/365),IF(H94>$H$4,_xll.RssFOPMarket("銘柄コードは取得できませんでした。","ガンマ"),_xll.RssFOPMarket("銘柄コードは取得できませんでした。","ガンマ"))),0) ->  | R94: =IFERROR(IF($E$4,Theta($H$4,H94,0,0,N94,$D$4/365,365),IF(H94>$H$4,_xll.RssFOPMarket("銘柄コードは取得できませんでした。","セータ"),_xll.RssFOPMarket("銘柄コードは取得できませんでした。","セータ"))),0) ->  | CA94: 0 | CB94: 0 | CC94: 0 | CD94: 0 | CE94: 0 | CF94: 0 | CG94: 0 | CH94: 0 | CI94: 0 | CJ94: 0 | CK94: 0 | CL94: 0 | CM94: 0 | CN94: 0 | CO94: 0 | CP94: 0 | CQ94: 0 | CR94: 0 | CS94: 0 | CT94: 0 | CU94: 0 | CV94: 0 | CW94: 0 | CX94: 0
C95: =IFERROR(IF($E$4,IF($H$4<=H95,DeltaC($H$4,H95,0,0,N95,$D$4/365),I95+1),IF(H95>$H$4,_xll.RssFOPMarket("銘柄コードは取得できませんでした。","デルタ"),_xll.RssFOPMarket("銘柄コードは取得できませんでした。","デルタ")+1)),0) -> 0 | D95: =IFERROR(IF($H$4<H95,OFFSET(OpData!I1718,$E$4,,1,1),$H$4+OFFSET(OpData!S1718,$E$4,,1,1)-H95),0) -> 0 | H95: 20500 | I95: =IFERROR(IF($E$4,IF($H$4>=H95,DeltaP($H$4,H95,0,0,N95,$D$4/365),C95-1),IF(H95>$H$4,_xll.RssFOPMarket("銘柄コードは取得できませんでした。","デルタ")-1,_xll.RssFOPMarket("銘柄コードは取得できませんでした。","デルタ"))),0) ->  | J95: =IFERROR(IF($H$4>H95,OFFSET(OpData!S1718,$E$4,,1,1),OFFSET(OpData!I1718,$E$4,,1,1)+H95-$H$4),0) ->  | N95: =IFERROR(IF($E$4,IF($H$4<H95,IVC(D95,$H$4,H95,0,0,$D$4/365),IVP(J95,$H$4,H95,0,0,$D$4/365)),IF(H95>$H$4,_xll.RssFOPMarket("銘柄コードは取得できませんでした。","IV"),_xll.RssFOPMarket("銘柄コードは取得できませんでした。","IV"))/100),0) -> 0 | P95: =IFERROR(IF($E$4,Vega($H$4,H95,0,0,N95,$D$4/365),IF(H95>$H$4,_xll.RssFOPMarket("銘柄コードは取得できませんでした。","ベガ"),_xll.RssFOPMarket("銘柄コードは取得できませんでした。","ベガ"))),0) ->  | Q95: =IFERROR(IF($E$4,GammaCP($H$4,H95,0,0,N95,$D$4/365),IF(H95>$H$4,_xll.RssFOPMarket("銘柄コードは取得できませんでした。","ガンマ"),_xll.RssFOPMarket("銘柄コードは取得できませんでした。","ガンマ"))),0) ->  | R95: =IFERROR(IF($E$4,Theta($H$4,H95,0,0,N95,$D$4/365,365),IF(H95>$H$4,_xll.RssFOPMarket("銘柄コードは取得できませんでした。","セータ"),_xll.RssFOPMarket("銘柄コードは取得できませんでした。","セータ"))),0) ->  | CA95: 0 | CB95: 0 | CC95: 0 | CD95: 0 | CE95: 0 | CF95: 0 | CG95: 0 | CH95: 0 | CI95: 0 | CJ95: 0 | CK95: 0 | CL95: 0 | CM95: 0 | CN95: 0 | CO95: 0 | CP95: 0 | CQ95: 0 | CR95: 0 | CS95: 0 | CT95: 0 | CU95: 0 | CV95: 0 | CW95: 0 | CX95: 0
C96: =IFERROR(IF($E$4,IF($H$4<=H96,DeltaC($H$4,H96,0,0,N96,$D$4/365),I96+1),IF(H96>$H$4,_xll.RssFOPMarket("銘柄コードは取得できませんでした。","デルタ"),_xll.RssFOPMarket("銘柄コードは取得できませんでした。","デルタ")+1)),0) -> 0 | D96: =IFERROR(IF($H$4<H96,OFFSET(OpData!I1738,$E$4,,1,1),$H$4+OFFSET(OpData!S1738,$E$4,,1,1)-H96),0) -> 0 | H96: 20250 | I96: =IFERROR(IF($E$4,IF($H$4>=H96,DeltaP($H$4,H96,0,0,N96,$D$4/365),C96-1),IF(H96>$H$4,_xll.RssFOPMarket("銘柄コードは取得できませんでした。","デルタ")-1,_xll.RssFOPMarket("銘柄コードは取得できませんでした。","デルタ"))),0) ->  | J96: =IFERROR(IF($H$4>H96,OFFSET(OpData!S1738,$E$4,,1,1),OFFSET(OpData!I1738,$E$4,,1,1)+H96-$H$4),0) ->  | N96: =IFERROR(IF($E$4,IF($H$4<H96,IVC(D96,$H$4,H96,0,0,$D$4/365),IVP(J96,$H$4,H96,0,0,$D$4/365)),IF(H96>$H$4,_xll.RssFOPMarket("銘柄コードは取得できませんでした。","IV"),_xll.RssFOPMarket("銘柄コードは取得できませんでした。","IV"))/100),0) -> 0 | P96: =IFERROR(IF($E$4,Vega($H$4,H96,0,0,N96,$D$4/365),IF(H96>$H$4,_xll.RssFOPMarket("銘柄コードは取得できませんでした。","ベガ"),_xll.RssFOPMarket("銘柄コードは取得できませんでした。","ベガ"))),0) ->  | Q96: =IFERROR(IF($E$4,GammaCP($H$4,H96,0,0,N96,$D$4/365),IF(H96>$H$4,_xll.RssFOPMarket("銘柄コードは取得できませんでした。","ガンマ"),_xll.RssFOPMarket("銘柄コードは取得できませんでした。","ガンマ"))),0) ->  | R96: =IFERROR(IF($E$4,Theta($H$4,H96,0,0,N96,$D$4/365,365),IF(H96>$H$4,_xll.RssFOPMarket("銘柄コードは取得できませんでした。","セータ"),_xll.RssFOPMarket("銘柄コードは取得できませんでした。","セータ"))),0) ->  | CA96: 0 | CB96: 0 | CC96: 0 | CD96: 0 | CE96: 0 | CF96: 0 | CG96: 0 | CH96: 0 | CI96: 0 | CJ96: 0 | CK96: 0 | CL96: 0 | CM96: 0 | CN96: 0 | CO96: 0 | CP96: 0 | CQ96: 0 | CR96: 0 | CS96: 0 | CT96: 0 | CU96: 0 | CV96: 0 | CW96: 0 | CX96: 0
C97: =IFERROR(IF($E$4,IF($H$4<=H97,DeltaC($H$4,H97,0,0,N97,$D$4/365),I97+1),IF(H97>$H$4,_xll.RssFOPMarket("197010018","デルタ"),_xll.RssFOPMarket("187010018","デルタ")+1)),0) -> 0.9967 | D97: =IFERROR(IF($H$4<H97,OFFSET(OpData!I1758,$E$4,,1,1),$H$4+OFFSET(OpData!S1758,$E$4,,1,1)-H97),0) -> 8529 | H97: 20000 | I97: =IFERROR(IF($E$4,IF($H$4>=H97,DeltaP($H$4,H97,0,0,N97,$D$4/365),C97-1),IF(H97>$H$4,_xll.RssFOPMarket("197010018","デルタ")-1,_xll.RssFOPMarket("187010018","デルタ"))),0) -> -0.0033 | J97: =IFERROR(IF($H$4>H97,OFFSET(OpData!S1758,$E$4,,1,1),OFFSET(OpData!I1758,$E$4,,1,1)+H97-$H$4),0) -> 4 | N97: =IFERROR(IF($E$4,IF($H$4<H97,IVC(D97,$H$4,H97,0,0,$D$4/365),IVP(J97,$H$4,H97,0,0,$D$4/365)),IF(H97>$H$4,_xll.RssFOPMarket("197010018","IV"),_xll.RssFOPMarket("187010018","IV"))/100),0) -> 0.4847 | P97: =IFERROR(IF($E$4,Vega($H$4,H97,0,0,N97,$D$4/365),IF(H97>$H$4,_xll.RssFOPMarket("197010018","ベガ"),_xll.RssFOPMarket("187010018","ベガ"))),0) -> 0.788 | Q97: =IFERROR(IF($E$4,GammaCP($H$4,H97,0,0,N97,$D$4/365),IF(H97>$H$4,_xll.RssFOPMarket("197010018","ガンマ"),_xll.RssFOPMarket("187010018","ガンマ"))),0) -> 0 | R97: =IFERROR(IF($E$4,Theta($H$4,H97,0,0,N97,$D$4/365,365),IF(H97>$H$4,_xll.RssFOPMarket("197010018","セータ"),_xll.RssFOPMarket("187010018","セータ"))),0) -> -0.682 | CA97: 0 | CB97: 0 | CC97: 0 | CD97: 0 | CE97: 0 | CF97: 0 | CG97: 0 | CH97: 0 | CI97: 0 | CJ97: 0 | CK97: 0 | CL97: 0 | CM97: 0 | CN97: 0 | CO97: 0 | CP97: 0 | CQ97: 0 | CR97: 0 | CS97: 0 | CT97: 0 | CU97: 0 | CV97: 0 | CW97: 0 | CX97: 0
C98: =IFERROR(IF($E$4,IF($H$4<=H98,DeltaC($H$4,H98,0,0,N98,$D$4/365),I98+1),IF(H98>$H$4,_xll.RssFOPMarket("銘柄コードは取得できませんでした。","デルタ"),_xll.RssFOPMarket("銘柄コードは取得できませんでした。","デルタ")+1)),0) -> 0 | D98: =IFERROR(IF($H$4<H98,OFFSET(OpData!I1778,$E$4,,1,1),$H$4+OFFSET(OpData!S1778,$E$4,,1,1)-H98),0) -> 0 | H98: 19750 | I98: =IFERROR(IF($E$4,IF($H$4>=H98,DeltaP($H$4,H98,0,0,N98,$D$4/365),C98-1),IF(H98>$H$4,_xll.RssFOPMarket("銘柄コードは取得できませんでした。","デルタ")-1,_xll.RssFOPMarket("銘柄コードは取得できませんでした。","デルタ"))),0) ->  | J98: =IFERROR(IF($H$4>H98,OFFSET(OpData!S1778,$E$4,,1,1),OFFSET(OpData!I1778,$E$4,,1,1)+H98-$H$4),0) ->  | N98: =IFERROR(IF($E$4,IF($H$4<H98,IVC(D98,$H$4,H98,0,0,$D$4/365),IVP(J98,$H$4,H98,0,0,$D$4/365)),IF(H98>$H$4,_xll.RssFOPMarket("銘柄コードは取得できませんでした。","IV"),_xll.RssFOPMarket("銘柄コードは取得できませんでした。","IV"))/100),0) -> 0 | P98: =IFERROR(IF($E$4,Vega($H$4,H98,0,0,N98,$D$4/365),IF(H98>$H$4,_xll.RssFOPMarket("銘柄コードは取得できませんでした。","ベガ"),_xll.RssFOPMarket("銘柄コードは取得できませんでした。","ベガ"))),0) ->  | Q98: =IFERROR(IF($E$4,GammaCP($H$4,H98,0,0,N98,$D$4/365),IF(H98>$H$4,_xll.RssFOPMarket("銘柄コードは取得できませんでした。","ガンマ"),_xll.RssFOPMarket("銘柄コードは取得できませんでした。","ガンマ"))),0) ->  | R98: =IFERROR(IF($E$4,Theta($H$4,H98,0,0,N98,$D$4/365,365),IF(H98>$H$4,_xll.RssFOPMarket("銘柄コードは取得できませんでした。","セータ"),_xll.RssFOPMarket("銘柄コードは取得できませんでした。","セータ"))),0) ->  | CA98: 0 | CB98: 0 | CC98: 0 | CD98: 0 | CE98: 0 | CF98: 0 | CG98: 0 | CH98: 0 | CI98: 0 | CJ98: 0 | CK98: 0 | CL98: 0 | CM98: 0 | CN98: 0 | CO98: 0 | CP98: 0 | CQ98: 0 | CR98: 0 | CS98: 0 | CT98: 0 | CU98: 0 | CV98: 0 | CW98: 0 | CX98: 0
C99: =IFERROR(IF($E$4,IF($H$4<=H99,DeltaC($H$4,H99,0,0,N99,$D$4/365),I99+1),IF(H99>$H$4,_xll.RssFOPMarket("銘柄コードは取得できませんでした。","デルタ"),_xll.RssFOPMarket("銘柄コードは取得できませんでした。","デルタ")+1)),0) -> 0 | D99: =IFERROR(IF($H$4<H99,OFFSET(OpData!I1798,$E$4,,1,1),$H$4+OFFSET(OpData!S1798,$E$4,,1,1)-H99),0) -> 0 | H99: 19500 | I99: =IFERROR(IF($E$4,IF($H$4>=H99,DeltaP($H$4,H99,0,0,N99,$D$4/365),C99-1),IF(H99>$H$4,_xll.RssFOPMarket("銘柄コードは取得できませんでした。","デルタ")-1,_xll.RssFOPMarket("銘柄コードは取得できませんでした。","デルタ"))),0) ->  | J99: =IFERROR(IF($H$4>H99,OFFSET(OpData!S1798,$E$4,,1,1),OFFSET(OpData!I1798,$E$4,,1,1)+H99-$H$4),0) ->  | N99: =IFERROR(IF($E$4,IF($H$4<H99,IVC(D99,$H$4,H99,0,0,$D$4/365),IVP(J99,$H$4,H99,0,0,$D$4/365)),IF(H99>$H$4,_xll.RssFOPMarket("銘柄コードは取得できませんでした。","IV"),_xll.RssFOPMarket("銘柄コードは取得できませんでした。","IV"))/100),0) -> 0 | P99: =IFERROR(IF($E$4,Vega($H$4,H99,0,0,N99,$D$4/365),IF(H99>$H$4,_xll.RssFOPMarket("銘柄コードは取得できませんでした。","ベガ"),_xll.RssFOPMarket("銘柄コードは取得できませんでした。","ベガ"))),0) ->  | Q99: =IFERROR(IF($E$4,GammaCP($H$4,H99,0,0,N99,$D$4/365),IF(H99>$H$4,_xll.RssFOPMarket("銘柄コードは取得できませんでした。","ガンマ"),_xll.RssFOPMarket("銘柄コードは取得できませんでした。","ガンマ"))),0) ->  | R99: =IFERROR(IF($E$4,Theta($H$4,H99,0,0,N99,$D$4/365,365),IF(H99>$H$4,_xll.RssFOPMarket("銘柄コードは取得できませんでした。","セータ"),_xll.RssFOPMarket("銘柄コードは取得できませんでした。","セータ"))),0) ->  | CA99: 0 | CB99: 0 | CC99: 0 | CD99: 0 | CE99: 0 | CF99: 0 | CG99: 0 | CH99: 0 | CI99: 0 | CJ99: 0 | CK99: 0 | CL99: 0 | CM99: 0 | CN99: 0 | CO99: 0 | CP99: 0 | CQ99: 0 | CR99: 0 | CS99: 0 | CT99: 0 | CU99: 0 | CV99: 0 | CW99: 0 | CX99: 0
C100: =IFERROR(IF($E$4,IF($H$4<=H100,DeltaC($H$4,H100,0,0,N100,$D$4/365),I100+1),IF(H100>$H$4,_xll.RssFOPMarket("銘柄コードは取得できませんでした。","デルタ"),_xll.RssFOPMarket("銘柄コードは取得できませんでした。","デルタ")+1)),0) -> 0 | D100: =IFERROR(IF($H$4<H100,OFFSET(OpData!I1818,$E$4,,1,1),$H$4+OFFSET(OpData!S1818,$E$4,,1,1)-H100),0) -> 0 | H100: 19250 | I100: =IFERROR(IF($E$4,IF($H$4>=H100,DeltaP($H$4,H100,0,0,N100,$D$4/365),C100-1),IF(H100>$H$4,_xll.RssFOPMarket("銘柄コードは取得できませんでした。","デルタ")-1,_xll.RssFOPMarket("銘柄コードは取得できませんでした。","デルタ"))),0) ->  | J100: =IFERROR(IF($H$4>H100,OFFSET(OpData!S1818,$E$4,,1,1),OFFSET(OpData!I1818,$E$4,,1,1)+H100-$H$4),0) ->  | N100: =IFERROR(IF($E$4,IF($H$4<H100,IVC(D100,$H$4,H100,0,0,$D$4/365),IVP(J100,$H$4,H100,0,0,$D$4/365)),IF(H100>$H$4,_xll.RssFOPMarket("銘柄コードは取得できませんでした。","IV"),_xll.RssFOPMarket("銘柄コードは取得できませんでした。","IV"))/100),0) -> 0 | P100: =IFERROR(IF($E$4,Vega($H$4,H100,0,0,N100,$D$4/365),IF(H100>$H$4,_xll.RssFOPMarket("銘柄コードは取得できませんでした。","ベガ"),_xll.RssFOPMarket("銘柄コードは取得できませんでした。","ベガ"))),0) ->  | Q100: =IFERROR(IF($E$4,GammaCP($H$4,H100,0,0,N100,$D$4/365),IF(H100>$H$4,_xll.RssFOPMarket("銘柄コードは取得できませんでした。","ガンマ"),_xll.RssFOPMarket("銘柄コードは取得できませんでした。","ガンマ"))),0) ->  | R100: =IFERROR(IF($E$4,Theta($H$4,H100,0,0,N100,$D$4/365,365),IF(H100>$H$4,_xll.RssFOPMarket("銘柄コードは取得できませんでした。","セータ"),_xll.RssFOPMarket("銘柄コードは取得できませんでした。","セータ"))),0) ->  | CA100: 0 | CB100: 0 | CC100: 0 | CD100: 0 | CE100: 0 | CF100: 0 | CG100: 0 | CH100: 0 | CI100: 0 | CJ100: 0 | CK100: 0 | CL100: 0 | CM100: 0 | CN100: 0 | CO100: 0 | CP100: 0 | CQ100: 0 | CR100: 0 | CS100: 0 | CT100: 0 | CU100: 0 | CV100: 0 | CW100: 0 | CX100: 0
C101: =IFERROR(IF($E$4,IF($H$4<=H101,DeltaC($H$4,H101,0,0,N101,$D$4/365),I101+1),IF(H101>$H$4,_xll.RssFOPMarket("197019018","デルタ"),_xll.RssFOPMarket("187019018","デルタ")+1)),0) -> 0.9977 | D101: =IFERROR(IF($H$4<H101,OFFSET(OpData!I1838,$E$4,,1,1),$H$4+OFFSET(OpData!S1838,$E$4,,1,1)-H101),0) -> 9528 | H101: 19000 | I101: =IFERROR(IF($E$4,IF($H$4>=H101,DeltaP($H$4,H101,0,0,N101,$D$4/365),C101-1),IF(H101>$H$4,_xll.RssFOPMarket("197019018","デルタ")-1,_xll.RssFOPMarket("187019018","デルタ"))),0) -> -0.0023 | J101: =IFERROR(IF($H$4>H101,OFFSET(OpData!S1838,$E$4,,1,1),OFFSET(OpData!I1838,$E$4,,1,1)+H101-$H$4),0) -> 3 | N101: =IFERROR(IF($E$4,IF($H$4<H101,IVC(D101,$H$4,H101,0,0,$D$4/365),IVP(J101,$H$4,H101,0,0,$D$4/365)),IF(H101>$H$4,_xll.RssFOPMarket("197019018","IV"),_xll.RssFOPMarket("187019018","IV"))/100),0) -> 0.5303 | P101: =IFERROR(IF($E$4,Vega($H$4,H101,0,0,N101,$D$4/365),IF(H101>$H$4,_xll.RssFOPMarket("197019018","ベガ"),_xll.RssFOPMarket("187019018","ベガ"))),0) -> 0.574 | Q101: =IFERROR(IF($E$4,GammaCP($H$4,H101,0,0,N101,$D$4/365),IF(H101>$H$4,_xll.RssFOPMarket("197019018","ガンマ"),_xll.RssFOPMarket("187019018","ガンマ"))),0) -> 0 | R101: =IFERROR(IF($E$4,Theta($H$4,H101,0,0,N101,$D$4/365,365),IF(H101>$H$4,_xll.RssFOPMarket("197019018","セータ"),_xll.RssFOPMarket("187019018","セータ"))),0) -> -0.549 | CA101: 0 | CB101: 0 | CC101: 0 | CD101: 0 | CE101: 0 | CF101: 0 | CG101: 0 | CH101: 0 | CI101: 0 | CJ101: 0 | CK101: 0 | CL101: 0 | CM101: 0 | CN101: 0 | CO101: 0 | CP101: 0 | CQ101: 0 | CR101: 0 | CS101: 0 | CT101: 0 | CU101: 0 | CV101: 0 | CW101: 0 | CX101: 0
C102: =IFERROR(IF($E$4,IF($H$4<=H102,DeltaC($H$4,H102,0,0,N102,$D$4/365),I102+1),IF(H102>$H$4,_xll.RssFOPMarket("銘柄コードは取得できませんでした。","デルタ"),_xll.RssFOPMarket("銘柄コードは取得できませんでした。","デルタ")+1)),0) -> 0 | D102: =IFERROR(IF($H$4<H102,OFFSET(OpData!I1858,$E$4,,1,1),$H$4+OFFSET(OpData!S1858,$E$4,,1,1)-H102),0) -> 0 | H102: 18750 | I102: =IFERROR(IF($E$4,IF($H$4>=H102,DeltaP($H$4,H102,0,0,N102,$D$4/365),C102-1),IF(H102>$H$4,_xll.RssFOPMarket("銘柄コードは取得できませんでした。","デルタ")-1,_xll.RssFOPMarket("銘柄コードは取得できませんでした。","デルタ"))),0) ->  | J102: =IFERROR(IF($H$4>H102,OFFSET(OpData!S1858,$E$4,,1,1),OFFSET(OpData!I1858,$E$4,,1,1)+H102-$H$4),0) ->  | N102: =IFERROR(IF($E$4,IF($H$4<H102,IVC(D102,$H$4,H102,0,0,$D$4/365),IVP(J102,$H$4,H102,0,0,$D$4/365)),IF(H102>$H$4,_xll.RssFOPMarket("銘柄コードは取得できませんでした。","IV"),_xll.RssFOPMarket("銘柄コードは取得できませんでした。","IV"))/100),0) -> 0 | P102: =IFERROR(IF($E$4,Vega($H$4,H102,0,0,N102,$D$4/365),IF(H102>$H$4,_xll.RssFOPMarket("銘柄コードは取得できませんでした。","ベガ"),_xll.RssFOPMarket("銘柄コードは取得できませんでした。","ベガ"))),0) ->  | Q102: =IFERROR(IF($E$4,GammaCP($H$4,H102,0,0,N102,$D$4/365),IF(H102>$H$4,_xll.RssFOPMarket("銘柄コードは取得できませんでした。","ガンマ"),_xll.RssFOPMarket("銘柄コードは取得できませんでした。","ガンマ"))),0) ->  | R102: =IFERROR(IF($E$4,Theta($H$4,H102,0,0,N102,$D$4/365,365),IF(H102>$H$4,_xll.RssFOPMarket("銘柄コードは取得できませんでした。","セータ"),_xll.RssFOPMarket("銘柄コードは取得できませんでした。","セータ"))),0) ->  | CA102: 0 | CB102: 0 | CC102: 0 | CD102: 0 | CE102: 0 | CF102: 0 | CG102: 0 | CH102: 0 | CI102: 0 | CJ102: 0 | CK102: 0 | CL102: 0 | CM102: 0 | CN102: 0 | CO102: 0 | CP102: 0 | CQ102: 0 | CR102: 0 | CS102: 0 | CT102: 0 | CU102: 0 | CV102: 0 | CW102: 0 | CX102: 0
C103: =IFERROR(IF($E$4,IF($H$4<=H103,DeltaC($H$4,H103,0,0,N103,$D$4/365),I103+1),IF(H103>$H$4,_xll.RssFOPMarket("銘柄コードは取得できませんでした。","デルタ"),_xll.RssFOPMarket("銘柄コードは取得できませんでした。","デルタ")+1)),0) -> 0 | D103: =IFERROR(IF($H$4<H103,OFFSET(OpData!I1878,$E$4,,1,1),$H$4+OFFSET(OpData!S1878,$E$4,,1,1)-H103),0) -> 0 | H103: 18500 | I103: =IFERROR(IF($E$4,IF($H$4>=H103,DeltaP($H$4,H103,0,0,N103,$D$4/365),C103-1),IF(H103>$H$4,_xll.RssFOPMarket("銘柄コードは取得できませんでした。","デルタ")-1,_xll.RssFOPMarket("銘柄コードは取得できませんでした。","デルタ"))),0) ->  | J103: =IFERROR(IF($H$4>H103,OFFSET(OpData!S1878,$E$4,,1,1),OFFSET(OpData!I1878,$E$4,,1,1)+H103-$H$4),0) ->  | N103: =IFERROR(IF($E$4,IF($H$4<H103,IVC(D103,$H$4,H103,0,0,$D$4/365),IVP(J103,$H$4,H103,0,0,$D$4/365)),IF(H103>$H$4,_xll.RssFOPMarket("銘柄コードは取得できませんでした。","IV"),_xll.RssFOPMarket("銘柄コードは取得できませんでした。","IV"))/100),0) -> 0 | P103: =IFERROR(IF($E$4,Vega($H$4,H103,0,0,N103,$D$4/365),IF(H103>$H$4,_xll.RssFOPMarket("銘柄コードは取得できませんでした。","ベガ"),_xll.RssFOPMarket("銘柄コードは取得できませんでした。","ベガ"))),0) ->  | Q103: =IFERROR(IF($E$4,GammaCP($H$4,H103,0,0,N103,$D$4/365),IF(H103>$H$4,_xll.RssFOPMarket("銘柄コードは取得できませんでした。","ガンマ"),_xll.RssFOPMarket("銘柄コードは取得できませんでした。","ガンマ"))),0) ->  | R103: =IFERROR(IF($E$4,Theta($H$4,H103,0,0,N103,$D$4/365,365),IF(H103>$H$4,_xll.RssFOPMarket("銘柄コードは取得できませんでした。","セータ"),_xll.RssFOPMarket("銘柄コードは取得できませんでした。","セータ"))),0) ->  | CA103: 0 | CB103: 0 | CC103: 0 | CD103: 0 | CE103: 0 | CF103: 0 | CG103: 0 | CH103: 0 | CI103: 0 | CJ103: 0 | CK103: 0 | CL103: 0 | CM103: 0 | CN103: 0 | CO103: 0 | CP103: 0 | CQ103: 0 | CR103: 0 | CS103: 0 | CT103: 0 | CU103: 0 | CV103: 0 | CW103: 0 | CX103: 0
C104: =IFERROR(IF($E$4,IF($H$4<=H104,DeltaC($H$4,H104,0,0,N104,$D$4/365),I104+1),IF(H104>$H$4,_xll.RssFOPMarket("銘柄コードは取得できませんでした。","デルタ"),_xll.RssFOPMarket("銘柄コードは取得できませんでした。","デルタ")+1)),0) -> 0 | D104: =IFERROR(IF($H$4<H104,OFFSET(OpData!I1898,$E$4,,1,1),$H$4+OFFSET(OpData!S1898,$E$4,,1,1)-H104),0) -> 0 | H104: 18250 | I104: =IFERROR(IF($E$4,IF($H$4>=H104,DeltaP($H$4,H104,0,0,N104,$D$4/365),C104-1),IF(H104>$H$4,_xll.RssFOPMarket("銘柄コードは取得できませんでした。","デルタ")-1,_xll.RssFOPMarket("銘柄コードは取得できませんでした。","デルタ"))),0) ->  | J104: =IFERROR(IF($H$4>H104,OFFSET(OpData!S1898,$E$4,,1,1),OFFSET(OpData!I1898,$E$4,,1,1)+H104-$H$4),0) ->  | N104: =IFERROR(IF($E$4,IF($H$4<H104,IVC(D104,$H$4,H104,0,0,$D$4/365),IVP(J104,$H$4,H104,0,0,$D$4/365)),IF(H104>$H$4,_xll.RssFOPMarket("銘柄コードは取得できませんでした。","IV"),_xll.RssFOPMarket("銘柄コードは取得できませんでした。","IV"))/100),0) -> 0 | P104: =IFERROR(IF($E$4,Vega($H$4,H104,0,0,N104,$D$4/365),IF(H104>$H$4,_xll.RssFOPMarket("銘柄コードは取得できませんでした。","ベガ"),_xll.RssFOPMarket("銘柄コードは取得できませんでした。","ベガ"))),0) ->  | Q104: =IFERROR(IF($E$4,GammaCP($H$4,H104,0,0,N104,$D$4/365),IF(H104>$H$4,_xll.RssFOPMarket("銘柄コードは取得できませんでした。","ガンマ"),_xll.RssFOPMarket("銘柄コードは取得できませんでした。","ガンマ"))),0) ->  | R104: =IFERROR(IF($E$4,Theta($H$4,H104,0,0,N104,$D$4/365,365),IF(H104>$H$4,_xll.RssFOPMarket("銘柄コードは取得できませんでした。","セータ"),_xll.RssFOPMarket("銘柄コードは取得できませんでした。","セータ"))),0) ->  | CA104: 0 | CB104: 0 | CC104: 0 | CD104: 0 | CE104: 0 | CF104: 0 | CG104: 0 | CH104: 0 | CI104: 0 | CJ104: 0 | CK104: 0 | CL104: 0 | CM104: 0 | CN104: 0 | CO104: 0 | CP104: 0 | CQ104: 0 | CR104: 0 | CS104: 0 | CT104: 0 | CU104: 0 | CV104: 0 | CW104: 0 | CX104: 0
C105: =IFERROR(IF($E$4,IF($H$4<=H105,DeltaC($H$4,H105,0,0,N105,$D$4/365),I105+1),IF(H105>$H$4,_xll.RssFOPMarket("197018018","デルタ"),_xll.RssFOPMarket("187018018","デルタ")+1)),0) -> 0.9985 | D105: =IFERROR(IF($H$4<H105,OFFSET(OpData!I1918,$E$4,,1,1),$H$4+OFFSET(OpData!S1918,$E$4,,1,1)-H105),0) -> 10527 | H105: 18000 | I105: =IFERROR(IF($E$4,IF($H$4>=H105,DeltaP($H$4,H105,0,0,N105,$D$4/365),C105-1),IF(H105>$H$4,_xll.RssFOPMarket("197018018","デルタ")-1,_xll.RssFOPMarket("187018018","デルタ"))),0) -> -0.0015 | J105: =IFERROR(IF($H$4>H105,OFFSET(OpData!S1918,$E$4,,1,1),OFFSET(OpData!I1918,$E$4,,1,1)+H105-$H$4),0) -> 2 | N105: =IFERROR(IF($E$4,IF($H$4<H105,IVC(D105,$H$4,H105,0,0,$D$4/365),IVP(J105,$H$4,H105,0,0,$D$4/365)),IF(H105>$H$4,_xll.RssFOPMarket("197018018","IV"),_xll.RssFOPMarket("187018018","IV"))/100),0) -> 0.5742 | P105: =IFERROR(IF($E$4,Vega($H$4,H105,0,0,N105,$D$4/365),IF(H105>$H$4,_xll.RssFOPMarket("197018018","ベガ"),_xll.RssFOPMarket("187018018","ベガ"))),0) -> 0.381 | Q105: =IFERROR(IF($E$4,GammaCP($H$4,H105,0,0,N105,$D$4/365),IF(H105>$H$4,_xll.RssFOPMarket("197018018","ガンマ"),_xll.RssFOPMarket("187018018","ガンマ"))),0) -> 0 | R105: =IFERROR(IF($E$4,Theta($H$4,H105,0,0,N105,$D$4/365,365),IF(H105>$H$4,_xll.RssFOPMarket("197018018","セータ"),_xll.RssFOPMarket("187018018","セータ"))),0) -> -0.393 | CA105: 0 | CB105: 0 | CC105: 0 | CD105: 0 | CE105: 0 | CF105: 0 | CG105: 0 | CH105: 0 | CI105: 0 | CJ105: 0 | CK105: 0 | CL105: 0 | CM105: 0 | CN105: 0 | CO105: 0 | CP105: 0 | CQ105: 0 | CR105: 0 | CS105: 0 | CT105: 0 | CU105: 0 | CV105: 0 | CW105: 0 | CX105: 0
CA106: =IF(ISNUMBER($A106*B106),$A106*B106,) -> 0 | CB106: =IF(ISNUMBER($A106*D106),$A106*D106,) -> 0 | CC106: =IF(ISNUMBER($A106*C106),$A106*C106,) -> 0 | CD106: =IF(ISNUMBER($A106*P106),$A106*P106,) -> 0 | CE106: =IF(ISNUMBER($A106*Q106),$A106*Q106,) -> 0 | CF106: =IF(ISNUMBER($A106*R106),$A106*R106,) -> 0 | CG106: =IF(ISNUMBER($S106*T106),$S106*T106,) -> 0 | CH106: =IF(ISNUMBER($S106*J106),$S106*J106,) -> 0 | CI106: =IF(ISNUMBER($S106*I106),$S106*I106,) -> 0 | CJ106: =IF(ISNUMBER($S106*P106),$S106*P106,) -> 0 | CK106: =IF(ISNUMBER($S106*Q106),$S106*Q106,) -> 0 | CL106: =IF(ISNUMBER($S106*R106),$S106*R106,) -> 0 | CM106: =IF(ISNUMBER($U106*V106),$U106*V106,) -> 0 | CN106: =IF(ISNUMBER($U106*X106),$U106*X106,) -> 0 | CO106: =IF(ISNUMBER($U106*W106),$U106*W106,) -> 0 | CP106: =IF(ISNUMBER($U106*AJ106),$U106*AJ106,) -> 0 | CQ106: =IF(ISNUMBER($U106*AK106),$U106*AK106,) -> 0 | CR106: =IF(ISNUMBER($U106*AL106),$U106*AL106,) -> 0 | CS106: =IF(ISNUMBER($AM106*AN106),$AM106*AN106,) -> 0 | CT106: =IF(ISNUMBER($AM106*AD106),$AM106*AD106,) -> 0 | CU106: =IF(ISNUMBER($AM106*AC106),$AM106*AC106,) -> 0 | CV106: =IF(ISNUMBER($AM106*AJ106),$AM106*AJ106,) -> 0 | CW106: =IF(ISNUMBER($AM106*AK106),$AM106*AK106,) -> 0 | CX106: =IF(ISNUMBER($AM106*AL106),$AM106*AL106,) -> 0
CA107: 0 | CB107: 0 | CC107: 0 | CD107: 0 | CE107: 0 | CF107: 0 | CG107: 0 | CH107: 0 | CI107: 0 | CJ107: 0 | CK107: 0 | CL107: 0 | CM107: 0 | CN107: 0 | CO107: 0 | CP107: 0 | CQ107: 0 | CR107: 0 | CS107: 0 | CT107: 0 | CU107: 0 | CV107: 0 | CW107: 0 | CX107: 0
CA108: 0 | CB108: 0 | CC108: 0 | CD108: 0 | CE108: 0 | CF108: 0 | CG108: 0 | CH108: 0 | CI108: 0 | CJ108: 0 | CK108: 0 | CL108: 0 | CM108: 0 | CN108: 0 | CO108: 0 | CP108: 0 | CQ108: 0 | CR108: 0 | CS108: 0 | CT108: 0 | CU108: 0 | CV108: 0 | CW108: 0 | CX108: 0
CA109: 0 | CB109: 0 | CC109: 0 | CD109: 0 | CE109: 0 | CF109: 0 | CG109: 0 | CH109: 0 | CI109: 0 | CJ109: 0 | CK109: 0 | CL109: 0 | CM109: 0 | CN109: 0 | CO109: 0 | CP109: 0 | CQ109: 0 | CR109: 0 | CS109: 0 | CT109: 0 | CU109: 0 | CV109: 0 | CW109: 0 | CX109: 0
CA110: 0 | CB110: 0 | CC110: 0 | CD110: 0 | CE110: 0 | CF110: 0 | CG110: 0 | CH110: 0 | CI110: 0 | CJ110: 0 | CK110: 0 | CL110: 0 | CM110: 0 | CN110: 0 | CO110: 0 | CP110: 0 | CQ110: 0 | CR110: 0 | CS110: 0 | CT110: 0 | CU110: 0 | CV110: 0 | CW110: 0 | CX110: 0
CA111: 0 | CB111: 0 | CC111: 0 | CD111: 0 | CE111: 0 | CF111: 0 | CG111: 0 | CH111: 0 | CI111: 0 | CJ111: 0 | CK111: 0 | CL111: 0 | CM111: 0 | CN111: 0 | CO111: 0 | CP111: 0 | CQ111: 0 | CR111: 0 | CS111: 0 | CT111: 0 | CU111: 0 | CV111: 0 | CW111: 0 | CX111: 0
CA112: 0 | CB112: 0 | CC112: 0 | CD112: 0 | CE112: 0 | CF112: 0 | CG112: 0 | CH112: 0 | CI112: 0 | CJ112: 0 | CK112: 0 | CL112: 0 | CM112: 0 | CN112: 0 | CO112: 0 | CP112: 0 | CQ112: 0 | CR112: 0 | CS112: 0 | CT112: 0 | CU112: 0 | CV112: 0 | CW112: 0 | CX112: 0
CA113: 0 | CB113: 0 | CC113: 0 | CD113: 0 | CE113: 0 | CF113: 0 | CG113: 0 | CH113: 0 | CI113: 0 | CJ113: 0 | CK113: 0 | CL113: 0 | CM113: 0 | CN113: 0 | CO113: 0 | CP113: 0 | CQ113: 0 | CR113: 0 | CS113: 0 | CT113: 0 | CU113: 0 | CV113: 0 | CW113: 0 | CX113: 0
CA114: 0 | CB114: 0 | CC114: 0 | CD114: 0 | CE114: 0 | CF114: 0 | CG114: 0 | CH114: 0 | CI114: 0 | CJ114: 0 | CK114: 0 | CL114: 0 | CM114: 0 | CN114: 0 | CO114: 0 | CP114: 0 | CQ114: 0 | CR114: 0 | CS114: 0 | CT114: 0 | CU114: 0 | CV114: 0 | CW114: 0 | CX114: 0
CA115: 0 | CB115: 0 | CC115: 0 | CD115: 0 | CE115: 0 | CF115: 0 | CG115: 0 | CH115: 0 | CI115: 0 | CJ115: 0 | CK115: 0 | CL115: 0 | CM115: 0 | CN115: 0 | CO115: 0 | CP115: 0 | CQ115: 0 | CR115: 0 | CS115: 0 | CT115: 0 | CU115: 0 | CV115: 0 | CW115: 0 | CX115: 0
CA116: 0 | CB116: 0 | CC116: 0 | CD116: 0 | CE116: 0 | CF116: 0 | CG116: 0 | CH116: 0 | CI116: 0 | CJ116: 0 | CK116: 0 | CL116: 0 | CM116: 0 | CN116: 0 | CO116: 0 | CP116: 0 | CQ116: 0 | CR116: 0 | CS116: 0 | CT116: 0 | CU116: 0 | CV116: 0 | CW116: 0 | CX116: 0
CA117: 0 | CB117: 0 | CC117: 0 | CD117: 0 | CE117: 0 | CF117: 0 | CG117: 0 | CH117: 0 | CI117: 0 | CJ117: 0 | CK117: 0 | CL117: 0 | CM117: 0 | CN117: 0 | CO117: 0 | CP117: 0 | CQ117: 0 | CR117: 0 | CS117: 0 | CT117: 0 | CU117: 0 | CV117: 0 | CW117: 0 | CX117: 0
CA118: 0 | CB118: 0 | CC118: 0 | CD118: 0 | CE118: 0 | CF118: 0 | CG118: 0 | CH118: 0 | CI118: 0 | CJ118: 0 | CK118: 0 | CL118: 0 | CM118: 0 | CN118: 0 | CO118: 0 | CP118: 0 | CQ118: 0 | CR118: 0 | CS118: 0 | CT118: 0 | CU118: 0 | CV118: 0 | CW118: 0 | CX118: 0
CA119: 0 | CB119: 0 | CC119: 0 | CD119: 0 | CE119: 0 | CF119: 0 | CG119: 0 | CH119: 0 | CI119: 0 | CJ119: 0 | CK119: 0 | CL119: 0 | CM119: 0 | CN119: 0 | CO119: 0 | CP119: 0 | CQ119: 0 | CR119: 0 | CS119: 0 | CT119: 0 | CU119: 0 | CV119: 0 | CW119: 0 | CX119: 0
CA120: 0 | CB120: 0 | CC120: 0 | CD120: 0 | CE120: 0 | CF120: 0 | CG120: 0 | CH120: 0 | CI120: 0 | CJ120: 0 | CK120: 0 | CL120: 0 | CM120: 0 | CN120: 0 | CO120: 0 | CP120: 0 | CQ120: 0 | CR120: 0 | CS120: 0 | CT120: 0 | CU120: 0 | CV120: 0 | CW120: 0 | CX120: 0
CA121: 0 | CB121: 0 | CC121: 0 | CD121: 0 | CE121: 0 | CF121: 0 | CG121: 0 | CH121: 0 | CI121: 0 | CJ121: 0 | CK121: 0 | CL121: 0 | CM121: 0 | CN121: 0 | CO121: 0 | CP121: 0 | CQ121: 0 | CR121: 0 | CS121: 0 | CT121: 0 | CU121: 0 | CV121: 0 | CW121: 0 | CX121: 0
CA122: 0 | CB122: 0 | CC122: 0 | CD122: 0 | CE122: 0 | CF122: 0 | CG122: 0 | CH122: 0 | CI122: 0 | CJ122: 0 | CK122: 0 | CL122: 0 | CM122: 0 | CN122: 0 | CO122: 0 | CP122: 0 | CQ122: 0 | CR122: 0 | CS122: 0 | CT122: 0 | CU122: 0 | CV122: 0 | CW122: 0 | CX122: 0
CA123: 0 | CB123: 0 | CC123: 0 | CD123: 0 | CE123: 0 | CF123: 0 | CG123: 0 | CH123: 0 | CI123: 0 | CJ123: 0 | CK123: 0 | CL123: 0 | CM123: 0 | CN123: 0 | CO123: 0 | CP123: 0 | CQ123: 0 | CR123: 0 | CS123: 0 | CT123: 0 | CU123: 0 | CV123: 0 | CW123: 0 | CX123: 0
CA124: 0 | CB124: 0 | CC124: 0 | CD124: 0 | CE124: 0 | CF124: 0 | CG124: 0 | CH124: 0 | CI124: 0 | CJ124: 0 | CK124: 0 | CL124: 0 | CM124: 0 | CN124: 0 | CO124: 0 | CP124: 0 | CQ124: 0 | CR124: 0 | CS124: 0 | CT124: 0 | CU124: 0 | CV124: 0 | CW124: 0 | CX124: 0
CA125: 0 | CB125: 0 | CC125: 0 | CD125: 0 | CE125: 0 | CF125: 0 | CG125: 0 | CH125: 0 | CI125: 0 | CJ125: 0 | CK125: 0 | CL125: 0 | CM125: 0 | CN125: 0 | CO125: 0 | CP125: 0 | CQ125: 0 | CR125: 0 | CS125: 0 | CT125: 0 | CU125: 0 | CV125: 0 | CW125: 0 | CX125: 0

Sheet 簡易説明
B2: 【はじめに】
C3: マーケットスピードⅡを立ち上げた状態で本サンプルシートを開いてご利用ください。
C4: 主に使用するのは赤塗りのオプションケアSheetとなります、その他のSheetは権利行使価格入力用のみ使用します。
B6: 【楽天証券ホームページからダウンロードした初期状態のブック】
C7: 最新データを取得する場合は、「楽天RSS過去データ読込」を押して下さい。読み込みには2～3分掛かる場合があります。（分母が権利行使価格の本数で分子がデータ取得数となり順に増えていきます。）
C8: ※権利行使価格は権利行使価格入力用Sheetから市場価格に合わせて任意にコピーしてオプションケアSheetの権利行使価格に貼り付けて利用することもできます。
C9: 125円単位の権利行使価格も確認したい場合はセルに新規追加することでデータ取得が可能です。
B11: 【建玉シミュレーションの方法】
C12: A列は期近コール建玉枚数、S列は期近プット建玉枚数、U列は期先コール建玉枚数、AM列は期先プット建玉枚数を入力ください。
C13: 買い建玉は+（プラス）、売り建玉は-（マイナス）数値を入力ください。
C14: その隣の列の建玉価格はセル上でダブルクリックすると自動的に価格が入りますが手入力でも可能です。
C15: 値洗いの単位は千円表示です。
C16: ４行目が期近のポジション詳細、５行目が期先のポジション詳細、７行目が全建玉の合計ポジション詳細となります。
C17: A7は価格が表示されている年月日です。C7の矢印は前営業日へ、D7の矢印は翌営業日へとデータ取得日が移動いたしますので、その日終値時点（15時15分時点）の損益をA4で確認できます。
C18: 本サンプルシートでは15営業日を限度として過去データをダウンロードしております。
C19: SQ日などで流動性がない場合は2番限と3番限を表示させることも可能です。C4の関数部分の"N225M.FUT01.の01を02に変えると2番限のデータを取得でき、C5の関数の"N225M.FUT02.の02を03に変えると3番限のデータを取得できます。
B21: 【価格やグリークスなどその他の注意点】
C22: 読み込みが遅い場合はリアルタイム計算をオフとしてご使用ください。
C23: このブックのインザマネーのオプション価格及びデルタ値は、アウトオブザマネーのオプション価格から算出しています。
C24: その理由は、当日約定していない場合は、価格が入っていないため（０円）になり、損益の不整合を調整するためです。
C25: リアルタイムのオプション価格のグリークスは楽天RSSの値を参照しておりますが、過去データのグリークスは作成者による関数にて算出しております。
C26: 過去データは各営業日の15時15分時点の終値を取得しております。清算値とは異なる場合がありますのでご注意ください。
C27: 本RSSサンプルシートはシミュレーション用です。お取引にあたっては、お客さまご自身の責任と判断で行っていただく必要があります。

Sheet 権利行使入力用
A1: 期近権利行使価格 一覧作成用 | C1: 第二限月 権利行使価格一覧
A2: 40000 | C2: 40000
A3: 39750 | C3: 39750
A4: 39500 | C4: 39500
A5: 39250 | C5: 39250
A6: 39000 | C6: 39000
A7: 38750 | C7: 38750
A8: 38500 | C8: 38500
A9: 38250 | C9: 38250
A10: 38000 | C10: 38000
A11: 37750 | C11: 37750
A12: 37500 | C12: 37500
A13: 37250 | C13: 37250
A14: 37000 | C14: 37000
A15: 36750 | C15: 36750
A16: 36500 | C16: 36500
A17: 36250 | C17: 36250
A18: 36000 | C18: 36000
A19: 35750 | C19: 35750
A20: 35500 | C20: 35500
A21: 35250 | C21: 35250
A22: 35000 | C22: 35000
A23: 34750 | C23: 34750
A24: 34500 | C24: 34500
A25: 34250 | C25: 34250
A26: 34000 | C26: 34000
A27: 33750 | C27: 33750
A28: 33500 | C28: 33500
A29: 33250 | C29: 33250
A30: 33000 | C30: 33000
A31: 32750 | C31: 32750
A32: 32500 | C32: 32500
A33: 32250 | C33: 32250
A34: 32000 | C34: 32000
A35: 31750 | C35: 31750
A36: 31500 | C36: 31500
A37: 31250 | C37: 31250
A38: 31000 | C38: 31000
A39: 30750 | C39: 30750
A40: 30500 | C40: 30500
A41: 30250 | C41: 30250
A42: 30000 | C42: 30000
A43: 29750 | C43: 29750
A44: 29500 | C44: 29500
A45: 29250 | C45: 29250
A46: 29000 | C46: 29000
A47: 28750 | C47: 28750
A48: 28500 | C48: 28500
A49: 28250 | C49: 28250
A50: 28000 | C50: 28000
A51: 27750 | C51: 27750
A52: 27500 | C52: 27500
A53: 27250 | C53: 27250
A54: 27000 | C54: 27000
A55: 26750 | C55: 26750
A56: 26500 | C56: 26500
A57: 26250 | C57: 26250
A58: 26000 | C58: 26000
A59: 25750 | C59: 25750
A60: 25500 | C60: 25500
A61: 25250 | C61: 25250
A62: 25000 | C62: 25000
A63: 24750 | C63: 24750
A64: 24500 | C64: 24500
A65: 24250 | C65: 24250
A66: 24000 | C66: 24000
A67: 23750 | C67: 23750
A68: 23500 | C68: 23500
A69: 23250 | C69: 23250
A70: 23000 | C70: 23000
A71: 22750 | C71: 22750
A72: 22500 | C72: 22500
A73: 22250 | C73: 22250
A74: 22000 | C74: 22000
A75: 21750 | C75: 21750
A76: 21500 | C76: 21500
A77: 21250 | C77: 21250
A78: 21000 | C78: 21000
A79: 20750 | C79: 20750
A80: 20500 | C80: 20500
A81: 20250 | C81: 20250
A82: 20000 | C82: 20000
A83: 19750 | C83: 19750
A84: 19500 | C84: 19500
A85: 19250 | C85: 19250
A86: 19000 | C86: 19000
A87: 18750 | C87: 18750
A88: 18500 | C88: 18500
A89: 18250 | C89: 18250
A90: 18000 | C90: 18000
A91: 17750 | C91: 17750
A92: 17500 | C92: 17500
A93: 17250 | C93: 17250
A94: 17000 | C94: 17000
A95: 16750 | C95: 16750
A96: 16500 | C96: 16500
A97: 16250 | C97: 16250
A98: 16000 | C98: 16000
A99: 15750 | C99: 15750
A100: 15500 | C100: 15500
A101: 15250 | C101: 15250
A102: 15000 | C102: 15000

Sheet Setting
B8: FALSE

Sheet オプション大証コードリスト
A1: 限月
B3: CODE | C3: CODE | E3: CODE | F3: CODE
A4: SP | B4: C1 | C4: P1 | D4: SP | E4: C2 | F4: P2
A5: 34500 | B5: 197014518 | C5: 187014518 | D5: 34500 | E5: 197024518 | F5: 187024518
A6: 34250 | B6: 197014218 | C6: 187014218 | D6: 34250 | E6: 197024218 | F6: 187024218
A7: 34000 | B7: 197014018 | C7: 187014018 | D7: 34000 | E7: 197024018 | F7: 187024018
A8: 33750 | B8: 147013718 | C8: 137013718 | D8: 33750 | E8: 197023718 | F8: 187023718
A9: 33500 | B9: 147013518 | C9: 137013518 | D9: 33500 | E9: 197023518 | F9: 187023518
A10: 33250 | B10: 147013218 | C10: 137013218 | D10: 33250 | E10: 147023218 | F10: 137023218
A11: 33000 | B11: 147013018 | C11: 137013018 | D11: 33000 | E11: 147023018 | F11: 137023018
A12: 32750 | B12: 147012718 | C12: 137012718 | D12: 32750 | E12: 147022718 | F12: 137022718
A13: 32625 | B13: 銘柄コードは取得できませんでした。 | C13: 銘柄コードは取得できませんでした。 | D13: 32500 | E13: 147022518 | F13: 137022518
A14: 32500 | B14: 147012518 | C14: 137012518 | D14: 32250 | E14: 147022218 | F14: 137022218
A15: 32375 | B15: 銘柄コードは取得できませんでした。 | C15: 銘柄コードは取得できませんでした。 | D15: 32000 | E15: 147022018 | F15: 137022018
A16: 32250 | B16: 147012218 | C16: 137012218 | D16: 31750 | E16: 147021718 | F16: 137021718
A17: 32125 | B17: 銘柄コードは取得できませんでした。 | C17: 銘柄コードは取得できませんでした。 | D17: 31625 | E17: 147021618 | F17: 137021618
A18: 32000 | B18: 147012018 | C18: 137012018 | D18: 31500 | E18: 147021518 | F18: 137021518
A19: 31875 | B19: 銘柄コードは取得できませんでした。 | C19: 銘柄コードは取得できませんでした。 | D19: 31375 | E19: 147021318 | F19: 137021318
A20: 31750 | B20: 147011718 | C20: 137011718 | D20: 31250 | E20: 147021218 | F20: 137021218
A21: 31625 | B21: 147011618 | C21: 137011618 | D21: 31125 | E21: 147021118 | F21: 137021118
A22: 31500 | B22: 147011518 | C22: 137011518 | D22: 31000 | E22: 147021018 | F22: 137021018
A23: 31375 | B23: 147011318 | C23: 137011318 | D23: 30875 | E23: 147020818 | F23: 137020818
A24: 31250 | B24: 147011218 | C24: 137011218 | D24: 30750 | E24: 147020718 | F24: 137020718
A25: 31125 | B25: 147011118 | C25: 137011118 | D25: 30625 | E25: 147020618 | F25: 137020618
A26: 31000 | B26: 147011018 | C26: 137011018 | D26: 30500 | E26: 147020518 | F26: 137020518
A27: 30875 | B27: 147010818 | C27: 137010818 | D27: 30375 | E27: 147020318 | F27: 137020318
A28: 30750 | B28: 147010718 | C28: 137010718 | D28: 30250 | E28: 147020218 | F28: 137020218
A29: 30625 | B29: 147010618 | C29: 137010618 | D29: 30125 | E29: 147020118 | F29: 137020118
A30: 30500 | B30: 147010518 | C30: 137010518 | D30: 30000 | E30: 147020018 | F30: 137020018
A31: 30375 | B31: 147010318 | C31: 137010318 | D31: 29875 | E31: 147029818 | F31: 137029818
A32: 30250 | B32: 147010218 | C32: 137010218 | D32: 29750 | E32: 147029718 | F32: 137029718
A33: 30125 | B33: 147010118 | C33: 137010118 | D33: 29625 | E33: 147029618 | F33: 137029618
A34: 30000 | B34: 147010018 | C34: 137010018 | D34: 29500 | E34: 147029518 | F34: 137029518
A35: 29875 | B35: 147019818 | C35: 137019818 | D35: 29375 | E35: 147029318 | F35: 137029318
A36: 29750 | B36: 147019718 | C36: 137019718 | D36: 29250 | E36: 147029218 | F36: 137029218
A37: 29625 | B37: 147019618 | C37: 137019618 | D37: 29125 | E37: 147029118 | F37: 137029118
A38: 29500 | B38: 147019518 | C38: 137019518 | D38: 29000 | E38: 147029018 | F38: 137029018
A39: 29375 | B39: 147019318 | C39: 137019318 | D39: 28875 | E39: 147028818 | F39: 137028818
A40: 29250 | B40: 147019218 | C40: 137019218 | D40: 28750 | E40: 147028718 | F40: 137028718
A41: 29125 | B41: 147019118 | C41: 137019118 | D41: 28625 | E41: 147028618 | F41: 137028618
A42: 29000 | B42: 147019018 | C42: 137019018 | D42: 28500 | E42: 147028518 | F42: 137028518
A43: 28875 | B43: 147018818 | C43: 137018818 | D43: 28375 | E43: 147028318 | F43: 137028318
A44: 28750 | B44: 147018718 | C44: 137018718 | D44: 28250 | E44: 147028218 | F44: 137028218
A45: 28625 | B45: 147018618 | C45: 137018618 | D45: 28125 | E45: 147028118 | F45: 137028118
A46: 28500 | B46: 147018518 | C46: 137018518 | D46: 28000 | E46: 147028018 | F46: 137028018
A47: 28375 | B47: 147018318 | C47: 137018318 | D47: 27875 | E47: 147027818 | F47: 137027818
A48: 28250 | B48: 147018218 | C48: 137018218 | D48: 27750 | E48: 147027718 | F48: 137027718
A49: 28125 | B49: 147018118 | C49: 137018118 | D49: 27625 | E49: 147027618 | F49: 137027618
A50: 28000 | B50: 147018018 | C50: 137018018 | D50: 27500 | E50: 147027518 | F50: 137027518
A51: 27875 | B51: 147017818 | C51: 137017818 | D51: 27375 | E51: 147027318 | F51: 137027318
A52: 27750 | B52: 147017718 | C52: 137017718 | D52: 27250 | E52: 147027218 | F52: 137027218
A53: 27625 | B53: 147017618 | C53: 137017618 | D53: 27125 | E53: 147027118 | F53: 137027118
A54: 27500 | B54: 147017518 | C54: 137017518 | D54: 27000 | E54: 147027018 | F54: 137027018
A55: 27375 | B55: 147017318 | C55: 137017318 | D55: 26875 | E55: 147026818 | F55: 137026818
A56: 27250 | B56: 147017218 | C56: 137017218 | D56: 26750 | E56: 147026718 | F56: 137026718
A57: 27125 | B57: 147017118 | C57: 137017118 | D57: 26625 | E57: 147026618 | F57: 137026618
A58: 27000 | B58: 147017018 | C58: 137017018 | D58: 26500 | E58: 147026518 | F58: 137026518
A59: 26875 | B59: 147016818 | C59: 137016818 | D59: 26375 | E59: 147026318 | F59: 137026318
A60: 26750 | B60: 147016718 | C60: 137016718 | D60: 26250 | E60: 147026218 | F60: 137026218
A61: 26625 | B61: 147016618 | C61: 137016618 | D61: 26125 | E61: 147026118 | F61: 137026118
A62: 26500 | B62: 147016518 | C62: 137016518 | D62: 26000 | E62: 147026018 | F62: 137026018
A63: 26375 | B63: 147016318 | C63: 137016318 | D63: 25875 | E63: 147025818 | F63: 137025818
A64: 26250 | B64: 147016218 | C64: 137016218 | D64: 25750 | E64: 147025718 | F64: 137025718
A65: 26125 | B65: 147016118 | C65: 137016118 | D65: 25625 | E65: 銘柄コードは取得できませんでした。 | F65: 銘柄コードは取得できませんでした。
A66: 26000 | B66: 147016018 | C66: 137016018 | D66: 25500 | E66: 147025518 | F66: 137025518
A67: 25875 | B67: 147015818 | C67: 137015818 | D67: 25250 | E67: 147025218 | F67: 137025218
A68: 25750 | B68: 147015718 | C68: 137015718 | D68: 25000 | E68: 147025018 | F68: 137025018
A69: 25625 | B69: 147015618 | C69: 137015618 | D69: 24750 | E69: 147024718 | F69: 137024718
A70: 25500 | B70: 147015518 | C70: 137015518 | D70: 24500 | E70: 147024518 | F70: 137024518
A71: 25250 | B71: 147015218 | C71: 137015218 | D71: 24250 | E71: 147024218 | F71: 137024218
A72: 25000 | B72: 147015018 | C72: 137015018 | D72: 24000 | E72: 147024018 | F72: 137024018
A73: 24750 | B73: 147014718 | C73: 137014718 | D73: 23750 | E73: 147023718 | F73: 137023718
A74: 24500 | B74: 147014518 | C74: 137014518 | D74: 23500 | E74: 147023518 | F74: 137023518
A75: 24250 | B75: 147014218 | C75: 137014218 | D75: 23250 | E75: 197023218 | F75: 187023218
A76: 24000 | B76: 147014018 | C76: 137014018 | D76: 23000 | E76: 197023018 | F76: 187023018
A77: 23750 | B77: 197013718 | C77: 187013718 | D77: 22500 | E77: 197022518 | F77: 187022518
A78: 23500 | B78: 197013518 | C78: 187013518 | D78: 22000 | E78: 197022018 | F78: 187022018
A79: 23250 | B79: 197013218 | C79: 187013218 | D79: 21000 | E79: 197021018 | F79: 187021018
A80: 23000 | B80: 197013018 | C80: 187013018 | D80: 20000 | E80: 197020018 | F80: 187020018
A81: 22750 | B81: 銘柄コードは取得できませんでした。 | C81: 銘柄コードは取得できませんでした。 | D81: 19000 | E81: 197029018 | F81: 187029018
A82: 22500 | B82: 197012518 | C82: 187012518 | D82: 18000 | E82: 197028018 | F82: 187028018
A83: 22250 | B83: 銘柄コードは取得できませんでした。 | C83: 銘柄コードは取得できませんでした。
A84: 22000 | B84: 197012018 | C84: 187012018
A85: 21750 | B85: 銘柄コードは取得できませんでした。 | C85: 銘柄コードは取得できませんでした。
A86: 21500 | B86: 銘柄コードは取得できませんでした。 | C86: 銘柄コードは取得できませんでした。
A87: 21250 | B87: 銘柄コードは取得できませんでした。 | C87: 銘柄コードは取得できませんでした。
A88: 21000 | B88: 197011018 | C88: 187011018
A89: 20750 | B89: 銘柄コードは取得できませんでした。 | C89: 銘柄コードは取得できませんでした。
A90: 20500 | B90: 銘柄コードは取得できませんでした。 | C90: 銘柄コードは取得できませんでした。
A91: 20250 | B91: 銘柄コードは取得できませんでした。 | C91: 銘柄コードは取得できませんでした。
A92: 20000 | B92: 197010018 | C92: 187010018
A93: 19750 | B93: 銘柄コードは取得できませんでした。 | C93: 銘柄コードは取得できませんでした。
A94: 19500 | B94: 銘柄コードは取得できませんでした。 | C94: 銘柄コードは取得できませんでした。
A95: 19250 | B95: 銘柄コードは取得できませんでした。 | C95: 銘柄コードは取得できませんでした。
A96: 19000 | B96: 197019018 | C96: 187019018
A97: 18750 | B97: 銘柄コードは取得できませんでした。 | C97: 銘柄コードは取得できませんでした。
A98: 18500 | B98: 銘柄コードは取得できませんでした。 | C98: 銘柄コードは取得できませんでした。
A99: 18250 | B99: 銘柄コードは取得できませんでした。 | C99: 銘柄コードは取得できませんでした。
A100: 18000 | B100: 197018018 | C100: 187018018

Sheet OpData
A2: 銘柄名称 | B2: 市場名称 | C2: 足種 | D2: 日付 | E2: 時刻 | F2: 始値 | G2: 高値 | H2: 安値 | I2: 終値 | J2: 出来高 | K2: 銘柄名称 | L2: 市場名称 | M2: 足種 | N2: 日付 | O2: 時刻 | P2: 始値 | Q2: 高値 | R2: 安値 | S2: 終値 | T2: 出来高 | U2: 銘柄名称 | V2: 市場名称 | W2: 足種 | X2: 日付 | Y2: 時刻 | Z2: 始値 | AA2: 高値 | AB2: 安値 | AC2: 終値 | AD2: 出来高 | AE2: 銘柄名称 | AF2: 市場名称 | AG2: 足種 | AH2: 日付 | AI2: 時刻 | AJ2: 始値 | AK2: 高値 | AL2: 安値 | AM2: 終値 | AN2: 出来高
A3: 日経225オプション 22-01 C 34500 | B3: 大阪 | C3: D | D3: 2021-11-24T15:15:00 | F3: 8 | G3: 8 | H3: 6 | I3: 6 | J3: 5 | K3: 日経225オプション 22-01 P 34500 | L3: 大阪 | M3: D | N3: 2021-11-24T15:15:00 | T3: 0 | U3: 日経225オプション 22-02 C 34500 | V3: 大阪 | W3: D | X3: 2021-11-24T15:15:00 | Z3: 18 | AA3: 18 | AB3: 18 | AC3: 18 | AD3: 1 | AE3: 日経225オプション 22-02 P 34500 | AF3: 大阪 | AG3: D | AH3: 2021-11-24T15:15:00 | AN3: 0
D4: 2021-11-25T15:15:00 | F4: 6 | G4: 6 | H4: 5 | I4: 5 | J4: 5 | N4: 2021-11-25T15:15:00 | T4: 0 | X4: 2021-11-25T15:15:00 | AC4: 18 | AD4: 0 | AH4: 2021-11-25T15:15:00 | AN4: 0
D5: 2021-11-26T15:15:00 | F5: 5 | G5: 5 | H5: 4 | I5: 4 | J5: 5 | N5: 2021-11-26T15:15:00 | T5: 0 | X5: 2021-11-26T15:15:00 | AC5: 18 | AD5: 0 | AH5: 2021-11-26T15:15:00 | AN5: 0
D6: 2021-11-29T15:15:00 | F6: 3 | G6: 4 | H6: 3 | I6: 3 | J6: 4 | N6: 2021-11-29T15:15:00 | T6: 0 | X6: 2021-11-29T15:15:00 | AC6: 18 | AD6: 0 | AH6: 2021-11-29T15:15:00 | AN6: 0
D7: 2021-11-30T15:15:00 | F7: 3 | G7: 3 | H7: 3 | I7: 3 | J7: 5 | N7: 2021-11-30T15:15:00 | T7: 0 | X7: 2021-11-30T15:15:00 | Z7: 5 | AA7: 5 | AB7: 5 | AC7: 5 | AD7: 1 | AH7: 2021-11-30T15:15:00 | AN7: 0
D8: 2021-12-01T15:15:00 | F8: 3 | G8: 3 | H8: 3 | I8: 3 | J8: 1 | N8: 2021-12-01T15:15:00 | T8: 0 | X8: 2021-12-01T15:15:00 | AC8: 5 | AD8: 0 | AH8: 2021-12-01T15:15:00 | AN8: 0
D9: 2021-12-02T15:15:00 | F9: 2 | G9: 2 | H9: 2 | I9: 2 | J9: 3 | N9: 2021-12-02T15:15:00 | T9: 0 | X9: 2021-12-02T15:15:00 | AC9: 5 | AD9: 0 | AH9: 2021-12-02T15:15:00 | AN9: 0
D10: 2021-12-03T15:15:00 | I10: 2 | J10: 0 | N10: 2021-12-03T15:15:00 | T10: 0 | X10: 2021-12-03T15:15:00 | AC10: 5 | AD10: 0 | AH10: 2021-12-03T15:15:00 | AN10: 0
D11: 2021-12-06T15:15:00 | F11: 3 | G11: 3 | H11: 3 | I11: 3 | J11: 6 | N11: 2021-12-06T15:15:00 | T11: 0 | X11: 2021-12-06T15:15:00 | Z11: 5 | AA11: 5 | AB11: 5 | AC11: 5 | AD11: 1 | AH11: 2021-12-06T15:15:00 | AN11: 0
D12: 2021-12-07T15:15:00 | F12: 3 | G12: 3 | H12: 3 | I12: 3 | J12: 7 | N12: 2021-12-07T15:15:00 | T12: 0 | X12: 2021-12-07T15:15:00 | Z12: 10 | AA12: 10 | AB12: 10 | AC12: 10 | AD12: 1 | AH12: 2021-12-07T15:15:00 | AN12: 0
D13: 2021-12-08T15:15:00 | F13: 2 | G13: 2 | H13: 2 | I13: 2 | J13: 5 | N13: 2021-12-08T15:15:00 | T13: 0 | X13: 2021-12-08T15:15:00 | AC13: 10 | AD13: 0 | AH13: 2021-12-08T15:15:00 | AN13: 0
D14: 2021-12-09T15:15:00 | I14: 2 | J14: 0 | N14: 2021-12-09T15:15:00 | T14: 0 | X14: 2021-12-09T15:15:00 | AC14: 10 | AD14: 0 | AH14: 2021-12-09T15:15:00 | AN14: 0
D15: 2021-12-10T15:15:00 | F15: 1 | G15: 1 | H15: 1 | I15: 1 | J15: 33 | N15: 2021-12-10T15:15:00 | T15: 0 | X15: 2021-12-10T15:15:00 | AC15: 10 | AD15: 0 | AH15: 2021-12-10T15:15:00 | AN15: 0
D16: 2021-12-13T15:15:00 | I16: 1 | J16: 0 | N16: 2021-12-13T15:15:00 | T16: 0 | X16: 2021-12-13T15:15:00 | Z16: 3 | AA16: 3 | AB16: 3 | AC16: 3 | AD16: 7 | AH16: 2021-12-13T15:15:00 | AN16: 0
D17: 2021-12-14T15:15:00 | I17: 1 | J17: 0 | N17: 2021-12-14T15:15:00 | T17: 0 | X17: 2021-12-14T15:15:00 | Z17: 3 | AA17: 3 | AB17: 3 | AC17: 3 | AD17: 3 | AH17: 2021-12-14T15:15:00 | AN17: 0
D18: =NOW() -> 2021-12-17T19:13:13.500 | I18: =_xll.RssFOPMarket("197014518","現在値") -> 0 | J18: 0 | N18: =NOW() -> 2021-12-17T19:13:13.500 | T18: 0 | X18: =NOW() -> 2021-12-17T19:13:13.500 | AC18: =_xll.RssFOPMarket("197024518","現在値") -> 0 | AD18: 0 | AH18: =NOW() -> 2021-12-17T19:13:13.500 | AN18: 0
A19: -------- | B19: -------- | C19: -------- | D19: -------- | E19: -------- | F19: -------- | G19: -------- | H19: -------- | I19: -------- | J19: -------- | K19: -------- | L19: -------- | M19: -------- | N19: -------- | O19: -------- | P19: -------- | Q19: -------- | R19: -------- | S19: -------- | T19: -------- | U19: -------- | V19: -------- | W19: -------- | X19: -------- | Y19: -------- | Z19: -------- | AA19: -------- | AB19: -------- | AC19: -------- | AD19: -------- | AE19: -------- | AF19: -------- | AG19: -------- | AH19: -------- | AI19: -------- | AJ19: -------- | AK19: -------- | AL19: -------- | AM19: -------- | AN19: --------
A22: 銘柄名称 | B22: 市場名称 | C22: 足種 | D22: 日付 | E22: 時刻 | F22: 始値 | G22: 高値 | H22: 安値 | I22: 終値 | J22: 出来高 | K22: 銘柄名称 | L22: 市場名称 | M22: 足種 | N22: 日付 | O22: 時刻 | P22: 始値 | Q22: 高値 | R22: 安値 | S22: 終値 | T22: 出来高 | U22: 銘柄名称 | V22: 市場名称 | W22: 足種 | X22: 日付 | Y22: 時刻 | Z22: 始値 | AA22: 高値 | AB22: 安値 | AC22: 終値 | AD22: 出来高 | AE22: 銘柄名称 | AF22: 市場名称 | AG22: 足種 | AH22: 日付 | AI22: 時刻 | AJ22: 始値 | AK22: 高値 | AL22: 安値 | AM22: 終値 | AN22: 出来高
A23: 日経225オプション 22-01 C 34250 | B23: 大阪 | C23: D | D23: 2021-11-24T15:15:00 | F23: 10 | G23: 10 | H23: 9 | I23: 9 | J23: 46 | K23: 日経225オプション 22-01 P 34250 | L23: 大阪 | M23: D | N23: 2021-11-24T15:15:00 | T23: 0 | U23: 日経225オプション 22-02 C 34250 | V23: 大阪 | W23: D | X23: 2021-11-24T15:15:00 | Z23: 20 | AA23: 20 | AB23: 20 | AC23: 20 | AD23: 2 | AE23: 日経225オプション 22-02 P 34250 | AF23: 大阪 | AG23: D | AH23: 2021-11-24T15:15:00 | AN23: 0
D24: 2021-11-25T15:15:00 | F24: 7 | G24: 8 | H24: 7 | I24: 7 | J24: 26 | N24: 2021-11-25T15:15:00 | T24: 0 | X24: 2021-11-25T15:15:00 | AC24: 20 | AD24: 0 | AH24: 2021-11-25T15:15:00 | AN24: 0
D25: 2021-11-26T15:15:00 | F25: 4 | G25: 5 | H25: 4 | I25: 5 | J25: 22 | N25: 2021-11-26T15:15:00 | T25: 0 | X25: 2021-11-26T15:15:00 | Z25: 15 | AA25: 15 | AB25: 15 | AC25: 15 | AD25: 1 | AH25: 2021-11-26T15:15:00 | AN25: 0
D26: 2021-11-29T15:15:00 | F26: 4 | G26: 4 | H26: 4 | I26: 4 | J26: 4 | N26: 2021-11-29T15:15:00 | T26: 0 | X26: 2021-11-29T15:15:00 | Z26: 11 | AA26: 11 | AB26: 11 | AC26: 11 | AD26: 1 | AH26: 2021-11-29T15:15:00 | AN26: 0
D27: 2021-11-30T15:15:00 | F27: 4 | G27: 4 | H27: 4 | I27: 4 | J27: 23 | N27: 2021-11-30T15:15:00 | T27: 0 | X27: 2021-11-30T15:15:00 | AC27: 11 | AD27: 0 | AH27: 2021-11-30T15:15:00 | AN27: 0
D28: 2021-12-01T15:15:00 | F28: 4 | G28: 4 | H28: 3 | I28: 4 | J28: 14 | N28: 2021-12-01T15:15:00 | T28: 0 | X28: 2021-12-01T15:15:00 | Z28: 10 | AA28: 10 | AB28: 10 | AC28: 10 | AD28: 1 | AH28: 2021-12-01T15:15:00 | AN28: 0
D29: 2021-12-02T15:15:00 | F29: 3 | G29: 3 | H29: 3 | I29: 3 | J29: 2 | N29: 2021-12-02T15:15:00 | T29: 0 | X29: 2021-12-02T15:15:00 | AC29: 10 | AD29: 0 | AH29: 2021-12-02T15:15:00 | AN29: 0
D30: 2021-12-03T15:15:00 | I30: 3 | J30: 0 | N30: 2021-12-03T15:15:00 | T30: 0 | X30: 2021-12-03T15:15:00 | Z30: 8 | AA30: 10 | AB30: 8 | AC30: 10 | AD30: 2 | AH30: 2021-12-03T15:15:00 | AN30: 0
D31: 2021-12-06T15:15:00 | F31: 3 | G31: 3 | H31: 3 | I31: 3 | J31: 3 | N31: 2021-12-06T15:15:00 | T31: 0 | X31: 2021-12-06T15:15:00 | AC31: 10 | AD31: 0 | AH31: 2021-12-06T15:15:00 | AN31: 0
D32: 2021-12-07T15:15:00 | F32: 3 | G32: 3 | H32: 3 | I32: 3 | J32: 2 | N32: 2021-12-07T15:15:00 | T32: 0 | X32: 2021-12-07T15:15:00 | AC32: 10 | AD32: 0 | AH32: 2021-12-07T15:15:00 | AN32: 0
D33: 2021-12-08T15:15:00 | F33: 3 | G33: 3 | H33: 3 | I33: 3 | J33: 4 | N33: 2021-12-08T15:15:00 | T33: 0 | X33: 2021-12-08T15:15:00 | AC33: 10 | AD33: 0 | AH33: 2021-12-08T15:15:00 | AN33: 0
D34: 2021-12-09T15:15:00 | F34: 2 | G34: 2 | H34: 2 | I34: 2 | J34: 5 | N34: 2021-12-09T15:15:00 | T34: 0 | X34: 2021-12-09T15:15:00 | Z34: 7 | AA34: 7 | AB34: 7 | AC34: 7 | AD34: 1 | AH34: 2021-12-09T15:15:00 | AN34: 0
D35: 2021-12-10T15:15:00 | F35: 2 | G35: 2 | H35: 1 | I35: 1 | J35: 18 | N35: 2021-12-10T15:15:00 | T35: 0 | X35: 2021-12-10T15:15:00 | Z35: 6 | AA35: 6 | AB35: 6 | AC35: 6 | AD35: 1 | AH35: 2021-12-10T15:15:00 | AN35: 0
D36: 2021-12-13T15:15:00 | I36: 1 | J36: 0 | N36: 2021-12-13T15:15:00 | T36: 0 | X36: 2021-12-13T15:15:00 | AC36: 6 | AD36: 0 | AH36: 2021-12-13T15:15:00 | AN36: 0
D37: 2021-12-14T15:15:00 | I37: 1 | J37: 0 | N37: 2021-12-14T15:15:00 | T37: 0 | X37: 2021-12-14T15:15:00 | Z37: 3 | AA37: 3 | AB37: 3 | AC37: 3 | AD37: 1 | AH37: 2021-12-14T15:15:00 | AN37: 0
D38: =NOW() -> 2021-12-17T19:13:13.500 | I38: =_xll.RssFOPMarket("197014218","現在値") -> 0 | J38: 0 | N38: =NOW() -> 2021-12-17T19:13:13.500 | T38: 0 | X38: =NOW() -> 2021-12-17T19:13:13.500 | AC38: =_xll.RssFOPMarket("197024218","現在値") -> 0 | AD38: 0 | AH38: =NOW() -> 2021-12-17T19:13:13.500 | AN38: 0
A39: -------- | B39: -------- | C39: -------- | D39: -------- | E39: -------- | F39: -------- | G39: -------- | H39: -------- | I39: -------- | J39: -------- | K39: -------- | L39: -------- | M39: -------- | N39: -------- | O39: -------- | P39: -------- | Q39: -------- | R39: -------- | S39: -------- | T39: -------- | U39: -------- | V39: -------- | W39: -------- | X39: -------- | Y39: -------- | Z39: -------- | AA39: -------- | AB39: -------- | AC39: -------- | AD39: -------- | AE39: -------- | AF39: -------- | AG39: -------- | AH39: -------- | AI39: -------- | AJ39: -------- | AK39: -------- | AL39: -------- | AM39: -------- | AN39: --------
A42: 銘柄名称 | B42: 市場名称 | C42: 足種 | D42: 日付 | E42: 時刻 | F42: 始値 | G42: 高値 | H42: 安値 | I42: 終値 | J42: 出来高 | K42: 銘柄名称 | L42: 市場名称 | M42: 足種 | N42: 日付 | O42: 時刻 | P42: 始値 | Q42: 高値 | R42: 安値 | S42: 終値 | T42: 出来高 | U42: 銘柄名称 | V42: 市場名称 | W42: 足種 | X42: 日付 | Y42: 時刻 | Z42: 始値 | AA42: 高値 | AB42: 安値 | AC42: 終値 | AD42: 出来高 | AE42: 銘柄名称 | AF42: 市場名称 | AG42: 足種 | AH42: 日付 | AI42: 時刻 | AJ42: 始値 | AK42: 高値 | AL42: 安値 | AM42: 終値 | AN42: 出来高
A43: 日経225オプション 22-01 C 34000 | B43: 大阪 | C43: D | D43: 2021-11-24T15:15:00 | F43: 11 | G43: 12 | H43: 8 | I43: 8 | J43: 145 | K43: 日経225オプション 22-01 P 34000 | L43: 大阪 | M43: D | N43: 2021-11-24T15:15:00 | T43: 0 | U43: 日経225オプション 22-02 C 34000 | V43: 大阪 | W43: D | X43: 2021-11-24T15:15:00 | AD43: 0 | AE43: 日経225オプション 22-02 P 34000 | AF43: 大阪 | AG43: D | AH43: 2021-11-24T15:15:00 | AN43: 0
D44: 2021-11-25T15:15:00 | F44: 8 | G44: 9 | H44: 8 | I44: 8 | J44: 15 | N44: 2021-11-25T15:15:00 | T44: 0 | X44: 2021-11-25T15:15:00 | Z44: 22 | AA44: 28 | AB44: 22 | AC44: 28 | AD44: 2 | AH44: 2021-11-25T15:15:00 | AN44: 0
D45: 2021-11-26T15:15:00 | F45: 7 | G45: 8 | H45: 5 | I45: 6 | J45: 163 | N45: 2021-11-26T15:15:00 | T45: 0 | X45: 2021-11-26T15:15:00 | AC45: 28 | AD45: 0 | AH45: 2021-11-26T15:15:00 | AN45: 0
D46: 2021-11-29T15:15:00 | F46: 5 | G46: 6 | H46: 5 | I46: 6 | J46: 47 | N46: 2021-11-29T15:15:00 | T46: 0 | X46: 2021-11-29T15:15:00 | Z46: 14 | AA46: 15 | AB46: 12 | AC46: 12 | AD46: 3 | AH46: 2021-11-29T15:15:00 | AN46: 0
D47: 2021-11-30T15:15:00 | F47: 10 | G47: 10 | H47: 4 | I47: 4 | J47: 6 | N47: 2021-11-30T15:15:00 | T47: 0 | X47: 2021-11-30T15:15:00 | AC47: 12 | AD47: 0 | AH47: 2021-11-30T15:15:00 | AN47: 0
D48: 2021-12-01T15:15:00 | F48: 4 | G48: 4 | H48: 4 | I48: 4 | J48: 4 | N48: 2021-12-01T15:15:00 | T48: 0 | X48: 2021-12-01T15:15:00 | Z48: 9 | AA48: 9 | AB48: 9 | AC48: 9 | AD48: 1 | AH48: 2021-12-01T15:15:00 | AN48: 0
D49: 2021-12-02T15:15:00 | F49: 4 | G49: 4 | H49: 2 | I49: 3 | J49: 18 | N49: 2021-12-02T15:15:00 | T49: 0 | X49: 2021-12-02T15:15:00 | AC49: 9 | AD49: 0 | AH49: 2021-12-02T15:15:00 | AN49: 0
D50: 2021-12-03T15:15:00 | F50: 3 | G50: 4 | H50: 3 | I50: 4 | J50: 25 | N50: 2021-12-03T15:15:00 | T50: 0 | X50: 2021-12-03T15:15:00 | AC50: 9 | AD50: 0 | AH50: 2021-12-03T15:15:00 | AN50: 0
D51: 2021-12-06T15:15:00 | F51: 4 | G51: 4 | H51: 3 | I51: 3 | J51: 8 | N51: 2021-12-06T15:15:00 | T51: 0 | X51: 2021-12-06T15:15:00 | AC51: 9 | AD51: 0 | AH51: 2021-12-06T15:15:00 | AN51: 0
D52: 2021-12-07T15:15:00 | F52: 3 | G52: 4 | H52: 3 | I52: 4 | J52: 18 | N52: 2021-12-07T15:15:00 | T52: 0 | X52: 2021-12-07T15:15:00 | Z52: 12 | AA52: 12 | AB52: 12 | AC52: 12 | AD52: 1 | AH52: 2021-12-07T15:15:00 | AN52: 0
D53: 2021-12-08T15:15:00 | F53: 3 | G53: 4 | H53: 2 | I53: 2 | J53: 18 | N53: 2021-12-08T15:15:00 | T53: 0 | X53: 2021-12-08T15:15:00 | Z53: 10 | AA53: 10 | AB53: 10 | AC53: 10 | AD53: 2 | AH53: 2021-12-08T15:15:00 | AN53: 0
D54: 2021-12-09T15:15:00 | F54: 2 | G54: 2 | H54: 1 | I54: 1 | J54: 42 | N54: 2021-12-09T15:15:00 | T54: 0 | X54: 2021-12-09T15:15:00 | AC54: 10 | AD54: 0 | AH54: 2021-12-09T15:15:00 | AN54: 0
D55: 2021-12-10T15:15:00 | F55: 1 | G55: 1 | H55: 1 | I55: 1 | J55: 137 | N55: 2021-12-10T15:15:00 | T55: 0 | X55: 2021-12-10T15:15:00 | AC55: 10 | AD55: 0 | AH55: 2021-12-10T15:15:00 | AN55: 0
D56: 2021-12-13T15:15:00 | F56: 1 | G56: 1 | H56: 1 | I56: 1 | J56: 12 | N56: 2021-12-13T15:15:00 | T56: 0 | X56: 2021-12-13T15:15:00 | Z56: 5 | AA56: 5 | AB56: 5 | AC56: 5 | AD56: 2 | AH56: 2021-12-13T15:15:00 | AN56: 0
D57: 2021-12-14T15:15:00 | I57: 1 | J57: 0 | N57: 2021-12-14T15:15:00 | T57: 0 | X57: 2021-12-14T15:15:00 | AC57: 5 | AD57: 0 | AH57: 2021-12-14T15:15:00 | AN57: 0
D58: =NOW() -> 2021-12-17T19:13:13.500 | I58: =_xll.RssFOPMarket("197014018","現在値") -> 0 | J58: 0 | N58: =NOW() -> 2021-12-17T19:13:13.500 | T58: 0 | X58: =NOW() -> 2021-12-17T19:13:13.500 | AC58: =_xll.RssFOPMarket("197024018","現在値") -> 0 | AD58: 0 | AH58: =NOW() -> 2021-12-17T19:13:13.500 | AN58: 0
A59: -------- | B59: -------- | C59: -------- | D59: -------- | E59: -------- | F59: -------- | G59: -------- | H59: -------- | I59: -------- | J59: -------- | K59: -------- | L59: -------- | M59: -------- | N59: -------- | O59: -------- | P59: -------- | Q59: -------- | R59: -------- | S59: -------- | T59: -------- | U59: -------- | V59: -------- | W59: -------- | X59: -------- | Y59: -------- | Z59: -------- | AA59: -------- | AB59: -------- | AC59: -------- | AD59: -------- | AE59: -------- | AF59: -------- | AG59: -------- | AH59: -------- | AI59: -------- | AJ59: -------- | AK59: -------- | AL59: -------- | AM59: -------- | AN59: --------
A62: 銘柄名称 | B62: 市場名称 | C62: 足種 | D62: 日付 | E62: 時刻 | F62: 始値 | G62: 高値 | H62: 安値 | I62: 終値 | J62: 出来高 | K62: 銘柄名称 | L62: 市場名称 | M62: 足種 | N62: 日付 | O62: 時刻 | P62: 始値 | Q62: 高値 | R62: 安値 | S62: 終値 | T62: 出来高 | U62: 銘柄名称 | V62: 市場名称 | W62: 足種 | X62: 日付 | Y62: 時刻 | Z62: 始値 | AA62: 高値 | AB62: 安値 | AC62: 終値 | AD62: 出来高 | AE62: 銘柄名称 | AF62: 市場名称 | AG62: 足種 | AH62: 日付 | AI62: 時刻 | AJ62: 始値 | AK62: 高値 | AL62: 安値 | AM62: 終値 | AN62: 出来高
A63: 日経225オプション 22-01 C 33750 | B63: 大阪 | C63: D | D63: 2021-11-24T15:15:00 | F63: 13 | G63: 13 | H63: 10 | I63: 10 | J63: 27 | K63: 日経225オプション 22-01 P 33750 | L63: 大阪 | M63: D | N63: 2021-11-24T15:15:00 | T63: 0 | U63: 日経225オプション 22-02 C 33750 | V63: 大阪 | W63: D | X63: 2021-11-24T15:15:00 | AD63: 0 | AE63: 日経225オプション 22-02 P 33750 | AF63: 大阪 | AG63: D | AH63: 2021-11-24T15:15:00 | AN63: 0
D64: 2021-11-25T15:15:00 | F64: 10 | G64: 11 | H64: 9 | I64: 10 | J64: 19 | N64: 2021-11-25T15:15:00 | T64: 0 | X64: 2021-11-25T15:15:00 | AD64: 0 | AH64: 2021-11-25T15:15:00 | AN64: 0
D65: 2021-11-26T15:15:00 | F65: 9 | G65: 9 | H65: 6 | I65: 7 | J65: 22 | N65: 2021-11-26T15:15:00 | T65: 0 | X65: 2021-11-26T15:15:00 | AD65: 0 | AH65: 2021-11-26T15:15:00 | AN65: 0
D66: 2021-11-29T15:15:00 | F66: 6 | G66: 6 | H66: 5 | I66: 6 | J66: 12 | N66: 2021-11-29T15:15:00 | T66: 0 | X66: 2021-11-29T15:15:00 | Z66: 11 | AA66: 15 | AB66: 11 | AC66: 15 | AD66: 5 | AH66: 2021-11-29T15:15:00 | AN66: 0
D67: 2021-11-30T15:15:00 | F67: 6 | G67: 6 | H67: 5 | I67: 5 | J67: 6 | N67: 2021-11-30T15:15:00 | T67: 0 | X67: 2021-11-30T15:15:00 | Z67: 10 | AA67: 10 | AB67: 10 | AC67: 10 | AD67: 2 | AH67: 2021-11-30T15:15:00 | AN67: 0
D68: 2021-12-01T15:15:00 | F68: 4 | G68: 4 | H68: 4 | I68: 4 | J68: 21 | N68: 2021-12-01T15:15:00 | T68: 0 | X68: 2021-12-01T15:15:00 | Z68: 10 | AA68: 10 | AB68: 10 | AC68: 10 | AD68: 11 | AH68: 2021-12-01T15:15:00 | AN68: 0
D69: 2021-12-02T15:15:00 | F69: 4 | G69: 4 | H69: 4 | I69: 4 | J69: 3 | N69: 2021-12-02T15:15:00 | T69: 0 | X69: 2021-12-02T15:15:00 | AC69: 10 | AD69: 0 | AH69: 2021-12-02T15:15:00 | AN69: 0
D70: 2021-12-03T15:15:00 | I70: 4 | J70: 0 | N70: 2021-12-03T15:15:00 | T70: 0 | X70: 2021-12-03T15:15:00 | AC70: 10 | AD70: 0 | AH70: 2021-12-03T15:15:00 | AN70: 0
D71: 2021-12-06T15:15:00 | F71: 4 | G71: 4 | H71: 4 | I71: 4 | J71: 5 | N71: 2021-12-06T15:15:00 | T71: 0 | X71: 2021-12-06T15:15:00 | AC71: 10 | AD71: 0 | AH71: 2021-12-06T15:15:00 | AN71: 0
D72: 2021-12-07T15:15:00 | F72: 4 | G72: 5 | H72: 4 | I72: 5 | J72: 5 | N72: 2021-12-07T15:15:00 | T72: 0 | X72: 2021-12-07T15:15:00 | AC72: 10 | AD72: 0 | AH72: 2021-12-07T15:15:00 | AN72: 0
D73: 2021-12-08T15:15:00 | I73: 5 | J73: 0 | N73: 2021-12-08T15:15:00 | T73: 0 | X73: 2021-12-08T15:15:00 | Z73: 14 | AA73: 14 | AB73: 14 | AC73: 14 | AD73: 1 | AH73: 2021-12-08T15:15:00 | AN73: 0
D74: 2021-12-09T15:15:00 | F74: 3 | G74: 3 | H74: 2 | I74: 2 | J74: 34 | N74: 2021-12-09T15:15:00 | T74: 0 | X74: 2021-12-09T15:15:00 | AC74: 14 | AD74: 0 | AH74: 2021-12-09T15:15:00 | AN74: 0
D75: 2021-12-10T15:15:00 | F75: 1 | G75: 2 | H75: 1 | I75: 1 | J75: 44 | N75: 2021-12-10T15:15:00 | T75: 0 | X75: 2021-12-10T15:15:00 | AC75: 14 | AD75: 0 | AH75: 2021-12-10T15:15:00 | AN75: 0
D76: 2021-12-13T15:15:00 | F76: 1 | G76: 1 | H76: 1 | I76: 1 | J76: 12 | N76: 2021-12-13T15:15:00 | T76: 0 | X76: 2021-12-13T15:15:00 | Z76: 6 | AA76: 6 | AB76: 6 | AC76: 6 | AD76: 1 | AH76: 2021-12-13T15:15:00 | AN76: 0
D77: 2021-12-14T15:15:00 | F77: 1 | G77: 1 | H77: 1 | I77: 1 | J77: 2 | N77: 2021-12-14T15:15:00 | T77: 0 | X77: 2021-12-14T15:15:00 | AC77: 6 | AD77: 0 | AH77: 2021-12-14T15:15:00 | AN77: 0
D78: =NOW() -> 2021-12-17T19:13:13.500 | I78: =_xll.RssFOPMarket("147013718","現在値") -> 0 | J78: 0 | N78: =NOW() -> 2021-12-17T19:13:13.500 | T78: 0 | X78: =NOW() -> 2021-12-17T19:13:13.500 | AC78: =_xll.RssFOPMarket("197023718","現在値") -> 0 | AD78: 0 | AH78: =NOW() -> 2021-12-17T19:13:13.500 | AN78: 0
A79: -------- | B79: -------- | C79: -------- | D79: -------- | E79: -------- | F79: -------- | G79: -------- | H79: -------- | I79: -------- | J79: -------- | K79: -------- | L79: -------- | M79: -------- | N79: -------- | O79: -------- | P79: -------- | Q79: -------- | R79: -------- | S79: -------- | T79: -------- | U79: -------- | V79: -------- | W79: -------- | X79: -------- | Y79: -------- | Z79: -------- | AA79: -------- | AB79: -------- | AC79: -------- | AD79: -------- | AE79: -------- | AF79: -------- | AG79: -------- | AH79: -------- | AI79: -------- | AJ79: -------- | AK79: -------- | AL79: -------- | AM79: -------- | AN79: --------
A82: 銘柄名称 | B82: 市場名称 | C82: 足種 | D82: 日付 | E82: 時刻 | F82: 始値 | G82: 高値 | H82: 安値 | I82: 終値 | J82: 出来高 | K82: 銘柄名称 | L82: 市場名称 | M82: 足種 | N82: 日付 | O82: 時刻 | P82: 始値 | Q82: 高値 | R82: 安値 | S82: 終値 | T82: 出来高 | U82: 銘柄名称 | V82: 市場名称 | W82: 足種 | X82: 日付 | Y82: 時刻 | Z82: 始値 | AA82: 高値 | AB82: 安値 | AC82: 終値 | AD82: 出来高 | AE82: 銘柄名称 | AF82: 市場名称 | AG82: 足種 | AH82: 日付 | AI82: 時刻 | AJ82: 始値 | AK82: 高値 | AL82: 安値 | AM82: 終値 | AN82: 出来高
A83: 日経225オプション 22-01 C 33500 | B83: 大阪 | C83: D | D83: 2021-11-24T15:15:00 | F83: 18 | G83: 18 | H83: 12 | I83: 12 | J83: 91 | K83: 日経225オプション 22-01 P 33500 | L83: 大阪 | M83: D | N83: 2021-11-24T15:15:00 | T83: 0 | U83: 日経225オプション 22-02 C 33500 | V83: 大阪 | W83: D | X83: 2021-11-24T15:15:00 | AD83: 0 | AE83: 日経225オプション 22-02 P 33500 | AF83: 大阪 | AG83: D | AH83: 2021-11-24T15:15:00 | AN83: 0
D84: 2021-11-25T15:15:00 | F84: 12 | G84: 13 | H84: 11 | I84: 13 | J84: 8 | N84: 2021-11-25T15:15:00 | T84: 0 | X84: 2021-11-25T15:15:00 | AD84: 0 | AH84: 2021-11-25T15:15:00 | AN84: 0
D85: 2021-11-26T15:15:00 | F85: 11 | G85: 12 | H85: 7 | I85: 8 | J85: 137 | N85: 2021-11-26T15:15:00 | T85: 0 | X85: 2021-11-26T15:15:00 | AD85: 0 | AH85: 2021-11-26T15:15:00 | AN85: 0
D86: 2021-11-29T15:15:00 | F86: 7 | G86: 10 | H86: 7 | I86: 9 | J86: 15 | N86: 2021-11-29T15:15:00 | T86: 0 | X86: 2021-11-29T15:15:00 | Z86: 20 | AA86: 20 | AB86: 20 | AC86: 20 | AD86: 1 | AH86: 2021-11-29T15:15:00 | AN86: 0
D87: 2021-11-30T15:15:00 | F87: 7 | G87: 7 | H87: 5 | I87: 5 | J87: 33 | N87: 2021-11-30T15:15:00 | T87: 0 | X87: 2021-11-30T15:15:00 | Z87: 20 | AA87: 20 | AB87: 20 | AC87: 20 | AD87: 1 | AH87: 2021-11-30T15:15:00 | AN87: 0
D88: 2021-12-01T15:15:00 | F88: 5 | G88: 6 | H88: 5 | I88: 6 | J88: 39 | N88: 2021-12-01T15:15:00 | T88: 0 | X88: 2021-12-01T15:15:00 | AC88: 20 | AD88: 0 | AH88: 2021-12-01T15:15:00 | AN88: 0
D89: 2021-12-02T15:15:00 | F89: 7 | G89: 7 | H89: 5 | I89: 5 | J89: 6 | N89: 2021-12-02T15:15:00 | T89: 0 | X89: 2021-12-02T15:15:00 | AC89: 20 | AD89: 0 | AH89: 2021-12-02T15:15:00 | AN89: 0
D90: 2021-12-03T15:15:00 | I90: 5 | J90: 0 | N90: 2021-12-03T15:15:00 | T90: 0 | X90: 2021-12-03T15:15:00 | AC90: 20 | AD90: 0 | AH90: 2021-12-03T15:15:00 | AN90: 0
D91: 2021-12-06T15:15:00 | F91: 5 | G91: 5 | H91: 5 | I91: 5 | J91: 12 | N91: 2021-12-06T15:15:00 | T91: 0 | X91: 2021-12-06T15:15:00 | AC91: 20 | AD91: 0 | AH91: 2021-12-06T15:15:00 | AN91: 0
D92: 2021-12-07T15:15:00 | F92: 5 | G92: 6 | H92: 5 | I92: 5 | J92: 12 | N92: 2021-12-07T15:15:00 | T92: 0 | X92: 2021-12-07T15:15:00 | Z92: 8 | AA92: 8 | AB92: 8 | AC92: 8 | AD92: 1 | AH92: 2021-12-07T15:15:00 | AN92: 0
D93: 2021-12-08T15:15:00 | F93: 5 | G93: 5 | H93: 4 | I93: 4 | J93: 13 | N93: 2021-12-08T15:15:00 | T93: 0 | X93: 2021-12-08T15:15:00 | Z93: 15 | AA93: 15 | AB93: 15 | AC93: 15 | AD93: 1 | AH93: 2021-12-08T15:15:00 | AN93: 0
D94: 2021-12-09T15:15:00 | F94: 4 | G94: 4 | H94: 3 | I94: 3 | J94: 6 | N94: 2021-12-09T15:15:00 | T94: 0 | X94: 2021-12-09T15:15:00 | AC94: 15 | AD94: 0 | AH94: 2021-12-09T15:15:00 | AN94: 0
D95: 2021-12-10T15:15:00 | F95: 2 | G95: 2 | H95: 1 | I95: 1 | J95: 50 | N95: 2021-12-10T15:15:00 | T95: 0 | X95: 2021-12-10T15:15:00 | Z95: 9 | AA95: 9 | AB95: 9 | AC95: 9 | AD95: 1 | AH95: 2021-12-10T15:15:00 | AN95: 0
D96: 2021-12-13T15:15:00 | F96: 1 | G96: 2 | H96: 1 | I96: 1 | J96: 42 | N96: 2021-12-13T15:15:00 | T96: 0 | X96: 2021-12-13T15:15:00 | Z96: 8 | AA96: 8 | AB96: 8 | AC96: 8 | AD96: 1 | AH96: 2021-12-13T15:15:00 | AN96: 0
D97: 2021-12-14T15:15:00 | F97: 1 | G97: 1 | H97: 1 | I97: 1 | J97: 5 | N97: 2021-12-14T15:15:00 | T97: 0 | X97: 2021-12-14T15:15:00 | AC97: 8 | AD97: 0 | AH97: 2021-12-14T15:15:00 | AN97: 0
D98: =NOW() -> 2021-12-17T19:13:13.500 | I98: =_xll.RssFOPMarket("147013518","現在値") -> 0 | J98: 0 | N98: =NOW() -> 2021-12-17T19:13:13.500 | T98: 0 | X98: =NOW() -> 2021-12-17T19:13:13.500 | AC98: =_xll.RssFOPMarket("197023518","現在値") -> 0 | AD98: 0 | AH98: =NOW() -> 2021-12-17T19:13:13.500 | AN98: 0
A99: -------- | B99: -------- | C99: -------- | D99: -------- | E99: -------- | F99: -------- | G99: -------- | H99: -------- | I99: -------- | J99: -------- | K99: -------- | L99: -------- | M99: -------- | N99: -------- | O99: -------- | P99: -------- | Q99: -------- | R99: -------- | S99: -------- | T99: -------- | U99: -------- | V99: -------- | W99: -------- | X99: -------- | Y99: -------- | Z99: -------- | AA99: -------- | AB99: -------- | AC99: -------- | AD99: -------- | AE99: -------- | AF99: -------- | AG99: -------- | AH99: -------- | AI99: -------- | AJ99: -------- | AK99: -------- | AL99: -------- | AM99: -------- | AN99: --------
A102: 銘柄名称 | B102: 市場名称 | C102: 足種 | D102: 日付 | E102: 時刻 | F102: 始値 | G102: 高値 | H102: 安値 | I102: 終値 | J102: 出来高 | K102: 銘柄名称 | L102: 市場名称 | M102: 足種 | N102: 日付 | O102: 時刻 | P102: 始値 | Q102: 高値 | R102: 安値 | S102: 終値 | T102: 出来高 | U102: 銘柄名称 | V102: 市場名称 | W102: 足種 | X102: 日付 | Y102: 時刻 | Z102: 始値 | AA102: 高値 | AB102: 安値 | AC102: 終値 | AD102: 出来高 | AE102: 銘柄名称 | AF102: 市場名称 | AG102: 足種 | AH102: 日付 | AI102: 時刻 | AJ102: 始値 | AK102: 高値 | AL102: 安値 | AM102: 終値 | AN102: 出来高
A103: 日経225オプション 22-01 C 33250 | B103: 大阪 | C103: D | D103: 2021-11-24T15:15:00 | F103: 23 | G103: 25 | H103: 15 | I103: 15 | J103: 89 | K103: 日経225オプション 22-01 P 33250 | L103: 大阪 | M103: D | N103: 2021-11-24T15:15:00 | T103: 0 | U103: 日経225オプション 22-02 C 33250 | V103: 大阪 | W103: D | X103: 2021-11-24T15:15:00 | AD103: 0 | AE103: 日経225オプション 22-02 P 33250 | AF103: 大阪 | AG103: D | AH103: 2021-11-24T15:15:00 | AN103: 0
D104: 2021-11-25T15:15:00 | F104: 14 | G104: 17 | H104: 14 | I104: 16 | J104: 78 | N104: 2021-11-25T15:15:00 | T104: 0 | X104: 2021-11-25T15:15:00 | Z104: 50 | AA104: 50 | AB104: 50 | AC104: 50 | AD104: 1 | AH104: 2021-11-25T15:15:00 | AN104: 0
D105: 2021-11-26T15:15:00 | F105: 14 | G105: 14 | H105: 9 | I105: 10 | J105: 72 | N105: 2021-11-26T15:15:00 | T105: 0 | X105: 2021-11-26T15:15:00 | Z105: 32 | AA105: 32 | AB105: 32 | AC105: 32 | AD105: 1 | AH105: 2021-11-26T15:15:00 | AN105: 0
D106: 2021-11-29T15:15:00 | F106: 9 | G106: 9 | H106: 8 | I106: 8 | J106: 15 | N106: 2021-11-29T15:15:00 | T106: 0 | X106: 2021-11-29T15:15:00 | AC106: 32 | AD106: 0 | AH106: 2021-11-29T15:15:00 | AN106: 0
D107: 2021-11-30T15:15:00 | F107: 8 | G107: 8 | H107: 6 | I107: 6 | J107: 22 | N107: 2021-11-30T15:15:00 | T107: 0 | X107: 2021-11-30T15:15:00 | AC107: 32 | AD107: 0 | AH107: 2021-11-30T15:15:00 | AN107: 0
D108: 2021-12-01T15:15:00 | F108: 5 | G108: 7 | H108: 5 | I108: 6 | J108: 13 | N108: 2021-12-01T15:15:00 | T108: 0 | X108: 2021-12-01T15:15:00 | AC108: 32 | AD108: 0 | AH108: 2021-12-01T15:15:00 | AN108: 0
D109: 2021-12-02T15:15:00 | F109: 5 | G109: 5 | H109: 5 | I109: 5 | J109: 1 | N109: 2021-12-02T15:15:00 | T109: 0 | X109: 2021-12-02T15:15:00 | AC109: 32 | AD109: 0 | AH109: 2021-12-02T15:15:00 | AN109: 0
D110: 2021-12-03T15:15:00 | F110: 5 | G110: 5 | H110: 5 | I110: 5 | J110: 8 | N110: 2021-12-03T15:15:00 | T110: 0 | X110: 2021-12-03T15:15:00 | Z110: 12 | AA110: 12 | AB110: 12 | AC110: 12 | AD110: 1 | AH110: 2021-12-03T15:15:00 | AN110: 0
D111: 2021-12-06T15:15:00 | F111: 6 | G111: 6 | H111: 5 | I111: 5 | J111: 3 | N111: 2021-12-06T15:15:00 | T111: 0 | X111: 2021-12-06T15:15:00 | AC111: 12 | AD111: 0 | AH111: 2021-12-06T15:15:00 | AN111: 0
D112: 2021-12-07T15:15:00 | F112: 5 | G112: 6 | H112: 5 | I112: 6 | J112: 14 | N112: 2021-12-07T15:15:00 | T112: 0 | X112: 2021-12-07T15:15:00 | AC112: 12 | AD112: 0 | AH112: 2021-12-07T15:15:00 | AN112: 0
D113: 2021-12-08T15:15:00 | I113: 6 | J113: 0 | N113: 2021-12-08T15:15:00 | T113: 0 | X113: 2021-12-08T15:15:00 | AC113: 12 | AD113: 0 | AH113: 2021-12-08T15:15:00 | AN113: 0
D114: 2021-12-09T15:15:00 | F114: 5 | G114: 5 | H114: 3 | I114: 3 | J114: 20 | N114: 2021-12-09T15:15:00 | T114: 0 | X114: 2021-12-09T15:15:00 | Z114: 18 | AA114: 19 | AB114: 18 | AC114: 19 | AD114: 2 | AH114: 2021-12-09T15:15:00 | AN114: 0
